Workbook

Sheet AMI Transitional Adjustment
A1: ='Tariff Compliance'!A1 -> United Energy
B3: 2009 | C3: 2010 | D3: 2011 | E3: 2012 | F3: 2013 | G3: 2014 | H3: 2015 | I3: 2016 | J3: 2017 | K3: 2018
A4: CPI | B4: Actual | C4: Actual | D4: Actual | E4: Actual | F4: Actual | G4: Actual | H4: Actual | I4: Actual | J4: Actual | K4: Forecast
A5: CPI increase | B5: ='Data 2009-15 (Real $2008)'!D$144 -> 0.04981084489 | C5: ='Data 2009-15 (Real $2008)'!E$144 -> 0.01261261261 | D5: ='Data 2009-15 (Real $2008)'!F$144 -> 0.02787663108 | E5: ='Data 2009-15 (Real $2008)'!G$144 -> 0.03519907675 | F5: ='Data 2009-15 (Real $2008)'!H$144 -> 0.02004008016 | G5: ='Data 2009-15 (Real $2008)'!I$144 -> 0.02161100196 | H5: ='Data 2009-15 (Real $2008)'!J$144 -> 0.02307692308 | I5: =108/106.4-1 -> 0.01503759398 | J5: =108.6/107.5-1 -> 0.01023255814 | K5: 0.02323079821
B8: =B$3 -> 2009 | C8: 2010 | D8: 2011 | E8: 2012 | F8: 2013 | G8: 2014 | H8: 2015 | I8: 2016 | J8: 2017 | K8: 2018
B9: Actual | C9: Actual | D9: Actual | E9: Actual | F9: Actual | G9: Actual | H9: Actual | I9: Actual | J9: Forecast | K9: Forecast
A10: Vanilla' WACC (Real) | B10: ='AMI Building Blocks 2009-15'!$C$18 -> 0.06771645866 | C10: =B10 -> 0.06771645866 | D10: 0.06771645866 | E10: 0.06771645866 | F10: 0.06771645866 | G10: ='AMI Building Blocks 2009-15'!$I$18 -> 0.05023909437 | H10: =G10 -> 0.05023909437 | I10: 0.03959852119 | J10: 0.03959852119 | K10: 0.03959852119
A11: Vanilla' WACC (nominal) | B11: =(1+B10)*(1+B$5)-1 -> 0.1209003176 | C11: 0.08118315273 | D11: 0.09748079647 | E11: 0.1052990922 | F11: 0.08911358208 | G11: 0.0729358135 | H11: 0.07447538116 | I11: 0.05523158166 | J11: 0.0502362735 | K11: 0.06374922465
A13: Future value index | B13: =(1+B11)^0.5 -> 1.058725799 | C13: =B13*(C11+1) -> 1.144676497 | D13: 1.256260474 | E13: 1.388543561 | F13: 1.512281652 | G13: 1.622581145 | H13: 1.743423494 | I13: 1.839715531 | J13: 1.932135983 | K13: 2.055308154
A15: AMI Transitional Adjustment - Revenue and Costs 2009-2015
A16: Over \ (under) recovery of revenue and costs (000's)
A17: NPV at 1 January 2009 | B17: ='Tariff Compliance'!$J$17 -> -481.9237445
A19: AMI Transitional Adjustment in 2018 prices ($) | B19: =-B17*K13*10^3 -> 990501.8018
A22: AMI Transitional Adjustment - Revenue 2016-2020
A23: Increase \ (Reduction) in revenue 2016-2020 (000's) | C23: =J21-C21 -> 0
A24: NPV at 1 January 2016 | B24: ='Opening RAB 2016'!C36*10^3 -> -4116.129996
A26: AMI Transitional Adjustment in 2018 prices ($) | B26: =B$24*K$13/$H$13*10^3 -> -4852473.066
A29: Total AMI Transitional Adjustment in 2018 prices ($) | B29: =SUM(B19,B26) -> -3861971.264
A30: The final amount will be subject to adjustment when the CPI and WACC are updated when DNSPs submit their 2018 annual pricing proposals.

Sheet Opening RAB 2016
A1: ='Tariff Compliance'!A1 -> United Energy
A3: $m | B3: Final Decision RAB | I3: Actual RAB
A4: Asset Class Name | B4: Opening Asset Value | C4: Remaining Life | I4: Opening Asset Value | J4: Remaining Life
A5: Remotely read interval meters & transformers | B5: 164.4525092 | C5: 11.61799131 | I5: =D55 -> 168.2459188 | J5: =F55 -> 11.66823548
A6: IT | B6: 31.87051447 | C6: 3.127251689 | I6: =D56 -> 31.44589255 | J6: =F56 -> 3.147746311
A7: Communications | B7: 1.844831396 | C7: 3.397227038 | I7: 3.167343825 | J7: 4.416819894
A8: Other | B8: 14.16129181 | C8: 4.421040939 | I8: 7.390120974 | J8: 3.127201025
B9: =SUM(B5:B8) -> 212.3291468 | I9: =SUM(I5:I8) -> 210.2492762
B11: 2015 | C11: 2016 | D11: =C11+1 -> 2017 | E11: =D11+1 -> 2018 | F11: 2019 | G11: 2020 | I11: 2015 | J11: 2016 | K11: =J11+1 -> 2017 | L11: =K11+1 -> 2018 | M11: 2019 | N11: 2020
A12: Inflation Assumption (CPI % increase) | C12: 0.02323079821 | D12: 0.02323079821 | E12: 0.02323079821 | F12: 0.02323079821 | G12: 0.02323079821 | J12: =C12 -> 0.02323079821 | K12: =D12 -> 0.02323079821 | L12: 0.02323079821 | M12: 0.02323079821 | N12: 0.02323079821
A13: Cumulative Inflation Index (CPI end period) | B13: 1 | C13: =(1+C12) -> 1.023230798 | D13: =C13*(1+D12) -> 1.047001266 | E13: =D13*(1+E12) -> 1.071323942 | F13: =E13*(1+F12) -> 1.096211652 | G13: 1.121677524 | I13: 1 | J13: =(1+J12) -> 1.023230798 | K13: =J13*(1+K12) -> 1.047001266 | L13: =K13*(1+L12) -> 1.071323942 | M13: =L13*(1+M12) -> 1.096211652 | N13: =M13*(1+N12) -> 1.121677524
A15: Real Vanilla WACC | C15: ='AMI Transitional Adjustment'!I10 -> 0.03959852119 | D15: ='AMI Transitional Adjustment'!J10 -> 0.03959852119 | E15: ='AMI Transitional Adjustment'!K10 -> 0.03959852119 | F15: =E15 -> 0.03959852119 | G15: =F15 -> 0.03959852119
A16: Nominal Vanilla WACC | C16: =(1+C12)*(1+C15)-1 -> 0.06374922465 | D16: =(1+D12)*(1+D15)-1 -> 0.06374922465 | E16: 0.06374922465 | F16: 0.06374922465 | G16: 0.06374922465 | J16: =C16 -> 0.06374922465 | K16: =D16 -> 0.06374922465 | L16: 0.06374922465 | M16: 0.06374922465 | N16: 0.06374922465
A18: Real Straight-line Depreciation | C18: =SUM(C19:C22) -> 28.09240603 | D18: =SUM(D19:D22) -> 28.09240603 | E18: =SUM(E19:E22) -> 28.09240603 | F18: =SUM(F19:F22) -> 18.87070468 | G18: =SUM(G19:G22) -> 15.50364699 | J18: =SUM(J19:J22) -> 27.48939408 | K18: =SUM(K19:K22) -> 27.48939408 | L18: =SUM(L19:L22) -> 27.48939408 | M18: =SUM(M19:M22) -> 16.91282886 | N18: =SUM(N19:N22) -> 14.71804536
A19: Remotely read interval meters & transformers | C19: =MIN($B5/$C5,$B5-SUM($B19:B19)) -> 14.15498641 | D19: =MIN($B5/$C5,$B5-SUM($B19:C19)) -> 14.15498641 | E19: =MIN($B5/$C5,$B5-SUM($B19:D19)) -> 14.15498641 | F19: =MIN($B5/$C5,$B5-SUM($B19:E19)) -> 14.15498641 | G19: =MIN($B5/$C5,$B5-SUM($B19:F19)) -> 14.15498641 | J19: =MIN($I5/$J5,$I5-SUM($I19:I19)) -> 14.41913982 | K19: =MIN($I5/$J5,$I5-SUM($I19:J19)) -> 14.41913982 | L19: =MIN($I5/$J5,$I5-SUM($I19:K19)) -> 14.41913982 | M19: =MIN($I5/$J5,$I5-SUM($I19:L19)) -> 14.41913982 | N19: =MIN($I5/$J5,$I5-SUM($I19:M19)) -> 14.41913982
A20: IT | C20: =MIN($B6/$C6,$B6-SUM($B20:B20)) -> 10.19122144 | D20: =MIN($B6/$C6,$B6-SUM($B20:C20)) -> 10.19122144 | E20: =MIN($B6/$C6,$B6-SUM($B20:D20)) -> 10.19122144 | F20: =MIN($B6/$C6,$B6-SUM($B20:E20)) -> 1.296850141 | G20: =MIN($B6/$C6,$B6-SUM($B20:F20)) -> 0 | J20: =MIN($I6/$J6,$I6-SUM($I20:I20)) -> 9.989970425 | K20: =MIN($I6/$J6,$I6-SUM($I20:J20)) -> 9.989970425 | L20: =MIN($I6/$J6,$I6-SUM($I20:K20)) -> 9.989970425 | M20: =MIN($I6/$J6,$I6-SUM($I20:L20)) -> 1.475981279 | N20: =MIN($I6/$J6,$I6-SUM($I20:M20)) -> 0
A21: Communications | C21: =MIN($B7/$C7,$B7-SUM($B21:B21)) -> 0.5430403608 | D21: =MIN($B7/$C7,$B7-SUM($B21:C21)) -> 0.5430403608 | E21: =MIN($B7/$C7,$B7-SUM($B21:D21)) -> 0.5430403608 | F21: =MIN($B7/$C7,$B7-SUM($B21:E21)) -> 0.2157103141 | G21: =MIN($B7/$C7,$B7-SUM($B21:F21)) -> 0 | J21: =MIN($I7/$J7,$I7-SUM($I21:I21)) -> 0.7171095723 | K21: =MIN($I7/$J7,$I7-SUM($I21:J21)) -> 0.7171095723 | L21: =MIN($I7/$J7,$I7-SUM($I21:K21)) -> 0.7171095723 | M21: =MIN($I7/$J7,$I7-SUM($I21:L21)) -> 0.7171095723 | N21: =MIN($I7/$J7,$I7-SUM($I21:M21)) -> 0.2989055358
A22: Other | C22: =MIN($B8/$C8,$B8-SUM($B22:B22)) -> 3.20315781 | D22: =MIN($B8/$C8,$B8-SUM($B22:C22)) -> 3.20315781 | E22: =MIN($B8/$C8,$B8-SUM($B22:D22)) -> 3.20315781 | F22: =MIN($B8/$C8,$B8-SUM($B22:E22)) -> 3.20315781 | G22: =MIN($B8/$C8,$B8-SUM($B22:F22)) -> 1.348660571 | J22: =MIN($I8/$J8,$I8-SUM($I22:I22)) -> 2.363174262 | K22: =MIN($I8/$J8,$I8-SUM($I22:J22)) -> 2.363174262 | L22: =MIN($I8/$J8,$I8-SUM($I22:K22)) -> 2.363174262 | M22: =MIN($I8/$J8,$I8-SUM($I22:L22)) -> 0.300598188 | N22: =MIN($I8/$J8,$I8-SUM($I22:M22)) -> 0
A24: Inflation on Opening RAB | C24: =C28*C12 -> 4.932575564 | D24: =D28*D12 -> 4.379393588 | E24: =E28*E12 -> 3.797847931 | F24: =F28*F12 -> 3.186919307 | G24: =G28*G12 -> 2.780395042 | J24: =J28*J12 -> 4.884258508 | K24: =K28*K12 -> 4.344287964 | L24: =L28*L12 -> 3.776593639 | M24: =M28*M12 -> 3.180178848 | N24: =N28*N12 -> 2.823357012
A25: Nominal Straight-line Depreciation | C25: =C18*C13 -> 28.74501504 | D25: =D18*D13 -> 29.41278469 | E25: =E18*E13 -> 30.09606715 | F25: =F18*F13 -> 20.68628635 | G25: =G18*G13 -> 17.39009236 | J25: =J18*J13 -> 28.12799465 | K25: =K18*K13 -> 28.78143041 | L25: =L18*L13 -> 29.45004602 | M25: =M18*M13 -> 18.54004006 | N25: =N18*N13 -> 16.50890067
A26: Nominal Regulatory Depreciation | C26: =C25-C24 -> 23.81243948 | D26: =D25-D24 -> 25.0333911 | E26: 26.29821922 | F26: 17.49936704 | G26: 14.60969732 | J26: =J25-J24 -> 23.24373614 | K26: =K25-K24 -> 24.43714245 | L26: 25.67345238 | M26: 15.35986121 | N26: 13.68554365
A28: RAB (start period) | C28: =B9 -> 212.3291468 | D28: =C28-C26 -> 188.5167074 | E28: =D28-D26 -> 163.4833163 | F28: 137.185097 | G28: 119.68573 | J28: =I9 -> 210.2492762 | K28: =J28-J26 -> 187.00554 | L28: =K28-K26 -> 162.5683976 | M28: 136.8949452 | N28: 121.535084
A30: Revenue | C30: =SUM(C31:C32) -> 37.34825796 | D30: =SUM(D31:D32) -> 37.05118503 | E30: =SUM(E31:E32) -> 36.72015388 | F30: =SUM(F31:F32) -> 26.24481061 | G30: =SUM(G31:G32) -> 22.2395698 | J30: =SUM(J31:J32) -> 36.64696448 | K30: =SUM(K31:K32) -> 36.35860063 | L30: =SUM(L31:L32) -> 36.03706167 | M30: =SUM(M31:M32) -> 24.08680783 | N30: =SUM(N31:N32) -> 21.43331103
A31: Return on Capital | C31: =C28*C16 -> 13.53581848 | D31: =D28*D16 -> 12.01779393 | E31: =E28*E16 -> 10.42193466 | F31: =F28*F16 -> 8.74544357 | G31: =G28*G16 -> 7.629872489 | J31: =J28*J16 -> 13.40322834 | K31: =K28*K16 -> 11.92145818 | L31: =L28*L16 -> 10.3636093 | M31: =M28*M16 -> 8.726946616 | N31: =N28*N16 -> 7.747767372
A32: Return of Capital (regulatory depreciation) | C32: =C26 -> 23.81243948 | D32: =D26 -> 25.0333911 | E32: =E26 -> 26.29821922 | F32: =F26 -> 17.49936704 | G32: =G26 -> 14.60969732 | J32: =J26 -> 23.24373614 | K32: =K26 -> 24.43714245 | L32: =L26 -> 25.67345238 | M32: =M26 -> 15.35986121 | N32: =N26 -> 13.68554365
A34: NPV - Revenue 2016-2020 | C34: =NPV(C16,C30:G30) -> 135.1842177 | J34: =NPV(J16,J30:N30) -> 131.0680877
A36: Increase \ (Reduction) in revenue 2016-2020 | C36: =J34-C34 -> -4.116129996
B53: Opening RAB 2016 | H53: Opening Tax Value 2016
A54: Asset Categories | B54: ='AMI RAB 2009-15'!A19 -> ($000 Real 2008) | D54: ($m Dec 2015) | E54: Standard Life | F54: Remaining Life | H54: ($m Nominal) | I54: Tax Standard Life | J54: Tax Remaining Life
A55: ='AMI RAB 2009-15'!A38 -> Remotely read interval meters & transformers | B55: ='AMI RAB 2009-15'!K40 -> 138354.5282 | D55: =B55*$I$65/10^3 -> 168.2459188 | E55: ='Data 2009-15 (Real $2008)'!C12 -> 15 | F55: =F86 -> 11.66823548 | H55: ='AMI Tax Depn 2009-15'!K24/10^3 -> 51.76918607 | I55: 15 | J55: =I55*F55/E55 -> 11.66823548
A56: ='AMI RAB 2009-15'!A48 -> IT | B56: ='AMI RAB 2009-15'!K50 -> 25859.0619 | D56: =B56*$I$65/10^3 -> 31.44589255 | E56: ='Data 2009-15 (Real $2008)'!C13 -> 7 | F56: =F100 -> 3.147746311 | H56: ='AMI Tax Depn 2009-15'!K36/10^3 -> 14.34786413 | I56: 3 | J56: =I56*F56/E56 -> 1.349034133
A57: ='AMI RAB 2009-15'!A58 -> Communications | B57: ='AMI RAB 2009-15'!K60 -> 2604.618072 | D57: 3.167343825 | E57: ='Data 2009-15 (Real $2008)'!C14 -> 7 | F57: =F114 -> 4.416819894 | H57: ='AMI Tax Depn 2009-15'!K42/10^3 -> 2.72171688 | I57: 3 | J57: 1.892922812
A58: ='AMI RAB 2009-15'!A68 -> Other | B58: ='AMI RAB 2009-15'!K70 -> 6077.156036 | D58: 7.390120974 | E58: ='Data 2009-15 (Real $2008)'!C15 -> 7 | F58: =F128 -> 3.127201025 | H58: ='AMI Tax Depn 2009-15'!K48/10^3 -> 13.48572694 | I58: 5.666666667 | J58: 2.531543687
B59: =SUM(B55:B58) -> 172895.3643 | D59: =SUM(D55:D58) -> 210.2492762 | H59: =SUM(H55:H58) -> 82.32449402
B62: ='Data 2009-15 (Real $2008)'!D142 -> 2009 | C62: ='Data 2009-15 (Real $2008)'!E142 -> 2010 | D62: ='Data 2009-15 (Real $2008)'!F142 -> 2011 | E62: ='Data 2009-15 (Real $2008)'!G142 -> 2012 | F62: ='Data 2009-15 (Real $2008)'!H142 -> 2013 | G62: ='Data 2009-15 (Real $2008)'!I142 -> 2014 | H62: ='Data 2009-15 (Real $2008)'!J142 -> 2015 | I62: 2015-12-01
A63: Inflation | B63: ='Data 2009-15 (Real $2008)'!D143 -> Actual | C63: ='Data 2009-15 (Real $2008)'!E143 -> Actual | D63: ='Data 2009-15 (Real $2008)'!F143 -> Actual | E63: ='Data 2009-15 (Real $2008)'!G143 -> Actual | F63: ='Data 2009-15 (Real $2008)'!H143 -> Actual | G63: ='Data 2009-15 (Real $2008)'!I143 -> Actual | H63: ='Data 2009-15 (Real $2008)'!J143 -> Actual | I63: Actual | J63: CPI : All groups – weighted average of eight capital cities
A64: CPI increase | B64: ='Data 2009-15 (Real $2008)'!D144 -> 0.04981084489 | C64: ='Data 2009-15 (Real $2008)'!E144 -> 0.01261261261 | D64: ='Data 2009-15 (Real $2008)'!F144 -> 0.02787663108 | E64: ='Data 2009-15 (Real $2008)'!G144 -> 0.03519907675 | F64: ='Data 2009-15 (Real $2008)'!H144 -> 0.02004008016 | G64: ='Data 2009-15 (Real $2008)'!I144 -> 0.02161100196 | H64: ='Data 2009-15 (Real $2008)'!J144 -> 0.02307692308 | I64: =J65/J64-1 -> 0.008372093023 | J64: 107.5 | K64: 2015-06-30
A65: CPI Index | B65: =1+B64 -> 1.049810845 | C65: =B65*(1+C64) -> 1.063051702 | D65: 1.092686003 | E65: 1.131147541 | F65: 1.153815828 | G65: 1.178750945 | H65: 1.205952889 | I65: 1.216049239 | J65: 108.4 | K65: 2015-12-31
A68: Tax Losses
A69: ($m Nominal) | B69: 2016
A70: ='AMI Building Blocks 2009-15'!A56 -> Tax losses brought forward | B70: ='AMI Building Blocks 2009-15'!J57/10^3 -> -65.40535033
A73: RAB Remaining Lives
A74: Check | B74: =SUM(G86,G100,G114,G128) -> 3.865352483e-11
A75: =A55 -> Remotely read interval meters & transformers
A76: Standard Life | B76: =E55 -> 15 | D76: ($000 Real 2008)
E77: Closing Asset | F77: Weighted Avg
B78: Year | C78: Depn Factor | D78: Net Capex | E78: Value | F78: Remaining Life | G78: Check
B79: 2009 | C79: =C80+1 -> 6.5 | D79: ='AMI RAB 2009-15'!B215 -> 6108.104037 | E79: =D79*F79/B76 -> 3461.258954 | F79: =B76-C79 -> 8.5
B80: =B79+1 -> 2010 | C80: 5.5 | D80: ='AMI RAB 2009-15'!E$41 -> 19429.72195 | E80: =D80*F80/B76 -> 12305.49057 | F80: =B76-C80 -> 9.5
B81: =B80+1 -> 2011 | C81: 4.5 | D81: ='AMI RAB 2009-15'!F$41 -> 38962.61394 | E81: =D81*F81/B76 -> 27273.82976 | F81: =B76-C81 -> 10.5
B82: 2012 | C82: 3.5 | D82: ='AMI RAB 2009-15'!G$41 -> 43962.52285 | E82: =D82*F82/B76 -> 33704.60085 | F82: =B76-C82 -> 11.5
B83: 2013 | C83: 2.5 | D83: ='AMI RAB 2009-15'!H$41 -> 48323.48493 | E83: =D83*F83/B76 -> 40269.57077 | F83: =B76-C83 -> 12.5
B84: 2014 | C84: =C85+1 -> 1.5 | D84: ='AMI RAB 2009-15'!I$41 -> 20826.86094 | E84: =D84*F84/B76 -> 18744.17484 | F84: =B76-C84 -> 13.5
B85: 2015 | C85: 0.5 | D85: ='AMI RAB 2009-15'!J$41 -> 2685.106035 | E85: =D85*F85/B76 -> 2595.6025 | F85: =B76-C85 -> 14.5
E86: =SUM(E79:E85) -> 138354.5282 | F86: =IF(E86=0,0,SUMPRODUCT(F79:F85,E79:E85)/E86) -> 11.66823548 | G86: =ABS(B55-E86) -> 2.910383046e-11
A89: =A56 -> IT
A90: Standard Life | B90: =E56 -> 7 | D90: ($000 Real 2008)
E91: Closing Asset | F91: Weighted Avg
B92: Year | C92: Depn Factor | D92: Net Capex | E92: Value | F92: Remaining Life | G92: Check
B93: 2009 | C93: =C94+1 -> 6.5 | D93: ='AMI RAB 2009-15'!B227 -> 60237.4079 | E93: =D93*F93/B90 -> 4302.671993 | F93: =B90-C93 -> 0.5
B94: =B93+1 -> 2010 | C94: 5.5 | D94: ='AMI RAB 2009-15'!B228 -> 32381.53509 | E94: =D94*F94/B90 -> 6938.900376 | F94: =B90-C94 -> 1.5
B95: =B94+1 -> 2011 | C95: 4.5 | D95: ='AMI RAB 2009-15'!B229 -> 7671.037883 | E95: =D95*F95/B90 -> 2739.656387 | F95: =B90-C95 -> 2.5
B96: 2012 | C96: 3.5 | D96: ='AMI RAB 2009-15'!B230 -> 7049.544521 | E96: =D96*F96/B90 -> 3524.772261 | F96: =B90-C96 -> 3.5
B97: 2013 | C97: 2.5 | D97: ='AMI RAB 2009-15'!B231 -> 1515.468264 | E97: =D97*F97/B90 -> 974.2295981 | F97: =B90-C97 -> 4.5
B98: 2014 | C98: =C99+1 -> 1.5 | D98: ='AMI RAB 2009-15'!B232 -> 3428.982194 | E98: =D98*F98/B90 -> 2694.200295 | F98: =B90-C98 -> 5.5
B99: 2015 | C99: 0.5 | D99: ='AMI RAB 2009-15'!B233 -> 5044.987224 | E99: =D99*F99/B90 -> 4684.630994 | F99: =B90-C99 -> 6.5
E100: =SUM(E93:E99) -> 25859.0619 | F100: =IF(E100=0,0,SUMPRODUCT(F93:F99,E93:E99)/E100) -> 3.147746311 | G100: =ABS(B56-E100) -> 7.275957614e-12
A103: =A57 -> Communications
A104: Standard Life | B104: =E57 -> 7 | D104: ($000 Real 2008)
E105: Closing Asset | F105: Weighted Avg
B106: Year | C106: Depn Factor | D106: Net Capex | E106: Value | F106: Remaining Life | G106: Check
B107: 2009 | C107: =C108+1 -> 6.5 | D107: ='AMI RAB 2009-15'!B239 -> 0 | E107: =D107*F107/B104 -> 0 | F107: =B104-C107 -> 0.5
B108: =B107+1 -> 2010 | C108: 5.5 | D108: ='AMI RAB 2009-15'!B240 -> 0 | E108: =D108*F108/B104 -> 0 | F108: =B104-C108 -> 1.5
B109: =B108+1 -> 2011 | C109: 4.5 | D109: ='AMI RAB 2009-15'!B241 -> 2082.98238 | E109: =D109*F109/B104 -> 743.9222785 | F109: =B104-C109 -> 2.5
B110: 2012 | C110: 3.5 | D110: ='AMI RAB 2009-15'!B242 -> 370.2776736 | E110: =D110*F110/B104 -> 185.1388368 | F110: =B104-C110 -> 3.5
B111: 2013 | C111: 2.5 | D111: ='AMI RAB 2009-15'!B243 -> 914.6799464 | E111: =D111*F111/B104 -> 588.0085369 | F111: =B104-C111 -> 4.5
B112: 2014 | C112: =C113+1 -> 1.5 | D112: ='AMI RAB 2009-15'!B244 -> 914.7929043 | E112: =D112*F112/B104 -> 718.7658534 | F112: =B104-C112 -> 5.5
B113: 2015 | C113: 0.5 | D113: ='AMI RAB 2009-15'!B245 -> 397.1504561 | E113: =D113*F113/B104 -> 368.7825663 | F113: =B104-C113 -> 6.5
E114: =SUM(E107:E113) -> 2604.618072 | F114: =IF(E114=0,0,SUMPRODUCT(F107:F113,E107:E113)/E114) -> 4.416819894 | G114: =ABS(B57-E114) -> 4.547473509e-13
A117: =A58 -> Other
A118: Standard Life | B118: =E58 -> 7 | D118: ($000 Real 2008)
E119: Closing Asset | F119: Weighted Avg
B120: Year | C120: Depn Factor | D120: Net Capex | E120: Value | F120: Remaining Life | G120: Check
B121: 2009 | C121: =C122+1 -> 6.5 | D121: ='AMI RAB 2009-15'!B251 -> 96.16863885 | E121: =D121*F121/B118 -> 6.869188489 | F121: =B118-C121 -> 0.5
B122: =B121+1 -> 2010 | C122: 5.5 | D122: ='AMI RAB 2009-15'!B252 -> 345.3895979 | E122: =D122*F122/B118 -> 74.01205669 | F122: =B118-C122 -> 1.5
B123: =B122+1 -> 2011 | C123: 4.5 | D123: ='AMI RAB 2009-15'!B253 -> 9655.317965 | E123: =D123*F123/B118 -> 3448.327845 | F123: =B118-C123 -> 2.5
B124: 2012 | C124: 3.5 | D124: ='AMI RAB 2009-15'!B254 -> 2393.08993 | E124: =D124*F124/B118 -> 1196.544965 | F124: =B118-C124 -> 3.5
B125: 2013 | C125: 2.5 | D125: ='AMI RAB 2009-15'!B255 -> 2102.18086 | E125: =D125*F125/B118 -> 1351.401981 | F125: =B118-C125 -> 4.5
B126: 2014 | C126: =C127+1 -> 1.5 | D126: ='AMI RAB 2009-15'!B256 -> 0 | E126: =D126*F126/B118 -> 0 | F126: =B118-C126 -> 5.5
B127: 2015 | C127: 0.5 | D127: ='AMI RAB 2009-15'!B257 -> 0 | E127: =D127*F127/B118 -> 0 | F127: =B118-C127 -> 6.5
E128: =SUM(E121:E127) -> 6077.156036 | F128: =IF(E128=0,0,SUMPRODUCT(F121:F127,E121:E127)/E128) -> 3.127201025 | G128: =ABS(B58-E128) -> 1.818989404e-12

Sheet Tariff Compliance
A1: ='Data 2006-08'!$A$1 -> United Energy | E1: Global Check | F1: =IF(SUM('AMI RAB 2009-15'!C2,'AMI Tax Depn 2009-15'!C2,'AMI Building Blocks 2009-15'!D1,'Data 2006-08'!D1)<0.001,"Ok","Error") -> Ok
A3: ($000 Nominal) | D3: 2009 | E3: 2010 | F3: 2011 | G3: 2012 | H3: 2013 | I3: 2014 | J3: 2015
A4: AMI Building Blocks Costs 2009-11 | D4: ='AMI Building Blocks 2009-15'!D34 -> 33643.3265 | E4: ='AMI Building Blocks 2009-15'!E34 -> 48053.16144 | F4: ='AMI Building Blocks 2009-15'!F34 -> 70638.45356 | G4: ='AMI Building Blocks 2009-15'!G34 -> 83227.16706 | H4: ='AMI Building Blocks 2009-15'!H34 -> 87948.26401 | I4: ='AMI Building Blocks 2009-15'!I34 -> 76352.84217 | J4: ='AMI Building Blocks 2009-15'!J34 -> 71631.24512
A5: Offset of costs and revenue 2006-08 | D5: ='Offset of Costs and Rev 2006-08'!G20 -> -5827.271717
A6: Total costs | D6: =SUM(D4:D5) -> 27816.05478 | E6: 48053.16144 | F6: 70638.45356 | G6: 83227.16706 | H6: 87948.26401 | I6: 76352.84217 | J6: 71631.24512
A8: Tariff Revenue | D8: ='Data 2009-15 (Real $2008)'!D60/10^3 -> 18744.17244 | E8: ='Data 2009-15 (Real $2008)'!E60/10^3 -> 45994.696 | F8: ='Data 2009-15 (Real $2008)'!F60/10^3 -> 61289.21663 | G8: ='Data 2009-15 (Real $2008)'!G60/10^3 -> 70848.14418 | H8: ='Data 2009-15 (Real $2008)'!H60/10^3 -> 82675.9821 | I8: ='Data 2009-15 (Real $2008)'!I60/10^3 -> 93178.19711 | J8: ='Data 2009-15 (Real $2008)'!J60/10^3 -> 105382.3372
A10: ='AMI Building Blocks 2009-15'!A19 -> Vanilla' after tax WACC (nominal) | D10: ='AMI Building Blocks 2009-15'!D24 -> 0.1209003176 | E10: ='AMI Building Blocks 2009-15'!E24 -> 0.08118315273 | F10: ='AMI Building Blocks 2009-15'!F24 -> 0.09748079647 | G10: ='AMI Building Blocks 2009-15'!G24 -> 0.1052990922 | H10: ='AMI Building Blocks 2009-15'!H24 -> 0.08911358208 | I10: ='AMI Building Blocks 2009-15'!I24 -> 0.0729358135 | J10: ='AMI Building Blocks 2009-15'!J24 -> 0.07447538116
A11: Discount factor | D11: =1/(1+D10)*(1+D10)^(0.5) -> 0.9445316256 | E11: =D11/(1+E10) -> 0.8736092707 | F11: 0.7960132638 | G11: 0.7201790623 | H11: 0.6612524847 | I11: 0.6163019972 | J11: 0.5735841025
A13: NPV Costs | D13: =D6*D$11 -> 26273.14344 | E13: 41979.68732 | F13: 56229.14596 | G13: 59938.46313 | H13: 58156.0081 | I13: 47056.40912 | J13: 41086.54344
A15: NPV Revenue | D15: =D8*D$11 -> 17704.46366 | E15: 40181.39283 | F15: 48787.02936 | G15: 51023.35004 | H15: 54669.69859 | I15: 57425.90897 | J15: 60445.63332
A17: Over\(Under) recovery of costs | E17: =SUM($D15:E15)-SUM($D13:E13) -> -10366.97427 | F17: =SUM($D15:F15)-SUM($D13:F13) -> -17809.09087 | G17: =SUM($D15:G15)-SUM($D13:G13) -> -26724.20396 | H17: =SUM($D15:H15)-SUM($D13:H13) -> -30210.51347 | I17: =SUM($D15:I15)-SUM($D13:I13) -> -19841.01362 | J17: =SUM($D15:J15)-SUM($D13:J13) -> -481.9237445
A19: Proposed Tariffs | E19: =IF(E17>0,"Non Compliant","Compliant") -> Compliant | F19: Compliant | G19: Compliant | H19: Compliant | I19: Compliant | J19: Compliant

Sheet Data 2006-08
A1: ='IMRO Decision 2006-10'!A1 -> United Energy | B1: Check | C1: =IF(SUM(C201)<0.001,"Ok","Error") -> Ok | D1: =C201 -> 0
A3: NOMINAL INPUTS
A5: IMRO - DATA INPUTS
A6: Only include prescribed metering services costs under the current Price Determination 1/1/2006 to 31/12/2008.
C8: Regulatory | D8: 2006 | E8: 2007 | F8: 2008
A9: GROSS CAPITAL EXPENDITURE | C9: Life (years) | D9: Actual Capex Nominal $
A10: =A$161 -> Accumulation Meters | C10: =C161 -> 10 | D10: 3616000 | E10: 4994000 | F10: 4165444.121
A11: =A$162 -> Manually read interval meters | C11: =C162 -> 10 | D11: 2192000 | E11: 788000 | F11: 468000
A12: =A$163 -> Metering Data Services (IT) | C12: =C163 -> 5 | D12: 551000 | E12: 0 | F12: 0
A13: =A$164 -> Metering Data Services (Other) | C13: =C164 -> 5 | D13: 0 | E13: 0 | F13: 0
A14: Total | D14: =SUM(D10:D13) -> 6359000 | E14: =SUM(E10:E13) -> 5782000 | F14: =SUM(F10:F13) -> 4633444.121
C17: Declining Balance | D17: 2006 | E17: 2007 | F17: 2008
A18: Capital Expenditure by Taxation Category | C18: Tax Depn rate | D18: Nominal $
A19: =A$176 -> Standard metering (Group 1) (Unit cost < $1,000) | C19: =C176 -> 0.375 | D19: =SUM(D10:D11)-D20 -> 5808000 | E19: =SUM(E10:E11)-E20 -> 5782000 | F19: =SUM(F10:F11)-F20 -> 4633444.121
A20: =A$177 -> Standard metering (Group 2) (Unit cost => $1,000) | C20: =C177 -> 0.06 | D20: 0 | E20: 0 | F20: 0
A21: =A$178 -> IT | C21: =C178 -> 0.4 | D21: =D12 -> 551000 | E21: 0 | F21: 0
A22: =A$179 -> Other | C22: =C179 -> 0.1764705882 | D22: 0 | E22: 0 | F22: 0
A23: Total | D23: =SUM(D19:D22) -> 6359000 | E23: =SUM(E19:E22) -> 5782000 | F23: =SUM(F19:F22) -> 4633444.121
D26: 2006 | E26: 2007 | F26: 2008
A27: Customer Contributions and Disposals | D27: Nominal $ | F27: F'cast $2007 Real
A28: Customer Contributions | D28: 0 | E28: 0 | F28: 0
A29: Disposals - proceeds from sale of assets | D29: 0 | E29: 0 | F29: 0
A32: Regulatory Depreciation : 2009-13
A33: Accumulation meters and manually read interval meters | C33: Year
A34: depreciated by end of | C34: 2013
D37: 2006 | E37: 2007 | F37: 2008
A38: O & M Expenditure | D38: Actual O & M Nominal $
A39: Maintenance costs
A40: Standard metering (accumulation meters and interval meters) | C40: Included in ECM | D40: 461000 | E40: 404000 | F40: 418000
A41: Metering data services (IT related) | C41: Excluded from ECM | D41: 424569.7192 | E41: 394301.2137 | F41: 364581.0738
A42: Total | D42: =SUM(D40:D41) -> 885569.7192 | E42: =SUM(E40:E41) -> 798301.2137 | F42: =SUM(F40:F41) -> 782581.0738
A44: Operating costs
A45: Metering data services | C45: Included in ECM | D45: 6239647 | E45: 6244802 | F45: 6537381.678
A46: Customer services (meter replacements) | C46: Included in ECM | D46: 10783.28079 | E46: 18896.78635 | F46: 7417.926249
A47: Indirect Overheads | C47: Excluded from ECM | D47: 0 | E47: 0 | F47: 0
A48: Total | D48: =SUM(D45:D47) -> 6250430.281 | E48: =SUM(E45:E47) -> 6263698.786 | F48: =SUM(F45:F47) -> 6544799.604
A50: TOTAL O&M Expenditure | D50: =SUM(D42,D48) -> 7136000 | E50: =SUM(E42,E48) -> 7062000 | F50: =SUM(F42,F48) -> 7327380.678
A53: Total O&M included in Efficiency Carry-over Mechanism (ECM) | D53: =SUM(D40,D45:D46) -> 6711430.281 | E53: =SUM(E40,E45:E46) -> 6667698.786 | F53: =SUM(F40,F45:F46) -> 6962799.604
A56: Efficiency Carry-over : Actual Quantities | D56: 2006 | E56: 2007 | F56: 2008
D57: Actual Quantities
A58: Meter Maintenance
A59: - Number of customers with meters | D59: 625997 | E59: 632620 | F59: 638544
A61: Metering data services
A62: - Meter reading per cycle :
A63: Number of meters read monthly - accumulation | D63: 5013 | E63: 4601 | F63: 3413
A64: Number of meters read quarterly - accumulation | D64: 696195 | E64: 699428 | F64: 696310
A65: Number of meters read monthly - interval | D65: 6715 | E65: 7752 | F65: 7967
A66: Number of meters read quarterly - interval | D66: 7584 | E66: 8979 | F66: 8952
A68: Meter replacement costs (customer service costs)
A69: - Meter replacement installations | D69: 965 | E69: 1627 | F69: 627
A73: TARIFF REVENUE | D73: 2006 | E73: 2007 | F73: 2008
D74: Actual Tariff Revenue Nominal $
A75: Actual Tariff Revenue | D75: 10609000 | E75: 12008888.89 | F75: 14357795.71
A79: Pre Start Date Costs (AMI Only)
D81: 2006 | E81: 2007 | F81: 2008
A82: GROSS CAPITAL EXPENDITURE | C82: Regulatory | D82: Actual Capex Nominal $
C83: Life (years)
A84: ='Data 2009-15 (Real $2008)'!A$154 -> Remotely read interval meters & transformers | C84: ='Data 2009-15 (Real $2008)'!C154 -> 15 | D84: 0 | E84: 0 | F84: 0
A85: IT | C85: ='Data 2009-15 (Real $2008)'!C155 -> 7 | D85: 0 | E85: 0 | F85: 10137598
A86: Communications | C86: ='Data 2009-15 (Real $2008)'!C156 -> 7 | D86: 0 | E86: 0 | F86: 0
A87: Other | C87: ='Data 2009-15 (Real $2008)'!C157 -> 7 | D87: 0 | E87: 6037000 | F87: 17425658
A88: Total | D88: =SUM(D84:D87) -> 0 | E88: =SUM(E84:E87) -> 6037000 | F88: =SUM(F84:F87) -> 27563256
D91: 2006 | E91: 2007 | F91: 2008
C92: Declining Balance | D92: Actual Capex Nominal $
A93: Capital Expenditure by Taxation Category | C93: Tax Depn rate
A94: ='Data 2009-15 (Real $2008)'!A$162 -> Meters and transformers (Group 1) (Unit cost < $1,000) | C94: ='Data 2009-15 (Real $2008)'!C162 -> 0.375 | D94: =D84-D95 -> 0 | E94: =E84-E95 -> 0 | F94: =F84-F95 -> 0
A95: ='Data 2009-15 (Real $2008)'!A$163 -> Meters and transformers (Group 2) (Unit cost => $1,000) | C95: ='Data 2009-15 (Real $2008)'!C163 -> 0.06 | D95: 0 | E95: 0 | F95: 0
A96: ='Data 2009-15 (Real $2008)'!A$164 -> IT | C96: ='Data 2009-15 (Real $2008)'!C164 -> 0.4 | D96: =D85 -> 0 | E96: 0 | F96: 10137598
A97: ='Data 2009-15 (Real $2008)'!A$165 -> Communications | C97: ='Data 2009-15 (Real $2008)'!C165 -> 0.2142857143 | D97: 0 | E97: 0 | F97: 0
A98: ='Data 2009-15 (Real $2008)'!A$166 -> Other | C98: ='Data 2009-15 (Real $2008)'!C166 -> 0.1764705882 | D98: 0 | E98: 6037000 | F98: 17425658
A99: Total | D99: =SUM(D93:D98) -> 0 | E99: =SUM(E93:E98) -> 6037000 | F99: =SUM(F93:F98) -> 27563256
D102: 2006 | E102: 2007 | F102: 2008
A103: OPERATING & MAINTENANCE EXPENDITURE | D103: Actual O & M Nominal $
A105: Telecommunications systems - WAN / 'Backhaul' | D105: 0 | E105: 0 | F105: 0
A106: IT systems | D106: 0 | E106: 0 | F106: 0
A107: Technology trials | D107: 0 | E107: 990000 | F107: 1010000
A108: Customer response trials | D108: 0 | E108: 0 | F108: 0
A109: Project management including training and project office | D109: 0 | E109: 0 | F109: 0
A110: Customer service costs | D110: 0 | E110: 0 | F110: 0
A111: Other costs of provision of reg. services | D111: 0 | E111: 0 | F111: 0
A112: Indirect costs | D112: 0 | E112: 0 | F112: 0
A113: Funding: - Equity raising | D113: 0 | E113: 0 | F113: 0
A114: - Interest and exchange rate hedging costs | D114: 0 | E114: 0 | F114: 0
A115: Total | D115: =SUM(D105:D114) -> 0 | E115: =SUM(E105:E114) -> 990000 | F115: =SUM(F105:F112) -> 1010000
A118: Total Pre Start Date Costs (AMI Only) | D118: =SUM(D88,D115) -> 0 | E118: =SUM(E88,E115) -> 7027000 | F118: =SUM(F88,F115) -> 28573256
A124: AER INPUTS
A126: WEIGHTED AVERAGE COST OF CAPITAL (WACC) : EDPR 2006-10
A128: Risk free rate (real) | C128: 0.0264
A129: Debt premium | C129: 0.01425
A130: Equity premium | C130: 0.06
A131: Equity beta | C131: 1
A132: Franking credit value | C132: 0.5
A133: Gearing (debt/assets) | C133: 0.6
A134: Forecast inflation | C134: 0.0256
A136: After tax cost of equity (real) | C136: =C128+C131*C130 -> 0.0864
A137: After tax cost of equity (nominal) | C137: =(1+C136)*(1+C134)-1 -> 0.11421184
A138: Cost of debt (real) | C138: =C128+C129 -> 0.04065
A139: Cost of debt (nominal) | C139: =(1+C138)*(1+C134)-1 -> 0.06729064
A141: 'Vanilla' after tax WACC (real) | C141: =ROUND((C136*(1-C133))+(C138*C133),3) -> 0.059
A144: Actual CPI | C144: CPI Index | F144: Annual CPI
C145: 2002-09-30 | D145: 138.5
C146: 2003-09-30 | D146: 142.1 | F146: =D146/D145-1 -> 0.02599277978
C147: 2004-09-30 | D147: 145.4 | F147: 0.02322308234
C148: 2005-09-30 | D148: 149.8 | F148: 0.03026134801
C149: 2006-09-30 | D149: 155.7 | F149: 0.0393858478
C150: 2007-09-30 | D150: 158.6 | F150: 0.01862556198
C151: 2008-09-30 | D151: 166.5 | F151: 0.04981084489
B153: 2004 | C153: =B153+1 -> 2005 | D153: =C153+1 -> 2006 | E153: =D153+1 -> 2007 | F153: =E153+1 -> 2008
A155: CPI p.a. | B155: =F146 -> 0.02599277978 | C155: =F147 -> 0.02322308234 | D155: =F148 -> 0.03026134801 | E155: =F149 -> 0.0393858478 | F155: =F150 -> 0.01862556198
A156: Escalator : Nominal $ to Real $ 2008 | B156: =C156*(1+C155) -> 1.116115412 | C156: =D156*(1+D155) -> 1.090784044 | D156: =E156*(1+E155) -> 1.058744993 | E156: =F156*(1+F155) -> 1.018625562 | F156: 1
A159: Regulatory Depreciation Lives : EDPR 2006-10 | C159: Regulatory
C160: Life (years)
A161: Accumulation Meters | C161: ='IMRO Decision 2006-10'!D190 -> 10
A162: Manually read interval meters | C162: ='IMRO Decision 2006-10'!D191 -> 10
A163: Metering Data Services (IT) | C163: ='IMRO Decision 2006-10'!D192 -> 5
A164: Metering Data Services (Other) | C164: ='IMRO Decision 2006-10'!D193 -> 5
A167: BENCHMARK TAX RELATED INPUTS : EDPR 2006-10
A169: Company income tax rate | C169: 0.3
A170: Franking credit value | C170: =C132 -> 0.5
A171: Gearing (debt/assets) | C171: =C133 -> 0.6
A174: Tax Depreciation Rates
A175: Declining Balance
A176: Standard metering (Group 1) (Unit cost < $1,000) | C176: 0.375
A177: Standard metering (Group 2) (Unit cost => $1,000) | C177: 0.06
A178: IT | C178: 0.4
A179: Other | C179: 0.1764705882
A182: DUOS TAX OFFSET : EDPR 2006-10
D183: 2006 | E183: 2007 | F183: 2008 | G183: 2009 | H183: 2010
A184: Metering Taxable profit/(loss) ($MOD) | D184: ='IMRO Decision 2006-10'!D41*10^6 -> 758450.813 | E184: ='IMRO Decision 2006-10'!E41*10^6 -> -1496913.031 | F184: ='IMRO Decision 2006-10'!F41*10^6 -> -5533569.795 | G184: ='IMRO Decision 2006-10'!G41*10^6 -> -8374274.763 | H184: ='IMRO Decision 2006-10'!H41*10^6 -> -7858751.495
A185: Inflation factor | D185: ='IMRO Decision 2006-10'!D71 -> 1.051098343 | E185: ='IMRO Decision 2006-10'!E71 -> 1.07800646 | F185: ='IMRO Decision 2006-10'!F71 -> 1.105603425 | G185: ='IMRO Decision 2006-10'!G71 -> 1.133906873 | H185: ='IMRO Decision 2006-10'!H71 -> 1.162934889
A187: Efficiency Carry-over : EDPR 2006-10
A188: O & M EXPENDITURE BENCHMARKS (Real 2004 $) | D188: 2006 | E188: 2007 | F188: 2008
A189: O & M Expenditure included in Efficiency Carry-over
A190: Maintenance cost - Accumulation and Interval meters | D190: =D205*D218 -> 500000 | E190: =E205*E218 -> 550000 | F190: =F205*F218 -> 600000
A191: Operating cost - Metering data services | D191: =((D208*12+D210)*D222+(D208*4+D210)*D223)+((D209*12+D211)*D224+(D209*4+D211)*D225) -> 5832796.8 | E191: =((E208*12+E210)*E222+(E208*4+E210)*E223)+((E209*12+E211)*E224+(E209*4+E211)*E225) -> 5957669 | F191: =((F208*12+F210)*F222+(F208*4+F210)*F223)+((F209*12+F211)*F224+(F209*4+F211)*F225) -> 6487829.2
A192: Operating cost - Customer services (meter replacements) | D192: =D213*D228 -> 44721.4 | E192: =E213*E228 -> 132680.2 | F192: =F213*F228 -> 624613.5787
A193: Total O & M included in Efficiency Carry-over | D193: =SUM(D190:D192) -> 6377518.2 | E193: =SUM(E190:E192) -> 6640349.2 | F193: =SUM(F190:F192) -> 7712442.779
A195: O & M Expenditure not included in Efficiency Carry-over
A196: Maintenance costs - Metering data services (IT related) | D196: ='IMRO Decision 2006-10'!D105*10^3 -> 420000 | E196: ='IMRO Decision 2006-10'!E105*10^3 -> 420000 | F196: ='IMRO Decision 2006-10'!F105*10^3 -> 420000
A197: Operating costs - Indirect Overheads | D197: ='IMRO Decision 2006-10'!D111*10^3 -> 0 | E197: ='IMRO Decision 2006-10'!E111*10^3 -> 0 | F197: ='IMRO Decision 2006-10'!F111*10^3 -> 0
A198: Total O & M not included in Efficiency Carry-over | D198: =SUM(D196:D197) -> 420000 | E198: =SUM(E196:E197) -> 420000 | F198: =SUM(F196:F197) -> 420000
A200: Total O & M | D200: =SUM(D193,D198) -> 6797518.2 | E200: =SUM(E193,E198) -> 7060349.2 | F200: =SUM(F193,F198) -> 8132442.779
A201: Check | C201: =SUM(D201:F201) -> 0 | D201: =IF(ABS('IMRO Decision 2006-10'!D114*10^3-D200)<0.001,0,ABS('IMRO Decision 2006-10'!D114*10^3-D200)) -> 0 | E201: =IF(ABS('IMRO Decision 2006-10'!E114*10^3-E200)<0.001,0,ABS('IMRO Decision 2006-10'!E114*10^3-E200)) -> 0 | F201: =IF(ABS('IMRO Decision 2006-10'!F114*10^3-F200)<0.001,0,ABS('IMRO Decision 2006-10'!F114*10^3-F200)) -> 0
A204: Benchmark Unit Costs (Real 2004 $) | D204: 2006 | E204: 2007 | F204: 2008
A205: Meter Maintenance per customer | D205: ='IMRO Decision 2006-10'!D349 -> 0.8149345091 | E205: ='IMRO Decision 2006-10'!E349 -> 0.886514515 | F205: ='IMRO Decision 2006-10'!F349 -> 0.9569558641
A207: Metering data services :
A208: - Cost per read accumulation meter | D208: ='IMRO Decision 2006-10'!D365 -> 0.75 | E208: ='IMRO Decision 2006-10'!E365 -> 0.75 | F208: ='IMRO Decision 2006-10'!F365 -> 0.75
A209: - Cost per read interval meter | D209: ='IMRO Decision 2006-10'!D366 -> 1.5 | E209: ='IMRO Decision 2006-10'!E366 -> 1.5 | F209: ='IMRO Decision 2006-10'!F366 -> 1.5
A210: - Meter data management per customer - accumulation meter | D210: ='IMRO Decision 2006-10'!D367 -> 4.5 | E210: ='IMRO Decision 2006-10'!E367 -> 4.5 | F210: ='IMRO Decision 2006-10'!F367 -> 4.5
A211: - Meter data management per customer - read interval meter | D211: ='IMRO Decision 2006-10'!D368 -> 6.2 | E211: ='IMRO Decision 2006-10'!E368 -> 6.2 | F211: ='IMRO Decision 2006-10'!F368 -> 6.2
A213: Meter replacement costs (customer service costs) | D213: ='IMRO Decision 2006-10'!D356 -> 10.6 | E213: ='IMRO Decision 2006-10'!E356 -> 10.6 | F213: ='IMRO Decision 2006-10'!F356 -> 10.6
A216: Forecast Quantities | D216: 2006 | E216: 2007 | F216: 2008
A217: Meter Maintenance
A218: - Number of customers with meters | D218: ='IMRO Decision 2006-10'!J349 -> 613546.2352 | E218: ='IMRO Decision 2006-10'!K349 -> 620407.2135 | F218: ='IMRO Decision 2006-10'!L349 -> 626988.1637
A220: Metering data services
A221: - Meter reading per cycle :
A222: Number of meters read monthly - accumulation | D222: ='IMRO Decision 2006-10'!J370 -> 23912 | E222: ='IMRO Decision 2006-10'!K370 -> 23912 | F222: ='IMRO Decision 2006-10'!L370 -> 19465
A223: Number of meters read quarterly - accumulation | D223: ='IMRO Decision 2006-10'!J371 -> 708234 | E223: ='IMRO Decision 2006-10'!K371 -> 699614 | F223: ='IMRO Decision 2006-10'!L371 -> 559079
A224: Number of meters read monthly - interval | D224: ='IMRO Decision 2006-10'!J372 -> 2419 | E224: ='IMRO Decision 2006-10'!K372 -> 2931 | F224: ='IMRO Decision 2006-10'!L372 -> 7379
A225: Number of meters read quarterly - interval | D225: ='IMRO Decision 2006-10'!J373 -> 11450 | E225: ='IMRO Decision 2006-10'!K373 -> 25969 | F225: ='IMRO Decision 2006-10'!L373 -> 151917
A227: Meter replacement costs (customer service costs)
A228: - Meter replacement installations | D228: =SUM('IMRO Decision 2006-10'!J356,'IMRO Decision 2006-10'!J358:J362) -> 4219 | E228: =SUM('IMRO Decision 2006-10'!K356,'IMRO Decision 2006-10'!K358:K362) -> 12517 | F228: =SUM('IMRO Decision 2006-10'!L356,'IMRO Decision 2006-10'!L358:L362) -> 58925.80931

Sheet Data 2009-15
A1: ='Data 2006-08'!$A$1 -> United Energy | D1: 2009 | E1: 2010 | F1: 2011 | G1: 2012 | H1: 2013 | I1: 2014 | J1: 2015
D2: Nominal $ | E2: Nominal $ | F2: Nominal $ | G2: Nominal $ | H2: Nominal $ | I2: Nominal $ | J2: Nominal $
A3: AMI DATA INPUTS 2009 - 2012 | D3: Actual | E3: Actual | F3: Actual | G3: Actual | H3: Actual | I3: Actual | J3: Actual
A5: NOMINAL INPUTS
D7: =D$1 -> 2009 | E7: 2010 | F7: 2011 | G7: 2012 | H7: 2013 | I7: 2014 | J7: 2015
A8: GROSS CAPITAL EXPENDITURE | C8: Regulatory | D8: =D$2 -> Nominal $ | E8: Nominal $ | F8: Nominal $ | G8: Nominal $ | H8: Nominal $ | I8: Nominal $ | J8: Nominal $
C9: Life (years) | D9: =D$3 -> Actual | E9: Actual | F9: Actual | G9: Actual | H9: Actual | I9: Actual | J9: Actual
A10: Accumulation Meters | C10: ='Data 2009-15 (Real $2008)'!C10 -> Depreciated by end of 2013 | D10: =469552.53+D17 -> 3869552.53 | E10: 3588444 | F10: 4015842.47 | G10: 829899.99 | H10: 0 | I10: 0 | J10: 0
A11: Manually read interval meters | C11: ='Data 2009-15 (Real $2008)'!C11 -> Depreciated by end of 2013 | D11: 0 | E11: 0 | F11: 1767573.9 | G11: 1293502.99 | H11: 0 | I11: 0 | J11: 0
A12: Remotely read interval meters & transformers | C12: ='Data 2009-15 (Real $2008)'!C12 -> 15 | D12: =9812353.85986866-D17 -> 6412353.86 | E12: 20654799 | F12: 42573902.87 | G12: 49728099.62 | H12: 55756401.79 | I12: 24549682 | J12: 3238111.381
A13: IT | C13: ='Data 2009-15 (Real $2008)'!C13 -> 7 | D13: 63237884.08 | E13: 34423246 | F13: 8382035.72 | G13: 7974074.95 | H13: 1748571.27 | I13: 4041916 | J13: 6084016.92
A14: Communications | C14: ='Data 2009-15 (Real $2008)'!C14 -> 7 | D14: 0 | E14: 0 | F14: 2276045.69 | G14: 418838.68 | H14: 1055372.2 | I14: 1078313 | J14: 478944.74
A15: Other | C15: ='Data 2009-15 (Real $2008)'!C15 -> 7 | D15: 100958.88 | E15: 367167 | F15: 10550230.79 | G15: 2706937.79 | H15: 2425529.55 | I15: 0 | J15: 0
A16: Total | D16: =SUM(D10:D15) -> 73620749.35 | E16: 59033656 | F16: 69565631.44 | G16: 62951354.02 | H16: 60985874.81 | I16: 29669911 | J16: 9801073.041
C17: UED Adjustment (Email 7 October 2010) | D17: =3400000 -> 3400000
D19: =D$1 -> 2009 | E19: 2010 | F19: 2011 | G19: 2012 | H19: 2013 | I19: 2014 | J19: 2015
C20: Declining Balance | D20: =D$2 -> Nominal $ | E20: Nominal $ | F20: Nominal $ | G20: Nominal $ | H20: Nominal $ | I20: Nominal $ | J20: Nominal $
A21: Capital Expenditure by Taxation Category | C21: Tax Depn rate | D21: =D$3 -> Actual | E21: Actual | F21: Actual | G21: Actual | H21: Actual | I21: Actual | J21: Actual
A22: Meters and transformers (Group 1) (Unit cost < $1,000) | C22: ='Data 2009-15 (Real $2008)'!C22 -> 0.375 | D22: =SUM(D10:D12)-D23 -> 10281906.39 | E22: 24243243 | F22: 48357319.24 | G22: 51851502.6 | H22: 55756401.79 | I22: 24549682 | J22: 3238111.381
A23: Meters and transformers (Group 2) (Unit cost => $1,000) | C23: ='Data 2009-15 (Real $2008)'!C23 -> 0.06 | D23: 0 | E23: 0 | F23: 0 | G23: 0 | H23: 0 | I23: 0 | J23: 0
A24: IT | C24: ='Data 2009-15 (Real $2008)'!C24 -> 0.4 | D24: =D13 -> 63237884.08 | E24: 34423246 | F24: 8382035.72 | G24: =G13 -> 7974074.95 | H24: 1748571.27 | I24: 4041916 | J24: 6084016.92
A25: Communications | C25: ='Data 2009-15 (Real $2008)'!C25 -> 0.2142857143 | D25: 0 | E25: 0 | F25: 2276045.69 | G25: 418838.68 | H25: 1055372.2 | I25: 1078313 | J25: 478944.74
A26: Other | C26: ='Data 2009-15 (Real $2008)'!C26 -> 0.1764705882 | D26: 100958.88 | E26: 367167 | F26: 10550230.79 | G26: 2706937.79 | H26: 2425529.55 | I26: 0 | J26: 0
A27: Total | D27: =SUM(D21:D26) -> 73620749.35 | E27: 59033656 | F27: 69565631.44 | G27: 62951354.02 | H27: 60985874.81 | I27: 29669911 | J27: 9801073.041
D30: =D$1 -> 2009 | E30: 2010 | F30: 2011 | G30: 2012 | H30: 2013 | I30: 2014 | J30: 2015
A31: CUSTOMER CONTRIBUTIONS AND DISPOSAL PROCEEDS | D31: =D$2 -> Nominal $ | E31: Nominal $ | F31: Nominal $ | G31: Nominal $ | H31: Nominal $ | I31: Nominal $ | J31: Nominal $
D32: =D$3 -> Actual | E32: Actual | F32: Actual | G32: Actual | H32: Actual | I32: Actual | J32: Actual
A33: Customer contributions
A34: Accumulation Meters | D34: 0 | E34: 0 | F34: 0 | G34: 0 | H34: 0 | I34: 0 | J34: 0
A35: Manually read interval meters | D35: 0 | E35: 0 | F35: 0 | G35: 0 | H35: 0 | I35: 0 | J35: 0
A36: Remotely read interval meters & transformers | D36: 0 | E36: 0 | F36: 0 | G36: 0 | H36: 0 | I36: 0 | J36: 0
A37: IT | D37: 0 | E37: 0 | F37: 0 | G37: 0 | H37: 0 | I37: 0 | J37: 0
A38: Communications | D38: 0 | E38: 0 | F38: 0 | G38: 0 | H38: 0 | I38: 0 | J38: 0
A39: Other | D39: 0 | E39: 0 | F39: 0 | G39: 0 | H39: 0 | I39: 0 | J39: 0
D40: =SUM(D34:D39) -> 0 | E40: 0 | F40: 0 | G40: =SUM(G34:G39) -> 0 | H40: 0 | I40: 0 | J40: 0
A42: Disposals - proceeds from sale of assets
A43: Accumulation Meters | D43: 0 | E43: 0 | F43: 0 | G43: 0 | H43: 0 | I43: 0 | J43: 0
A44: Manually read interval meters | D44: 0 | E44: 0 | F44: 0 | G44: 0 | H44: 0 | I44: 0 | J44: 0
A45: Remotely read interval meters & transformers | D45: 0 | E45: 0 | F45: 0 | G45: 0 | H45: 0 | I45: 0 | J45: 0
A46: IT | D46: 0 | E46: 0 | F46: 0 | G46: 0 | H46: 0 | I46: 0 | J46: 0
A47: Communications | D47: 0 | E47: 0 | F47: 0 | G47: 0 | H47: 0 | I47: 0 | J47: 0
A48: Other | D48: 0 | E48: 0 | F48: 0 | G48: 0 | H48: 0 | I48: 0 | J48: 0
D49: =SUM(D43:D48) -> 0 | E49: 0 | F49: 0 | G49: 0 | H49: 0 | I49: 0 | J49: 0
D52: =D$1 -> 2009 | E52: 2010 | F52: 2011 | G52: 2012 | H52: 2013 | I52: 2014 | J52: 2015
A53: OPERATING & MAINTENANCE EXPENDITURE | D53: =D$2 -> Nominal $ | E53: Nominal $ | F53: Nominal $ | G53: Nominal $ | H53: Nominal $ | I53: Nominal $ | J53: Nominal $
D54: =D$3 -> Actual | E54: Actual | F54: Actual | G54: Actual | H54: Actual | I54: Actual | J54: Actual
A55: Operating and Maintenance Expenditure | D55: 14023247.53 | E55: 16011951 | F55: 27357162.13 | G55: 28992776.89 | H55: 25888522.97 | I55: 23472992.43 | J55: 20167151.13
A58: Actual Tariff Revenue | D58: =D$1 -> 2009 | E58: 2010 | F58: 2011 | G58: 2012 | H58: 2013 | I58: 2014 | J58: 2015
D59: Nominal $ | E59: Nominal $ | F59: Nominal $ | G59: Nominal $ | H59: Nominal $ | I59: Nominal $ | J59: Nominal $
A60: Actual Tariff Revenue | D60: 18744172.44 | E60: 45994696 | F60: 61289216.63 | G60: 70848144.18 | H60: 82675982.1 | I60: 93178197.11 | J60: 105382337.2

Sheet Data 2009-15 (Real $2008)
A1: ='Data 2006-08'!$A$1 -> United Energy | D1: 2009 | E1: 2010 | F1: 2011 | G1: 2012 | H1: 2013 | I1: 2014 | J1: 2015
D2: Real 2008 $ | E2: Real 2008 $ | F2: Real 2008 $ | G2: Real 2008 $ | H2: Real 2008 $ | I2: Real 2008 $ | J2: Real 2008 $
A3: AMI DATA INPUTS 2009 - 2015 | D3: Actual | E3: Actual | F3: Actual | G3: Actual | H3: Actual | I3: Actual | J3: Actual
A5: REAL 2008 $ INPUTS
D7: 2009 | E7: 2010 | F7: 2011 | G7: =G$1 -> 2012 | H7: =H$1 -> 2013 | I7: =I$1 -> 2014 | J7: =J$1 -> 2015
A8: GROSS CAPITAL EXPENDITURE | C8: Regulatory | D8: =D$2 -> Real 2008 $ | E8: Real 2008 $ | F8: Real 2008 $ | G8: Real 2008 $ | H8: Real 2008 $ | I8: Real 2008 $ | J8: Real 2008 $
C9: Life (years) | D9: =D$3 -> Actual | E9: Actual | F9: Actual | G9: Actual | H9: Actual | I9: Actual | J9: Actual
A10: Accumulation Meters | C10: ="Depreciated by end of "&'Data 2006-08'!$C$34&"" -> Depreciated by end of 2013 | D10: ='Data 2009-15'!D10/D$145 -> 3685952.14 | E10: ='Data 2009-15'!E10/E$145 -> 3375606.278 | F10: ='Data 2009-15'!F10/F$145 -> 3675202.63 | G10: ='Data 2009-15'!G10/G$145 -> 733679.7013 | H10: ='Data 2009-15'!H10/H$145 -> 0 | I10: ='Data 2009-15'!I10/I$145 -> 0 | J10: ='Data 2009-15'!J10/J$145 -> 0
A11: Manually read interval meters | C11: ="Depreciated by end of "&'Data 2006-08'!$C$34&"" -> Depreciated by end of 2013 | D11: ='Data 2009-15'!D11/D$145 -> 0 | E11: ='Data 2009-15'!E11/E$145 -> 0 | F11: ='Data 2009-15'!F11/F$145 -> 1617641.203 | G11: ='Data 2009-15'!G11/G$145 -> 1143531.629 | H11: ='Data 2009-15'!H11/H$145 -> 0 | I11: ='Data 2009-15'!I11/I$145 -> 0 | J11: ='Data 2009-15'!J11/J$145 -> 0
A12: =A$154 -> Remotely read interval meters & transformers | C12: =C154 -> 15 | D12: ='Data 2009-15'!D12/D$145 -> 6108104.037 | E12: ='Data 2009-15'!E12/E$145 -> 19429721.95 | F12: ='Data 2009-15'!F12/F$145 -> 38962613.94 | G12: ='Data 2009-15'!G12/G$145 -> 43962522.85 | H12: ='Data 2009-15'!H12/H$145 -> 48323484.93 | I12: ='Data 2009-15'!I12/I$145 -> 20826860.94 | J12: ='Data 2009-15'!J12/J$145 -> 2685106.035
A13: =A$155 -> IT | C13: =C155 -> 7 | D13: ='Data 2009-15'!D13/D$145 -> 60237407.9 | E13: ='Data 2009-15'!E13/E$145 -> 32381535.09 | F13: ='Data 2009-15'!F13/F$145 -> 7671037.883 | G13: ='Data 2009-15'!G13/G$145 -> 7049544.521 | H13: ='Data 2009-15'!H13/H$145 -> 1515468.264 | I13: ='Data 2009-15'!I13/I$145 -> 3428982.194 | J13: ='Data 2009-15'!J13/J$145 -> 5044987.224
A14: =A$156 -> Communications | C14: =C156 -> 7 | D14: ='Data 2009-15'!D14/D$145 -> 0 | E14: ='Data 2009-15'!E14/E$145 -> 0 | F14: ='Data 2009-15'!F14/F$145 -> 2082982.38 | G14: ='Data 2009-15'!G14/G$145 -> 370277.6736 | H14: ='Data 2009-15'!H14/H$145 -> 914679.9464 | I14: ='Data 2009-15'!I14/I$145 -> 914792.9043 | J14: ='Data 2009-15'!J14/J$145 -> 397150.4561
A15: =A$157 -> Other | C15: =C157 -> 7 | D15: ='Data 2009-15'!D15/D$145 -> 96168.63885 | E15: ='Data 2009-15'!E15/E$145 -> 345389.5979 | F15: ='Data 2009-15'!F15/F$145 -> 9655317.965 | G15: ='Data 2009-15'!G15/G$145 -> 2393089.93 | H15: ='Data 2009-15'!H15/H$145 -> 2102180.86 | I15: ='Data 2009-15'!I15/I$145 -> 0 | J15: ='Data 2009-15'!J15/J$145 -> 0
A16: Total | D16: =SUM(D10:D15) -> 70127632.71 | E16: 55532252.92 | F16: 63664796 | G16: 55652646.31 | H16: 52855814 | I16: 25170636.03 | J16: 8127243.715
D19: 2009 | E19: 2010 | F19: 2011 | G19: =G$1 -> 2012 | H19: =H$1 -> 2013 | I19: =I$1 -> 2014 | J19: =J$1 -> 2015
C20: Declining Balance | D20: =D$2 -> Real 2008 $ | E20: Real 2008 $ | F20: Real 2008 $ | G20: Real 2008 $ | H20: Real 2008 $ | I20: Real 2008 $ | J20: Real 2008 $
A21: Capital Expenditure by Taxation Category | C21: Tax Depn rate | D21: =D$3 -> Actual | E21: Actual | F21: Actual | G21: Actual | H21: Actual | I21: Actual | J21: Actual
A22: =A$162 -> Meters and transformers (Group 1) (Unit cost < $1,000) | C22: =C162 -> 0.375 | D22: =SUM(D10:D12)-D23 -> 9794056.177 | E22: 22805328.23 | F22: 44255457.77 | G22: 45839734.18 | H22: =SUM(H10:H12)-H23 -> 48323484.93 | I22: 20826860.94 | J22: 2685106.035
A23: =A$163 -> Meters and transformers (Group 2) (Unit cost => $1,000) | C23: =C163 -> 0.06 | D23: ='Data 2009-15'!D23/D$145 -> 0 | E23: ='Data 2009-15'!E23/E$145 -> 0 | F23: ='Data 2009-15'!F23/F$145 -> 0 | G23: ='Data 2009-15'!G23/G$145 -> 0 | H23: ='Data 2009-15'!H23/H$145 -> 0 | I23: ='Data 2009-15'!I23/I$145 -> 0 | J23: ='Data 2009-15'!J23/J$145 -> 0
A24: =A$164 -> IT | C24: =C164 -> 0.4 | D24: =D13 -> 60237407.9 | E24: 32381535.09 | F24: 7671037.883 | G24: =G13 -> 7049544.521 | H24: =H13 -> 1515468.264 | I24: 3428982.194 | J24: 5044987.224
A25: =A$165 -> Communications | C25: =C165 -> 0.2142857143 | D25: 0 | E25: 0 | F25: 2082982.38 | G25: 370277.6736 | H25: =H14 -> 914679.9464 | I25: 914792.9043 | J25: 397150.4561
A26: =A$166 -> Other | C26: =C166 -> 0.1764705882 | D26: 96168.63885 | E26: 345389.5979 | F26: 9655317.965 | G26: 2393089.93 | H26: =H15 -> 2102180.86 | I26: 0 | J26: 0
A27: Total | D27: =SUM(D21:D26) -> 70127632.71 | E27: 55532252.92 | F27: 63664796 | G27: 55652646.31 | H27: 52855814 | I27: 25170636.03 | J27: 8127243.715
D30: 2009 | E30: 2010 | F30: 2011 | G30: =G$1 -> 2012 | H30: =H$1 -> 2013 | I30: =I$1 -> 2014 | J30: =J$1 -> 2015
A31: CUSTOMER CONTRIBUTIONS AND DISPOSAL PROCEEDS | D31: =D$2 -> Real 2008 $ | E31: Real 2008 $ | F31: Real 2008 $ | G31: Real 2008 $ | H31: Real 2008 $ | I31: Real 2008 $ | J31: Real 2008 $
D32: =D$3 -> Actual | E32: Actual | F32: Actual | G32: Actual | H32: Actual | I32: Actual | J32: Actual
A33: Customer contributions
A34: =A10 -> Accumulation Meters | D34: ='Data 2009-15'!D34/D$145 -> 0 | E34: ='Data 2009-15'!E34/E$145 -> 0 | F34: ='Data 2009-15'!F34/F$145 -> 0 | G34: ='Data 2009-15'!G34/G$145 -> 0 | H34: ='Data 2009-15'!H34/H$145 -> 0 | I34: ='Data 2009-15'!I34/I$145 -> 0 | J34: ='Data 2009-15'!J34/J$145 -> 0
A35: Manually read interval meters | D35: ='Data 2009-15'!D35/D$145 -> 0 | E35: ='Data 2009-15'!E35/E$145 -> 0 | F35: ='Data 2009-15'!F35/F$145 -> 0 | G35: ='Data 2009-15'!G35/G$145 -> 0 | H35: ='Data 2009-15'!H35/H$145 -> 0 | I35: ='Data 2009-15'!I35/I$145 -> 0 | J35: ='Data 2009-15'!J35/J$145 -> 0
A36: Remotely read interval meters & transformers | D36: ='Data 2009-15'!D36/D$145 -> 0 | E36: ='Data 2009-15'!E36/E$145 -> 0 | F36: ='Data 2009-15'!F36/F$145 -> 0 | G36: ='Data 2009-15'!G36/G$145 -> 0 | H36: ='Data 2009-15'!H36/H$145 -> 0 | I36: ='Data 2009-15'!I36/I$145 -> 0 | J36: ='Data 2009-15'!J36/J$145 -> 0
A37: IT | D37: ='Data 2009-15'!D37/D$145 -> 0 | E37: ='Data 2009-15'!E37/E$145 -> 0 | F37: ='Data 2009-15'!F37/F$145 -> 0 | G37: ='Data 2009-15'!G37/G$145 -> 0 | H37: ='Data 2009-15'!H37/H$145 -> 0 | I37: ='Data 2009-15'!I37/I$145 -> 0 | J37: ='Data 2009-15'!J37/J$145 -> 0
A38: Communications | D38: ='Data 2009-15'!D38/D$145 -> 0 | E38: ='Data 2009-15'!E38/E$145 -> 0 | F38: ='Data 2009-15'!F38/F$145 -> 0 | G38: ='Data 2009-15'!G38/G$145 -> 0 | H38: ='Data 2009-15'!H38/H$145 -> 0 | I38: ='Data 2009-15'!I38/I$145 -> 0 | J38: ='Data 2009-15'!J38/J$145 -> 0
A39: Other | D39: ='Data 2009-15'!D39/D$145 -> 0 | E39: ='Data 2009-15'!E39/E$145 -> 0 | F39: ='Data 2009-15'!F39/F$145 -> 0 | G39: ='Data 2009-15'!G39/G$145 -> 0 | H39: ='Data 2009-15'!H39/H$145 -> 0 | I39: ='Data 2009-15'!I39/I$145 -> 0 | J39: ='Data 2009-15'!J39/J$145 -> 0
D40: =SUM(D34:D39) -> 0 | E40: =SUM(E34:E39) -> 0 | F40: 0 | G40: =SUM(G34:G39) -> 0 | H40: 0 | I40: 0 | J40: 0
A42: Disposals - proceeds from sale of assets
A43: =A10 -> Accumulation Meters | D43: ='Data 2009-15'!D43/D$145 -> 0 | E43: ='Data 2009-15'!E43/E$145 -> 0 | F43: ='Data 2009-15'!F43/F$145 -> 0 | G43: ='Data 2009-15'!G43/G$145 -> 0 | H43: ='Data 2009-15'!H43/H$145 -> 0 | I43: ='Data 2009-15'!I43/I$145 -> 0 | J43: ='Data 2009-15'!J43/J$145 -> 0
A44: Manually read interval meters | D44: ='Data 2009-15'!D44/D$145 -> 0 | E44: ='Data 2009-15'!E44/E$145 -> 0 | F44: ='Data 2009-15'!F44/F$145 -> 0 | G44: ='Data 2009-15'!G44/G$145 -> 0 | H44: ='Data 2009-15'!H44/H$145 -> 0 | I44: ='Data 2009-15'!I44/I$145 -> 0 | J44: ='Data 2009-15'!J44/J$145 -> 0
A45: Remotely read interval meters & transformers | D45: ='Data 2009-15'!D45/D$145 -> 0 | E45: ='Data 2009-15'!E45/E$145 -> 0 | F45: ='Data 2009-15'!F45/F$145 -> 0 | G45: ='Data 2009-15'!G45/G$145 -> 0 | H45: ='Data 2009-15'!H45/H$145 -> 0 | I45: ='Data 2009-15'!I45/I$145 -> 0 | J45: ='Data 2009-15'!J45/J$145 -> 0
A46: IT | D46: ='Data 2009-15'!D46/D$145 -> 0 | E46: ='Data 2009-15'!E46/E$145 -> 0 | F46: ='Data 2009-15'!F46/F$145 -> 0 | G46: ='Data 2009-15'!G46/G$145 -> 0 | H46: ='Data 2009-15'!H46/H$145 -> 0 | I46: ='Data 2009-15'!I46/I$145 -> 0 | J46: ='Data 2009-15'!J46/J$145 -> 0
A47: Communications | D47: ='Data 2009-15'!D47/D$145 -> 0 | E47: ='Data 2009-15'!E47/E$145 -> 0 | F47: ='Data 2009-15'!F47/F$145 -> 0 | G47: ='Data 2009-15'!G47/G$145 -> 0 | H47: ='Data 2009-15'!H47/H$145 -> 0 | I47: ='Data 2009-15'!I47/I$145 -> 0 | J47: ='Data 2009-15'!J47/J$145 -> 0
A48: Other | D48: ='Data 2009-15'!D48/D$145 -> 0 | E48: ='Data 2009-15'!E48/E$145 -> 0 | F48: ='Data 2009-15'!F48/F$145 -> 0 | G48: ='Data 2009-15'!G48/G$145 -> 0 | H48: ='Data 2009-15'!H48/H$145 -> 0 | I48: ='Data 2009-15'!I48/I$145 -> 0 | J48: ='Data 2009-15'!J48/J$145 -> 0
D49: =SUM(D43:D48) -> 0 | E49: 0 | F49: 0 | G49: 0 | H49: 0 | I49: 0 | J49: 0
D52: 2009 | E52: 2010 | F52: 2011 | G52: =G$1 -> 2012 | H52: =H$1 -> 2013 | I52: =I$1 -> 2014 | J52: =J$1 -> 2015
A53: OPERATING & MAINTENANCE EXPENDITURE | D53: =D$2 -> Real 2008 $ | E53: Real 2008 $ | F53: Real 2008 $ | G53: Real 2008 $ | H53: Real 2008 $ | I53: Real 2008 $ | J53: Real 2008 $
D54: =D$3 -> Actual | E54: Actual | F54: Actual | G54: Actual | H54: Actual | I54: Actual | J54: Actual
A55: Operating and Maintenance Expenditure (including debt raisiing costs in 2014-15) | D55: ='Data 2009-15'!D55/D$145 -> 13357880.23 | E55: ='Data 2009-15'!E55/E$145 -> 15062250.47 | F55: ='Data 2009-15'!F55/F$145 -> 25036618.08 | G55: ='Data 2009-15'!G55/G$145 -> 25631295.51 | H55: ='Data 2009-15'!H55/H$145 -> 22437309.61 | I55: ='Data 2009-15'!I55/I$145+I56 -> 20044790.99 | J55: ='Data 2009-15'!J55/J$145+J56 -> 16843172.88
A56: Debt raisiing costs in 2014-15 | I56: ='AMI RAB 2009-15'!I12*10^3*$I$133*I57 -> 131345.714 | J56: ='AMI RAB 2009-15'!J12*10^3*$I$133*J57 -> 120172.0797
A57: Debt Raising Cost Benchmark | I57: 0.00108 | J57: 0.00108
A58: Actual Tariff Revenue | D58: =D$1 -> 2009 | E58: 2010 | F58: 2011 | G58: 2012 | H58: 2013 | I58: 2014 | J58: 2015
D59: Nominal $ | E59: Nominal $ | F59: Nominal $ | G59: Nominal $ | H59: Nominal $ | I59: Nominal $ | J59: Nominal $
A60: Actual Tariff Revenue | D60: ='Data 2009-15'!D60 -> 18744172.44 | E60: ='Data 2009-15'!E60 -> 45994696 | F60: ='Data 2009-15'!F60 -> 61289216.63 | G60: ='Data 2009-15'!G60 -> 70848144.18 | H60: ='Data 2009-15'!H60 -> 82675982.1 | I60: ='Data 2009-15'!I60 -> 93178197.11 | J60: ='Data 2009-15'!J60 -> 105382337.2
A65: Proposed Tariffs and Forecast Tariff Quantities | E65: Tariffs
E67: =E$1 -> 2010 | F67: 2011 | G67: 2012 | H67: 2013 | I67: 2014 | J67: 2015
E68: Actual | F68: Actual | G68: Actual | H68: Actual | I68: Actual | J68: Actual
E69: Nominal $ | F69: Nominal $ | G69: Nominal $ | H69: Nominal $ | I69: Nominal $ | J69: Nominal $
A71: Metering data services | E71: Charge per meter ($ p.a.)
A72: metering data services - monthly read meter | E72: 0 | F72: 0 | G72: 0 | H72: 0 | I72: 0 | J72: 0
A73: metering data services - quarterly read meter | E73: 0 | F73: 0 | G73: 0 | H73: 0 | I73: 0 | J73: 0
A74: Other Category 1 : Describe……………….. | E74: 0 | F74: 0 | G74: 0 | H74: 0 | I74: 0 | J74: 0
A75: Other Category 2 : Describe……………….. | E75: 0 | F75: 0 | G75: 0 | H75: 0 | I75: 0 | J75: 0
A76: Other Category 3 : Describe……………….. | E76: 0 | F76: 0 | G76: 0 | H76: 0 | I76: 0 | J76: 0
A77: Other Category 4 : Describe……………….. | E77: 0 | F77: 0 | G77: 0 | H77: 0 | I77: 0 | J77: 0
A78: Other Category 5 : Describe……………….. | E78: 0 | F78: 0 | G78: 0 | H78: 0 | I78: 0 | J78: 0
A81: Metering data services | E81: Charge per NMIs ($ p.a.)
A82: metering data services - monthly read meter | E82: 0 | F82: 0 | G82: 0 | H82: 0 | I82: 0 | J82: 0
A83: metering data services - quarterly read meter | E83: 0 | F83: 0 | G83: 0 | H83: 0 | I83: 0 | J83: 0
A84: Other Category 1 : Describe……………….. | E84: 0 | F84: 0 | G84: 0 | H84: 0 | I84: 0 | J84: 0
A85: Other Category 2 : Describe……………….. | E85: 0 | F85: 0 | G85: 0 | H85: 0 | I85: 0 | J85: 0
A86: Other Category 3 : Describe……………….. | E86: 0 | F86: 0 | G86: 0 | H86: 0 | I86: 0 | J86: 0
A87: Other Category 4 : Describe……………….. | E87: 0 | F87: 0 | G87: 0 | H87: 0 | I87: 0 | J87: 0
A88: Other Category 5 : Describe……………….. | E88: 0 | F88: 0 | G88: 0 | H88: 0 | I88: 0 | J88: 0
A91: Meter provision Charge | E91: Charge per meter ($ p.a.)
A92: single phase single element meter | E92: =E185 -> 71.8 | F92: 92.12 | G92: =G185 -> 106.574 | H92: 124.45 | I92: 141.33 | J92: =J185 -> 154.51
A93: single phase single element meter with contactor | E93: 73.3 | F93: 94.02 | G93: 108.772 | H93: 124.45 | I93: 141.33 | J93: =J186 -> 154.51
A94: single phase two element meter with contactor | E94: 0 | F94: 0 | G94: 0 | H94: 0 | I94: 0 | J94: 0
A95: three phase direct connected meter | E95: =E187 -> 81.01 | F95: 103.89 | G95: 120.191 | H95: 140.35 | I95: 159.39 | J95: 174.25
A96: three phase direct connected meter with contactor | E96: 0 | F96: 0 | G96: 0 | H96: 0 | I96: 0 | J96: 0
A97: three phase Current transformer connected meter | E97: =E188 -> 86.4 | F97: 110.82 | G97: 128.208 | H97: 149.71 | I97: 170.02 | J97: 184.61
A98: Other Category 1 : Describe……………….. | E98: 0 | F98: 0 | G98: 0 | H98: 0 | I98: 0 | J98: 0
A99: Other Category 2 : Describe……………….. | E99: 0 | F99: 0 | G99: 0 | H99: 0 | I99: 0 | J99: 0
A100: Other Category 3 : Describe……………….. | E100: 0 | F100: 0 | G100: 0 | H100: 0 | I100: 0 | J100: 0
A101: Other Category 4 : Describe……………….. | E101: 0 | F101: 0 | G101: 0 | H101: 0 | I101: 0 | J101: 0
A102: Other Category 5 : Describe……………….. | E102: 0 | F102: 0 | G102: 0 | H102: 0 | I102: 0 | J102: 0
A105: Meter provision Charge | E105: Charge per NMIs ($ p.a.)
A106: single phase single element meter | E106: 0 | F106: 0 | G106: 0 | H106: 0 | I106: 0 | J106: 0
A107: single phase single element meter with contactor | E107: 0 | F107: 0 | G107: 0 | H107: 0 | I107: 0 | J107: 0
A108: single phase two element meter with contactor | E108: 0 | F108: 0 | G108: 0 | H108: 0 | I108: 0 | J108: 0
A109: three phase direct connected meter | E109: 0 | F109: 0 | G109: 0 | H109: 0 | I109: 0 | J109: 0
A110: three phase direct connected meter with contactor | E110: 0 | F110: 0 | G110: 0 | H110: 0 | I110: 0 | J110: 0
A111: three phase Current transformer connected meter | E111: 0 | F111: 0 | G111: 0 | H111: 0 | I111: 0 | J111: 0
A112: Other Category 1 : Describe……………….. | E112: 0 | F112: 0 | G112: 0 | H112: 0 | I112: 0 | J112: 0
A113: Other Category 2 : Describe……………….. | E113: 0 | F113: 0 | G113: 0 | H113: 0 | I113: 0 | J113: 0
A114: Other Category 3 : Describe……………….. | E114: 0 | F114: 0 | G114: 0 | H114: 0 | I114: 0 | J114: 0
A115: Other Category 4 : Describe……………….. | E115: 0 | F115: 0 | G115: 0 | H115: 0 | I115: 0 | J115: 0
A116: Other Category 5 : Describe……………….. | E116: 0 | F116: 0 | G116: 0 | H116: 0 | I116: 0 | J116: 0
A122: AER INPUTS
A124: AMI WACC | C124: Initial AMI WACC - | I124: Subsequent AMI WACC -
C125: 1 January 2009 to 31 December 2013 | I125: 1 January 2014 to 31 December 2015
A126: Market Observables
A127: Nominal risk free rate | C127: 0.0463 | I127: 0.0402
A128: Debt risk premium | C128: =4%+0.125% -> 0.04125 | I128: 0.0253
A130: Non Market Observables
A131: Equity premium | C131: ='Data 2006-08'!C130 -> 0.06 | I131: 0.065
A132: Equity beta | C132: ='Data 2006-08'!C131 -> 1 | I132: 0.8
A133: Gearing (debt/assets) | C133: ='Data 2006-08'!C133 -> 0.6 | I133: 0.6
A134: Forecast inflation | C134: ='Data 2006-08'!C134 -> 0.0256 | I134: 0.0247
A136: BENCHMARK TAX RELATED INPUTS
A137: Company income tax rate | C137: 0.3 | I137: 0.3
A138: Franking credit value | C138: 0.65 | I138: 0.25
A139: Gearing (debt/assets) | C139: =C133 -> 0.6 | I139: =I133 -> 0.6
D142: =D$1 -> 2009 | E142: =E$1 -> 2010 | F142: 2011 | G142: 2012 | H142: 2013 | I142: 2014 | J142: 2015 | L142: CPI Index | N142: Annual CPI
A143: Inflation | D143: Actual | E143: Actual | F143: Actual | G143: Actual | H143: Actual | I143: Actual | J143: Actual | L143: 2007-09-30 | M143: ='Data 2006-08'!D150 -> 158.6
A144: CPI increase | D144: ='Data 2006-08'!F151 -> 0.04981084489 | E144: =N145 -> 0.01261261261 | F144: =N146 -> 0.02787663108 | G144: =N147 -> 0.03519907675 | H144: =N151 -> 0.02004008016 | I144: =N152 -> 0.02161100196 | J144: =N153 -> 0.02307692308 | L144: 2008-09-30 | M144: ='Data 2006-08'!D151 -> 166.5 | N144: =M144/M143-1 -> 0.04981084489
A145: CPI Index | D145: =1+D144 -> 1.049810845 | E145: =D145*(1+E144) -> 1.063051702 | F145: 1.092686003 | G145: 1.131147541 | H145: 1.153815828 | I145: 1.178750945 | J145: 1.205952889 | L145: 2009-09-30 | M145: 168.6 | N145: =M145/M144-1 -> 0.01261261261
L146: 2010-09-30 | M146: 173.3 | N146: =M146/M145-1 -> 0.02787663108
L147: 2011-09-30 | M147: 179.4 | N147: =M147/M146-1 -> 0.03519907675
L149: The ABS changed the index reference base in September 2012 from 1989-90 to 2011-12.
L150: 2011-09-30 | M150: 99.8
L151: 2012-09-30 | M151: 101.8 | N151: =M151/M150-1 -> 0.02004008016
A152: Regulatory Depreciation | C152: Regulatory | L152: 2013-09-30 | M152: 104 | N152: =M152/M151-1 -> 0.02161100196
C153: Life (years) | L153: 2014-09-30 | M153: 106.4 | N153: =M153/M152-1 -> 0.02307692308
A154: Remotely read interval meters & transformers | C154: 15
A155: IT | C155: 7
A156: Communications | C156: 7
A157: Other | C157: 7
A160: Tax Depreciation Rates
A161: Declining Balance
A162: Meters and transformers (Group 1) (Unit cost < $1,000) | C162: ='Data 2006-08'!C176 -> 0.375
A163: Meters and transformers (Group 2) (Unit cost => $1,000) | C163: ='Data 2006-08'!C177 -> 0.06
A164: ='Data 2006-08'!A$178 -> IT | C164: ='Data 2006-08'!C178 -> 0.4
A165: Communications | C165: =1/7*1.5 -> 0.2142857143
A166: ='Data 2006-08'!A$179 -> Other | C166: ='Data 2006-08'!C179 -> 0.1764705882
A169: Actual Tariffs | D169: =D$1 -> 2009 | E169: 2010 | F169: 2011 | G169: 2012 | H169: 2013 | I169: 2014 | J169: 2015
D170: Actual | E170: Actual | F170: Actual | G170: Actual | H170: Actual | I170: Actual | J170: Actual
D171: Nominal $ | E171: Nominal $ | F171: Nominal $ | G171: Nominal $ | H171: Nominal $ | I171: Nominal $ | J171: Nominal $
A173: Metering data services | D173: Charge per Meter ($ p.a.)
A174: metering data services - monthly read meter | D174: 65.61
A175: metering data services - quarterly read meter | D175: 19.925
A177: Meter provision Charge | D177: Charge per Meter ($ p.a.)
A178: Single phase non off peak meter | D178: 2.391
A179: Single phase off peak meter | D179: 6.296
A180: Three phase direct connected meter | D180: 16.883
A181: Three phase CT connected meter | D181: 26.556
A184: Meter provision Charge | E184: Charge per meter ($ p.a.)
A185: single phase single element meter | E185: 71.8 | F185: 92.12 | G185: 106.574 | H185: 124.45 | I185: 141.33 | J185: 154.51
A186: single phase single element meter with contactor | E186: 73.3 | F186: 94.02 | G186: 108.772 | H186: 124.45 | I186: 141.33 | J186: 154.51
A187: three phase direct connected meter | E187: 81.01 | F187: 103.89 | G187: 120.191 | H187: 140.35 | I187: 159.39 | J187: 174.25
A188: three phase Current transformer connected meter | E188: 86.4 | F188: 110.82 | G188: 128.208 | H188: 149.71 | I188: 170.02 | J188: 184.61

Sheet AMI Building Blocks 2009-15
A1: ='Data 2006-08'!$A$1 -> United Energy | B1: Check | C1: =IF(SUM(C35)<0.001,"Ok","Error") -> Ok | D1: =C35 -> 0
C3: Initial AMI WACC - | I3: Subsequent AMI WACC -
A4: WEIGHTED AVERAGE COST OF CAPITAL (WACC) | C4: 1 January 2009 to 31 December 2013 | I4: 1 January 2014 to 31 December 2015
A6: Risk free rate (nominal) | C6: ='Data 2009-15 (Real $2008)'!C127 -> 0.0463 | I6: ='Data 2009-15 (Real $2008)'!I127 -> 0.0402
A7: Debt risk premium | C7: ='Data 2009-15 (Real $2008)'!C128 -> 0.04125 | I7: ='Data 2009-15 (Real $2008)'!I128 -> 0.0253
A8: Equity premium | C8: ='Data 2009-15 (Real $2008)'!C131 -> 0.06 | I8: ='Data 2009-15 (Real $2008)'!I131 -> 0.065
A9: Equity beta | C9: ='Data 2009-15 (Real $2008)'!C132 -> 1 | I9: ='Data 2009-15 (Real $2008)'!I132 -> 0.8
A10: Gearing (debt/assets) | C10: ='Data 2009-15 (Real $2008)'!C133 -> 0.6 | I10: ='Data 2009-15 (Real $2008)'!I133 -> 0.6
A11: Forecast inflation | C11: ='Data 2009-15 (Real $2008)'!C134 -> 0.0256 | I11: ='Data 2009-15 (Real $2008)'!I134 -> 0.0247
A13: After tax cost of equity (real) | C13: =(C14+1)/(1+C11)-1 -> 0.07868564743 | I13: =(I14+1)/(1+I11)-1 -> 0.06587293842
A14: After tax cost of equity (nominal) | C14: =C6+C9*C8 -> 0.1063 | I14: =I6+I9*I8 -> 0.0922
A15: Cost of debt (real) | C15: =(C16+1)/(1+C11)-1 -> 0.06040366615 | I15: =(I16+1)/(1+I11)-1 -> 0.03981653167
A16: Cost of debt (nominal) | C16: =C6+C7 -> 0.08755 | I16: =I6+I7 -> 0.0655
A18: Vanilla' after tax WACC (real) | C18: =(C13*(1-C10))+(C15*C10) -> 0.06771645866 | I18: =(I13*(1-I10))+(I15*I10) -> 0.05023909437
A19: Vanilla' after tax WACC (nominal) | C19: =(C14*(1-C10))+(C16*C10) -> 0.09505 | I19: =(I14*(1-I10))+(I16*I10) -> 0.07618
D21: 2009 | E21: 2010 | F21: 2011 | G21: 2012 | H21: 2013 | I21: 2014 | J21: 2015
A22: Inflation | D22: ='Data 2009-15 (Real $2008)'!D144 -> 0.04981084489 | E22: ='Data 2009-15 (Real $2008)'!E144 -> 0.01261261261 | F22: ='Data 2009-15 (Real $2008)'!F144 -> 0.02787663108 | G22: ='Data 2009-15 (Real $2008)'!G144 -> 0.03519907675 | H22: ='Data 2009-15 (Real $2008)'!H144 -> 0.02004008016 | I22: ='Data 2009-15 (Real $2008)'!I144 -> 0.02161100196 | J22: ='Data 2009-15 (Real $2008)'!J144 -> 0.02307692308
A23: =A18 -> Vanilla' after tax WACC (real) | D23: =$C$18 -> 0.06771645866 | E23: =$C$18 -> 0.06771645866 | F23: =$C$18 -> 0.06771645866 | G23: =$C$18 -> 0.06771645866 | H23: =$C$18 -> 0.06771645866 | I23: =$I$18 -> 0.05023909437 | J23: =$I$18 -> 0.05023909437
A24: =A19 -> Vanilla' after tax WACC (nominal) | D24: =(1+D23)*(1+D22)-1 -> 0.1209003176 | E24: 0.08118315273 | F24: 0.09748079647 | G24: 0.1052990922 | H24: 0.08911358208 | I24: 0.0729358135 | J24: 0.07447538116
A27: BUILDING BLOCKS AMI REVENUE REQUIREMENT | E27: Applying Vanilla' after tax WACC (nominal) | Q27: Applying Vanilla' after tax WACC (real) | AB27: Applying Vanilla' after tax WACC (real)
A29: ($000 Nominal) | D29: =$D$21 -> 2009 | E29: =$E$21 -> 2010 | F29: =$F$21 -> 2011 | G29: =$G$21 -> 2012 | H29: =$H$21 -> 2013 | I29: =$I$21 -> 2014 | J29: =$J$21 -> 2015 | M29: ($000 Nominal) | P29: =$D$21 -> 2009 | Q29: =$E$21 -> 2010 | R29: =$F$21 -> 2011 | S29: =$G$21 -> 2012 | T29: =$H$21 -> 2013 | U29: =$I$21 -> 2014 | V29: =$J$21 -> 2015 | X29: ($000 Real 2008) | AA29: =$D$21 -> 2009 | AB29: =$E$21 -> 2010 | AC29: =$F$21 -> 2011 | AD29: =$G$21 -> 2012 | AE29: =$H$21 -> 2013 | AF29: =$I$21 -> 2014 | AG29: =$J$21 -> 2015
A30: Return on assets | D30: =D24*('AMI RAB 2009-15'!D12*'Data 2009-15 (Real $2008)'!D145-D38) -> 9397.452156 | E30: =E24*('AMI RAB 2009-15'!E12*'Data 2009-15 (Real $2008)'!E145-E38) -> 10477.64265 | F30: =F24*('AMI RAB 2009-15'!F12*'Data 2009-15 (Real $2008)'!F145-F38) -> 16284.41894 | G30: =G24*('AMI RAB 2009-15'!G12*'Data 2009-15 (Real $2008)'!G145-G38) -> 21239.35919 | H30: =H24*('AMI RAB 2009-15'!H12*'Data 2009-15 (Real $2008)'!H145-H38) -> 20264.99207 | I30: =I24*('AMI RAB 2009-15'!I12*'Data 2009-15 (Real $2008)'!I145-I38) -> 17057.61168 | J30: =J24*('AMI RAB 2009-15'!J12*'Data 2009-15 (Real $2008)'!J145-J38) -> 16280.33585 | M30: Return on assets | P30: =D23*'AMI RAB 2009-15'!D12*'Data 2009-15 (Real $2008)'!D145 -> 5525.708548 | Q30: =E23*'AMI RAB 2009-15'!E12*'Data 2009-15 (Real $2008)'!E145 -> 8849.836347 | R30: =F23*'AMI RAB 2009-15'!F12*'Data 2009-15 (Real $2008)'!F145 -> 11627.55569 | S30: =G23*'AMI RAB 2009-15'!G12*'Data 2009-15 (Real $2008)'!G145 -> 14139.52748 | T30: =H23*'AMI RAB 2009-15'!H12*'Data 2009-15 (Real $2008)'!H145 -> 15707.75112 | U30: =I23*'AMI RAB 2009-15'!I12*'Data 2009-15 (Real $2008)'!I145 -> 12003.41318 | V30: =J23*'AMI RAB 2009-15'!J12*'Data 2009-15 (Real $2008)'!J145 -> 11235.71503 | X30: Return on assets | AA30: =D23*'AMI RAB 2009-15'!D12 -> 5263.527782 | AB30: =E23*'AMI RAB 2009-15'!E12 -> 8324.935022 | AC30: =F23*'AMI RAB 2009-15'!F12 -> 10641.25985 | AD30: =G23*'AMI RAB 2009-15'!G12 -> 12500.16197 | AE30: =H23*'AMI RAB 2009-15'!H12 -> 13613.7421 | AF30: =I23*'AMI RAB 2009-15'!I12 -> 10183.16315 | AG30: =J23*'AMI RAB 2009-15'!J12 -> 9316.877243
A31: Regulatory depreciation | D31: =D39 -> 10222.62681 | E31: 21563.56779 | F31: 26996.87249 | G31: 32995.03099 | H31: 41794.74897 | I31: 35667.41417 | J31: 35038.83628 | M31: Regulatory depreciation | P31: ='AMI RAB 2009-15'!D9*'Data 2009-15 (Real $2008)'!D145 -> 14094.37042 | Q31: ='AMI RAB 2009-15'!E9*'Data 2009-15 (Real $2008)'!E145 -> 23191.37409 | R31: ='AMI RAB 2009-15'!F9*'Data 2009-15 (Real $2008)'!F145 -> 31653.73574 | S31: ='AMI RAB 2009-15'!G9*'Data 2009-15 (Real $2008)'!G145 -> 40094.8627 | T31: ='AMI RAB 2009-15'!H9*'Data 2009-15 (Real $2008)'!H145 -> 46351.98992 | U31: ='AMI RAB 2009-15'!I9*'Data 2009-15 (Real $2008)'!I145 -> 40721.61267 | V31: ='AMI RAB 2009-15'!J9*'Data 2009-15 (Real $2008)'!J145 -> 40083.45709 | X31: Regulatory depreciation | AA31: ='AMI RAB 2009-15'!D9 -> 13425.62852 | AB31: ='AMI RAB 2009-15'!E9 -> 21815.84775 | AC31: ='AMI RAB 2009-15'!F9 -> 28968.73911 | AD31: ='AMI RAB 2009-15'!G9 -> 35446.18296 | AE31: ='AMI RAB 2009-15'!H9 -> 40172.78042 | AF31: ='AMI RAB 2009-15'!I9 -> 34546.40937 | AG31: ='AMI RAB 2009-15'!J9 -> 33237.99582
A32: O&M expenditure | D32: ='Data 2009-15 (Real $2008)'!D55*'Data 2009-15 (Real $2008)'!D145/10^3 -> 14023.24753 | E32: ='Data 2009-15 (Real $2008)'!E55*'Data 2009-15 (Real $2008)'!E145/10^3 -> 16011.951 | F32: ='Data 2009-15 (Real $2008)'!F55*'Data 2009-15 (Real $2008)'!F145/10^3 -> 27357.16213 | G32: ='Data 2009-15 (Real $2008)'!G55*'Data 2009-15 (Real $2008)'!G145/10^3 -> 28992.77689 | H32: ='Data 2009-15 (Real $2008)'!H55*'Data 2009-15 (Real $2008)'!H145/10^3 -> 25888.52297 | I32: ='Data 2009-15 (Real $2008)'!I55*'Data 2009-15 (Real $2008)'!I145/10^3 -> 23627.81632 | J32: ='Data 2009-15 (Real $2008)'!J55*'Data 2009-15 (Real $2008)'!J145/10^3 -> 20312.073 | M32: O&M expenditure | P32: ='Data 2009-15 (Real $2008)'!D55*'Data 2009-15 (Real $2008)'!D145/10^3 -> 14023.24753 | Q32: ='Data 2009-15 (Real $2008)'!E55*'Data 2009-15 (Real $2008)'!E145/10^3 -> 16011.951 | R32: ='Data 2009-15 (Real $2008)'!F55*'Data 2009-15 (Real $2008)'!F145/10^3 -> 27357.16213 | S32: ='Data 2009-15 (Real $2008)'!G55*'Data 2009-15 (Real $2008)'!G145/10^3 -> 28992.77689 | T32: ='Data 2009-15 (Real $2008)'!H55*'Data 2009-15 (Real $2008)'!H145/10^3 -> 25888.52297 | U32: ='Data 2009-15 (Real $2008)'!I55*'Data 2009-15 (Real $2008)'!I145/10^3 -> 23627.81632 | V32: ='Data 2009-15 (Real $2008)'!J55*'Data 2009-15 (Real $2008)'!J145/10^3 -> 20312.073 | X32: O&M expenditure | AA32: ='Data 2009-15 (Real $2008)'!D55/10^3 -> 13357.88023 | AB32: ='Data 2009-15 (Real $2008)'!E55/10^3 -> 15062.25047 | AC32: ='Data 2009-15 (Real $2008)'!F55/10^3 -> 25036.61808 | AD32: ='Data 2009-15 (Real $2008)'!G55/10^3 -> 25631.29551 | AE32: ='Data 2009-15 (Real $2008)'!H55/10^3 -> 22437.30961 | AF32: ='Data 2009-15 (Real $2008)'!I55/10^3 -> 20044.79099 | AG32: ='Data 2009-15 (Real $2008)'!J55/10^3 -> 16843.17288
A33: Tax liability | D33: =D60 -> 0 | E33: 0 | F33: 0 | G33: 0 | H33: 0 | I33: 0 | J33: 0 | M33: Tax liability | P33: =D60 -> 0 | Q33: 0 | R33: 0 | S33: 0 | T33: 0 | U33: 0 | V33: 0 | X33: Tax liability | AA33: =D64 -> 0 | AB33: 0 | AC33: 0 | AD33: 0 | AE33: 0 | AF33: 0 | AG33: 0
A34: Total building blocks - AMI | D34: =SUM(D30:D33) -> 33643.3265 | E34: 48053.16144 | F34: 70638.45356 | G34: 83227.16706 | H34: 87948.26401 | I34: 76352.84217 | J34: 71631.24512 | M34: Total building blocks - AMI | P34: =SUM(P30:P33) -> 33643.3265 | Q34: 48053.16144 | R34: 70638.45356 | S34: 83227.16706 | T34: 87948.26401 | U34: 76352.84217 | V34: 71631.24512 | X34: Total building blocks - AMI | AA34: =SUM(AA30:AA33) -> 32047.03654 | AB34: 45203.03324 | AC34: 64646.61705 | AD34: 73577.64045 | AE34: 76223.83213 | AF34: 64774.36351 | AG34: 59398.04594
A35: Check | C35: =SUM(D35:J35,P35:V35) -> 0 | D35: =IF(ABS(P34-D34)<0.001,0,ABS(P34-D34)) -> 0 | E35: 0 | F35: 0 | G35: 0 | H35: 0 | I35: 0 | J35: 0 | P35: =IF(ABS(AA34*'Data 2009-15 (Real $2008)'!D145-P34)<0.001,0,ABS(AA34*'Data 2009-15 (Real $2008)'!D145-P34)) -> 0 | Q35: =IF(ABS(AB34*'Data 2009-15 (Real $2008)'!E145-Q34)<0.001,0,ABS(AB34*'Data 2009-15 (Real $2008)'!E145-Q34)) -> 0 | R35: =IF(ABS(AC34*'Data 2009-15 (Real $2008)'!F145-R34)<0.001,0,ABS(AC34*'Data 2009-15 (Real $2008)'!F145-R34)) -> 0 | S35: =IF(ABS(AD34*'Data 2009-15 (Real $2008)'!G145-S34)<0.001,0,ABS(AD34*'Data 2009-15 (Real $2008)'!G145-S34)) -> 0 | T35: =IF(ABS(AE34*'Data 2009-15 (Real $2008)'!H145-T34)<0.001,0,ABS(AE34*'Data 2009-15 (Real $2008)'!H145-T34)) -> 0 | U35: =IF(ABS(AF34*'Data 2009-15 (Real $2008)'!I145-U34)<0.001,0,ABS(AF34*'Data 2009-15 (Real $2008)'!I145-U34)) -> 0 | V35: =IF(ABS(AG34*'Data 2009-15 (Real $2008)'!J145-V34)<0.001,0,ABS(AG34*'Data 2009-15 (Real $2008)'!J145-V34)) -> 0
A37: Straight-line depreciation | D37: ='AMI RAB 2009-15'!D9*'Data 2009-15 (Real $2008)'!D145 -> 14094.37042 | E37: ='AMI RAB 2009-15'!E9*'Data 2009-15 (Real $2008)'!E145 -> 23191.37409 | F37: ='AMI RAB 2009-15'!F9*'Data 2009-15 (Real $2008)'!F145 -> 31653.73574 | G37: ='AMI RAB 2009-15'!G9*'Data 2009-15 (Real $2008)'!G145 -> 40094.8627 | H37: ='AMI RAB 2009-15'!H9*'Data 2009-15 (Real $2008)'!H145 -> 46351.98992 | I37: ='AMI RAB 2009-15'!I9*'Data 2009-15 (Real $2008)'!I145 -> 40721.61267 | J37: ='AMI RAB 2009-15'!J9*'Data 2009-15 (Real $2008)'!J145 -> 40083.45709
A38: Less Inflation indexation | D38: ='AMI RAB 2009-15'!D12*'Data 2009-15 (Real $2008)'!D144 -> 3871.743608 | E38: ='AMI RAB 2009-15'!E12*'Data 2009-15 (Real $2008)'!D145*'Data 2009-15 (Real $2008)'!E144 -> 1627.806305 | F38: ='AMI RAB 2009-15'!F12*'Data 2009-15 (Real $2008)'!E145*'Data 2009-15 (Real $2008)'!F144 -> 4656.863256 | G38: ='AMI RAB 2009-15'!G12*'Data 2009-15 (Real $2008)'!F145*'Data 2009-15 (Real $2008)'!G144 -> 7099.83171 | H38: ='AMI RAB 2009-15'!H12*'Data 2009-15 (Real $2008)'!G145*'Data 2009-15 (Real $2008)'!H144 -> 4557.240951 | I38: ='AMI RAB 2009-15'!I12*'Data 2009-15 (Real $2008)'!H145*'Data 2009-15 (Real $2008)'!I144 -> 5054.198505 | J38: ='AMI RAB 2009-15'!J12*'Data 2009-15 (Real $2008)'!I145*'Data 2009-15 (Real $2008)'!J144 -> 5044.620815
A39: Regulatory depreciation | D39: =D37-D38 -> 10222.62681 | E39: 21563.56779 | F39: 26996.87249 | G39: 32995.03099 | H39: 41794.74897 | I39: 35667.41417 | J39: 35038.83628
A43: Taxation calculation | D43: =$D$21 -> 2009 | E43: =$E$21 -> 2010 | F43: =$F$21 -> 2011 | G43: =$G$21 -> 2012 | H43: =$H$21 -> 2013 | I43: =$I$21 -> 2014 | J43: =$J$21 -> 2015
A45: Gearing | D45: ='Data 2009-15 (Real $2008)'!$C$139 -> 0.6 | E45: ='Data 2009-15 (Real $2008)'!$C$139 -> 0.6 | F45: ='Data 2009-15 (Real $2008)'!$C$139 -> 0.6 | G45: ='Data 2009-15 (Real $2008)'!$C$139 -> 0.6 | H45: ='Data 2009-15 (Real $2008)'!$C$139 -> 0.6 | I45: ='Data 2009-15 (Real $2008)'!$I$139 -> 0.6 | J45: ='Data 2009-15 (Real $2008)'!$I$139 -> 0.6
A46: Cost of debt (nominal) | D46: =(1+$C$15)*(1+'Data 2009-15 (Real $2008)'!D144)-1 -> 0.1132232687 | E46: =(1+$C$15)*(1+'Data 2009-15 (Real $2008)'!E144)-1 -> 0.0737781268 | F46: =(1+$C$15)*(1+'Data 2009-15 (Real $2008)'!F144)-1 -> 0.08996414794 | G46: =(1+$C$15)*(1+'Data 2009-15 (Real $2008)'!G144)-1 -> 0.09772889617 | H46: =(1+$C$15)*(1+'Data 2009-15 (Real $2008)'!H144)-1 -> 0.08165424062 | I46: =(1+$I$15)*(1+'Data 2009-15 (Real $2008)'!I144)-1 -> 0.06228800878 | J46: =(1+$I$15)*(1+'Data 2009-15 (Real $2008)'!J144)-1 -> 0.06381229778
A47: Tax rate | D47: ='Data 2009-15 (Real $2008)'!$C$137 -> 0.3 | E47: ='Data 2009-15 (Real $2008)'!$C$137 -> 0.3 | F47: ='Data 2009-15 (Real $2008)'!$C$137 -> 0.3 | G47: ='Data 2009-15 (Real $2008)'!$C$137 -> 0.3 | H47: ='Data 2009-15 (Real $2008)'!$C$137 -> 0.3 | I47: ='Data 2009-15 (Real $2008)'!$I$137 -> 0.3 | J47: ='Data 2009-15 (Real $2008)'!$I$137 -> 0.3
A48: Franking credit value | D48: ='Data 2009-15 (Real $2008)'!$C$138 -> 0.65 | E48: ='Data 2009-15 (Real $2008)'!$C$138 -> 0.65 | F48: ='Data 2009-15 (Real $2008)'!$C$138 -> 0.65 | G48: ='Data 2009-15 (Real $2008)'!$C$138 -> 0.65 | H48: ='Data 2009-15 (Real $2008)'!$C$138 -> 0.65 | I48: ='Data 2009-15 (Real $2008)'!$I$138 -> 0.25 | J48: ='Data 2009-15 (Real $2008)'!$I$138 -> 0.25
A50: ($000 Nominal) | D50: =$D$21 -> 2009 | E50: =$E$21 -> 2010 | F50: =$F$21 -> 2011 | G50: =$G$21 -> 2012 | H50: =$H$21 -> 2013 | I50: =$I$21 -> 2014 | J50: =$J$21 -> 2015
A51: Tariff Revenue | D51: ='Tariff Compliance'!D8 -> 18744.17244 | E51: ='Tariff Compliance'!E8 -> 45994.696 | F51: ='Tariff Compliance'!F8 -> 61289.21663 | G51: ='Tariff Compliance'!G8 -> 70848.14418 | H51: ='Tariff Compliance'!H8 -> 82675.9821 | I51: ='Tariff Compliance'!I8 -> 93178.19711 | J51: ='Tariff Compliance'!J8 -> 105382.3372
A52: Customer contributions | D52: ='AMI RAB 2009-15'!D7*'Data 2009-15 (Real $2008)'!D145 -> 0 | E52: ='AMI RAB 2009-15'!E7*'Data 2009-15 (Real $2008)'!E145 -> 0 | F52: ='AMI RAB 2009-15'!F7*'Data 2009-15 (Real $2008)'!F145 -> 0 | G52: ='AMI RAB 2009-15'!G7*'Data 2009-15 (Real $2008)'!G145 -> 0 | H52: ='AMI RAB 2009-15'!H7*'Data 2009-15 (Real $2008)'!H145 -> 0 | I52: ='AMI RAB 2009-15'!I7*'Data 2009-15 (Real $2008)'!I145 -> 0 | J52: ='AMI RAB 2009-15'!J7*'Data 2009-15 (Real $2008)'!J145 -> 0
A53: Operating & maintenance expenditure | D53: ='Data 2009-15 (Real $2008)'!D55/10^3*'Data 2009-15 (Real $2008)'!D145 -> 14023.24753 | E53: ='Data 2009-15 (Real $2008)'!E55/10^3*'Data 2009-15 (Real $2008)'!E145 -> 16011.951 | F53: ='Data 2009-15 (Real $2008)'!F55/10^3*'Data 2009-15 (Real $2008)'!F145 -> 27357.16213 | G53: ='Data 2009-15 (Real $2008)'!G55/10^3*'Data 2009-15 (Real $2008)'!G145 -> 28992.77689 | H53: ='Data 2009-15 (Real $2008)'!H55/10^3*'Data 2009-15 (Real $2008)'!H145 -> 25888.52297 | I53: ='Data 2009-15 (Real $2008)'!I55/10^3*'Data 2009-15 (Real $2008)'!I145 -> 23627.81632 | J53: ='Data 2009-15 (Real $2008)'!J55/10^3*'Data 2009-15 (Real $2008)'!J145 -> 20312.073
A54: Tax depreciation | D54: ='AMI Tax Depn 2009-15'!D56 -> 26047.40258 | E54: ='AMI Tax Depn 2009-15'!E56 -> 42731.2445 | F54: ='AMI Tax Depn 2009-15'!F56 -> 50034.65634 | G54: ='AMI Tax Depn 2009-15'!G56 -> 54928.49195 | H54: ='AMI Tax Depn 2009-15'!H56 -> 57518.18769 | I54: ='AMI Tax Depn 2009-15'!I56 -> 53152.83143 | J54: ='AMI Tax Depn 2009-15'!J56 -> 41194.08975
A55: Interest | D55: ='AMI RAB 2009-15'!D12*D45*'Data 2009-15 (Real $2008)'!D145*D46 -> 5543.456903 | E55: ='AMI RAB 2009-15'!E12*E45*'Data 2009-15 (Real $2008)'!E145*E46 -> 5785.21997 | F55: ='AMI RAB 2009-15'!F12*F45*'Data 2009-15 (Real $2008)'!F145*F46 -> 9268.616471 | G55: ='AMI RAB 2009-15'!G12*G45*'Data 2009-15 (Real $2008)'!G145*G46 -> 12243.76265 | H55: ='AMI RAB 2009-15'!H12*H45*'Data 2009-15 (Real $2008)'!H145*H46 -> 11364.48522 | I55: ='AMI RAB 2009-15'!I12*I45*'Data 2009-15 (Real $2008)'!I145*I46 -> 8929.325435 | J55: ='AMI RAB 2009-15'!J12*J45*'Data 2009-15 (Real $2008)'!J145*J46 -> 8562.775294
A56: Tax losses brought forward | D56: =IF('Offset of Costs and Rev 2006-08'!F106<0,-'Offset of Costs and Rev 2006-08'!F106,0) -> 0 | E56: =IF(D57<0,-D57,0) -> 26869.93458 | F56: 45403.65405 | G56: 70774.87236 | H56: 96091.75967 | I56: 108186.9734 | J56: 100718.7495
A57: After tax net income | D57: =SUM(D51:D52)-SUM(D53:D56) -> -26869.93458 | E57: -45403.65405 | F57: -70774.87236 | G57: -96091.75967 | H57: -108186.9734 | I57: -100718.7495 | J57: -65405.35033
A58: Cost of tax | D58: =IF(D57<0,0,D57*D47) -> 0 | E58: 0 | F58: 0 | G58: 0 | H58: 0 | I58: 0 | J58: 0
A59: Franking benefit | D59: =D58*D48 -> 0 | E59: 0 | F59: 0 | G59: 0 | H59: 0 | I59: 0 | J59: 0
A60: Tax liability ($000 MOD) | D60: =D58-D59 -> 0 | E60: 0 | F60: 0 | G60: 0 | H60: 0 | I60: 0 | J60: 0
D62: =$D$21 -> 2009 | E62: =$E$21 -> 2010 | F62: =$F$21 -> 2011 | G62: =$G$21 -> 2012 | H62: =$H$21 -> 2013 | I62: =$I$21 -> 2014 | J62: =$J$21 -> 2015
A63: ($000 Real 2008)
A64: Tax liability | D64: =D60/'Data 2009-15 (Real $2008)'!D145 -> 0 | E64: =E60/'Data 2009-15 (Real $2008)'!E145 -> 0 | F64: =F60/'Data 2009-15 (Real $2008)'!F145 -> 0 | G64: =G60/'Data 2009-15 (Real $2008)'!G145 -> 0 | H64: =H60/'Data 2009-15 (Real $2008)'!H145 -> 0 | I64: =I60/'Data 2009-15 (Real $2008)'!I145 -> 0 | J64: =J60/'Data 2009-15 (Real $2008)'!J145 -> 0

Sheet AMI Tax Depn 2009-15
A1: ='Data 2006-08'!$A$1 -> United Energy | B1: Check | C1: =IF(SUM(C59)<0.001,"Ok","Error") -> Ok | D1: 2009 | E1: 2010 | F1: 2011 | G1: 2012 | H1: 2013 | I1: 2014 | J1: 2015 | K1: 2016 | L1: 2017 | M1: 2018 | N1: 2019 | O1: 2020 | P1: 2021 | Q1: 2022 | R1: 2023 | S1: 2024 | T1: 2025 | U1: 2026 | V1: 2027 | W1: 2028 | X1: 2029 | Y1: 2030 | Z1: 2031 | AA1: 2032
C2: =C59 -> 5.525180313e-11
A3: TAX DEPRECIATION
A5: Tax Asset Class | D5: Tax Depreciation Declining Balance
A6: ='Data 2009-15 (Real $2008)'!A$162 -> Meters and transformers (Group 1) (Unit cost < $1,000) | D6: ='Data 2009-15 (Real $2008)'!C162 -> 0.375
A7: ='Data 2009-15 (Real $2008)'!A$163 -> Meters and transformers (Group 2) (Unit cost => $1,000) | D7: ='Data 2009-15 (Real $2008)'!C163 -> 0.06
A8: ='Data 2009-15 (Real $2008)'!A$164 -> IT | D8: ='Data 2009-15 (Real $2008)'!C164 -> 0.4
A9: ='Data 2009-15 (Real $2008)'!A$165 -> Communications | D9: ='Data 2009-15 (Real $2008)'!C165 -> 0.2142857143
A10: ='Data 2009-15 (Real $2008)'!A$166 -> Other | D10: ='Data 2009-15 (Real $2008)'!C166 -> 0.1764705882
A13: REGULATED TAX ASSET VALUE | D13: =D$1 -> 2009 | E13: =E$1 -> 2010 | F13: 2011 | G13: 2012 | H13: 2013 | I13: 2014 | J13: 2015 | K13: 2016 | L13: 2017 | M13: 2018 | N13: 2019 | O13: 2020 | P13: 2021 | Q13: 2022 | R13: 2023 | S13: 2024 | T13: 2025 | U13: 2026 | V13: 2027 | W13: 2028 | X13: 2029 | Y13: 2030 | Z13: 2031 | AA13: 2032
A14: ($000 Nominal)
A15: Capex
A16: ='Data 2009-15 (Real $2008)'!A$162 -> Meters and transformers (Group 1) (Unit cost < $1,000) | D16: ='Data 2009-15 (Real $2008)'!D22*'Data 2009-15 (Real $2008)'!D$145/10^3 -> 10281.90639 | E16: ='Data 2009-15 (Real $2008)'!E22*'Data 2009-15 (Real $2008)'!E$145/10^3 -> 24243.243 | F16: ='Data 2009-15 (Real $2008)'!F22*'Data 2009-15 (Real $2008)'!F$145/10^3 -> 48357.31924 | G16: ='Data 2009-15 (Real $2008)'!G22*'Data 2009-15 (Real $2008)'!G$145/10^3 -> 51851.5026 | H16: ='Data 2009-15 (Real $2008)'!H22*'Data 2009-15 (Real $2008)'!H$145/10^3 -> 55756.40179 | I16: ='Data 2009-15 (Real $2008)'!I22*'Data 2009-15 (Real $2008)'!I$145/10^3 -> 24549.682 | J16: ='Data 2009-15 (Real $2008)'!J22*'Data 2009-15 (Real $2008)'!J$145/10^3 -> 3238.111381
A17: ='Data 2009-15 (Real $2008)'!A$163 -> Meters and transformers (Group 2) (Unit cost => $1,000) | D17: ='Data 2009-15 (Real $2008)'!D23*'Data 2009-15 (Real $2008)'!D$145/10^3 -> 0 | E17: ='Data 2009-15 (Real $2008)'!E23*'Data 2009-15 (Real $2008)'!E$145/10^3 -> 0 | F17: ='Data 2009-15 (Real $2008)'!F23*'Data 2009-15 (Real $2008)'!F$145/10^3 -> 0 | G17: ='Data 2009-15 (Real $2008)'!G23*'Data 2009-15 (Real $2008)'!G$145/10^3 -> 0 | H17: ='Data 2009-15 (Real $2008)'!H23*'Data 2009-15 (Real $2008)'!H$145/10^3 -> 0 | I17: ='Data 2009-15 (Real $2008)'!I23*'Data 2009-15 (Real $2008)'!I$145/10^3 -> 0 | J17: ='Data 2009-15 (Real $2008)'!J23*'Data 2009-15 (Real $2008)'!J$145/10^3 -> 0
A18: ='Data 2009-15 (Real $2008)'!A$164 -> IT | D18: ='Data 2009-15 (Real $2008)'!D24*'Data 2009-15 (Real $2008)'!D$145/10^3 -> 63237.88408 | E18: ='Data 2009-15 (Real $2008)'!E24*'Data 2009-15 (Real $2008)'!E$145/10^3 -> 34423.246 | F18: ='Data 2009-15 (Real $2008)'!F24*'Data 2009-15 (Real $2008)'!F$145/10^3 -> 8382.03572 | G18: ='Data 2009-15 (Real $2008)'!G24*'Data 2009-15 (Real $2008)'!G$145/10^3 -> 7974.07495 | H18: ='Data 2009-15 (Real $2008)'!H24*'Data 2009-15 (Real $2008)'!H$145/10^3 -> 1748.57127 | I18: ='Data 2009-15 (Real $2008)'!I24*'Data 2009-15 (Real $2008)'!I$145/10^3 -> 4041.916 | J18: ='Data 2009-15 (Real $2008)'!J24*'Data 2009-15 (Real $2008)'!J$145/10^3 -> 6084.01692
A19: ='Data 2009-15 (Real $2008)'!A$165 -> Communications | D19: ='Data 2009-15 (Real $2008)'!D25*'Data 2009-15 (Real $2008)'!D$145/10^3 -> 0 | E19: ='Data 2009-15 (Real $2008)'!E25*'Data 2009-15 (Real $2008)'!E$145/10^3 -> 0 | F19: ='Data 2009-15 (Real $2008)'!F25*'Data 2009-15 (Real $2008)'!F$145/10^3 -> 2276.04569 | G19: ='Data 2009-15 (Real $2008)'!G25*'Data 2009-15 (Real $2008)'!G$145/10^3 -> 418.83868 | H19: ='Data 2009-15 (Real $2008)'!H25*'Data 2009-15 (Real $2008)'!H$145/10^3 -> 1055.3722 | I19: ='Data 2009-15 (Real $2008)'!I25*'Data 2009-15 (Real $2008)'!I$145/10^3 -> 1078.313 | J19: ='Data 2009-15 (Real $2008)'!J25*'Data 2009-15 (Real $2008)'!J$145/10^3 -> 478.94474
A20: ='Data 2009-15 (Real $2008)'!A$166 -> Other | D20: ='Data 2009-15 (Real $2008)'!D26*'Data 2009-15 (Real $2008)'!D$145/10^3 -> 100.95888 | E20: ='Data 2009-15 (Real $2008)'!E26*'Data 2009-15 (Real $2008)'!E$145/10^3 -> 367.167 | F20: ='Data 2009-15 (Real $2008)'!F26*'Data 2009-15 (Real $2008)'!F$145/10^3 -> 10550.23079 | G20: ='Data 2009-15 (Real $2008)'!G26*'Data 2009-15 (Real $2008)'!G$145/10^3 -> 2706.93779 | H20: ='Data 2009-15 (Real $2008)'!H26*'Data 2009-15 (Real $2008)'!H$145/10^3 -> 2425.52955 | I20: ='Data 2009-15 (Real $2008)'!I26*'Data 2009-15 (Real $2008)'!I$145/10^3 -> 0 | J20: ='Data 2009-15 (Real $2008)'!J26*'Data 2009-15 (Real $2008)'!J$145/10^3 -> 0
D21: =SUM(D16:D19) -> 73519.79047 | E21: 58666.489 | F21: 59015.40065 | G21: 60244.41623 | H21: 58560.34526 | I21: 29669.911 | J21: 9801.073041
A22: ($000 MOD)
A23: ='Data 2009-15 (Real $2008)'!A$162 -> Meters and transformers (Group 1) (Unit cost < $1,000)
A24: Opening asset value | D24: ='Offset of Costs and Rev 2006-08'!F256+SUM('Data 2006-08'!D94:F94)/10^3 -> 8544.204598 | E24: =D27 -> 13694.17682 | F24: 28256.49545 | G24: 56950.63154 | H24: 77723.49057 | I24: 93879.25806 | J24: 78621.15291 | K24: 51769.18607 | L24: 32355.74129 | M24: 20222.33831 | N24: 12638.96144 | O24: 7899.350902 | P24: 4937.094313 | Q24: 3085.683946 | R24: 1928.552466 | S24: 1205.345291 | T24: 753.3408071 | U24: 470.8380044 | V24: 294.2737528 | W24: 183.9210955 | X24: =W27 -> 114.9506847 | Y24: =X27 -> 71.84417792 | Z24: =Y27 -> 44.9026112 | AA24: =Z27 -> 28.064132
A25: Depreciation | D25: =$D$6*(D24+D26*0.5) -> 5131.934172 | E25: 9680.924368 | F25: 19663.18315 | G25: 31078.64356 | H25: 39600.6343 | I25: 39807.78715 | J25: 30090.07823 | K25: 19413.44478 | L25: 12133.40298 | M25: 7583.376866 | N25: 4739.610541 | O25: 2962.256588 | P25: 1851.410368 | Q25: 1157.13148 | R25: 723.2071748 | S25: 452.0044843 | T25: 282.5028027 | U25: 176.5642517 | V25: 110.3526573 | W25: 68.97041081 | X25: =$D$6*(X24+X26*0.5) -> 43.10650675 | Y25: =$D$6*(Y24+Y26*0.5) -> 26.94156672 | Z25: =$D$6*(Z24+Z26*0.5) -> 16.8384792 | AA25: =$D$6*(AA24+AA26*0.5) -> 10.5240495
A26: Gross capex | D26: =D16 -> 10281.90639 | E26: 24243.243 | F26: 48357.31924 | G26: 51851.5026 | H26: 55756.40179 | I26: 24549.682 | J26: 3238.111381 | K26: 0 | L26: 0 | M26: 0 | N26: 0 | O26: 0 | P26: 0 | Q26: 0 | R26: 0 | S26: 0 | T26: 0 | U26: 0 | V26: 0 | W26: 0 | X26: =X16 -> 0 | Y26: =Y16 -> 0 | Z26: =Z16 -> 0 | AA26: =AA16 -> 0
A27: Closing asset value | D27: =D24-D25+D26 -> 13694.17682 | E27: 28256.49545 | F27: 56950.63154 | G27: 77723.49057 | H27: 93879.25806 | I27: 78621.15291 | J27: 51769.18607 | K27: 32355.74129 | L27: 20222.33831 | M27: 12638.96144 | N27: 7899.350902 | O27: 4937.094313 | P27: 3085.683946 | Q27: 1928.552466 | R27: 1205.345291 | S27: 753.3408071 | T27: 470.8380044 | U27: 294.2737528 | V27: 183.9210955 | W27: 114.9506847 | X27: =X24-X25+X26 -> 71.84417792 | Y27: =Y24-Y25+Y26 -> 44.9026112 | Z27: =Z24-Z25+Z26 -> 28.064132 | AA27: =AA24-AA25+AA26 -> 17.5400825
A29: ='Data 2009-15 (Real $2008)'!A$163 -> Meters and transformers (Group 2) (Unit cost => $1,000)
A30: =A$24 -> Opening asset value | D30: ='Offset of Costs and Rev 2006-08'!F262+SUM('Data 2006-08'!D95:F95)/10^3 -> 0 | E30: =D33 -> 0 | F30: 0 | G30: 0 | H30: 0 | I30: 0 | J30: 0 | K30: 0 | L30: 0 | M30: 0 | N30: 0 | O30: 0 | P30: 0 | Q30: 0 | R30: 0 | S30: 0 | T30: 0 | U30: 0 | V30: 0 | W30: 0 | X30: =W33 -> 0 | Y30: =X33 -> 0 | Z30: =Y33 -> 0 | AA30: =Z33 -> 0
A31: =A$25 -> Depreciation | D31: =$D$7*(D30+D32*0.5) -> 0 | E31: 0 | F31: 0 | G31: 0 | H31: 0 | I31: 0 | J31: 0 | K31: 0 | L31: 0 | M31: 0 | N31: 0 | O31: 0 | P31: 0 | Q31: 0 | R31: 0 | S31: 0 | T31: 0 | U31: 0 | V31: 0 | W31: 0 | X31: =$D$7*(X30+X32*0.5) -> 0 | Y31: =$D$7*(Y30+Y32*0.5) -> 0 | Z31: =$D$7*(Z30+Z32*0.5) -> 0 | AA31: =$D$7*(AA30+AA32*0.5) -> 0
A32: =A$26 -> Gross capex | D32: =D17 -> 0 | E32: 0 | F32: 0 | G32: 0 | H32: 0 | I32: 0 | J32: 0 | K32: 0 | L32: 0 | M32: 0 | N32: 0 | O32: 0 | P32: 0 | Q32: 0 | R32: 0 | S32: 0 | T32: 0 | U32: 0 | V32: 0 | W32: 0 | X32: =X17 -> 0 | Y32: =Y17 -> 0 | Z32: =Z17 -> 0 | AA32: =AA17 -> 0
A33: =A$27 -> Closing asset value | D33: =D30-D31+D32 -> 0 | E33: 0 | F33: 0 | G33: 0 | H33: 0 | I33: 0 | J33: 0 | K33: 0 | L33: 0 | M33: 0 | N33: 0 | O33: 0 | P33: 0 | Q33: 0 | R33: 0 | S33: 0 | T33: 0 | U33: 0 | V33: 0 | W33: 0 | X33: =X30-X31+X32 -> 0 | Y33: =Y30-Y31+Y32 -> 0 | Z33: =Z30-Z31+Z32 -> 0 | AA33: =AA30-AA31+AA32 -> 0
A35: ='Data 2009-15 (Real $2008)'!A$164 -> IT
A36: =A$24 -> Opening asset value | D36: ='Offset of Costs and Rev 2006-08'!F268+SUM('Data 2006-08'!D96:F96)/10^3 -> 10296.286 | E36: =D39 -> 56768.07886 | F36: 61599.44412 | G36: 43665.29505 | H36: 32578.43699 | I36: 20945.91921 | J36: 15801.08433 | K36: 14347.86413 | L36: 8608.718479 | M36: 5165.231087 | N36: 3099.138652 | O36: 1859.483191 | P36: 1115.689915 | Q36: 669.4139489 | R36: 401.6483693 | S36: 240.9890216 | T36: 144.593413 | U36: 86.75604778 | V36: 52.05362867 | W36: 31.2321772 | X36: =W39 -> 18.73930632 | Y36: =X39 -> 11.24358379 | Z36: =Y39 -> 6.746150275 | AA36: =Z39 -> 4.047690165
A37: =A$25 -> Depreciation | D37: =$D$8*(D36+D38*0.5) -> 16766.09122 | E37: 29591.88075 | F37: 26316.18479 | G37: 19060.93301 | H37: 13381.08905 | I37: 9186.750884 | J37: 7537.237114 | K37: 5739.145652 | L37: 3443.487391 | M37: 2066.092435 | N37: 1239.655461 | O37: 743.7932766 | P37: 446.2759659 | Q37: 267.7655796 | R37: 160.6593477 | S37: 96.39560864 | T37: 57.83736519 | U37: 34.70241911 | V37: 20.82145147 | W37: 12.49287088 | X37: =$D$8*(X36+X38*0.5) -> 7.495722528 | Y37: =$D$8*(Y36+Y38*0.5) -> 4.497433517 | Z37: =$D$8*(Z36+Z38*0.5) -> 2.69846011 | AA37: =$D$8*(AA36+AA38*0.5) -> 1.619076066
A38: =A$26 -> Gross capex | D38: =D18 -> 63237.88408 | E38: 34423.246 | F38: 8382.03572 | G38: 7974.07495 | H38: 1748.57127 | I38: 4041.916 | J38: 6084.01692 | K38: 0 | L38: 0 | M38: 0 | N38: 0 | O38: 0 | P38: 0 | Q38: 0 | R38: 0 | S38: 0 | T38: 0 | U38: 0 | V38: 0 | W38: 0 | X38: =X18 -> 0 | Y38: =Y18 -> 0 | Z38: =Z18 -> 0 | AA38: =AA18 -> 0
A39: =A$27 -> Closing asset value | D39: =D36-D37+D38 -> 56768.07886 | E39: 61599.44412 | F39: 43665.29505 | G39: 32578.43699 | H39: 20945.91921 | I39: 15801.08433 | J39: 14347.86413 | K39: 8608.718479 | L39: 5165.231087 | M39: 3099.138652 | N39: 1859.483191 | O39: 1115.689915 | P39: 669.4139489 | Q39: 401.6483693 | R39: 240.9890216 | S39: 144.593413 | T39: 86.75604778 | U39: 52.05362867 | V39: 31.2321772 | W39: 18.73930632 | X39: =X36-X37+X38 -> 11.24358379 | Y39: =Y36-Y37+Y38 -> 6.746150275 | Z39: =Z36-Z37+Z38 -> 4.047690165 | AA39: =AA36-AA37+AA38 -> 2.428614099
A41: ='Data 2009-15 (Real $2008)'!A$165 -> Communications
A42: =A$24 -> Opening asset value | D42: =SUM('Data 2006-08'!D97:F97)/10^3 -> 0 | E42: =D45 -> 0 | F42: 0 | G42: 2032.183652 | H42: 1970.678834 | I42: 2490.687119 | J42: 2919.747915 | K42: 2721.71688 | L42: 2138.491834 | M42: 1680.243584 | N42: 1320.191387 | O42: 1037.293233 | P42: 815.0161116 | Q42: 640.369802 | R42: 503.1477015 | S42: 395.3303369 | T42: 310.6166933 | U42: 244.0559733 | V42: 191.7582647 | W42: 150.667208 | X42: =W45 -> 118.3813777 | Y42: =X45 -> 93.01393964 | Z42: =Y45 -> 73.08238114 | AA42: =Z45 -> 57.4218709
A43: =A$25 -> Depreciation | D43: =$D$9*(D42+D44*0.5) -> 0 | E43: 0 | F43: 243.8620382 | G43: 480.3434982 | H43: 535.3639143 | I43: 649.2522041 | J43: 676.9757754 | K43: 583.2250457 | L43: 458.2482502 | M43: 360.0521966 | N43: 282.8981544 | O43: 222.2771213 | P43: 174.6463096 | Q43: 137.2221004 | R43: 107.8173646 | S43: 84.71364363 | T43: 66.56071999 | U43: 52.29770857 | V43: 41.09105673 | W43: 32.28583029 | X43: =$D$9*(X42+X44*0.5) -> 25.36743808 | Y43: =$D$9*(Y42+Y44*0.5) -> 19.93155849 | Z43: =$D$9*(Z42+Z44*0.5) -> 15.66051025 | AA43: =$D$9*(AA42+AA44*0.5) -> 12.30468662
A44: =A$26 -> Gross capex | D44: =D19 -> 0 | E44: 0 | F44: 2276.04569 | G44: 418.83868 | H44: 1055.3722 | I44: 1078.313 | J44: 478.94474 | K44: 0 | L44: 0 | M44: 0 | N44: 0 | O44: 0 | P44: 0 | Q44: 0 | R44: 0 | S44: 0 | T44: 0 | U44: 0 | V44: 0 | W44: 0 | X44: =X19 -> 0 | Y44: =Y19 -> 0 | Z44: =Z19 -> 0 | AA44: =AA19 -> 0
A45: =A$27 -> Closing asset value | D45: =D42-D43+D44 -> 0 | E45: 0 | F45: 2032.183652 | G45: 1970.678834 | H45: 2490.687119 | I45: 2919.747915 | J45: 2721.71688 | K45: 2138.491834 | L45: 1680.243584 | M45: 1320.191387 | N45: 1037.293233 | O45: 815.0161116 | P45: 640.369802 | Q45: 503.1477015 | R45: 395.3303369 | S45: 310.6166933 | T45: 244.0559733 | U45: 191.7582647 | V45: 150.667208 | W45: 118.3813777 | X45: =X42-X43+X44 -> 93.01393964 | Y45: =Y42-Y43+Y44 -> 73.08238114 | Z45: =Z42-Z43+Z44 -> 57.4218709 | AA45: =AA42-AA43+AA44 -> 45.11718428
A47: ='Data 2009-15 (Real $2008)'!A$166 -> Other
A48: =A$24 -> Opening asset value | D48: ='Offset of Costs and Rev 2006-08'!F274+SUM('Data 2006-08'!D98:F98)/10^3 -> 23462.658 | E48: =D51 -> 19414.23968 | F48: 16322.9673 | G48: 23061.77173 | H48: 21460.13765 | I48: 19884.56677 | J48: 16375.52557 | K48: 13485.72694 | L48: 11105.89278 | M48: 9146.029346 | N48: 7532.024167 | O48: 6202.843432 | P48: 5108.224003 | Q48: 4206.772708 | R48: 3464.401054 | S48: 2853.036162 | T48: 2349.559192 | U48: 1934.931099 | V48: 1593.47267 | W48: 1312.271611 | X48: =W51 -> 1080.694268 | Y48: =X51 -> 889.9835145 | Z48: =Y51 -> 732.9276002 | AA48: =Z51 -> 603.5874354
A49: =A$25 -> Depreciation | D49: =$D$10*(D48+D50*0.5) -> 4149.377195 | E49: 3458.439386 | F49: 3811.426358 | G49: 4308.571875 | H49: 4001.100427 | I49: 3509.041195 | J49: 2889.798631 | K49: 2379.834167 | L49: 1959.863431 | M49: 1614.005179 | N49: 1329.180735 | O49: 1094.619429 | P49: 901.4512946 | Q49: 742.3716544 | R49: 611.3648918 | S49: 503.4769697 | T49: 414.6280927 | U49: 341.4584293 | V49: 281.2010594 | W49: 231.5773431 | X49: =$D$10*(X48+X50*0.5) -> 190.7107531 | Y49: =$D$10*(Y48+Y50*0.5) -> 157.0559143 | Z49: =$D$10*(Z48+Z50*0.5) -> 129.3401647 | AA49: =$D$10*(AA48+AA50*0.5) -> 106.5154298
A50: =A$26 -> Gross capex | D50: =D20 -> 100.95888 | E50: 367.167 | F50: 10550.23079 | G50: 2706.93779 | H50: 2425.52955 | I50: 0 | J50: 0 | K50: 0 | L50: 0 | M50: 0 | N50: 0 | O50: 0 | P50: 0 | Q50: 0 | R50: 0 | S50: 0 | T50: 0 | U50: 0 | V50: 0 | W50: 0 | X50: =X20 -> 0 | Y50: =Y20 -> 0 | Z50: =Z20 -> 0 | AA50: =AA20 -> 0
A51: =A$27 -> Closing asset value | D51: =D48-D49+D50 -> 19414.23968 | E51: 16322.9673 | F51: 23061.77173 | G51: 21460.13765 | H51: 19884.56677 | I51: 16375.52557 | J51: 13485.72694 | K51: 11105.89278 | L51: 9146.029346 | M51: 7532.024167 | N51: 6202.843432 | O51: 5108.224003 | P51: 4206.772708 | Q51: 3464.401054 | R51: 2853.036162 | S51: 2349.559192 | T51: 1934.931099 | U51: 1593.47267 | V51: 1312.271611 | W51: 1080.694268 | X51: =X48-X49+X50 -> 889.9835145 | Y51: =Y48-Y49+Y50 -> 732.9276002 | Z51: =Z48-Z49+Z50 -> 603.5874354 | AA51: =AA48-AA49+AA50 -> 497.0720057
A54: Total | D54: =D$13 -> 2009 | E54: 2010 | F54: 2011 | G54: 2012 | H54: 2013 | I54: 2014 | J54: 2015 | K54: 2016 | L54: 2017 | M54: 2018 | N54: 2019 | O54: 2020 | P54: 2021 | Q54: 2022 | R54: 2023 | S54: 2024 | T54: 2025 | U54: 2026 | V54: 2027 | W54: 2028 | X54: 2029 | Y54: 2030 | Z54: 2031 | AA54: 2032
A55: =A$24 -> Opening asset value | D55: =SUM(D24,D30,D36,D42,D48) -> 42303.1486 | E55: 89876.49536 | F55: 106178.9069 | G55: 125709.882 | H55: 133732.744 | I55: 137200.4312 | J55: 113717.5107 | K55: 82324.49402 | L55: 54208.84438 | M55: 36213.84232 | N55: 24590.31565 | O55: 16998.97076 | P55: 11976.02434 | Q55: 8602.240405 | R55: 6297.749591 | S55: 4694.700812 | T55: 3558.110105 | U55: 2736.581125 | V55: 2131.558316 | W55: 1678.092091 | X55: =SUM(X24,X30,X36,X42,X48) -> 1332.765636 | Y55: 1066.085216 | Z55: 857.6587428 | AA55: 693.1211285
A56: =A$25 -> Depreciation | D56: =SUM(D25,D31,D37,D43,D49) -> 26047.40258 | E56: 42731.2445 | F56: 50034.65634 | G56: 54928.49195 | H56: 57518.18769 | I56: 53152.83143 | J56: 41194.08975 | K56: 28115.64964 | L56: 17995.00206 | M56: 11623.52668 | N56: 7591.344892 | O56: 5022.946415 | P56: 3373.783938 | Q56: 2304.490814 | R56: 1603.048779 | S56: 1136.590706 | T56: 821.5289806 | U56: 605.0228086 | V56: 453.4662249 | W56: 345.326455 | X56: 266.6804205 | Y56: 208.4264731 | Z56: 164.5376143 | AA56: 130.963242
A57: =A$26 -> Gross capex | D57: =SUM(D26,D32,D38,D44,D50) -> 73620.74935 | E57: 59033.656 | F57: 69565.63144 | G57: 62951.35402 | H57: 60985.87481 | I57: 29669.911 | J57: 9801.073041 | K57: 0 | L57: 0 | M57: 0 | N57: 0 | O57: 0 | P57: 0 | Q57: 0 | R57: 0 | S57: 0 | T57: 0 | U57: 0 | V57: 0 | W57: 0 | X57: 0 | Y57: 0 | Z57: 0 | AA57: 0
A58: =A$27 -> Closing asset value | D58: =SUM(D27,D33,D39,D45,D51) -> 89876.49536 | E58: 106178.9069 | F58: 125709.882 | G58: 133732.744 | H58: 137200.4312 | I58: 113717.5107 | J58: 82324.49402 | K58: 54208.84438 | L58: 36213.84232 | M58: 24590.31565 | N58: 16998.97076 | O58: 11976.02434 | P58: 8602.240405 | Q58: 6297.749591 | R58: 4694.700812 | S58: 3558.110105 | T58: 2736.581125 | U58: 2131.558316 | V58: 1678.092091 | W58: 1332.765636 | X58: 1066.085216 | Y58: 857.6587428 | Z58: 693.1211285 | AA58: 562.1578865
A59: Check | C59: =SUM(D59:AA59) -> 5.525180313e-11 | D59: =ABS(D55-D56+D57-D58) -> 1.455191523e-11 | E59: =ABS(E55-E56+E57-E58) -> 1.455191523e-11 | F59: 0 | G59: 0 | H59: 0 | I59: 0 | J59: 1.455191523e-11 | K59: 0 | L59: 7.275957614e-12 | M59: 0 | N59: 3.637978807e-12 | O59: 0 | P59: 0 | Q59: 0 | R59: 0 | S59: 4.547473509e-13 | T59: 0 | U59: 0 | V59: 0 | W59: 2.273736754e-13 | X59: =ABS(X55-X56+X57-X58) -> 0 | Y59: =ABS(Y55-Y56+Y57-Y58) -> 0 | Z59: =ABS(Z55-Z56+Z57-Z58) -> 0 | AA59: =ABS(AA55-AA56+AA57-AA58) -> 0

Sheet AMI RAB 2009-15
A1: ='Data 2006-08'!$A$1 -> United Energy | B1: Check | C1: =IF(SUM(C14,C77,C85,C129,C174)<0.001,"Ok","Error") -> Ok | D1: 2009 | E1: 2010 | F1: 2011 | G1: 2012 | H1: 2013 | I1: 2014 | J1: 2015 | K1: 2016 | L1: 2017 | M1: 2018 | N1: 2019 | O1: 2020 | P1: 2021 | Q1: 2022 | R1: 2023 | S1: 2024 | T1: 2025 | U1: 2026 | V1: 2027 | W1: 2028 | X1: 2029 | Y1: 2030 | Z1: 2031 | AA1: 2032
C2: =SUM(C14,C77,C85,C129,C174) -> 0
A3: Regulatory Asset Base
A4: ($000 Real 2008) | D4: =D$1 -> 2009 | E4: =E$1 -> 2010 | F4: 2011 | G4: 2012 | H4: 2013 | I4: 2014 | J4: 2015 | K4: 2016 | L4: 2017 | M4: 2018 | N4: 2019 | O4: 2020 | P4: 2021 | Q4: 2022 | R4: 2023 | S4: 2024 | T4: 2025 | U4: 2026 | V4: 2027 | W4: 2028 | X4: 2029 | Y4: 2030 | Z4: 2031 | AA4: 2032
A5: Opening RAB | D5: =D82+D126 -> 49377.92654 | E5: =D10 -> 106079.9307 | F5: =E10 -> 139796.3359 | G5: =F10 -> 174492.3928 | H5: 194698.8561 | I5: 207381.8897 | J5: 198006.1164 | K5: 172895.3643 | L5: 145670.5835 | M5: 125092.9814 | N5: 108239.3981 | O5: 93473.11834 | P5: 79731.4987 | Q5: 66623.8865 | R5: 54215.26807 | S5: 42195.37375 | T5: 30379.08291 | U5: 19414.05293 | V5: 10395.43415 | W5: 4140.986597 | X5: =W10 -> 962.7393014 | Y5: =X10 -> 89.5035345 | Z5: =Y10 -> -2.069100447e-11 | AA5: =Z10 -> -2.069100447e-11
A6: Gross capital expenditure | D6: ='Data 2009-15 (Real $2008)'!D16/10^3 -> 70127.63271 | E6: ='Data 2009-15 (Real $2008)'!E16/10^3 -> 55532.25292 | F6: ='Data 2009-15 (Real $2008)'!F16/10^3 -> 63664.796 | G6: ='Data 2009-15 (Real $2008)'!G16/10^3 -> 55652.64631 | H6: ='Data 2009-15 (Real $2008)'!H16/10^3 -> 52855.814 | I6: ='Data 2009-15 (Real $2008)'!I16/10^3 -> 25170.63603 | J6: ='Data 2009-15 (Real $2008)'!J16/10^3 -> 8127.243715
A7: Customer contributions | D7: ='Data 2009-15 (Real $2008)'!D40/10^3 -> 0 | E7: ='Data 2009-15 (Real $2008)'!E40/10^3 -> 0 | F7: ='Data 2009-15 (Real $2008)'!F40/10^3 -> 0 | G7: ='Data 2009-15 (Real $2008)'!G40/10^3 -> 0 | H7: ='Data 2009-15 (Real $2008)'!H40/10^3 -> 0 | I7: ='Data 2009-15 (Real $2008)'!I40/10^3 -> 0 | J7: ='Data 2009-15 (Real $2008)'!J40/10^3 -> 0
A8: Disposals - proceeds from sale of assets | D8: ='Data 2009-15 (Real $2008)'!D49/10^3 -> 0 | E8: ='Data 2009-15 (Real $2008)'!E49/10^3 -> 0 | F8: ='Data 2009-15 (Real $2008)'!F49/10^3 -> 0 | G8: ='Data 2009-15 (Real $2008)'!G49/10^3 -> 0 | H8: ='Data 2009-15 (Real $2008)'!H49/10^3 -> 0 | I8: ='Data 2009-15 (Real $2008)'!I49/10^3 -> 0 | J8: ='Data 2009-15 (Real $2008)'!J49/10^3 -> 0
A9: Regulatory depreciation | D9: =SUM(D83,D127,D172) -> 13425.62852 | E9: =SUM(E83,E127,E172) -> 21815.84775 | F9: 28968.73911 | G9: 35446.18296 | H9: 40172.78042 | I9: 34546.40937 | J9: 33237.99582 | K9: 27224.78076 | L9: 20577.6021 | M9: 16853.58332 | N9: 14766.27973 | O9: 13741.61964 | P9: 13107.6122 | Q9: 12408.61843 | R9: 12019.89431 | S9: 11816.29084 | T9: 10965.02998 | U9: 9018.618781 | V9: 6254.447555 | W9: 3178.247296 | X9: =SUM(X83,X127,X172) -> 873.2357669 | Y9: =SUM(Y83,Y127,Y172) -> 89.5035345 | Z9: =SUM(Z83,Z127,Z172) -> 0 | AA9: =SUM(AA83,AA127,AA172) -> 0
A10: Closing RAB | D10: =D5+D6-SUM(D7:D9) -> 106079.9307 | E10: =E5+E6-SUM(E7:E9) -> 139796.3359 | F10: =F5+F6-SUM(F7:F9) -> 174492.3928 | G10: =G5+G6-SUM(G7:G9) -> 194698.8561 | H10: 207381.8897 | I10: 198006.1164 | J10: 172895.3643 | K10: 145670.5835 | L10: 125092.9814 | M10: 108239.3981 | N10: 93473.11834 | O10: 79731.4987 | P10: 66623.8865 | Q10: 54215.26807 | R10: 42195.37375 | S10: 30379.08291 | T10: 19414.05293 | U10: 10395.43415 | V10: 4140.986597 | W10: 962.7393014 | X10: =X5+X6-SUM(X7:X9) -> 89.5035345 | Y10: =Y5+Y6-SUM(Y7:Y9) -> -2.069100447e-11 | Z10: =Z5+Z6-SUM(Z7:Z9) -> -2.069100447e-11 | AA10: =AA5+AA6-SUM(AA7:AA9) -> -2.069100447e-11
A12: Average RAB | D12: =AVERAGE(D5,D10) -> 77728.92863 | E12: =AVERAGE(E5,E10) -> 122938.1333 | F12: =AVERAGE(F5,F10) -> 157144.3643 | G12: =AVERAGE(G5,G10) -> 184595.6244 | H12: 201040.3729 | I12: 202694.003 | J12: 185450.7403 | K12: 159282.9739 | L12: 135381.7824 | M12: 116666.1897 | N12: 100856.2582 | O12: 86602.30852 | P12: 73177.6926 | Q12: 60419.57728 | R12: 48205.32091 | S12: 36287.22833 | T12: 24896.56792 | U12: 14904.74354 | V12: 7268.210374 | W12: 2551.862949 | X12: =AVERAGE(X5,X10) -> 526.1214179 | Y12: =AVERAGE(Y5,Y10) -> 44.75176725 | Z12: =AVERAGE(Z5,Z10) -> -2.069100447e-11 | AA12: =AVERAGE(AA5,AA10) -> -2.069100447e-11
A14: Check | C14: =SUM(D14:AA14) -> 0 | D14: =IF(ABS(D10-D84-D128-D173)<0.001,0,ABS(D10-D84-D128-D173)) -> 0 | E14: 0 | F14: 0 | G14: 0 | H14: 0 | I14: 0 | J14: 0 | K14: 0 | L14: 0 | M14: 0 | N14: 0 | O14: 0 | P14: 0 | Q14: 0 | R14: 0 | S14: 0 | T14: 0 | U14: 0 | V14: 0 | W14: 0 | X14: =IF(ABS(X10-X84-X128-X173)<0.001,0,ABS(X10-X84-X128-X173)) -> 0 | Y14: =IF(ABS(Y10-Y84-Y128-Y173)<0.001,0,ABS(Y10-Y84-Y128-Y173)) -> 0 | Z14: =IF(ABS(Z10-Z84-Z128-Z173)<0.001,0,ABS(Z10-Z84-Z128-Z173)) -> 0 | AA14: =IF(ABS(AA10-AA84-AA128-AA173)<0.001,0,ABS(AA10-AA84-AA128-AA173)) -> 0
A18: Accumulation meters
A19: =$A$4 -> ($000 Real 2008) | D19: =D$4 -> 2009 | E19: =E$4 -> 2010 | F19: 2011 | G19: 2012 | H19: 2013 | I19: 2014 | J19: 2015 | K19: 2016 | L19: 2017 | M19: 2018 | N19: 2019 | O19: 2020 | P19: 2021 | Q19: 2022 | R19: 2023 | S19: 2024 | T19: 2025 | U19: 2026 | V19: 2027 | W19: 2028 | X19: 2029 | Y19: 2030 | Z19: 2031 | AA19: 2032
A20: Opening RAB | D20: =B92 -> 11152.45198 | E20: =D25 -> 12198.36349 | F20: =E25 -> 12042.14943 | G20: 10968.26172 | H20: 5973.250662 | I20: 0 | J20: -9.094947018e-13 | K20: -9.094947018e-13 | L20: -9.094947018e-13 | M20: -9.094947018e-13 | N20: -9.094947018e-13 | O20: -9.094947018e-13 | P20: -9.094947018e-13 | Q20: -9.094947018e-13 | R20: -9.094947018e-13 | S20: -9.094947018e-13 | T20: -9.094947018e-13 | U20: -9.094947018e-13 | V20: -9.094947018e-13 | W20: -9.094947018e-13 | X20: =W25 -> -9.094947018e-13 | Y20: =X25 -> -9.094947018e-13 | Z20: =Y25 -> -9.094947018e-13 | AA20: =Z25 -> -9.094947018e-13
A21: Gross capital expenditure | D21: ='Data 2009-15 (Real $2008)'!D10/10^3 -> 3685.95214 | E21: ='Data 2009-15 (Real $2008)'!E10/10^3 -> 3375.606278 | F21: ='Data 2009-15 (Real $2008)'!F10/10^3 -> 3675.20263 | G21: ='Data 2009-15 (Real $2008)'!G10/10^3 -> 733.6797013 | H21: ='Data 2009-15 (Real $2008)'!H10/10^3 -> 0 | I21: ='Data 2009-15 (Real $2008)'!I10/10^3 -> 0 | J21: ='Data 2009-15 (Real $2008)'!J10/10^3 -> 0
A22: Customer contributions | D22: ='Data 2009-15 (Real $2008)'!D34/10^3 -> 0 | E22: ='Data 2009-15 (Real $2008)'!E34/10^3 -> 0 | F22: ='Data 2009-15 (Real $2008)'!F34/10^3 -> 0 | G22: ='Data 2009-15 (Real $2008)'!G34/10^3 -> 0 | H22: ='Data 2009-15 (Real $2008)'!H34/10^3 -> 0 | I22: ='Data 2009-15 (Real $2008)'!I34/10^3 -> 0 | J22: ='Data 2009-15 (Real $2008)'!J34/10^3 -> 0
A23: Disposals - proceeds from sale of assets | D23: ='Data 2009-15 (Real $2008)'!D43/10^3 -> 0 | E23: ='Data 2009-15 (Real $2008)'!E43/10^3 -> 0 | F23: ='Data 2009-15 (Real $2008)'!F43/10^3 -> 0 | G23: ='Data 2009-15 (Real $2008)'!G43/10^3 -> 0 | H23: ='Data 2009-15 (Real $2008)'!H43/10^3 -> 0 | I23: ='Data 2009-15 (Real $2008)'!I43/10^3 -> 0 | J23: ='Data 2009-15 (Real $2008)'!J43/10^3 -> 0
A24: Regulatory depreciation | D24: =D92+D198 -> 2640.040635 | E24: =E92+E198 -> 3531.820341 | F24: 4749.090335 | G24: 5728.690761 | H24: 5973.250662 | I24: 9.094947018e-13 | J24: 0 | K24: 0 | L24: 0 | M24: 0 | N24: 0 | O24: 0 | P24: 0 | Q24: 0 | R24: 0 | S24: 0 | T24: 0 | U24: 0 | V24: 0 | W24: 0 | X24: =X92+X198 -> 0 | Y24: =Y92+Y198 -> 0 | Z24: =Z92+Z198 -> 0 | AA24: =AA92+AA198 -> 0
A25: Closing RAB | D25: =D20+D21-SUM(D22:D24) -> 12198.36349 | E25: =E20+E21-SUM(E22:E24) -> 12042.14943 | F25: 10968.26172 | G25: 5973.250662 | H25: 0 | I25: -9.094947018e-13 | J25: -9.094947018e-13 | K25: -9.094947018e-13 | L25: -9.094947018e-13 | M25: -9.094947018e-13 | N25: -9.094947018e-13 | O25: -9.094947018e-13 | P25: -9.094947018e-13 | Q25: -9.094947018e-13 | R25: -9.094947018e-13 | S25: -9.094947018e-13 | T25: -9.094947018e-13 | U25: -9.094947018e-13 | V25: -9.094947018e-13 | W25: -9.094947018e-13 | X25: =X20+X21-SUM(X22:X24) -> -9.094947018e-13 | Y25: =Y20+Y21-SUM(Y22:Y24) -> -9.094947018e-13 | Z25: =Z20+Z21-SUM(Z22:Z24) -> -9.094947018e-13 | AA25: =AA20+AA21-SUM(AA22:AA24) -> -9.094947018e-13
A28: Manually read interval meters
A29: =$A$4 -> ($000 Real 2008) | D29: =D$4 -> 2009 | E29: =E$4 -> 2010 | F29: 2011 | G29: 2012 | H29: 2013 | I29: 2014 | J29: 2015 | K29: 2016 | L29: 2017 | M29: 2018 | N29: 2019 | O29: 2020 | P29: 2021 | Q29: 2022 | R29: 2023 | S29: 2024 | T29: 2025 | U29: 2026 | V29: 2027 | W29: 2028 | X29: 2029 | Y29: 2030 | Z29: 2031 | AA29: 2032
A30: Opening RAB | D30: =B100 -> 2867.45217 | E30: =D35 -> 2293.961736 | F30: =E35 -> 1720.471302 | G30: 2441.093831 | H30: 1982.901335 | I30: 0 | J30: 0 | K30: 0 | L30: 0 | M30: 0 | N30: 0 | O30: 0 | P30: 0 | Q30: 0 | R30: 0 | S30: 0 | T30: 0 | U30: 0 | V30: 0 | W30: 0 | X30: =W35 -> 0 | Y30: =X35 -> 0 | Z30: =Y35 -> 0 | AA30: =Z35 -> 0
A31: Gross capital expenditure | D31: ='Data 2009-15 (Real $2008)'!D11/10^3 -> 0 | E31: ='Data 2009-15 (Real $2008)'!E11/10^3 -> 0 | F31: ='Data 2009-15 (Real $2008)'!F11/10^3 -> 1617.641203 | G31: ='Data 2009-15 (Real $2008)'!G11/10^3 -> 1143.531629 | H31: ='Data 2009-15 (Real $2008)'!H11/10^3 -> 0 | I31: ='Data 2009-15 (Real $2008)'!I11/10^3 -> 0 | J31: ='Data 2009-15 (Real $2008)'!J11/10^3 -> 0
A32: Customer contributions | D32: ='Data 2009-15 (Real $2008)'!D35/10^3 -> 0 | E32: ='Data 2009-15 (Real $2008)'!E35/10^3 -> 0 | F32: ='Data 2009-15 (Real $2008)'!F35/10^3 -> 0 | G32: ='Data 2009-15 (Real $2008)'!G35/10^3 -> 0 | H32: ='Data 2009-15 (Real $2008)'!H35/10^3 -> 0 | I32: ='Data 2009-15 (Real $2008)'!I35/10^3 -> 0 | J32: ='Data 2009-15 (Real $2008)'!J35/10^3 -> 0
A33: Disposals - proceeds from sale of assets | D33: ='Data 2009-15 (Real $2008)'!D44/10^3 -> 0 | E33: ='Data 2009-15 (Real $2008)'!E44/10^3 -> 0 | F33: ='Data 2009-15 (Real $2008)'!F44/10^3 -> 0 | G33: ='Data 2009-15 (Real $2008)'!G44/10^3 -> 0 | H33: ='Data 2009-15 (Real $2008)'!H44/10^3 -> 0 | I33: ='Data 2009-15 (Real $2008)'!I44/10^3 -> 0 | J33: ='Data 2009-15 (Real $2008)'!J44/10^3 -> 0
A34: Regulatory depreciation | D34: =D100+D210 -> 573.4904341 | E34: =E100+E210 -> 573.4904341 | F34: 897.0186748 | G34: 1601.724125 | H34: 1982.901335 | I34: 0 | J34: 0 | K34: 0 | L34: 0 | M34: 0 | N34: 0 | O34: 0 | P34: 0 | Q34: 0 | R34: 0 | S34: 0 | T34: 0 | U34: 0 | V34: 0 | W34: 0 | X34: =X100+X210 -> 0 | Y34: =Y100+Y210 -> 0 | Z34: =Z100+Z210 -> 0 | AA34: =AA100+AA210 -> 0
A35: Closing RAB | D35: =D30+D31-SUM(D32:D34) -> 2293.961736 | E35: 1720.471302 | F35: 2441.093831 | G35: 1982.901335 | H35: 0 | I35: 0 | J35: 0 | K35: 0 | L35: 0 | M35: 0 | N35: 0 | O35: 0 | P35: 0 | Q35: 0 | R35: 0 | S35: 0 | T35: 0 | U35: 0 | V35: 0 | W35: 0 | X35: =X30+X31-SUM(X32:X34) -> 0 | Y35: =Y30+Y31-SUM(Y32:Y34) -> 0 | Z35: =Z30+Z31-SUM(Z32:Z34) -> 0 | AA35: =AA30+AA31-SUM(AA32:AA34) -> 0
A38: ='Data 2009-15 (Real $2008)'!A$154 -> Remotely read interval meters & transformers
A39: =$A$4 -> ($000 Real 2008) | D39: =D$4 -> 2009 | E39: =E$4 -> 2010 | F39: 2011 | G39: 2012 | H39: 2013 | I39: 2014 | J39: 2015 | K39: 2016 | L39: 2017 | M39: 2018 | N39: 2019 | O39: 2020 | P39: 2021 | Q39: 2022 | R39: 2023 | S39: 2024 | T39: 2025 | U39: 2026 | V39: 2027 | W39: 2028 | X39: 2029 | Y39: 2030 | Z39: 2031 | AA39: 2032
A40: Opening RAB | D40: =B136 -> 0 | E40: =D45 -> 5904.500569 | F40: =E45 -> 24279.35819 | G40: 60240.69659 | H40: 98437.77269 | I40: 137919.6106 | J40: 147599.813 | K40: 138354.5282 | L40: 126334.6339 | M40: 114314.7396 | N40: 102294.8453 | O40: 90274.951 | P40: 78255.05669 | Q40: 66235.16238 | R40: 54215.26807 | S40: 42195.37375 | T40: 30379.08291 | U40: 19414.05293 | V40: 10395.43415 | W40: 4140.986597 | X40: =W45 -> 962.7393014 | Y40: =X45 -> 89.5035345 | Z40: =Y45 -> 8.412825991e-12 | AA40: =Z45 -> 8.412825991e-12
A41: Gross capital expenditure | D41: ='Data 2009-15 (Real $2008)'!D12/10^3 -> 6108.104037 | E41: ='Data 2009-15 (Real $2008)'!E12/10^3 -> 19429.72195 | F41: ='Data 2009-15 (Real $2008)'!F12/10^3 -> 38962.61394 | G41: ='Data 2009-15 (Real $2008)'!G12/10^3 -> 43962.52285 | H41: ='Data 2009-15 (Real $2008)'!H12/10^3 -> 48323.48493 | I41: ='Data 2009-15 (Real $2008)'!I12/10^3 -> 20826.86094 | J41: ='Data 2009-15 (Real $2008)'!J12/10^3 -> 2685.106035
A42: Customer contributions | D42: ='Data 2009-15 (Real $2008)'!D36/10^3 -> 0 | E42: ='Data 2009-15 (Real $2008)'!E36/10^3 -> 0 | F42: ='Data 2009-15 (Real $2008)'!F36/10^3 -> 0 | G42: ='Data 2009-15 (Real $2008)'!G36/10^3 -> 0 | H42: ='Data 2009-15 (Real $2008)'!H36/10^3 -> 0 | I42: ='Data 2009-15 (Real $2008)'!I36/10^3 -> 0 | J42: ='Data 2009-15 (Real $2008)'!J36/10^3 -> 0
A43: Disposals - proceeds from sale of assets | D43: ='Data 2009-15 (Real $2008)'!D45/10^3 -> 0 | E43: ='Data 2009-15 (Real $2008)'!E45/10^3 -> 0 | F43: ='Data 2009-15 (Real $2008)'!F45/10^3 -> 0 | G43: ='Data 2009-15 (Real $2008)'!G45/10^3 -> 0 | H43: ='Data 2009-15 (Real $2008)'!H45/10^3 -> 0 | I43: ='Data 2009-15 (Real $2008)'!I45/10^3 -> 0 | J43: ='Data 2009-15 (Real $2008)'!J45/10^3 -> 0
A44: Regulatory depreciation | D44: =D136+D222 -> 203.6034679 | E44: =E136+E222 -> 1054.864334 | F44: 3001.275531 | G44: 5765.446757 | H44: 8841.647016 | I44: 11146.65854 | J44: 11930.39078 | K44: 12019.89431 | L44: 12019.89431 | M44: 12019.89431 | N44: 12019.89431 | O44: 12019.89431 | P44: 12019.89431 | Q44: 12019.89431 | R44: 12019.89431 | S44: 11816.29084 | T44: 10965.02998 | U44: 9018.618781 | V44: 6254.447555 | W44: 3178.247296 | X44: =X136+X222 -> 873.2357669 | Y44: =Y136+Y222 -> 89.5035345 | Z44: =Z136+Z222 -> 0 | AA44: =AA136+AA222 -> 0
A45: Closing RAB | D45: =D40+D41-SUM(D42:D44) -> 5904.500569 | E45: 24279.35819 | F45: 60240.69659 | G45: 98437.77269 | H45: 137919.6106 | I45: 147599.813 | J45: 138354.5282 | K45: 126334.6339 | L45: 114314.7396 | M45: 102294.8453 | N45: 90274.951 | O45: 78255.05669 | P45: 66235.16238 | Q45: 54215.26807 | R45: 42195.37375 | S45: 30379.08291 | T45: 19414.05293 | U45: 10395.43415 | V45: 4140.986597 | W45: 962.7393014 | X45: =X40+X41-SUM(X42:X44) -> 89.5035345 | Y45: =Y40+Y41-SUM(Y42:Y44) -> 8.412825991e-12 | Z45: =Z40+Z41-SUM(Z42:Z44) -> 8.412825991e-12 | AA45: =AA40+AA41-SUM(AA42:AA44) -> 8.412825991e-12
A48: IT
A49: =$A$4 -> ($000 Real 2008) | D49: =D$4 -> 2009 | E49: =E$4 -> 2010 | F49: 2011 | G49: 2012 | H49: 2013 | I49: 2014 | J49: 2015 | K49: 2016 | L49: 2017 | M49: 2018 | N49: 2019 | O49: 2020 | P49: 2021 | Q49: 2022 | R49: 2023 | S49: 2024 | T49: 2025 | U49: 2026 | V49: 2027 | W49: 2028 | X49: 2029 | Y49: 2030 | Z49: 2031 | AA49: 2032
A50: Opening RAB | D50: =B108+B144 -> 10724.05578 | E50: =D55 -> 64937.13775 | F50: =E55 -> 84678.70813 | G50: 76907.22008 | H50: 67521.10535 | I50: 51989.12773 | J50: 38017.48901 | K50: 25859.0619 | L50: 13400.45346 | M50: 7557.483796 | N50: 4575.412204 | O50: 2644.810783 | P50: 1325.99599 | Q50: 360.3562303 | R50: 2.614797268e-12 | S50: 2.614797268e-12 | T50: 2.614797268e-12 | U50: 2.614797268e-12 | V50: 2.614797268e-12 | W50: 2.614797268e-12 | X50: =W55 -> 2.614797268e-12 | Y50: =X55 -> 2.614797268e-12 | Z50: =Y55 -> 2.614797268e-12 | AA50: =Z55 -> 2.614797268e-12
A51: Gross capital expenditure | D51: ='Data 2009-15 (Real $2008)'!D13/10^3 -> 60237.4079 | E51: ='Data 2009-15 (Real $2008)'!E13/10^3 -> 32381.53509 | F51: ='Data 2009-15 (Real $2008)'!F13/10^3 -> 7671.037883 | G51: ='Data 2009-15 (Real $2008)'!G13/10^3 -> 7049.544521 | H51: ='Data 2009-15 (Real $2008)'!H13/10^3 -> 1515.468264 | I51: ='Data 2009-15 (Real $2008)'!I13/10^3 -> 3428.982194 | J51: ='Data 2009-15 (Real $2008)'!J13/10^3 -> 5044.987224
A52: Customer contributions | D52: ='Data 2009-15 (Real $2008)'!D37/10^3 -> 0 | E52: ='Data 2009-15 (Real $2008)'!E37/10^3 -> 0 | F52: ='Data 2009-15 (Real $2008)'!F37/10^3 -> 0 | G52: ='Data 2009-15 (Real $2008)'!G37/10^3 -> 0 | H52: ='Data 2009-15 (Real $2008)'!H37/10^3 -> 0 | I52: ='Data 2009-15 (Real $2008)'!I37/10^3 -> 0 | J52: ='Data 2009-15 (Real $2008)'!J37/10^3 -> 0
A53: Disposals - proceeds from sale of assets | D53: ='Data 2009-15 (Real $2008)'!D46/10^3 -> 0 | E53: ='Data 2009-15 (Real $2008)'!E46/10^3 -> 0 | F53: ='Data 2009-15 (Real $2008)'!F46/10^3 -> 0 | G53: ='Data 2009-15 (Real $2008)'!G46/10^3 -> 0 | H53: ='Data 2009-15 (Real $2008)'!H46/10^3 -> 0 | I53: ='Data 2009-15 (Real $2008)'!I46/10^3 -> 0 | J53: ='Data 2009-15 (Real $2008)'!J46/10^3 -> 0
A54: Regulatory depreciation | D54: =D108+D144+D234 -> 6024.325928 | E54: =E108+E144+E234 -> 12639.96471 | F54: 15442.52593 | G54: 16435.65926 | H54: 17047.44588 | I54: 17400.62092 | J54: 17203.41433 | K54: 12458.60845 | L54: 5842.969661 | M54: 2982.071592 | N54: 1930.60142 | O54: 1318.814793 | P54: 965.6397602 | Q54: 360.3562303 | R54: 0 | S54: 0 | T54: 0 | U54: 0 | V54: 0 | W54: 0 | X54: =X108+X144+X234 -> 0 | Y54: =Y108+Y144+Y234 -> 0 | Z54: =Z108+Z144+Z234 -> 0 | AA54: =AA108+AA144+AA234 -> 0
A55: Closing RAB | D55: =D50+D51-SUM(D52:D54) -> 64937.13775 | E55: 84678.70813 | F55: 76907.22008 | G55: 67521.10535 | H55: 51989.12773 | I55: 38017.48901 | J55: 25859.0619 | K55: 13400.45346 | L55: 7557.483796 | M55: 4575.412204 | N55: 2644.810783 | O55: 1325.99599 | P55: 360.3562303 | Q55: 2.614797268e-12 | R55: 2.614797268e-12 | S55: 2.614797268e-12 | T55: 2.614797268e-12 | U55: 2.614797268e-12 | V55: 2.614797268e-12 | W55: 2.614797268e-12 | X55: =X50+X51-SUM(X52:X54) -> 2.614797268e-12 | Y55: =Y50+Y51-SUM(Y52:Y54) -> 2.614797268e-12 | Z55: =Z50+Z51-SUM(Z52:Z54) -> 2.614797268e-12 | AA55: =AA50+AA51-SUM(AA52:AA54) -> 2.614797268e-12
A58: Communications
A59: =$A$4 -> ($000 Real 2008) | D59: =D$4 -> 2009 | E59: =E$4 -> 2010 | F59: 2011 | G59: 2012 | H59: 2013 | I59: 2014 | J59: 2015 | K59: 2016 | L59: 2017 | M59: 2018 | N59: 2019 | O59: 2020 | P59: 2021 | Q59: 2022 | R59: 2023 | S59: 2024 | T59: 2025 | U59: 2026 | V59: 2027 | W59: 2028 | X59: 2029 | Y59: 2030 | Z59: 2031 | AA59: 2032
A60: Opening RAB | D60: =B152 -> 0 | E60: =D65 -> 0 | F60: =E65 -> 0 | G60: 1934.197924 | H60: 1980.458281 | I60: 2479.338224 | J60: 2847.654492 | K60: 2604.618072 | L60: 1936.063306 | M60: 1267.508541 | N60: 747.7382305 | O60: 403.2007814 | P60: 150.4460195 | Q60: 28.36788972 | R60: -8.242295735e-13 | S60: -8.242295735e-13 | T60: -8.242295735e-13 | U60: -8.242295735e-13 | V60: -8.242295735e-13 | W60: -8.242295735e-13 | X60: =W65 -> -8.242295735e-13 | Y60: =X65 -> -8.242295735e-13 | Z60: =Y65 -> -8.242295735e-13 | AA60: =Z65 -> -8.242295735e-13
A61: Gross capital expenditure | D61: ='Data 2009-15 (Real $2008)'!D14/10^3 -> 0 | E61: ='Data 2009-15 (Real $2008)'!E14/10^3 -> 0 | F61: ='Data 2009-15 (Real $2008)'!F14/10^3 -> 2082.98238 | G61: ='Data 2009-15 (Real $2008)'!G14/10^3 -> 370.2776736 | H61: ='Data 2009-15 (Real $2008)'!H14/10^3 -> 914.6799464 | I61: ='Data 2009-15 (Real $2008)'!I14/10^3 -> 914.7929043 | J61: ='Data 2009-15 (Real $2008)'!J14/10^3 -> 397.1504561
A62: Customer contributions | D62: ='Data 2009-15 (Real $2008)'!D38/10^3 -> 0 | E62: ='Data 2009-15 (Real $2008)'!E38/10^3 -> 0 | F62: ='Data 2009-15 (Real $2008)'!F38/10^3 -> 0 | G62: ='Data 2009-15 (Real $2008)'!G38/10^3 -> 0 | H62: ='Data 2009-15 (Real $2008)'!H38/10^3 -> 0 | I62: ='Data 2009-15 (Real $2008)'!I38/10^3 -> 0 | J62: ='Data 2009-15 (Real $2008)'!J38/10^3 -> 0
A63: Disposals - proceeds from sale of assets | D63: ='Data 2009-15 (Real $2008)'!D47/10^3 -> 0 | E63: ='Data 2009-15 (Real $2008)'!E47/10^3 -> 0 | F63: ='Data 2009-15 (Real $2008)'!F47/10^3 -> 0 | G63: ='Data 2009-15 (Real $2008)'!G47/10^3 -> 0 | H63: ='Data 2009-15 (Real $2008)'!H47/10^3 -> 0 | I63: ='Data 2009-15 (Real $2008)'!I47/10^3 -> 0 | J63: ='Data 2009-15 (Real $2008)'!J47/10^3 -> 0
A64: Regulatory depreciation | D64: =D152+D246 -> 0 | E64: =E152+E246 -> 0 | F64: 148.7844557 | G64: 324.0173167 | H64: 415.8000038 | I64: 546.476636 | J64: 640.186876 | K64: 668.5547657 | L64: 668.5547657 | M64: 519.77031 | N64: 344.5374491 | O64: 252.7547619 | P64: 122.0781297 | Q64: 28.36788972 | R64: 0 | S64: 0 | T64: 0 | U64: 0 | V64: 0 | W64: 0 | X64: =X152+X246 -> 0 | Y64: =Y152+Y246 -> 0 | Z64: =Z152+Z246 -> 0 | AA64: =AA152+AA246 -> 0
A65: Closing RAB | D65: =D60+D61-SUM(D62:D64) -> 0 | E65: 0 | F65: 1934.197924 | G65: 1980.458281 | H65: 2479.338224 | I65: 2847.654492 | J65: 2604.618072 | K65: 1936.063306 | L65: 1267.508541 | M65: 747.7382305 | N65: 403.2007814 | O65: 150.4460195 | P65: 28.36788972 | Q65: -8.242295735e-13 | R65: -8.242295735e-13 | S65: -8.242295735e-13 | T65: -8.242295735e-13 | U65: -8.242295735e-13 | V65: -8.242295735e-13 | W65: -8.242295735e-13 | X65: =X60+X61-SUM(X62:X64) -> -8.242295735e-13 | Y65: =Y60+Y61-SUM(Y62:Y64) -> -8.242295735e-13 | Z65: =Z60+Z61-SUM(Z62:Z64) -> -8.242295735e-13 | AA65: =AA60+AA61-SUM(AA62:AA64) -> -8.242295735e-13
A68: Other
A69: =$A$4 -> ($000 Real 2008) | D69: =D$4 -> 2009 | E69: =E$4 -> 2010 | F69: 2011 | G69: 2012 | H69: 2013 | I69: 2014 | J69: 2015 | K69: 2016 | L69: 2017 | M69: 2018 | N69: 2019 | O69: 2020 | P69: 2021 | Q69: 2022 | R69: 2023 | S69: 2024 | T69: 2025 | U69: 2026 | V69: 2027 | W69: 2028 | X69: 2029 | Y69: 2030 | Z69: 2031 | AA69: 2032
A70: Opening RAB | D70: =B116+B160 -> 24633.9666 | E70: =D75 -> 20745.96718 | F70: =E75 -> 17075.64885 | G70: 22000.92263 | H70: 18803.36781 | I70: 14993.81315 | J70: 9541.159873 | K70: 6077.156036 | L70: 3999.432797 | M70: 1953.249432 | N70: 621.4023221 | O70: 150.1557757 | P70: -8.526512829e-13 | Q70: -8.526512829e-13 | R70: -8.526512829e-13 | S70: -8.526512829e-13 | T70: -8.526512829e-13 | U70: -8.526512829e-13 | V70: -8.526512829e-13 | W70: -8.526512829e-13 | X70: =W75 -> -8.526512829e-13 | Y70: =X75 -> -8.526512829e-13 | Z70: =Y75 -> -8.526512829e-13 | AA70: =Z75 -> -8.526512829e-13
A71: Gross capital expenditure | D71: ='Data 2009-15 (Real $2008)'!D15/10^3 -> 96.16863885 | E71: ='Data 2009-15 (Real $2008)'!E15/10^3 -> 345.3895979 | F71: ='Data 2009-15 (Real $2008)'!F15/10^3 -> 9655.317965 | G71: ='Data 2009-15 (Real $2008)'!G15/10^3 -> 2393.08993 | H71: ='Data 2009-15 (Real $2008)'!H15/10^3 -> 2102.18086 | I71: ='Data 2009-15 (Real $2008)'!I15/10^3 -> 0 | J71: ='Data 2009-15 (Real $2008)'!J15/10^3 -> 0
A72: Customer contributions | D72: ='Data 2009-15 (Real $2008)'!D39/10^3 -> 0 | E72: ='Data 2009-15 (Real $2008)'!E39/10^3 -> 0 | F72: ='Data 2009-15 (Real $2008)'!F39/10^3 -> 0 | G72: ='Data 2009-15 (Real $2008)'!G39/10^3 -> 0 | H72: ='Data 2009-15 (Real $2008)'!H39/10^3 -> 0 | I72: ='Data 2009-15 (Real $2008)'!I39/10^3 -> 0 | J72: ='Data 2009-15 (Real $2008)'!J39/10^3 -> 0
A73: Disposals - proceeds from sale of assets | D73: ='Data 2009-15 (Real $2008)'!D48/10^3 -> 0 | E73: ='Data 2009-15 (Real $2008)'!E48/10^3 -> 0 | F73: ='Data 2009-15 (Real $2008)'!F48/10^3 -> 0 | G73: ='Data 2009-15 (Real $2008)'!G48/10^3 -> 0 | H73: ='Data 2009-15 (Real $2008)'!H48/10^3 -> 0 | I73: ='Data 2009-15 (Real $2008)'!I48/10^3 -> 0 | J73: ='Data 2009-15 (Real $2008)'!J48/10^3 -> 0
A74: Regulatory depreciation | D74: =D116+D160+D258 -> 3984.168057 | E74: =E116+E160+E258 -> 4015.707931 | F74: 4730.044186 | G74: 5590.64475 | H74: 5911.735521 | I74: 5452.653272 | J74: 3464.003837 | K74: 2077.723239 | L74: 2046.183365 | M74: 1331.84711 | N74: 471.2465464 | O74: 150.1557757 | P74: 0 | Q74: 0 | R74: 0 | S74: 0 | T74: 0 | U74: 0 | V74: 0 | W74: 0 | X74: =X116+X160+X258 -> 0 | Y74: =Y116+Y160+Y258 -> 0 | Z74: =Z116+Z160+Z258 -> 0 | AA74: =AA116+AA160+AA258 -> 0
A75: Closing RAB | D75: =D70+D71-SUM(D72:D74) -> 20745.96718 | E75: 17075.64885 | F75: 22000.92263 | G75: 18803.36781 | H75: 14993.81315 | I75: 9541.159873 | J75: 6077.156036 | K75: 3999.432797 | L75: 1953.249432 | M75: 621.4023221 | N75: 150.1557757 | O75: -8.526512829e-13 | P75: -8.526512829e-13 | Q75: -8.526512829e-13 | R75: -8.526512829e-13 | S75: -8.526512829e-13 | T75: -8.526512829e-13 | U75: -8.526512829e-13 | V75: -8.526512829e-13 | W75: -8.526512829e-13 | X75: =X70+X71-SUM(X72:X74) -> -8.526512829e-13 | Y75: =Y70+Y71-SUM(Y72:Y74) -> -8.526512829e-13 | Z75: =Z70+Z71-SUM(Z72:Z74) -> -8.526512829e-13 | AA75: =AA70+AA71-SUM(AA72:AA74) -> -8.526512829e-13
A77: Check | C77: =SUM(D77:AA77) -> 0 | D77: =IF(ABS(D10-D25-D35-D45-D55-D65-D75)<0.001,0,ABS(D10-D25-D35-D45-D55-D65-D75)) -> 0 | E77: =IF(ABS(E10-E25-E35-E45-E55-E65-E75)<0.001,0,ABS(E10-E25-E35-E45-E55-E65-E75)) -> 0 | F77: 0 | G77: 0 | H77: 0 | I77: 0 | J77: 0 | K77: 0 | L77: 0 | M77: 0 | N77: 0 | O77: 0 | P77: 0 | Q77: 0 | R77: 0 | S77: 0 | T77: 0 | U77: 0 | V77: 0 | W77: 0 | X77: =IF(ABS(X10-X25-X35-X45-X55-X65-X75)<0.001,0,ABS(X10-X25-X35-X45-X55-X65-X75)) -> 0 | Y77: =IF(ABS(Y10-Y25-Y35-Y45-Y55-Y65-Y75)<0.001,0,ABS(Y10-Y25-Y35-Y45-Y55-Y65-Y75)) -> 0 | Z77: =IF(ABS(Z10-Z25-Z35-Z45-Z55-Z65-Z75)<0.001,0,ABS(Z10-Z25-Z35-Z45-Z55-Z65-Z75)) -> 0 | AA77: =IF(ABS(AA10-AA25-AA35-AA45-AA55-AA65-AA75)<0.001,0,ABS(AA10-AA25-AA35-AA45-AA55-AA65-AA75)) -> 0
A79: Regulatory Depreciation on Opening Assets at 1 January 2009 - IMRO Capex 2006-08
A80: =$A$4 -> ($000 Real 2008)
A81: RAB at 1 January 2009 | D81: =D$4 -> 2009 | E81: =E$4 -> 2010 | F81: 2011 | G81: 2012 | H81: 2013 | I81: 2014 | J81: 2015 | K81: 2016 | L81: 2017 | M81: 2018 | N81: 2019 | O81: 2020 | P81: 2021 | Q81: 2022 | R81: 2023 | S81: 2024 | T81: 2025 | U81: 2026 | V81: 2027 | W81: 2028 | X81: 2029 | Y81: 2030 | Z81: 2031 | AA81: 2032
A82: Opening asset base | D82: =B119 -> 14311.5884 | E82: =D84 -> 11390.93387 | F82: =E84 -> 8470.279342 | G82: 5607.961662 | H82: 2803.980831 | I82: 0 | J82: -4.547473509e-13 | K82: -4.547473509e-13 | L82: -4.547473509e-13 | M82: -4.547473509e-13 | N82: -4.547473509e-13 | O82: -4.547473509e-13 | P82: -4.547473509e-13 | Q82: -4.547473509e-13 | R82: -4.547473509e-13 | S82: -4.547473509e-13 | T82: -4.547473509e-13 | U82: -4.547473509e-13 | V82: -4.547473509e-13 | W82: -4.547473509e-13 | X82: =W84 -> -4.547473509e-13 | Y82: =X84 -> -4.547473509e-13 | Z82: =Y84 -> -4.547473509e-13 | AA82: =Z84 -> -4.547473509e-13
A83: Regulatory depreciation | D83: =D119 -> 2920.654529 | E83: =E119 -> 2920.654529 | F83: 2862.31768 | G83: 2803.980831 | H83: 2803.980831 | I83: 4.547473509e-13 | J83: 0 | K83: 0 | L83: 0 | M83: 0 | N83: 0 | O83: 0 | P83: 0 | Q83: 0 | R83: 0 | S83: 0 | T83: 0 | U83: 0 | V83: 0 | W83: 0 | X83: =X119 -> 0 | Y83: =Y119 -> 0 | Z83: =Z119 -> 0 | AA83: =AA119 -> 0
A84: Closing asset base | D84: =D82-D83 -> 11390.93387 | E84: =E82-E83 -> 8470.279342 | F84: 5607.961662 | G84: 2803.980831 | H84: 0 | I84: -4.547473509e-13 | J84: -4.547473509e-13 | K84: -4.547473509e-13 | L84: -4.547473509e-13 | M84: -4.547473509e-13 | N84: -4.547473509e-13 | O84: -4.547473509e-13 | P84: -4.547473509e-13 | Q84: -4.547473509e-13 | R84: -4.547473509e-13 | S84: -4.547473509e-13 | T84: -4.547473509e-13 | U84: -4.547473509e-13 | V84: -4.547473509e-13 | W84: -4.547473509e-13 | X84: =X82-X83 -> -4.547473509e-13 | Y84: =Y82-Y83 -> -4.547473509e-13 | Z84: =Z82-Z83 -> -4.547473509e-13 | AA84: =AA82-AA83 -> -4.547473509e-13
A85: Check | C85: =SUM(D85:E85) -> 0 | D85: =IF(ABS(D82-SUM(D83:AA83))<0.001,0,ABS(D82-SUM(D83:AA83))) -> 0 | E85: =IF(ABS(D82-'Offset of Costs and Rev 2006-08'!F183)<0.001,0,ABS(D82-'Offset of Costs and Rev 2006-08'!F183)) -> 0
A87: Accumulation meters | B87: RAB WDV | C87: Remaining | D87: =D$4 -> 2009 | E87: =E$4 -> 2010 | F87: 2011 | G87: 2012 | H87: 2013 | I87: 2014 | J87: 2015 | K87: 2016 | L87: 2017 | M87: 2018 | N87: 2019 | O87: 2020 | P87: 2021 | Q87: 2022 | R87: 2023 | S87: 2024 | T87: 2025 | U87: 2026 | V87: 2027 | W87: 2028 | X87: 2029 | Y87: 2030 | Z87: 2031 | AA87: 2032
A88: =$A$4 -> ($000 Real 2008) | B88: 1/01/2009 | C88: Life (years)
A89: 2006 | B89: ='Offset of Costs and Rev 2006-08'!D$140-SUM('Offset of Costs and Rev 2006-08'!D206:F206) -> 2871.316422 | C89: =IF('Data 2006-08'!C$34="",5,('Data 2006-08'!C$34-D$87+1)) -> 5 | D89: =IF(C89<1,B89,B89/C89) -> 574.2632844 | E89: =IF((SUM($D89:D89)+$B89/$C89)>$B89,$B89-SUM($D89:D89),$B89/$C89) -> 574.2632844 | F89: =IF((SUM($D89:E89)+$B89/$C89)>$B89,$B89-SUM($D89:E89),$B89/$C89) -> 574.2632844 | G89: =IF((SUM($D89:F89)+$B89/$C89)>$B89,$B89-SUM($D89:F89),$B89/$C89) -> 574.2632844 | H89: =IF((SUM($D89:G89)+$B89/$C89)>$B89,$B89-SUM($D89:G89),$B89/$C89) -> 574.2632844 | I89: =IF((SUM($D89:H89)+$B89/$C89)>$B89,$B89-SUM($D89:H89),$B89/$C89) -> 0 | J89: =IF((SUM($D89:I89)+$B89/$C89)>$B89,$B89-SUM($D89:I89),$B89/$C89) -> 0 | K89: =IF((SUM($D89:J89)+$B89/$C89)>$B89,$B89-SUM($D89:J89),$B89/$C89) -> 0 | L89: =IF((SUM($D89:K89)+$B89/$C89)>$B89,$B89-SUM($D89:K89),$B89/$C89) -> 0 | M89: =IF((SUM($D89:L89)+$B89/$C89)>$B89,$B89-SUM($D89:L89),$B89/$C89) -> 0 | N89: =IF((SUM($D89:M89)+$B89/$C89)>$B89,$B89-SUM($D89:M89),$B89/$C89) -> 0 | O89: =IF((SUM($D89:N89)+$B89/$C89)>$B89,$B89-SUM($D89:N89),$B89/$C89) -> 0 | P89: =IF((SUM($D89:O89)+$B89/$C89)>$B89,$B89-SUM($D89:O89),$B89/$C89) -> 0 | Q89: =IF((SUM($D89:P89)+$B89/$C89)>$B89,$B89-SUM($D89:P89),$B89/$C89) -> 0 | R89: =IF((SUM($D89:Q89)+$B89/$C89)>$B89,$B89-SUM($D89:Q89),$B89/$C89) -> 0 | S89: =IF((SUM($D89:R89)+$B89/$C89)>$B89,$B89-SUM($D89:R89),$B89/$C89) -> 0 | T89: =IF((SUM($D89:S89)+$B89/$C89)>$B89,$B89-SUM($D89:S89),$B89/$C89) -> 0 | U89: =IF((SUM($D89:T89)+$B89/$C89)>$B89,$B89-SUM($D89:T89),$B89/$C89) -> 0 | V89: =IF((SUM($D89:U89)+$B89/$C89)>$B89,$B89-SUM($D89:U89),$B89/$C89) -> 0 | W89: =IF((SUM($D89:V89)+$B89/$C89)>$B89,$B89-SUM($D89:V89),$B89/$C89) -> 0 | X89: =IF((SUM($D89:W89)+$B89/$C89)>$B89,$B89-SUM($D89:W89),$B89/$C89) -> 0 | Y89: =IF((SUM($D89:X89)+$B89/$C89)>$B89,$B89-SUM($D89:X89),$B89/$C89) -> 0 | Z89: =IF((SUM($D89:Y89)+$B89/$C89)>$B89,$B89-SUM($D89:Y89),$B89/$C89) -> 0 | AA89: =IF((SUM($D89:Z89)+$B89/$C89)>$B89,$B89-SUM($D89:Z89),$B89/$C89) -> 0
A90: 2007 | B90: ='Offset of Costs and Rev 2006-08'!E$140-SUM('Offset of Costs and Rev 2006-08'!D207:F207) -> 4323.963648 | C90: =IF('Data 2006-08'!C$34="",5,('Data 2006-08'!C$34-D$87+1)) -> 5 | D90: =IF(C90<1,B90,B90/C90) -> 864.7927296 | E90: =IF((SUM($D90:D90)+$B90/$C90)>$B90,$B90-SUM($D90:D90),$B90/$C90) -> 864.7927296 | F90: =IF((SUM($D90:E90)+$B90/$C90)>$B90,$B90-SUM($D90:E90),$B90/$C90) -> 864.7927296 | G90: =IF((SUM($D90:F90)+$B90/$C90)>$B90,$B90-SUM($D90:F90),$B90/$C90) -> 864.7927296 | H90: =IF((SUM($D90:G90)+$B90/$C90)>$B90,$B90-SUM($D90:G90),$B90/$C90) -> 864.7927296 | I90: =IF((SUM($D90:H90)+$B90/$C90)>$B90,$B90-SUM($D90:H90),$B90/$C90) -> 0 | J90: =IF((SUM($D90:I90)+$B90/$C90)>$B90,$B90-SUM($D90:I90),$B90/$C90) -> 0 | K90: =IF((SUM($D90:J90)+$B90/$C90)>$B90,$B90-SUM($D90:J90),$B90/$C90) -> 0 | L90: =IF((SUM($D90:K90)+$B90/$C90)>$B90,$B90-SUM($D90:K90),$B90/$C90) -> 0 | M90: =IF((SUM($D90:L90)+$B90/$C90)>$B90,$B90-SUM($D90:L90),$B90/$C90) -> 0 | N90: =IF((SUM($D90:M90)+$B90/$C90)>$B90,$B90-SUM($D90:M90),$B90/$C90) -> 0 | O90: =IF((SUM($D90:N90)+$B90/$C90)>$B90,$B90-SUM($D90:N90),$B90/$C90) -> 0 | P90: =IF((SUM($D90:O90)+$B90/$C90)>$B90,$B90-SUM($D90:O90),$B90/$C90) -> 0 | Q90: =IF((SUM($D90:P90)+$B90/$C90)>$B90,$B90-SUM($D90:P90),$B90/$C90) -> 0 | R90: =IF((SUM($D90:Q90)+$B90/$C90)>$B90,$B90-SUM($D90:Q90),$B90/$C90) -> 0 | S90: =IF((SUM($D90:R90)+$B90/$C90)>$B90,$B90-SUM($D90:R90),$B90/$C90) -> 0 | T90: =IF((SUM($D90:S90)+$B90/$C90)>$B90,$B90-SUM($D90:S90),$B90/$C90) -> 0 | U90: =IF((SUM($D90:T90)+$B90/$C90)>$B90,$B90-SUM($D90:T90),$B90/$C90) -> 0 | V90: =IF((SUM($D90:U90)+$B90/$C90)>$B90,$B90-SUM($D90:U90),$B90/$C90) -> 0 | W90: =IF((SUM($D90:V90)+$B90/$C90)>$B90,$B90-SUM($D90:V90),$B90/$C90) -> 0 | X90: =IF((SUM($D90:W90)+$B90/$C90)>$B90,$B90-SUM($D90:W90),$B90/$C90) -> 0 | Y90: =IF((SUM($D90:X90)+$B90/$C90)>$B90,$B90-SUM($D90:X90),$B90/$C90) -> 0 | Z90: =IF((SUM($D90:Y90)+$B90/$C90)>$B90,$B90-SUM($D90:Y90),$B90/$C90) -> 0 | AA90: =IF((SUM($D90:Z90)+$B90/$C90)>$B90,$B90-SUM($D90:Z90),$B90/$C90) -> 0
A91: 2008 | B91: ='Offset of Costs and Rev 2006-08'!F$140-SUM('Offset of Costs and Rev 2006-08'!D208:F208) -> 3957.171915 | C91: =IF('Data 2006-08'!C$34="",5,('Data 2006-08'!C$34-D$87+1)) -> 5 | D91: =IF(C91<1,B91,B91/C91) -> 791.4343829 | E91: =IF((SUM($D91:D91)+$B91/$C91)>$B91,$B91-SUM($D91:D91),$B91/$C91) -> 791.4343829 | F91: =IF((SUM($D91:E91)+$B91/$C91)>$B91,$B91-SUM($D91:E91),$B91/$C91) -> 791.4343829 | G91: =IF((SUM($D91:F91)+$B91/$C91)>$B91,$B91-SUM($D91:F91),$B91/$C91) -> 791.4343829 | H91: =IF((SUM($D91:G91)+$B91/$C91)>$B91,$B91-SUM($D91:G91),$B91/$C91) -> 791.4343829 | I91: =IF((SUM($D91:H91)+$B91/$C91)>$B91,$B91-SUM($D91:H91),$B91/$C91) -> 4.547473509e-13 | J91: =IF((SUM($D91:I91)+$B91/$C91)>$B91,$B91-SUM($D91:I91),$B91/$C91) -> 0 | K91: =IF((SUM($D91:J91)+$B91/$C91)>$B91,$B91-SUM($D91:J91),$B91/$C91) -> 0 | L91: =IF((SUM($D91:K91)+$B91/$C91)>$B91,$B91-SUM($D91:K91),$B91/$C91) -> 0 | M91: =IF((SUM($D91:L91)+$B91/$C91)>$B91,$B91-SUM($D91:L91),$B91/$C91) -> 0 | N91: =IF((SUM($D91:M91)+$B91/$C91)>$B91,$B91-SUM($D91:M91),$B91/$C91) -> 0 | O91: =IF((SUM($D91:N91)+$B91/$C91)>$B91,$B91-SUM($D91:N91),$B91/$C91) -> 0 | P91: =IF((SUM($D91:O91)+$B91/$C91)>$B91,$B91-SUM($D91:O91),$B91/$C91) -> 0 | Q91: =IF((SUM($D91:P91)+$B91/$C91)>$B91,$B91-SUM($D91:P91),$B91/$C91) -> 0 | R91: =IF((SUM($D91:Q91)+$B91/$C91)>$B91,$B91-SUM($D91:Q91),$B91/$C91) -> 0 | S91: =IF((SUM($D91:R91)+$B91/$C91)>$B91,$B91-SUM($D91:R91),$B91/$C91) -> 0 | T91: =IF((SUM($D91:S91)+$B91/$C91)>$B91,$B91-SUM($D91:S91),$B91/$C91) -> 0 | U91: =IF((SUM($D91:T91)+$B91/$C91)>$B91,$B91-SUM($D91:T91),$B91/$C91) -> 0 | V91: =IF((SUM($D91:U91)+$B91/$C91)>$B91,$B91-SUM($D91:U91),$B91/$C91) -> 0 | W91: =IF((SUM($D91:V91)+$B91/$C91)>$B91,$B91-SUM($D91:V91),$B91/$C91) -> 0 | X91: =IF((SUM($D91:W91)+$B91/$C91)>$B91,$B91-SUM($D91:W91),$B91/$C91) -> 0 | Y91: =IF((SUM($D91:X91)+$B91/$C91)>$B91,$B91-SUM($D91:X91),$B91/$C91) -> 0 | Z91: =IF((SUM($D91:Y91)+$B91/$C91)>$B91,$B91-SUM($D91:Y91),$B91/$C91) -> 0 | AA91: =IF((SUM($D91:Z91)+$B91/$C91)>$B91,$B91-SUM($D91:Z91),$B91/$C91) -> 0
B92: =SUM(B89:B91) -> 11152.45198 | D92: =SUM(D89:D91) -> 2230.490397 | E92: =SUM(E89:E91) -> 2230.490397 | F92: 2230.490397 | G92: 2230.490397 | H92: 2230.490397 | I92: 4.547473509e-13 | J92: 0 | K92: 0 | L92: 0 | M92: 0 | N92: 0 | O92: 0 | P92: 0 | Q92: 0 | R92: 0 | S92: 0 | T92: 0 | U92: 0 | V92: 0 | W92: 0 | X92: =SUM(X89:X91) -> 0 | Y92: =SUM(Y89:Y91) -> 0 | Z92: =SUM(Z89:Z91) -> 0 | AA92: =SUM(AA89:AA91) -> 0
A95: Manually read interval meters | B95: RAB WDV | C95: Remaining | D95: =D$4 -> 2009 | E95: =E$4 -> 2010 | F95: 2011 | G95: 2012 | H95: 2013 | I95: 2014 | J95: 2015 | K95: 2016 | L95: 2017 | M95: 2018 | N95: 2019 | O95: 2020 | P95: 2021 | Q95: 2022 | R95: 2023 | S95: 2024 | T95: 2025 | U95: 2026 | V95: 2027 | W95: 2028 | X95: 2029 | Y95: 2030 | Z95: 2031 | AA95: 2032
A96: =$A$4 -> ($000 Real 2008) | B96: 1/01/2009 | C96: Life (years)
A97: 2006 | B97: ='Offset of Costs and Rev 2006-08'!D$150-'Offset of Costs and Rev 2006-08'!D$151-SUM('Offset of Costs and Rev 2006-08'!D214:F214) -> 1740.576769 | C97: =IF('Data 2006-08'!C$34="",5,('Data 2006-08'!C$34-D$95+1)) -> 5 | D97: =IF(C97<1,B97,B97/C97) -> 348.1153538 | E97: =IF((SUM($D97:D97)+$B97/$C97)>$B97,$B97-SUM($D97:D97),$B97/$C97) -> 348.1153538 | F97: =IF((SUM($D97:E97)+$B97/$C97)>$B97,$B97-SUM($D97:E97),$B97/$C97) -> 348.1153538 | G97: =IF((SUM($D97:F97)+$B97/$C97)>$B97,$B97-SUM($D97:F97),$B97/$C97) -> 348.1153538 | H97: =IF((SUM($D97:G97)+$B97/$C97)>$B97,$B97-SUM($D97:G97),$B97/$C97) -> 348.1153538 | I97: =IF((SUM($D97:H97)+$B97/$C97)>$B97,$B97-SUM($D97:H97),$B97/$C97) -> 0 | J97: =IF((SUM($D97:I97)+$B97/$C97)>$B97,$B97-SUM($D97:I97),$B97/$C97) -> 0 | K97: =IF((SUM($D97:J97)+$B97/$C97)>$B97,$B97-SUM($D97:J97),$B97/$C97) -> 0 | L97: =IF((SUM($D97:K97)+$B97/$C97)>$B97,$B97-SUM($D97:K97),$B97/$C97) -> 0 | M97: =IF((SUM($D97:L97)+$B97/$C97)>$B97,$B97-SUM($D97:L97),$B97/$C97) -> 0 | N97: =IF((SUM($D97:M97)+$B97/$C97)>$B97,$B97-SUM($D97:M97),$B97/$C97) -> 0 | O97: =IF((SUM($D97:N97)+$B97/$C97)>$B97,$B97-SUM($D97:N97),$B97/$C97) -> 0 | P97: =IF((SUM($D97:O97)+$B97/$C97)>$B97,$B97-SUM($D97:O97),$B97/$C97) -> 0 | Q97: =IF((SUM($D97:P97)+$B97/$C97)>$B97,$B97-SUM($D97:P97),$B97/$C97) -> 0 | R97: =IF((SUM($D97:Q97)+$B97/$C97)>$B97,$B97-SUM($D97:Q97),$B97/$C97) -> 0 | S97: =IF((SUM($D97:R97)+$B97/$C97)>$B97,$B97-SUM($D97:R97),$B97/$C97) -> 0 | T97: =IF((SUM($D97:S97)+$B97/$C97)>$B97,$B97-SUM($D97:S97),$B97/$C97) -> 0 | U97: =IF((SUM($D97:T97)+$B97/$C97)>$B97,$B97-SUM($D97:T97),$B97/$C97) -> 0 | V97: =IF((SUM($D97:U97)+$B97/$C97)>$B97,$B97-SUM($D97:U97),$B97/$C97) -> 0 | W97: =IF((SUM($D97:V97)+$B97/$C97)>$B97,$B97-SUM($D97:V97),$B97/$C97) -> 0 | X97: =IF((SUM($D97:W97)+$B97/$C97)>$B97,$B97-SUM($D97:W97),$B97/$C97) -> 0 | Y97: =IF((SUM($D97:X97)+$B97/$C97)>$B97,$B97-SUM($D97:X97),$B97/$C97) -> 0 | Z97: =IF((SUM($D97:Y97)+$B97/$C97)>$B97,$B97-SUM($D97:Y97),$B97/$C97) -> 0 | AA97: =IF((SUM($D97:Z97)+$B97/$C97)>$B97,$B97-SUM($D97:Z97),$B97/$C97) -> 0
A98: 2007 | B98: ='Offset of Costs and Rev 2006-08'!E$150-'Offset of Costs and Rev 2006-08'!E$151-SUM('Offset of Costs and Rev 2006-08'!D215:F215) -> 682.2754014 | C98: =IF('Data 2006-08'!C$34="",5,('Data 2006-08'!C$34-D$95+1)) -> 5 | D98: =IF(C98<1,B98,B98/C98) -> 136.4550803 | E98: =IF((SUM($D98:D98)+$B98/$C98)>$B98,$B98-SUM($D98:D98),$B98/$C98) -> 136.4550803 | F98: =IF((SUM($D98:E98)+$B98/$C98)>$B98,$B98-SUM($D98:E98),$B98/$C98) -> 136.4550803 | G98: =IF((SUM($D98:F98)+$B98/$C98)>$B98,$B98-SUM($D98:F98),$B98/$C98) -> 136.4550803 | H98: =IF((SUM($D98:G98)+$B98/$C98)>$B98,$B98-SUM($D98:G98),$B98/$C98) -> 136.4550803 | I98: =IF((SUM($D98:H98)+$B98/$C98)>$B98,$B98-SUM($D98:H98),$B98/$C98) -> 0 | J98: =IF((SUM($D98:I98)+$B98/$C98)>$B98,$B98-SUM($D98:I98),$B98/$C98) -> 0 | K98: =IF((SUM($D98:J98)+$B98/$C98)>$B98,$B98-SUM($D98:J98),$B98/$C98) -> 0 | L98: =IF((SUM($D98:K98)+$B98/$C98)>$B98,$B98-SUM($D98:K98),$B98/$C98) -> 0 | M98: =IF((SUM($D98:L98)+$B98/$C98)>$B98,$B98-SUM($D98:L98),$B98/$C98) -> 0 | N98: =IF((SUM($D98:M98)+$B98/$C98)>$B98,$B98-SUM($D98:M98),$B98/$C98) -> 0 | O98: =IF((SUM($D98:N98)+$B98/$C98)>$B98,$B98-SUM($D98:N98),$B98/$C98) -> 0 | P98: =IF((SUM($D98:O98)+$B98/$C98)>$B98,$B98-SUM($D98:O98),$B98/$C98) -> 0 | Q98: =IF((SUM($D98:P98)+$B98/$C98)>$B98,$B98-SUM($D98:P98),$B98/$C98) -> 0 | R98: =IF((SUM($D98:Q98)+$B98/$C98)>$B98,$B98-SUM($D98:Q98),$B98/$C98) -> 0 | S98: =IF((SUM($D98:R98)+$B98/$C98)>$B98,$B98-SUM($D98:R98),$B98/$C98) -> 0 | T98: =IF((SUM($D98:S98)+$B98/$C98)>$B98,$B98-SUM($D98:S98),$B98/$C98) -> 0 | U98: =IF((SUM($D98:T98)+$B98/$C98)>$B98,$B98-SUM($D98:T98),$B98/$C98) -> 0 | V98: =IF((SUM($D98:U98)+$B98/$C98)>$B98,$B98-SUM($D98:U98),$B98/$C98) -> 0 | W98: =IF((SUM($D98:V98)+$B98/$C98)>$B98,$B98-SUM($D98:V98),$B98/$C98) -> 0 | X98: =IF((SUM($D98:W98)+$B98/$C98)>$B98,$B98-SUM($D98:W98),$B98/$C98) -> 0 | Y98: =IF((SUM($D98:X98)+$B98/$C98)>$B98,$B98-SUM($D98:X98),$B98/$C98) -> 0 | Z98: =IF((SUM($D98:Y98)+$B98/$C98)>$B98,$B98-SUM($D98:Y98),$B98/$C98) -> 0 | AA98: =IF((SUM($D98:Z98)+$B98/$C98)>$B98,$B98-SUM($D98:Z98),$B98/$C98) -> 0
A99: 2008 | B99: ='Offset of Costs and Rev 2006-08'!F$150-'Offset of Costs and Rev 2006-08'!F$151-SUM('Offset of Costs and Rev 2006-08'!D216:F216) -> 444.6 | C99: =IF('Data 2006-08'!C$34="",5,('Data 2006-08'!C$34-D$95+1)) -> 5 | D99: =IF(C99<1,B99,B99/C99) -> 88.92 | E99: =IF((SUM($D99:D99)+$B99/$C99)>$B99,$B99-SUM($D99:D99),$B99/$C99) -> 88.92 | F99: =IF((SUM($D99:E99)+$B99/$C99)>$B99,$B99-SUM($D99:E99),$B99/$C99) -> 88.92 | G99: =IF((SUM($D99:F99)+$B99/$C99)>$B99,$B99-SUM($D99:F99),$B99/$C99) -> 88.92 | H99: =IF((SUM($D99:G99)+$B99/$C99)>$B99,$B99-SUM($D99:G99),$B99/$C99) -> 88.92 | I99: =IF((SUM($D99:H99)+$B99/$C99)>$B99,$B99-SUM($D99:H99),$B99/$C99) -> 0 | J99: =IF((SUM($D99:I99)+$B99/$C99)>$B99,$B99-SUM($D99:I99),$B99/$C99) -> 0 | K99: =IF((SUM($D99:J99)+$B99/$C99)>$B99,$B99-SUM($D99:J99),$B99/$C99) -> 0 | L99: =IF((SUM($D99:K99)+$B99/$C99)>$B99,$B99-SUM($D99:K99),$B99/$C99) -> 0 | M99: =IF((SUM($D99:L99)+$B99/$C99)>$B99,$B99-SUM($D99:L99),$B99/$C99) -> 0 | N99: =IF((SUM($D99:M99)+$B99/$C99)>$B99,$B99-SUM($D99:M99),$B99/$C99) -> 0 | O99: =IF((SUM($D99:N99)+$B99/$C99)>$B99,$B99-SUM($D99:N99),$B99/$C99) -> 0 | P99: =IF((SUM($D99:O99)+$B99/$C99)>$B99,$B99-SUM($D99:O99),$B99/$C99) -> 0 | Q99: =IF((SUM($D99:P99)+$B99/$C99)>$B99,$B99-SUM($D99:P99),$B99/$C99) -> 0 | R99: =IF((SUM($D99:Q99)+$B99/$C99)>$B99,$B99-SUM($D99:Q99),$B99/$C99) -> 0 | S99: =IF((SUM($D99:R99)+$B99/$C99)>$B99,$B99-SUM($D99:R99),$B99/$C99) -> 0 | T99: =IF((SUM($D99:S99)+$B99/$C99)>$B99,$B99-SUM($D99:S99),$B99/$C99) -> 0 | U99: =IF((SUM($D99:T99)+$B99/$C99)>$B99,$B99-SUM($D99:T99),$B99/$C99) -> 0 | V99: =IF((SUM($D99:U99)+$B99/$C99)>$B99,$B99-SUM($D99:U99),$B99/$C99) -> 0 | W99: =IF((SUM($D99:V99)+$B99/$C99)>$B99,$B99-SUM($D99:V99),$B99/$C99) -> 0 | X99: =IF((SUM($D99:W99)+$B99/$C99)>$B99,$B99-SUM($D99:W99),$B99/$C99) -> 0 | Y99: =IF((SUM($D99:X99)+$B99/$C99)>$B99,$B99-SUM($D99:X99),$B99/$C99) -> 0 | Z99: =IF((SUM($D99:Y99)+$B99/$C99)>$B99,$B99-SUM($D99:Y99),$B99/$C99) -> 0 | AA99: =IF((SUM($D99:Z99)+$B99/$C99)>$B99,$B99-SUM($D99:Z99),$B99/$C99) -> 0
B100: =SUM(B97:B99) -> 2867.45217 | D100: =SUM(D97:D99) -> 573.4904341 | E100: =SUM(E97:E99) -> 573.4904341 | F100: 573.4904341 | G100: 573.4904341 | H100: 573.4904341 | I100: 0 | J100: 0 | K100: 0 | L100: 0 | M100: 0 | N100: 0 | O100: 0 | P100: 0 | Q100: 0 | R100: 0 | S100: 0 | T100: 0 | U100: 0 | V100: 0 | W100: 0 | X100: =SUM(X97:X99) -> 0 | Y100: =SUM(Y97:Y99) -> 0 | Z100: =SUM(Z97:Z99) -> 0 | AA100: =SUM(AA97:AA99) -> 0
A103: IT | B103: RAB WDV | C103: Remaining | D103: =D$4 -> 2009 | E103: =E$4 -> 2010 | F103: 2011 | G103: 2012 | H103: 2013 | I103: 2014 | J103: 2015 | K103: 2016 | L103: 2017 | M103: 2018 | N103: 2019 | O103: 2020 | P103: 2021 | Q103: 2022 | R103: 2023 | S103: 2024 | T103: 2025 | U103: 2026 | V103: 2027 | W103: 2028 | X103: 2029 | Y103: 2030 | Z103: 2031 | AA103: 2032
A104: =$A$4 -> ($000 Real 2008) | B104: 1/01/2009 | C104: Life (years)
A105: 2006 | B105: ='Offset of Costs and Rev 2006-08'!D$160-SUM('Offset of Costs and Rev 2006-08'!D222:F222) -> 291.6842457 | C105: ='Offset of Costs and Rev 2006-08'!C222-(D$103-A105-0.5) -> 2.5 | D105: =IF(C105<1,B105,B105/C105) -> 116.6736983 | E105: =IF((SUM($D105:D105)+$B105/$C105)>$B105,$B105-SUM($D105:D105),$B105/$C105) -> 116.6736983 | F105: =IF((SUM($D105:E105)+$B105/$C105)>$B105,$B105-SUM($D105:E105),$B105/$C105) -> 58.33684913 | G105: =IF((SUM($D105:F105)+$B105/$C105)>$B105,$B105-SUM($D105:F105),$B105/$C105) -> 0 | H105: =IF((SUM($D105:G105)+$B105/$C105)>$B105,$B105-SUM($D105:G105),$B105/$C105) -> 0 | I105: =IF((SUM($D105:H105)+$B105/$C105)>$B105,$B105-SUM($D105:H105),$B105/$C105) -> 0 | J105: =IF((SUM($D105:I105)+$B105/$C105)>$B105,$B105-SUM($D105:I105),$B105/$C105) -> 0 | K105: =IF((SUM($D105:J105)+$B105/$C105)>$B105,$B105-SUM($D105:J105),$B105/$C105) -> 0 | L105: =IF((SUM($D105:K105)+$B105/$C105)>$B105,$B105-SUM($D105:K105),$B105/$C105) -> 0 | M105: =IF((SUM($D105:L105)+$B105/$C105)>$B105,$B105-SUM($D105:L105),$B105/$C105) -> 0 | N105: =IF((SUM($D105:M105)+$B105/$C105)>$B105,$B105-SUM($D105:M105),$B105/$C105) -> 0 | O105: =IF((SUM($D105:N105)+$B105/$C105)>$B105,$B105-SUM($D105:N105),$B105/$C105) -> 0 | P105: =IF((SUM($D105:O105)+$B105/$C105)>$B105,$B105-SUM($D105:O105),$B105/$C105) -> 0 | Q105: =IF((SUM($D105:P105)+$B105/$C105)>$B105,$B105-SUM($D105:P105),$B105/$C105) -> 0 | R105: =IF((SUM($D105:Q105)+$B105/$C105)>$B105,$B105-SUM($D105:Q105),$B105/$C105) -> 0 | S105: =IF((SUM($D105:R105)+$B105/$C105)>$B105,$B105-SUM($D105:R105),$B105/$C105) -> 0 | T105: =IF((SUM($D105:S105)+$B105/$C105)>$B105,$B105-SUM($D105:S105),$B105/$C105) -> 0 | U105: =IF((SUM($D105:T105)+$B105/$C105)>$B105,$B105-SUM($D105:T105),$B105/$C105) -> 0 | V105: =IF((SUM($D105:U105)+$B105/$C105)>$B105,$B105-SUM($D105:U105),$B105/$C105) -> 0 | W105: =IF((SUM($D105:V105)+$B105/$C105)>$B105,$B105-SUM($D105:V105),$B105/$C105) -> 0 | X105: =IF((SUM($D105:W105)+$B105/$C105)>$B105,$B105-SUM($D105:W105),$B105/$C105) -> 0 | Y105: =IF((SUM($D105:X105)+$B105/$C105)>$B105,$B105-SUM($D105:X105),$B105/$C105) -> 0 | Z105: =IF((SUM($D105:Y105)+$B105/$C105)>$B105,$B105-SUM($D105:Y105),$B105/$C105) -> 0 | AA105: =IF((SUM($D105:Z105)+$B105/$C105)>$B105,$B105-SUM($D105:Z105),$B105/$C105) -> 0
A106: 2007 | B106: ='Offset of Costs and Rev 2006-08'!E$160-SUM('Offset of Costs and Rev 2006-08'!D223:F223) -> 0 | C106: ='Offset of Costs and Rev 2006-08'!C223-(D$103-A106-0.5) -> 3.5 | D106: =IF(C106<1,B106,B106/C106) -> 0 | E106: =IF((SUM($D106:D106)+$B106/$C106)>$B106,$B106-SUM($D106:D106),$B106/$C106) -> 0 | F106: =IF((SUM($D106:E106)+$B106/$C106)>$B106,$B106-SUM($D106:E106),$B106/$C106) -> 0 | G106: =IF((SUM($D106:F106)+$B106/$C106)>$B106,$B106-SUM($D106:F106),$B106/$C106) -> 0 | H106: =IF((SUM($D106:G106)+$B106/$C106)>$B106,$B106-SUM($D106:G106),$B106/$C106) -> 0 | I106: =IF((SUM($D106:H106)+$B106/$C106)>$B106,$B106-SUM($D106:H106),$B106/$C106) -> 0 | J106: =IF((SUM($D106:I106)+$B106/$C106)>$B106,$B106-SUM($D106:I106),$B106/$C106) -> 0 | K106: =IF((SUM($D106:J106)+$B106/$C106)>$B106,$B106-SUM($D106:J106),$B106/$C106) -> 0 | L106: =IF((SUM($D106:K106)+$B106/$C106)>$B106,$B106-SUM($D106:K106),$B106/$C106) -> 0 | M106: =IF((SUM($D106:L106)+$B106/$C106)>$B106,$B106-SUM($D106:L106),$B106/$C106) -> 0 | N106: =IF((SUM($D106:M106)+$B106/$C106)>$B106,$B106-SUM($D106:M106),$B106/$C106) -> 0 | O106: =IF((SUM($D106:N106)+$B106/$C106)>$B106,$B106-SUM($D106:N106),$B106/$C106) -> 0 | P106: =IF((SUM($D106:O106)+$B106/$C106)>$B106,$B106-SUM($D106:O106),$B106/$C106) -> 0 | Q106: =IF((SUM($D106:P106)+$B106/$C106)>$B106,$B106-SUM($D106:P106),$B106/$C106) -> 0 | R106: =IF((SUM($D106:Q106)+$B106/$C106)>$B106,$B106-SUM($D106:Q106),$B106/$C106) -> 0 | S106: =IF((SUM($D106:R106)+$B106/$C106)>$B106,$B106-SUM($D106:R106),$B106/$C106) -> 0 | T106: =IF((SUM($D106:S106)+$B106/$C106)>$B106,$B106-SUM($D106:S106),$B106/$C106) -> 0 | U106: =IF((SUM($D106:T106)+$B106/$C106)>$B106,$B106-SUM($D106:T106),$B106/$C106) -> 0 | V106: =IF((SUM($D106:U106)+$B106/$C106)>$B106,$B106-SUM($D106:U106),$B106/$C106) -> 0 | W106: =IF((SUM($D106:V106)+$B106/$C106)>$B106,$B106-SUM($D106:V106),$B106/$C106) -> 0 | X106: =IF((SUM($D106:W106)+$B106/$C106)>$B106,$B106-SUM($D106:W106),$B106/$C106) -> 0 | Y106: =IF((SUM($D106:X106)+$B106/$C106)>$B106,$B106-SUM($D106:X106),$B106/$C106) -> 0 | Z106: =IF((SUM($D106:Y106)+$B106/$C106)>$B106,$B106-SUM($D106:Y106),$B106/$C106) -> 0 | AA106: =IF((SUM($D106:Z106)+$B106/$C106)>$B106,$B106-SUM($D106:Z106),$B106/$C106) -> 0
A107: 2008 | B107: ='Offset of Costs and Rev 2006-08'!F$160-SUM('Offset of Costs and Rev 2006-08'!D224:F224) -> 0 | C107: ='Offset of Costs and Rev 2006-08'!C224-(D$103-A107-0.5) -> 4.5 | D107: =IF(C107<1,B107,B107/C107) -> 0 | E107: =IF((SUM($D107:D107)+$B107/$C107)>$B107,$B107-SUM($D107:D107),$B107/$C107) -> 0 | F107: =IF((SUM($D107:E107)+$B107/$C107)>$B107,$B107-SUM($D107:E107),$B107/$C107) -> 0 | G107: =IF((SUM($D107:F107)+$B107/$C107)>$B107,$B107-SUM($D107:F107),$B107/$C107) -> 0 | H107: =IF((SUM($D107:G107)+$B107/$C107)>$B107,$B107-SUM($D107:G107),$B107/$C107) -> 0 | I107: =IF((SUM($D107:H107)+$B107/$C107)>$B107,$B107-SUM($D107:H107),$B107/$C107) -> 0 | J107: =IF((SUM($D107:I107)+$B107/$C107)>$B107,$B107-SUM($D107:I107),$B107/$C107) -> 0 | K107: =IF((SUM($D107:J107)+$B107/$C107)>$B107,$B107-SUM($D107:J107),$B107/$C107) -> 0 | L107: =IF((SUM($D107:K107)+$B107/$C107)>$B107,$B107-SUM($D107:K107),$B107/$C107) -> 0 | M107: =IF((SUM($D107:L107)+$B107/$C107)>$B107,$B107-SUM($D107:L107),$B107/$C107) -> 0 | N107: =IF((SUM($D107:M107)+$B107/$C107)>$B107,$B107-SUM($D107:M107),$B107/$C107) -> 0 | O107: =IF((SUM($D107:N107)+$B107/$C107)>$B107,$B107-SUM($D107:N107),$B107/$C107) -> 0 | P107: =IF((SUM($D107:O107)+$B107/$C107)>$B107,$B107-SUM($D107:O107),$B107/$C107) -> 0 | Q107: =IF((SUM($D107:P107)+$B107/$C107)>$B107,$B107-SUM($D107:P107),$B107/$C107) -> 0 | R107: =IF((SUM($D107:Q107)+$B107/$C107)>$B107,$B107-SUM($D107:Q107),$B107/$C107) -> 0 | S107: =IF((SUM($D107:R107)+$B107/$C107)>$B107,$B107-SUM($D107:R107),$B107/$C107) -> 0 | T107: =IF((SUM($D107:S107)+$B107/$C107)>$B107,$B107-SUM($D107:S107),$B107/$C107) -> 0 | U107: =IF((SUM($D107:T107)+$B107/$C107)>$B107,$B107-SUM($D107:T107),$B107/$C107) -> 0 | V107: =IF((SUM($D107:U107)+$B107/$C107)>$B107,$B107-SUM($D107:U107),$B107/$C107) -> 0 | W107: =IF((SUM($D107:V107)+$B107/$C107)>$B107,$B107-SUM($D107:V107),$B107/$C107) -> 0 | X107: =IF((SUM($D107:W107)+$B107/$C107)>$B107,$B107-SUM($D107:W107),$B107/$C107) -> 0 | Y107: =IF((SUM($D107:X107)+$B107/$C107)>$B107,$B107-SUM($D107:X107),$B107/$C107) -> 0 | Z107: =IF((SUM($D107:Y107)+$B107/$C107)>$B107,$B107-SUM($D107:Y107),$B107/$C107) -> 0 | AA107: =IF((SUM($D107:Z107)+$B107/$C107)>$B107,$B107-SUM($D107:Z107),$B107/$C107) -> 0
B108: =SUM(B105:B107) -> 291.6842457 | D108: =SUM(D105:D107) -> 116.6736983 | E108: =SUM(E105:E107) -> 116.6736983 | F108: 58.33684913 | G108: 0 | H108: 0 | I108: 0 | J108: 0 | K108: 0 | L108: 0 | M108: 0 | N108: 0 | O108: 0 | P108: 0 | Q108: 0 | R108: 0 | S108: 0 | T108: 0 | U108: 0 | V108: 0 | W108: 0 | X108: =SUM(X105:X107) -> 0 | Y108: =SUM(Y105:Y107) -> 0 | Z108: =SUM(Z105:Z107) -> 0 | AA108: =SUM(AA105:AA107) -> 0
A111: Other | B111: RAB WDV | C111: Remaining | D111: =D$4 -> 2009 | E111: =E$4 -> 2010 | F111: 2011 | G111: 2012 | H111: 2013 | I111: 2014 | J111: 2015 | K111: 2016 | L111: 2017 | M111: 2018 | N111: 2019 | O111: 2020 | P111: 2021 | Q111: 2022 | R111: 2023 | S111: 2024 | T111: 2025 | U111: 2026 | V111: 2027 | W111: 2028 | X111: 2029 | Y111: 2030 | Z111: 2031 | AA111: 2032
A112: =$A$4 -> ($000 Real 2008) | B112: 1/01/2009 | C112: Life (years)
A113: 2006 | B113: ='Offset of Costs and Rev 2006-08'!D$170-SUM('Offset of Costs and Rev 2006-08'!D230:F230) -> 0 | C113: ='Offset of Costs and Rev 2006-08'!C230-(D$111-A113-0.5) -> 2.5 | D113: =IF(C113<1,B113,B113/C113) -> 0 | E113: =IF((SUM($D113:D113)+$B113/$C113)>$B113,$B113-SUM($D113:D113),$B113/$C113) -> 0 | F113: =IF((SUM($D113:E113)+$B113/$C113)>$B113,$B113-SUM($D113:E113),$B113/$C113) -> 0 | G113: =IF((SUM($D113:F113)+$B113/$C113)>$B113,$B113-SUM($D113:F113),$B113/$C113) -> 0 | H113: =IF((SUM($D113:G113)+$B113/$C113)>$B113,$B113-SUM($D113:G113),$B113/$C113) -> 0 | I113: =IF((SUM($D113:H113)+$B113/$C113)>$B113,$B113-SUM($D113:H113),$B113/$C113) -> 0 | J113: =IF((SUM($D113:I113)+$B113/$C113)>$B113,$B113-SUM($D113:I113),$B113/$C113) -> 0 | K113: =IF((SUM($D113:J113)+$B113/$C113)>$B113,$B113-SUM($D113:J113),$B113/$C113) -> 0 | L113: =IF((SUM($D113:K113)+$B113/$C113)>$B113,$B113-SUM($D113:K113),$B113/$C113) -> 0 | M113: =IF((SUM($D113:L113)+$B113/$C113)>$B113,$B113-SUM($D113:L113),$B113/$C113) -> 0 | N113: =IF((SUM($D113:M113)+$B113/$C113)>$B113,$B113-SUM($D113:M113),$B113/$C113) -> 0 | O113: =IF((SUM($D113:N113)+$B113/$C113)>$B113,$B113-SUM($D113:N113),$B113/$C113) -> 0 | P113: =IF((SUM($D113:O113)+$B113/$C113)>$B113,$B113-SUM($D113:O113),$B113/$C113) -> 0 | Q113: =IF((SUM($D113:P113)+$B113/$C113)>$B113,$B113-SUM($D113:P113),$B113/$C113) -> 0 | R113: =IF((SUM($D113:Q113)+$B113/$C113)>$B113,$B113-SUM($D113:Q113),$B113/$C113) -> 0 | S113: =IF((SUM($D113:R113)+$B113/$C113)>$B113,$B113-SUM($D113:R113),$B113/$C113) -> 0 | T113: =IF((SUM($D113:S113)+$B113/$C113)>$B113,$B113-SUM($D113:S113),$B113/$C113) -> 0 | U113: =IF((SUM($D113:T113)+$B113/$C113)>$B113,$B113-SUM($D113:T113),$B113/$C113) -> 0 | V113: =IF((SUM($D113:U113)+$B113/$C113)>$B113,$B113-SUM($D113:U113),$B113/$C113) -> 0 | W113: =IF((SUM($D113:V113)+$B113/$C113)>$B113,$B113-SUM($D113:V113),$B113/$C113) -> 0 | X113: =IF((SUM($D113:W113)+$B113/$C113)>$B113,$B113-SUM($D113:W113),$B113/$C113) -> 0 | Y113: =IF((SUM($D113:X113)+$B113/$C113)>$B113,$B113-SUM($D113:X113),$B113/$C113) -> 0 | Z113: =IF((SUM($D113:Y113)+$B113/$C113)>$B113,$B113-SUM($D113:Y113),$B113/$C113) -> 0 | AA113: =IF((SUM($D113:Z113)+$B113/$C113)>$B113,$B113-SUM($D113:Z113),$B113/$C113) -> 0
A114: 2007 | B114: ='Offset of Costs and Rev 2006-08'!E$170-SUM('Offset of Costs and Rev 2006-08'!D231:F231) -> 0 | C114: ='Offset of Costs and Rev 2006-08'!C231-(D$111-A114-0.5) -> 3.5 | D114: =IF(C114<1,B114,B114/C114) -> 0 | E114: =IF((SUM($D114:D114)+$B114/$C114)>$B114,$B114-SUM($D114:D114),$B114/$C114) -> 0 | F114: =IF((SUM($D114:E114)+$B114/$C114)>$B114,$B114-SUM($D114:E114),$B114/$C114) -> 0 | G114: =IF((SUM($D114:F114)+$B114/$C114)>$B114,$B114-SUM($D114:F114),$B114/$C114) -> 0 | H114: =IF((SUM($D114:G114)+$B114/$C114)>$B114,$B114-SUM($D114:G114),$B114/$C114) -> 0 | I114: =IF((SUM($D114:H114)+$B114/$C114)>$B114,$B114-SUM($D114:H114),$B114/$C114) -> 0 | J114: =IF((SUM($D114:I114)+$B114/$C114)>$B114,$B114-SUM($D114:I114),$B114/$C114) -> 0 | K114: =IF((SUM($D114:J114)+$B114/$C114)>$B114,$B114-SUM($D114:J114),$B114/$C114) -> 0 | L114: =IF((SUM($D114:K114)+$B114/$C114)>$B114,$B114-SUM($D114:K114),$B114/$C114) -> 0 | M114: =IF((SUM($D114:L114)+$B114/$C114)>$B114,$B114-SUM($D114:L114),$B114/$C114) -> 0 | N114: =IF((SUM($D114:M114)+$B114/$C114)>$B114,$B114-SUM($D114:M114),$B114/$C114) -> 0 | O114: =IF((SUM($D114:N114)+$B114/$C114)>$B114,$B114-SUM($D114:N114),$B114/$C114) -> 0 | P114: =IF((SUM($D114:O114)+$B114/$C114)>$B114,$B114-SUM($D114:O114),$B114/$C114) -> 0 | Q114: =IF((SUM($D114:P114)+$B114/$C114)>$B114,$B114-SUM($D114:P114),$B114/$C114) -> 0 | R114: =IF((SUM($D114:Q114)+$B114/$C114)>$B114,$B114-SUM($D114:Q114),$B114/$C114) -> 0 | S114: =IF((SUM($D114:R114)+$B114/$C114)>$B114,$B114-SUM($D114:R114),$B114/$C114) -> 0 | T114: =IF((SUM($D114:S114)+$B114/$C114)>$B114,$B114-SUM($D114:S114),$B114/$C114) -> 0 | U114: =IF((SUM($D114:T114)+$B114/$C114)>$B114,$B114-SUM($D114:T114),$B114/$C114) -> 0 | V114: =IF((SUM($D114:U114)+$B114/$C114)>$B114,$B114-SUM($D114:U114),$B114/$C114) -> 0 | W114: =IF((SUM($D114:V114)+$B114/$C114)>$B114,$B114-SUM($D114:V114),$B114/$C114) -> 0 | X114: =IF((SUM($D114:W114)+$B114/$C114)>$B114,$B114-SUM($D114:W114),$B114/$C114) -> 0 | Y114: =IF((SUM($D114:X114)+$B114/$C114)>$B114,$B114-SUM($D114:X114),$B114/$C114) -> 0 | Z114: =IF((SUM($D114:Y114)+$B114/$C114)>$B114,$B114-SUM($D114:Y114),$B114/$C114) -> 0 | AA114: =IF((SUM($D114:Z114)+$B114/$C114)>$B114,$B114-SUM($D114:Z114),$B114/$C114) -> 0
A115: 2008 | B115: ='Offset of Costs and Rev 2006-08'!F$170-SUM('Offset of Costs and Rev 2006-08'!D232:F232) -> 0 | C115: ='Offset of Costs and Rev 2006-08'!C232-(D$111-A115-0.5) -> 4.5 | D115: =IF(C115<1,B115,B115/C115) -> 0 | E115: =IF((SUM($D115:D115)+$B115/$C115)>$B115,$B115-SUM($D115:D115),$B115/$C115) -> 0 | F115: =IF((SUM($D115:E115)+$B115/$C115)>$B115,$B115-SUM($D115:E115),$B115/$C115) -> 0 | G115: =IF((SUM($D115:F115)+$B115/$C115)>$B115,$B115-SUM($D115:F115),$B115/$C115) -> 0 | H115: =IF((SUM($D115:G115)+$B115/$C115)>$B115,$B115-SUM($D115:G115),$B115/$C115) -> 0 | I115: =IF((SUM($D115:H115)+$B115/$C115)>$B115,$B115-SUM($D115:H115),$B115/$C115) -> 0 | J115: =IF((SUM($D115:I115)+$B115/$C115)>$B115,$B115-SUM($D115:I115),$B115/$C115) -> 0 | K115: =IF((SUM($D115:J115)+$B115/$C115)>$B115,$B115-SUM($D115:J115),$B115/$C115) -> 0 | L115: =IF((SUM($D115:K115)+$B115/$C115)>$B115,$B115-SUM($D115:K115),$B115/$C115) -> 0 | M115: =IF((SUM($D115:L115)+$B115/$C115)>$B115,$B115-SUM($D115:L115),$B115/$C115) -> 0 | N115: =IF((SUM($D115:M115)+$B115/$C115)>$B115,$B115-SUM($D115:M115),$B115/$C115) -> 0 | O115: =IF((SUM($D115:N115)+$B115/$C115)>$B115,$B115-SUM($D115:N115),$B115/$C115) -> 0 | P115: =IF((SUM($D115:O115)+$B115/$C115)>$B115,$B115-SUM($D115:O115),$B115/$C115) -> 0 | Q115: =IF((SUM($D115:P115)+$B115/$C115)>$B115,$B115-SUM($D115:P115),$B115/$C115) -> 0 | R115: =IF((SUM($D115:Q115)+$B115/$C115)>$B115,$B115-SUM($D115:Q115),$B115/$C115) -> 0 | S115: =IF((SUM($D115:R115)+$B115/$C115)>$B115,$B115-SUM($D115:R115),$B115/$C115) -> 0 | T115: =IF((SUM($D115:S115)+$B115/$C115)>$B115,$B115-SUM($D115:S115),$B115/$C115) -> 0 | U115: =IF((SUM($D115:T115)+$B115/$C115)>$B115,$B115-SUM($D115:T115),$B115/$C115) -> 0 | V115: =IF((SUM($D115:U115)+$B115/$C115)>$B115,$B115-SUM($D115:U115),$B115/$C115) -> 0 | W115: =IF((SUM($D115:V115)+$B115/$C115)>$B115,$B115-SUM($D115:V115),$B115/$C115) -> 0 | X115: =IF((SUM($D115:W115)+$B115/$C115)>$B115,$B115-SUM($D115:W115),$B115/$C115) -> 0 | Y115: =IF((SUM($D115:X115)+$B115/$C115)>$B115,$B115-SUM($D115:X115),$B115/$C115) -> 0 | Z115: =IF((SUM($D115:Y115)+$B115/$C115)>$B115,$B115-SUM($D115:Y115),$B115/$C115) -> 0 | AA115: =IF((SUM($D115:Z115)+$B115/$C115)>$B115,$B115-SUM($D115:Z115),$B115/$C115) -> 0
B116: =SUM(B113:B115) -> 0 | D116: =SUM(D113:D115) -> 0 | E116: =SUM(E113:E115) -> 0 | F116: 0 | G116: 0 | H116: 0 | I116: 0 | J116: 0 | K116: 0 | L116: 0 | M116: 0 | N116: 0 | O116: 0 | P116: 0 | Q116: 0 | R116: 0 | S116: 0 | T116: 0 | U116: 0 | V116: 0 | W116: 0 | X116: =SUM(X113:X115) -> 0 | Y116: =SUM(Y113:Y115) -> 0 | Z116: =SUM(Z113:Z115) -> 0 | AA116: =SUM(AA113:AA115) -> 0
A119: Total | B119: =SUM(B92,B100,B108,B116) -> 14311.5884 | D119: =SUM(D92,D100,D108,D116) -> 2920.654529 | E119: 2920.654529 | F119: 2862.31768 | G119: 2803.980831 | H119: 2803.980831 | I119: 4.547473509e-13 | J119: 0 | K119: 0 | L119: 0 | M119: 0 | N119: 0 | O119: 0 | P119: 0 | Q119: 0 | R119: 0 | S119: 0 | T119: 0 | U119: 0 | V119: 0 | W119: 0 | X119: =SUM(X92,X100,X108,X116) -> 0 | Y119: =SUM(Y92,Y100,Y108,Y116) -> 0 | Z119: =SUM(Z92,Z100,Z108,Z116) -> 0 | AA119: =SUM(AA92,AA100,AA108,AA116) -> 0
A123: Regulatory Depreciation on Opening Assets at 1 January 2009 - AMI Capex 2006-08
A124: =$A$4 -> ($000 Real 2008)
A125: RAB at 1 January 2009 | D125: =D$4 -> 2009 | E125: =E$4 -> 2010 | F125: 2011 | G125: 2012 | H125: 2013 | I125: 2014 | J125: 2015 | K125: 2016 | L125: 2017 | M125: 2018 | N125: 2019 | O125: 2020 | P125: 2021 | Q125: 2022 | R125: 2023 | S125: 2024 | T125: 2025 | U125: 2026 | V125: 2027 | W125: 2028 | X125: 2029 | Y125: 2030 | Z125: 2031 | AA125: 2032
A126: Opening asset base | D126: =B163 -> 35066.33814 | E126: =D128 -> 29484.05903 | F126: =E128 -> 23901.77993 | G126: 18319.50082 | H126: 12737.22171 | I126: 7154.942609 | J126: 2181.901528 | K126: 0 | L126: 0 | M126: 0 | N126: 0 | O126: 0 | P126: 0 | Q126: 0 | R126: 0 | S126: 0 | T126: 0 | U126: 0 | V126: 0 | W126: 0 | X126: =W128 -> 0 | Y126: =X128 -> 0 | Z126: =Y128 -> 0 | AA126: =Z128 -> 0
A127: Regulatory depreciation | D127: =D163 -> 5582.279106 | E127: =E163 -> 5582.279106 | F127: 5582.279106 | G127: 5582.279106 | H127: 5582.279106 | I127: 4973.041081 | J127: 2181.901528 | K127: 0 | L127: 0 | M127: 0 | N127: 0 | O127: 0 | P127: 0 | Q127: 0 | R127: 0 | S127: 0 | T127: 0 | U127: 0 | V127: 0 | W127: 0 | X127: =X163 -> 0 | Y127: =Y163 -> 0 | Z127: =Z163 -> 0 | AA127: =AA163 -> 0
A128: Closing asset base | D128: =D126-D127 -> 29484.05903 | E128: =E126-E127 -> 23901.77993 | F128: 18319.50082 | G128: 12737.22171 | H128: 7154.942609 | I128: 2181.901528 | J128: 0 | K128: 0 | L128: 0 | M128: 0 | N128: 0 | O128: 0 | P128: 0 | Q128: 0 | R128: 0 | S128: 0 | T128: 0 | U128: 0 | V128: 0 | W128: 0 | X128: =X126-X127 -> 0 | Y128: =Y126-Y127 -> 0 | Z128: =Z126-Z127 -> 0 | AA128: =AA126-AA127 -> 0
A129: Check | C129: =SUM(D129:E129) -> 0 | D129: =IF(ABS(D126-SUM(D127:AA127))<0.001,0,ABS(D126-SUM(D127:AA127))) -> 0 | E129: =IF(ABS(D126-('Data 2006-08'!D88*'Data 2006-08'!D156*(1+'Data 2006-08'!C141)^2.5+'Data 2006-08'!E88*'Data 2006-08'!E156*(1+'Data 2006-08'!C141)^1.5+'Data 2006-08'!F88*(1+'Data 2006-08'!C141)^0.5)/10^3)<0.001,0,ABS(D126-('Data 2006-08'!D88*'Data 2006-08'!D156*(1+'Data 2006-08'!C141)^2.5+'Data 2006-08'!E88*'Data 2006-08'!E156*(1+'Data 2006-08'!C141)^1.5+'Data 2006-08'!F88*(1+'Data 2006-08'!C141)^0.5)/10^3)) -> 0
A131: ='Data 2009-15 (Real $2008)'!A$154 -> Remotely read interval meters & transformers | B131: RAB WDV | C131: Remaining | D131: =D$4 -> 2009 | E131: =E$4 -> 2010 | F131: 2011 | G131: 2012 | H131: 2013 | I131: 2014 | J131: 2015 | K131: 2016 | L131: 2017 | M131: 2018 | N131: 2019 | O131: 2020 | P131: 2021 | Q131: 2022 | R131: 2023 | S131: 2024 | T131: 2025 | U131: 2026 | V131: 2027 | W131: 2028 | X131: 2029 | Y131: 2030 | Z131: 2031 | AA131: 2032
A132: =$A$4 -> ($000 Real 2008) | B132: 1/01/2009 | C132: Life (years)
A133: 2006 | B133: ='Data 2006-08'!D$84*'Data 2006-08'!D156/10^3*(1+'Data 2006-08'!C$141)^2.5 -> 0 | C133: ='Data 2009-15 (Real $2008)'!C$154-(D$131-A133-0.5) -> 12.5 | D133: =IF(C133<1,B133,B133/C133) -> 0 | E133: =IF((SUM($D133:D133)+$B133/$C133)>$B133,$B133-SUM($D133:D133),$B133/$C133) -> 0 | F133: =IF((SUM($D133:E133)+$B133/$C133)>$B133,$B133-SUM($D133:E133),$B133/$C133) -> 0 | G133: =IF((SUM($D133:F133)+$B133/$C133)>$B133,$B133-SUM($D133:F133),$B133/$C133) -> 0 | H133: =IF((SUM($D133:G133)+$B133/$C133)>$B133,$B133-SUM($D133:G133),$B133/$C133) -> 0 | I133: =IF((SUM($D133:H133)+$B133/$C133)>$B133,$B133-SUM($D133:H133),$B133/$C133) -> 0 | J133: =IF((SUM($D133:I133)+$B133/$C133)>$B133,$B133-SUM($D133:I133),$B133/$C133) -> 0 | K133: =IF((SUM($D133:J133)+$B133/$C133)>$B133,$B133-SUM($D133:J133),$B133/$C133) -> 0 | L133: =IF((SUM($D133:K133)+$B133/$C133)>$B133,$B133-SUM($D133:K133),$B133/$C133) -> 0 | M133: =IF((SUM($D133:L133)+$B133/$C133)>$B133,$B133-SUM($D133:L133),$B133/$C133) -> 0 | N133: =IF((SUM($D133:M133)+$B133/$C133)>$B133,$B133-SUM($D133:M133),$B133/$C133) -> 0 | O133: =IF((SUM($D133:N133)+$B133/$C133)>$B133,$B133-SUM($D133:N133),$B133/$C133) -> 0 | P133: =IF((SUM($D133:O133)+$B133/$C133)>$B133,$B133-SUM($D133:O133),$B133/$C133) -> 0 | Q133: =IF((SUM($D133:P133)+$B133/$C133)>$B133,$B133-SUM($D133:P133),$B133/$C133) -> 0 | R133: =IF((SUM($D133:Q133)+$B133/$C133)>$B133,$B133-SUM($D133:Q133),$B133/$C133) -> 0 | S133: =IF((SUM($D133:R133)+$B133/$C133)>$B133,$B133-SUM($D133:R133),$B133/$C133) -> 0 | T133: =IF((SUM($D133:S133)+$B133/$C133)>$B133,$B133-SUM($D133:S133),$B133/$C133) -> 0 | U133: =IF((SUM($D133:T133)+$B133/$C133)>$B133,$B133-SUM($D133:T133),$B133/$C133) -> 0 | V133: =IF((SUM($D133:U133)+$B133/$C133)>$B133,$B133-SUM($D133:U133),$B133/$C133) -> 0 | W133: =IF((SUM($D133:V133)+$B133/$C133)>$B133,$B133-SUM($D133:V133),$B133/$C133) -> 0 | X133: =IF((SUM($D133:W133)+$B133/$C133)>$B133,$B133-SUM($D133:W133),$B133/$C133) -> 0 | Y133: =IF((SUM($D133:X133)+$B133/$C133)>$B133,$B133-SUM($D133:X133),$B133/$C133) -> 0 | Z133: =IF((SUM($D133:Y133)+$B133/$C133)>$B133,$B133-SUM($D133:Y133),$B133/$C133) -> 0 | AA133: =IF((SUM($D133:Z133)+$B133/$C133)>$B133,$B133-SUM($D133:Z133),$B133/$C133) -> 0
A134: 2007 | B134: ='Data 2006-08'!E$84*'Data 2006-08'!E156/10^3*(1+'Data 2006-08'!C$141)^1.5 -> 0 | C134: ='Data 2009-15 (Real $2008)'!C$154-(D$131-A134-0.5) -> 13.5 | D134: =IF(C134<1,B134,B134/C134) -> 0 | E134: =IF((SUM($D134:D134)+$B134/$C134)>$B134,$B134-SUM($D134:D134),$B134/$C134) -> 0 | F134: =IF((SUM($D134:E134)+$B134/$C134)>$B134,$B134-SUM($D134:E134),$B134/$C134) -> 0 | G134: =IF((SUM($D134:F134)+$B134/$C134)>$B134,$B134-SUM($D134:F134),$B134/$C134) -> 0 | H134: =IF((SUM($D134:G134)+$B134/$C134)>$B134,$B134-SUM($D134:G134),$B134/$C134) -> 0 | I134: =IF((SUM($D134:H134)+$B134/$C134)>$B134,$B134-SUM($D134:H134),$B134/$C134) -> 0 | J134: =IF((SUM($D134:I134)+$B134/$C134)>$B134,$B134-SUM($D134:I134),$B134/$C134) -> 0 | K134: =IF((SUM($D134:J134)+$B134/$C134)>$B134,$B134-SUM($D134:J134),$B134/$C134) -> 0 | L134: =IF((SUM($D134:K134)+$B134/$C134)>$B134,$B134-SUM($D134:K134),$B134/$C134) -> 0 | M134: =IF((SUM($D134:L134)+$B134/$C134)>$B134,$B134-SUM($D134:L134),$B134/$C134) -> 0 | N134: =IF((SUM($D134:M134)+$B134/$C134)>$B134,$B134-SUM($D134:M134),$B134/$C134) -> 0 | O134: =IF((SUM($D134:N134)+$B134/$C134)>$B134,$B134-SUM($D134:N134),$B134/$C134) -> 0 | P134: =IF((SUM($D134:O134)+$B134/$C134)>$B134,$B134-SUM($D134:O134),$B134/$C134) -> 0 | Q134: =IF((SUM($D134:P134)+$B134/$C134)>$B134,$B134-SUM($D134:P134),$B134/$C134) -> 0 | R134: =IF((SUM($D134:Q134)+$B134/$C134)>$B134,$B134-SUM($D134:Q134),$B134/$C134) -> 0 | S134: =IF((SUM($D134:R134)+$B134/$C134)>$B134,$B134-SUM($D134:R134),$B134/$C134) -> 0 | T134: =IF((SUM($D134:S134)+$B134/$C134)>$B134,$B134-SUM($D134:S134),$B134/$C134) -> 0 | U134: =IF((SUM($D134:T134)+$B134/$C134)>$B134,$B134-SUM($D134:T134),$B134/$C134) -> 0 | V134: =IF((SUM($D134:U134)+$B134/$C134)>$B134,$B134-SUM($D134:U134),$B134/$C134) -> 0 | W134: =IF((SUM($D134:V134)+$B134/$C134)>$B134,$B134-SUM($D134:V134),$B134/$C134) -> 0 | X134: =IF((SUM($D134:W134)+$B134/$C134)>$B134,$B134-SUM($D134:W134),$B134/$C134) -> 0 | Y134: =IF((SUM($D134:X134)+$B134/$C134)>$B134,$B134-SUM($D134:X134),$B134/$C134) -> 0 | Z134: =IF((SUM($D134:Y134)+$B134/$C134)>$B134,$B134-SUM($D134:Y134),$B134/$C134) -> 0 | AA134: =IF((SUM($D134:Z134)+$B134/$C134)>$B134,$B134-SUM($D134:Z134),$B134/$C134) -> 0
A135: 2008 | B135: ='Data 2006-08'!F$84/10^3*(1+'Data 2006-08'!C$141)^0.5 -> 0 | C135: ='Data 2009-15 (Real $2008)'!C$154-(D$131-A135-0.5) -> 14.5 | D135: =IF(C135<1,B135,B135/C135) -> 0 | E135: =IF((SUM($D135:D135)+$B135/$C135)>$B135,$B135-SUM($D135:D135),$B135/$C135) -> 0 | F135: =IF((SUM($D135:E135)+$B135/$C135)>$B135,$B135-SUM($D135:E135),$B135/$C135) -> 0 | G135: =IF((SUM($D135:F135)+$B135/$C135)>$B135,$B135-SUM($D135:F135),$B135/$C135) -> 0 | H135: =IF((SUM($D135:G135)+$B135/$C135)>$B135,$B135-SUM($D135:G135),$B135/$C135) -> 0 | I135: =IF((SUM($D135:H135)+$B135/$C135)>$B135,$B135-SUM($D135:H135),$B135/$C135) -> 0 | J135: =IF((SUM($D135:I135)+$B135/$C135)>$B135,$B135-SUM($D135:I135),$B135/$C135) -> 0 | K135: =IF((SUM($D135:J135)+$B135/$C135)>$B135,$B135-SUM($D135:J135),$B135/$C135) -> 0 | L135: =IF((SUM($D135:K135)+$B135/$C135)>$B135,$B135-SUM($D135:K135),$B135/$C135) -> 0 | M135: =IF((SUM($D135:L135)+$B135/$C135)>$B135,$B135-SUM($D135:L135),$B135/$C135) -> 0 | N135: =IF((SUM($D135:M135)+$B135/$C135)>$B135,$B135-SUM($D135:M135),$B135/$C135) -> 0 | O135: =IF((SUM($D135:N135)+$B135/$C135)>$B135,$B135-SUM($D135:N135),$B135/$C135) -> 0 | P135: =IF((SUM($D135:O135)+$B135/$C135)>$B135,$B135-SUM($D135:O135),$B135/$C135) -> 0 | Q135: =IF((SUM($D135:P135)+$B135/$C135)>$B135,$B135-SUM($D135:P135),$B135/$C135) -> 0 | R135: =IF((SUM($D135:Q135)+$B135/$C135)>$B135,$B135-SUM($D135:Q135),$B135/$C135) -> 0 | S135: =IF((SUM($D135:R135)+$B135/$C135)>$B135,$B135-SUM($D135:R135),$B135/$C135) -> 0 | T135: =IF((SUM($D135:S135)+$B135/$C135)>$B135,$B135-SUM($D135:S135),$B135/$C135) -> 0 | U135: =IF((SUM($D135:T135)+$B135/$C135)>$B135,$B135-SUM($D135:T135),$B135/$C135) -> 0 | V135: =IF((SUM($D135:U135)+$B135/$C135)>$B135,$B135-SUM($D135:U135),$B135/$C135) -> 0 | W135: =IF((SUM($D135:V135)+$B135/$C135)>$B135,$B135-SUM($D135:V135),$B135/$C135) -> 0 | X135: =IF((SUM($D135:W135)+$B135/$C135)>$B135,$B135-SUM($D135:W135),$B135/$C135) -> 0 | Y135: =IF((SUM($D135:X135)+$B135/$C135)>$B135,$B135-SUM($D135:X135),$B135/$C135) -> 0 | Z135: =IF((SUM($D135:Y135)+$B135/$C135)>$B135,$B135-SUM($D135:Y135),$B135/$C135) -> 0 | AA135: =IF((SUM($D135:Z135)+$B135/$C135)>$B135,$B135-SUM($D135:Z135),$B135/$C135) -> 0
B136: =SUM(B133:B135) -> 0 | D136: =SUM(D133:D135) -> 0 | E136: =SUM(E133:E135) -> 0 | F136: 0 | G136: 0 | H136: 0 | I136: 0 | J136: 0 | K136: 0 | L136: 0 | M136: 0 | N136: 0 | O136: 0 | P136: 0 | Q136: 0 | R136: 0 | S136: 0 | T136: 0 | U136: 0 | V136: 0 | W136: 0 | X136: =SUM(X133:X135) -> 0 | Y136: =SUM(Y133:Y135) -> 0 | Z136: =SUM(Z133:Z135) -> 0 | AA136: =SUM(AA133:AA135) -> 0
A139: IT | B139: RAB WDV | C139: Remaining | D139: =D$4 -> 2009 | E139: =E$4 -> 2010 | F139: 2011 | G139: 2012 | H139: 2013 | I139: 2014 | J139: 2015 | K139: 2016 | L139: 2017 | M139: 2018 | N139: 2019 | O139: 2020 | P139: 2021 | Q139: 2022 | R139: 2023 | S139: 2024 | T139: 2025 | U139: 2026 | V139: 2027 | W139: 2028 | X139: 2029 | Y139: 2030 | Z139: 2031 | AA139: 2032
A140: =$A$4 -> ($000 Real 2008) | B140: 1/01/2009 | C140: Life (years)
A141: 2006 | B141: ='Data 2006-08'!D$85*'Data 2006-08'!D156/10^3*(1+'Data 2006-08'!C$141)^2.5 -> 0 | C141: ='Data 2009-15 (Real $2008)'!C$155-(D$139-A141-0.5) -> 4.5 | D141: =IF(C141<1,B141,B141/C141) -> 0 | E141: =IF((SUM($D141:D141)+$B141/$C141)>$B141,$B141-SUM($D141:D141),$B141/$C141) -> 0 | F141: =IF((SUM($D141:E141)+$B141/$C141)>$B141,$B141-SUM($D141:E141),$B141/$C141) -> 0 | G141: =IF((SUM($D141:F141)+$B141/$C141)>$B141,$B141-SUM($D141:F141),$B141/$C141) -> 0 | H141: =IF((SUM($D141:G141)+$B141/$C141)>$B141,$B141-SUM($D141:G141),$B141/$C141) -> 0 | I141: =IF((SUM($D141:H141)+$B141/$C141)>$B141,$B141-SUM($D141:H141),$B141/$C141) -> 0 | J141: =IF((SUM($D141:I141)+$B141/$C141)>$B141,$B141-SUM($D141:I141),$B141/$C141) -> 0 | K141: =IF((SUM($D141:J141)+$B141/$C141)>$B141,$B141-SUM($D141:J141),$B141/$C141) -> 0 | L141: =IF((SUM($D141:K141)+$B141/$C141)>$B141,$B141-SUM($D141:K141),$B141/$C141) -> 0 | M141: =IF((SUM($D141:L141)+$B141/$C141)>$B141,$B141-SUM($D141:L141),$B141/$C141) -> 0 | N141: =IF((SUM($D141:M141)+$B141/$C141)>$B141,$B141-SUM($D141:M141),$B141/$C141) -> 0 | O141: =IF((SUM($D141:N141)+$B141/$C141)>$B141,$B141-SUM($D141:N141),$B141/$C141) -> 0 | P141: =IF((SUM($D141:O141)+$B141/$C141)>$B141,$B141-SUM($D141:O141),$B141/$C141) -> 0 | Q141: =IF((SUM($D141:P141)+$B141/$C141)>$B141,$B141-SUM($D141:P141),$B141/$C141) -> 0 | R141: =IF((SUM($D141:Q141)+$B141/$C141)>$B141,$B141-SUM($D141:Q141),$B141/$C141) -> 0 | S141: =IF((SUM($D141:R141)+$B141/$C141)>$B141,$B141-SUM($D141:R141),$B141/$C141) -> 0 | T141: =IF((SUM($D141:S141)+$B141/$C141)>$B141,$B141-SUM($D141:S141),$B141/$C141) -> 0 | U141: =IF((SUM($D141:T141)+$B141/$C141)>$B141,$B141-SUM($D141:T141),$B141/$C141) -> 0 | V141: =IF((SUM($D141:U141)+$B141/$C141)>$B141,$B141-SUM($D141:U141),$B141/$C141) -> 0 | W141: =IF((SUM($D141:V141)+$B141/$C141)>$B141,$B141-SUM($D141:V141),$B141/$C141) -> 0 | X141: =IF((SUM($D141:W141)+$B141/$C141)>$B141,$B141-SUM($D141:W141),$B141/$C141) -> 0 | Y141: =IF((SUM($D141:X141)+$B141/$C141)>$B141,$B141-SUM($D141:X141),$B141/$C141) -> 0 | Z141: =IF((SUM($D141:Y141)+$B141/$C141)>$B141,$B141-SUM($D141:Y141),$B141/$C141) -> 0 | AA141: =IF((SUM($D141:Z141)+$B141/$C141)>$B141,$B141-SUM($D141:Z141),$B141/$C141) -> 0
A142: 2007 | B142: ='Data 2006-08'!E$85*'Data 2006-08'!E156/10^3*(1+'Data 2006-08'!C$141)^1.5 -> 0 | C142: ='Data 2009-15 (Real $2008)'!C$155-(D$139-A142-0.5) -> 5.5 | D142: =IF(C142<1,B142,B142/C142) -> 0 | E142: =IF((SUM($D142:D142)+$B142/$C142)>$B142,$B142-SUM($D142:D142),$B142/$C142) -> 0 | F142: =IF((SUM($D142:E142)+$B142/$C142)>$B142,$B142-SUM($D142:E142),$B142/$C142) -> 0 | G142: =IF((SUM($D142:F142)+$B142/$C142)>$B142,$B142-SUM($D142:F142),$B142/$C142) -> 0 | H142: =IF((SUM($D142:G142)+$B142/$C142)>$B142,$B142-SUM($D142:G142),$B142/$C142) -> 0 | I142: =IF((SUM($D142:H142)+$B142/$C142)>$B142,$B142-SUM($D142:H142),$B142/$C142) -> 0 | J142: =IF((SUM($D142:I142)+$B142/$C142)>$B142,$B142-SUM($D142:I142),$B142/$C142) -> 0 | K142: =IF((SUM($D142:J142)+$B142/$C142)>$B142,$B142-SUM($D142:J142),$B142/$C142) -> 0 | L142: =IF((SUM($D142:K142)+$B142/$C142)>$B142,$B142-SUM($D142:K142),$B142/$C142) -> 0 | M142: =IF((SUM($D142:L142)+$B142/$C142)>$B142,$B142-SUM($D142:L142),$B142/$C142) -> 0 | N142: =IF((SUM($D142:M142)+$B142/$C142)>$B142,$B142-SUM($D142:M142),$B142/$C142) -> 0 | O142: =IF((SUM($D142:N142)+$B142/$C142)>$B142,$B142-SUM($D142:N142),$B142/$C142) -> 0 | P142: =IF((SUM($D142:O142)+$B142/$C142)>$B142,$B142-SUM($D142:O142),$B142/$C142) -> 0 | Q142: =IF((SUM($D142:P142)+$B142/$C142)>$B142,$B142-SUM($D142:P142),$B142/$C142) -> 0 | R142: =IF((SUM($D142:Q142)+$B142/$C142)>$B142,$B142-SUM($D142:Q142),$B142/$C142) -> 0 | S142: =IF((SUM($D142:R142)+$B142/$C142)>$B142,$B142-SUM($D142:R142),$B142/$C142) -> 0 | T142: =IF((SUM($D142:S142)+$B142/$C142)>$B142,$B142-SUM($D142:S142),$B142/$C142) -> 0 | U142: =IF((SUM($D142:T142)+$B142/$C142)>$B142,$B142-SUM($D142:T142),$B142/$C142) -> 0 | V142: =IF((SUM($D142:U142)+$B142/$C142)>$B142,$B142-SUM($D142:U142),$B142/$C142) -> 0 | W142: =IF((SUM($D142:V142)+$B142/$C142)>$B142,$B142-SUM($D142:V142),$B142/$C142) -> 0 | X142: =IF((SUM($D142:W142)+$B142/$C142)>$B142,$B142-SUM($D142:W142),$B142/$C142) -> 0 | Y142: =IF((SUM($D142:X142)+$B142/$C142)>$B142,$B142-SUM($D142:X142),$B142/$C142) -> 0 | Z142: =IF((SUM($D142:Y142)+$B142/$C142)>$B142,$B142-SUM($D142:Y142),$B142/$C142) -> 0 | AA142: =IF((SUM($D142:Z142)+$B142/$C142)>$B142,$B142-SUM($D142:Z142),$B142/$C142) -> 0
A143: 2008 | B143: ='Data 2006-08'!F$85/10^3*(1+'Data 2006-08'!C$141)^0.5 -> 10432.37154 | C143: ='Data 2009-15 (Real $2008)'!C$155-(D$139-A143-0.5) -> 6.5 | D143: =IF(C143<1,B143,B143/C143) -> 1604.980237 | E143: =IF((SUM($D143:D143)+$B143/$C143)>$B143,$B143-SUM($D143:D143),$B143/$C143) -> 1604.980237 | F143: =IF((SUM($D143:E143)+$B143/$C143)>$B143,$B143-SUM($D143:E143),$B143/$C143) -> 1604.980237 | G143: =IF((SUM($D143:F143)+$B143/$C143)>$B143,$B143-SUM($D143:F143),$B143/$C143) -> 1604.980237 | H143: =IF((SUM($D143:G143)+$B143/$C143)>$B143,$B143-SUM($D143:G143),$B143/$C143) -> 1604.980237 | I143: =IF((SUM($D143:H143)+$B143/$C143)>$B143,$B143-SUM($D143:H143),$B143/$C143) -> 1604.980237 | J143: =IF((SUM($D143:I143)+$B143/$C143)>$B143,$B143-SUM($D143:I143),$B143/$C143) -> 802.4901183 | K143: =IF((SUM($D143:J143)+$B143/$C143)>$B143,$B143-SUM($D143:J143),$B143/$C143) -> 0 | L143: =IF((SUM($D143:K143)+$B143/$C143)>$B143,$B143-SUM($D143:K143),$B143/$C143) -> 0 | M143: =IF((SUM($D143:L143)+$B143/$C143)>$B143,$B143-SUM($D143:L143),$B143/$C143) -> 0 | N143: =IF((SUM($D143:M143)+$B143/$C143)>$B143,$B143-SUM($D143:M143),$B143/$C143) -> 0 | O143: =IF((SUM($D143:N143)+$B143/$C143)>$B143,$B143-SUM($D143:N143),$B143/$C143) -> 0 | P143: =IF((SUM($D143:O143)+$B143/$C143)>$B143,$B143-SUM($D143:O143),$B143/$C143) -> 0 | Q143: =IF((SUM($D143:P143)+$B143/$C143)>$B143,$B143-SUM($D143:P143),$B143/$C143) -> 0 | R143: =IF((SUM($D143:Q143)+$B143/$C143)>$B143,$B143-SUM($D143:Q143),$B143/$C143) -> 0 | S143: =IF((SUM($D143:R143)+$B143/$C143)>$B143,$B143-SUM($D143:R143),$B143/$C143) -> 0 | T143: =IF((SUM($D143:S143)+$B143/$C143)>$B143,$B143-SUM($D143:S143),$B143/$C143) -> 0 | U143: =IF((SUM($D143:T143)+$B143/$C143)>$B143,$B143-SUM($D143:T143),$B143/$C143) -> 0 | V143: =IF((SUM($D143:U143)+$B143/$C143)>$B143,$B143-SUM($D143:U143),$B143/$C143) -> 0 | W143: =IF((SUM($D143:V143)+$B143/$C143)>$B143,$B143-SUM($D143:V143),$B143/$C143) -> 0 | X143: =IF((SUM($D143:W143)+$B143/$C143)>$B143,$B143-SUM($D143:W143),$B143/$C143) -> 0 | Y143: =IF((SUM($D143:X143)+$B143/$C143)>$B143,$B143-SUM($D143:X143),$B143/$C143) -> 0 | Z143: =IF((SUM($D143:Y143)+$B143/$C143)>$B143,$B143-SUM($D143:Y143),$B143/$C143) -> 0 | AA143: =IF((SUM($D143:Z143)+$B143/$C143)>$B143,$B143-SUM($D143:Z143),$B143/$C143) -> 0
B144: =SUM(B141:B143) -> 10432.37154 | D144: =SUM(D141:D143) -> 1604.980237 | E144: =SUM(E141:E143) -> 1604.980237 | F144: 1604.980237 | G144: 1604.980237 | H144: 1604.980237 | I144: 1604.980237 | J144: 802.4901183 | K144: 0 | L144: 0 | M144: 0 | N144: 0 | O144: 0 | P144: 0 | Q144: 0 | R144: 0 | S144: 0 | T144: 0 | U144: 0 | V144: 0 | W144: 0 | X144: =SUM(X141:X143) -> 0 | Y144: =SUM(Y141:Y143) -> 0 | Z144: =SUM(Z141:Z143) -> 0 | AA144: =SUM(AA141:AA143) -> 0
A147: Communications | B147: RAB WDV | C147: Remaining | D147: =D$4 -> 2009 | E147: =E$4 -> 2010 | F147: 2011 | G147: 2012 | H147: 2013 | I147: 2014 | J147: 2015 | K147: 2016 | L147: 2017 | M147: 2018 | N147: 2019 | O147: 2020 | P147: 2021 | Q147: 2022 | R147: 2023 | S147: 2024 | T147: 2025 | U147: 2026 | V147: 2027 | W147: 2028 | X147: 2029 | Y147: 2030 | Z147: 2031 | AA147: 2032
A148: =$A$4 -> ($000 Real 2008) | B148: 1/01/2009 | C148: Life (years)
A149: 2006 | B149: ='Data 2006-08'!D$86*'Data 2006-08'!D156/10^3*(1+'Data 2006-08'!C$141)^2.5 -> 0 | C149: ='Data 2009-15 (Real $2008)'!C$156-(D$147-A149-0.5) -> 4.5 | D149: =IF(C149<1,B149,B149/C149) -> 0 | E149: =IF((SUM($D149:D149)+$B149/$C149)>$B149,$B149-SUM($D149:D149),$B149/$C149) -> 0 | F149: =IF((SUM($D149:E149)+$B149/$C149)>$B149,$B149-SUM($D149:E149),$B149/$C149) -> 0 | G149: =IF((SUM($D149:F149)+$B149/$C149)>$B149,$B149-SUM($D149:F149),$B149/$C149) -> 0 | H149: =IF((SUM($D149:G149)+$B149/$C149)>$B149,$B149-SUM($D149:G149),$B149/$C149) -> 0 | I149: =IF((SUM($D149:H149)+$B149/$C149)>$B149,$B149-SUM($D149:H149),$B149/$C149) -> 0 | J149: =IF((SUM($D149:I149)+$B149/$C149)>$B149,$B149-SUM($D149:I149),$B149/$C149) -> 0 | K149: =IF((SUM($D149:J149)+$B149/$C149)>$B149,$B149-SUM($D149:J149),$B149/$C149) -> 0 | L149: =IF((SUM($D149:K149)+$B149/$C149)>$B149,$B149-SUM($D149:K149),$B149/$C149) -> 0 | M149: =IF((SUM($D149:L149)+$B149/$C149)>$B149,$B149-SUM($D149:L149),$B149/$C149) -> 0 | N149: =IF((SUM($D149:M149)+$B149/$C149)>$B149,$B149-SUM($D149:M149),$B149/$C149) -> 0 | O149: =IF((SUM($D149:N149)+$B149/$C149)>$B149,$B149-SUM($D149:N149),$B149/$C149) -> 0 | P149: =IF((SUM($D149:O149)+$B149/$C149)>$B149,$B149-SUM($D149:O149),$B149/$C149) -> 0 | Q149: =IF((SUM($D149:P149)+$B149/$C149)>$B149,$B149-SUM($D149:P149),$B149/$C149) -> 0 | R149: =IF((SUM($D149:Q149)+$B149/$C149)>$B149,$B149-SUM($D149:Q149),$B149/$C149) -> 0 | S149: =IF((SUM($D149:R149)+$B149/$C149)>$B149,$B149-SUM($D149:R149),$B149/$C149) -> 0 | T149: =IF((SUM($D149:S149)+$B149/$C149)>$B149,$B149-SUM($D149:S149),$B149/$C149) -> 0 | U149: =IF((SUM($D149:T149)+$B149/$C149)>$B149,$B149-SUM($D149:T149),$B149/$C149) -> 0 | V149: =IF((SUM($D149:U149)+$B149/$C149)>$B149,$B149-SUM($D149:U149),$B149/$C149) -> 0 | W149: =IF((SUM($D149:V149)+$B149/$C149)>$B149,$B149-SUM($D149:V149),$B149/$C149) -> 0 | X149: =IF((SUM($D149:W149)+$B149/$C149)>$B149,$B149-SUM($D149:W149),$B149/$C149) -> 0 | Y149: =IF((SUM($D149:X149)+$B149/$C149)>$B149,$B149-SUM($D149:X149),$B149/$C149) -> 0 | Z149: =IF((SUM($D149:Y149)+$B149/$C149)>$B149,$B149-SUM($D149:Y149),$B149/$C149) -> 0 | AA149: =IF((SUM($D149:Z149)+$B149/$C149)>$B149,$B149-SUM($D149:Z149),$B149/$C149) -> 0
A150: 2007 | B150: ='Data 2006-08'!E$86*'Data 2006-08'!E156/10^3*(1+'Data 2006-08'!C$141)^1.5 -> 0 | C150: ='Data 2009-15 (Real $2008)'!C$156-(D$147-A150-0.5) -> 5.5 | D150: =IF(C150<1,B150,B150/C150) -> 0 | E150: =IF((SUM($D150:D150)+$B150/$C150)>$B150,$B150-SUM($D150:D150),$B150/$C150) -> 0 | F150: =IF((SUM($D150:E150)+$B150/$C150)>$B150,$B150-SUM($D150:E150),$B150/$C150) -> 0 | G150: =IF((SUM($D150:F150)+$B150/$C150)>$B150,$B150-SUM($D150:F150),$B150/$C150) -> 0 | H150: =IF((SUM($D150:G150)+$B150/$C150)>$B150,$B150-SUM($D150:G150),$B150/$C150) -> 0 | I150: =IF((SUM($D150:H150)+$B150/$C150)>$B150,$B150-SUM($D150:H150),$B150/$C150) -> 0 | J150: =IF((SUM($D150:I150)+$B150/$C150)>$B150,$B150-SUM($D150:I150),$B150/$C150) -> 0 | K150: =IF((SUM($D150:J150)+$B150/$C150)>$B150,$B150-SUM($D150:J150),$B150/$C150) -> 0 | L150: =IF((SUM($D150:K150)+$B150/$C150)>$B150,$B150-SUM($D150:K150),$B150/$C150) -> 0 | M150: =IF((SUM($D150:L150)+$B150/$C150)>$B150,$B150-SUM($D150:L150),$B150/$C150) -> 0 | N150: =IF((SUM($D150:M150)+$B150/$C150)>$B150,$B150-SUM($D150:M150),$B150/$C150) -> 0 | O150: =IF((SUM($D150:N150)+$B150/$C150)>$B150,$B150-SUM($D150:N150),$B150/$C150) -> 0 | P150: =IF((SUM($D150:O150)+$B150/$C150)>$B150,$B150-SUM($D150:O150),$B150/$C150) -> 0 | Q150: =IF((SUM($D150:P150)+$B150/$C150)>$B150,$B150-SUM($D150:P150),$B150/$C150) -> 0 | R150: =IF((SUM($D150:Q150)+$B150/$C150)>$B150,$B150-SUM($D150:Q150),$B150/$C150) -> 0 | S150: =IF((SUM($D150:R150)+$B150/$C150)>$B150,$B150-SUM($D150:R150),$B150/$C150) -> 0 | T150: =IF((SUM($D150:S150)+$B150/$C150)>$B150,$B150-SUM($D150:S150),$B150/$C150) -> 0 | U150: =IF((SUM($D150:T150)+$B150/$C150)>$B150,$B150-SUM($D150:T150),$B150/$C150) -> 0 | V150: =IF((SUM($D150:U150)+$B150/$C150)>$B150,$B150-SUM($D150:U150),$B150/$C150) -> 0 | W150: =IF((SUM($D150:V150)+$B150/$C150)>$B150,$B150-SUM($D150:V150),$B150/$C150) -> 0 | X150: =IF((SUM($D150:W150)+$B150/$C150)>$B150,$B150-SUM($D150:W150),$B150/$C150) -> 0 | Y150: =IF((SUM($D150:X150)+$B150/$C150)>$B150,$B150-SUM($D150:X150),$B150/$C150) -> 0 | Z150: =IF((SUM($D150:Y150)+$B150/$C150)>$B150,$B150-SUM($D150:Y150),$B150/$C150) -> 0 | AA150: =IF((SUM($D150:Z150)+$B150/$C150)>$B150,$B150-SUM($D150:Z150),$B150/$C150) -> 0
A151: 2008 | B151: ='Data 2006-08'!F$86/10^3*(1+'Data 2006-08'!C$141)^0.5 -> 0 | C151: ='Data 2009-15 (Real $2008)'!C$156-(D$147-A151-0.5) -> 6.5 | D151: =IF(C151<1,B151,B151/C151) -> 0 | E151: =IF((SUM($D151:D151)+$B151/$C151)>$B151,$B151-SUM($D151:D151),$B151/$C151) -> 0 | F151: =IF((SUM($D151:E151)+$B151/$C151)>$B151,$B151-SUM($D151:E151),$B151/$C151) -> 0 | G151: =IF((SUM($D151:F151)+$B151/$C151)>$B151,$B151-SUM($D151:F151),$B151/$C151) -> 0 | H151: =IF((SUM($D151:G151)+$B151/$C151)>$B151,$B151-SUM($D151:G151),$B151/$C151) -> 0 | I151: =IF((SUM($D151:H151)+$B151/$C151)>$B151,$B151-SUM($D151:H151),$B151/$C151) -> 0 | J151: =IF((SUM($D151:I151)+$B151/$C151)>$B151,$B151-SUM($D151:I151),$B151/$C151) -> 0 | K151: =IF((SUM($D151:J151)+$B151/$C151)>$B151,$B151-SUM($D151:J151),$B151/$C151) -> 0 | L151: =IF((SUM($D151:K151)+$B151/$C151)>$B151,$B151-SUM($D151:K151),$B151/$C151) -> 0 | M151: =IF((SUM($D151:L151)+$B151/$C151)>$B151,$B151-SUM($D151:L151),$B151/$C151) -> 0 | N151: =IF((SUM($D151:M151)+$B151/$C151)>$B151,$B151-SUM($D151:M151),$B151/$C151) -> 0 | O151: =IF((SUM($D151:N151)+$B151/$C151)>$B151,$B151-SUM($D151:N151),$B151/$C151) -> 0 | P151: =IF((SUM($D151:O151)+$B151/$C151)>$B151,$B151-SUM($D151:O151),$B151/$C151) -> 0 | Q151: =IF((SUM($D151:P151)+$B151/$C151)>$B151,$B151-SUM($D151:P151),$B151/$C151) -> 0 | R151: =IF((SUM($D151:Q151)+$B151/$C151)>$B151,$B151-SUM($D151:Q151),$B151/$C151) -> 0 | S151: =IF((SUM($D151:R151)+$B151/$C151)>$B151,$B151-SUM($D151:R151),$B151/$C151) -> 0 | T151: =IF((SUM($D151:S151)+$B151/$C151)>$B151,$B151-SUM($D151:S151),$B151/$C151) -> 0 | U151: =IF((SUM($D151:T151)+$B151/$C151)>$B151,$B151-SUM($D151:T151),$B151/$C151) -> 0 | V151: =IF((SUM($D151:U151)+$B151/$C151)>$B151,$B151-SUM($D151:U151),$B151/$C151) -> 0 | W151: =IF((SUM($D151:V151)+$B151/$C151)>$B151,$B151-SUM($D151:V151),$B151/$C151) -> 0 | X151: =IF((SUM($D151:W151)+$B151/$C151)>$B151,$B151-SUM($D151:W151),$B151/$C151) -> 0 | Y151: =IF((SUM($D151:X151)+$B151/$C151)>$B151,$B151-SUM($D151:X151),$B151/$C151) -> 0 | Z151: =IF((SUM($D151:Y151)+$B151/$C151)>$B151,$B151-SUM($D151:Y151),$B151/$C151) -> 0 | AA151: =IF((SUM($D151:Z151)+$B151/$C151)>$B151,$B151-SUM($D151:Z151),$B151/$C151) -> 0
B152: =SUM(B149:B151) -> 0 | D152: =SUM(D149:D151) -> 0 | E152: =SUM(E149:E151) -> 0 | F152: 0 | G152: 0 | H152: 0 | I152: 0 | J152: 0 | K152: 0 | L152: 0 | M152: 0 | N152: 0 | O152: 0 | P152: 0 | Q152: 0 | R152: 0 | S152: 0 | T152: 0 | U152: 0 | V152: 0 | W152: 0 | X152: =SUM(X149:X151) -> 0 | Y152: =SUM(Y149:Y151) -> 0 | Z152: =SUM(Z149:Z151) -> 0 | AA152: =SUM(AA149:AA151) -> 0
A155: Other | B155: RAB WDV | C155: Remaining | D155: =D$4 -> 2009 | E155: =E$4 -> 2010 | F155: 2011 | G155: 2012 | H155: 2013 | I155: 2014 | J155: 2015 | K155: 2016 | L155: 2017 | M155: 2018 | N155: 2019 | O155: 2020 | P155: 2021 | Q155: 2022 | R155: 2023 | S155: 2024 | T155: 2025 | U155: 2026 | V155: 2027 | W155: 2028 | X155: 2029 | Y155: 2030 | Z155: 2031 | AA155: 2032
A156: =$A$4 -> ($000 Real 2008) | B156: 1/01/2009 | C156: Life (years)
A157: 2006 | B157: ='Data 2006-08'!D$87*'Data 2006-08'!D156/10^3*(1+'Data 2006-08'!C$141)^2.5 -> 0 | C157: ='Data 2009-15 (Real $2008)'!C$157-(D$155-A157-0.5) -> 4.5 | D157: =IF(C157<1,B157,B157/C157) -> 0 | E157: =IF((SUM($D157:D157)+$B157/$C157)>$B157,$B157-SUM($D157:D157),$B157/$C157) -> 0 | F157: =IF((SUM($D157:E157)+$B157/$C157)>$B157,$B157-SUM($D157:E157),$B157/$C157) -> 0 | G157: =IF((SUM($D157:F157)+$B157/$C157)>$B157,$B157-SUM($D157:F157),$B157/$C157) -> 0 | H157: =IF((SUM($D157:G157)+$B157/$C157)>$B157,$B157-SUM($D157:G157),$B157/$C157) -> 0 | I157: =IF((SUM($D157:H157)+$B157/$C157)>$B157,$B157-SUM($D157:H157),$B157/$C157) -> 0 | J157: =IF((SUM($D157:I157)+$B157/$C157)>$B157,$B157-SUM($D157:I157),$B157/$C157) -> 0 | K157: =IF((SUM($D157:J157)+$B157/$C157)>$B157,$B157-SUM($D157:J157),$B157/$C157) -> 0 | L157: =IF((SUM($D157:K157)+$B157/$C157)>$B157,$B157-SUM($D157:K157),$B157/$C157) -> 0 | M157: =IF((SUM($D157:L157)+$B157/$C157)>$B157,$B157-SUM($D157:L157),$B157/$C157) -> 0 | N157: =IF((SUM($D157:M157)+$B157/$C157)>$B157,$B157-SUM($D157:M157),$B157/$C157) -> 0 | O157: =IF((SUM($D157:N157)+$B157/$C157)>$B157,$B157-SUM($D157:N157),$B157/$C157) -> 0 | P157: =IF((SUM($D157:O157)+$B157/$C157)>$B157,$B157-SUM($D157:O157),$B157/$C157) -> 0 | Q157: =IF((SUM($D157:P157)+$B157/$C157)>$B157,$B157-SUM($D157:P157),$B157/$C157) -> 0 | R157: =IF((SUM($D157:Q157)+$B157/$C157)>$B157,$B157-SUM($D157:Q157),$B157/$C157) -> 0 | S157: =IF((SUM($D157:R157)+$B157/$C157)>$B157,$B157-SUM($D157:R157),$B157/$C157) -> 0 | T157: =IF((SUM($D157:S157)+$B157/$C157)>$B157,$B157-SUM($D157:S157),$B157/$C157) -> 0 | U157: =IF((SUM($D157:T157)+$B157/$C157)>$B157,$B157-SUM($D157:T157),$B157/$C157) -> 0 | V157: =IF((SUM($D157:U157)+$B157/$C157)>$B157,$B157-SUM($D157:U157),$B157/$C157) -> 0 | W157: =IF((SUM($D157:V157)+$B157/$C157)>$B157,$B157-SUM($D157:V157),$B157/$C157) -> 0 | X157: =IF((SUM($D157:W157)+$B157/$C157)>$B157,$B157-SUM($D157:W157),$B157/$C157) -> 0 | Y157: =IF((SUM($D157:X157)+$B157/$C157)>$B157,$B157-SUM($D157:X157),$B157/$C157) -> 0 | Z157: =IF((SUM($D157:Y157)+$B157/$C157)>$B157,$B157-SUM($D157:Y157),$B157/$C157) -> 0 | AA157: =IF((SUM($D157:Z157)+$B157/$C157)>$B157,$B157-SUM($D157:Z157),$B157/$C157) -> 0
A158: 2007 | B158: ='Data 2006-08'!E$87*'Data 2006-08'!E156/10^3*(1+'Data 2006-08'!C$141)^1.5 -> 6701.61827 | C158: ='Data 2009-15 (Real $2008)'!C$157-(D$155-A158-0.5) -> 5.5 | D158: =IF(C158<1,B158,B158/C158) -> 1218.476049 | E158: =IF((SUM($D158:D158)+$B158/$C158)>$B158,$B158-SUM($D158:D158),$B158/$C158) -> 1218.476049 | F158: =IF((SUM($D158:E158)+$B158/$C158)>$B158,$B158-SUM($D158:E158),$B158/$C158) -> 1218.476049 | G158: =IF((SUM($D158:F158)+$B158/$C158)>$B158,$B158-SUM($D158:F158),$B158/$C158) -> 1218.476049 | H158: =IF((SUM($D158:G158)+$B158/$C158)>$B158,$B158-SUM($D158:G158),$B158/$C158) -> 1218.476049 | I158: =IF((SUM($D158:H158)+$B158/$C158)>$B158,$B158-SUM($D158:H158),$B158/$C158) -> 609.2380246 | J158: =IF((SUM($D158:I158)+$B158/$C158)>$B158,$B158-SUM($D158:I158),$B158/$C158) -> 0 | K158: =IF((SUM($D158:J158)+$B158/$C158)>$B158,$B158-SUM($D158:J158),$B158/$C158) -> 0 | L158: =IF((SUM($D158:K158)+$B158/$C158)>$B158,$B158-SUM($D158:K158),$B158/$C158) -> 0 | M158: =IF((SUM($D158:L158)+$B158/$C158)>$B158,$B158-SUM($D158:L158),$B158/$C158) -> 0 | N158: =IF((SUM($D158:M158)+$B158/$C158)>$B158,$B158-SUM($D158:M158),$B158/$C158) -> 0 | O158: =IF((SUM($D158:N158)+$B158/$C158)>$B158,$B158-SUM($D158:N158),$B158/$C158) -> 0 | P158: =IF((SUM($D158:O158)+$B158/$C158)>$B158,$B158-SUM($D158:O158),$B158/$C158) -> 0 | Q158: =IF((SUM($D158:P158)+$B158/$C158)>$B158,$B158-SUM($D158:P158),$B158/$C158) -> 0 | R158: =IF((SUM($D158:Q158)+$B158/$C158)>$B158,$B158-SUM($D158:Q158),$B158/$C158) -> 0 | S158: =IF((SUM($D158:R158)+$B158/$C158)>$B158,$B158-SUM($D158:R158),$B158/$C158) -> 0 | T158: =IF((SUM($D158:S158)+$B158/$C158)>$B158,$B158-SUM($D158:S158),$B158/$C158) -> 0 | U158: =IF((SUM($D158:T158)+$B158/$C158)>$B158,$B158-SUM($D158:T158),$B158/$C158) -> 0 | V158: =IF((SUM($D158:U158)+$B158/$C158)>$B158,$B158-SUM($D158:U158),$B158/$C158) -> 0 | W158: =IF((SUM($D158:V158)+$B158/$C158)>$B158,$B158-SUM($D158:V158),$B158/$C158) -> 0 | X158: =IF((SUM($D158:W158)+$B158/$C158)>$B158,$B158-SUM($D158:W158),$B158/$C158) -> 0 | Y158: =IF((SUM($D158:X158)+$B158/$C158)>$B158,$B158-SUM($D158:X158),$B158/$C158) -> 0 | Z158: =IF((SUM($D158:Y158)+$B158/$C158)>$B158,$B158-SUM($D158:Y158),$B158/$C158) -> 0 | AA158: =IF((SUM($D158:Z158)+$B158/$C158)>$B158,$B158-SUM($D158:Z158),$B158/$C158) -> 0
A159: 2008 | B159: ='Data 2006-08'!F$87/10^3*(1+'Data 2006-08'!C$141)^0.5 -> 17932.34833 | C159: ='Data 2009-15 (Real $2008)'!C$157-(D$155-A159-0.5) -> 6.5 | D159: =IF(C159<1,B159,B159/C159) -> 2758.82282 | E159: =IF((SUM($D159:D159)+$B159/$C159)>$B159,$B159-SUM($D159:D159),$B159/$C159) -> 2758.82282 | F159: =IF((SUM($D159:E159)+$B159/$C159)>$B159,$B159-SUM($D159:E159),$B159/$C159) -> 2758.82282 | G159: =IF((SUM($D159:F159)+$B159/$C159)>$B159,$B159-SUM($D159:F159),$B159/$C159) -> 2758.82282 | H159: =IF((SUM($D159:G159)+$B159/$C159)>$B159,$B159-SUM($D159:G159),$B159/$C159) -> 2758.82282 | I159: =IF((SUM($D159:H159)+$B159/$C159)>$B159,$B159-SUM($D159:H159),$B159/$C159) -> 2758.82282 | J159: =IF((SUM($D159:I159)+$B159/$C159)>$B159,$B159-SUM($D159:I159),$B159/$C159) -> 1379.41141 | K159: =IF((SUM($D159:J159)+$B159/$C159)>$B159,$B159-SUM($D159:J159),$B159/$C159) -> 0 | L159: =IF((SUM($D159:K159)+$B159/$C159)>$B159,$B159-SUM($D159:K159),$B159/$C159) -> 0 | M159: =IF((SUM($D159:L159)+$B159/$C159)>$B159,$B159-SUM($D159:L159),$B159/$C159) -> 0 | N159: =IF((SUM($D159:M159)+$B159/$C159)>$B159,$B159-SUM($D159:M159),$B159/$C159) -> 0 | O159: =IF((SUM($D159:N159)+$B159/$C159)>$B159,$B159-SUM($D159:N159),$B159/$C159) -> 0 | P159: =IF((SUM($D159:O159)+$B159/$C159)>$B159,$B159-SUM($D159:O159),$B159/$C159) -> 0 | Q159: =IF((SUM($D159:P159)+$B159/$C159)>$B159,$B159-SUM($D159:P159),$B159/$C159) -> 0 | R159: =IF((SUM($D159:Q159)+$B159/$C159)>$B159,$B159-SUM($D159:Q159),$B159/$C159) -> 0 | S159: =IF((SUM($D159:R159)+$B159/$C159)>$B159,$B159-SUM($D159:R159),$B159/$C159) -> 0 | T159: =IF((SUM($D159:S159)+$B159/$C159)>$B159,$B159-SUM($D159:S159),$B159/$C159) -> 0 | U159: =IF((SUM($D159:T159)+$B159/$C159)>$B159,$B159-SUM($D159:T159),$B159/$C159) -> 0 | V159: =IF((SUM($D159:U159)+$B159/$C159)>$B159,$B159-SUM($D159:U159),$B159/$C159) -> 0 | W159: =IF((SUM($D159:V159)+$B159/$C159)>$B159,$B159-SUM($D159:V159),$B159/$C159) -> 0 | X159: =IF((SUM($D159:W159)+$B159/$C159)>$B159,$B159-SUM($D159:W159),$B159/$C159) -> 0 | Y159: =IF((SUM($D159:X159)+$B159/$C159)>$B159,$B159-SUM($D159:X159),$B159/$C159) -> 0 | Z159: =IF((SUM($D159:Y159)+$B159/$C159)>$B159,$B159-SUM($D159:Y159),$B159/$C159) -> 0 | AA159: =IF((SUM($D159:Z159)+$B159/$C159)>$B159,$B159-SUM($D159:Z159),$B159/$C159) -> 0
B160: =SUM(B157:B159) -> 24633.9666 | D160: =SUM(D157:D159) -> 3977.298869 | E160: =SUM(E157:E159) -> 3977.298869 | F160: 3977.298869 | G160: 3977.298869 | H160: 3977.298869 | I160: 3368.060844 | J160: 1379.41141 | K160: 0 | L160: 0 | M160: 0 | N160: 0 | O160: 0 | P160: 0 | Q160: 0 | R160: 0 | S160: 0 | T160: 0 | U160: 0 | V160: 0 | W160: 0 | X160: =SUM(X157:X159) -> 0 | Y160: =SUM(Y157:Y159) -> 0 | Z160: =SUM(Z157:Z159) -> 0 | AA160: =SUM(AA157:AA159) -> 0
A163: Total | B163: =SUM(B136,B144,B152,B160) -> 35066.33814 | D163: =SUM(D136,D144,D152,D160) -> 5582.279106 | E163: 5582.279106 | F163: 5582.279106 | G163: 5582.279106 | H163: 5582.279106 | I163: 4973.041081 | J163: 2181.901528 | K163: 0 | L163: 0 | M163: 0 | N163: 0 | O163: 0 | P163: 0 | Q163: 0 | R163: 0 | S163: 0 | T163: 0 | U163: 0 | V163: 0 | W163: 0 | X163: =SUM(X136,X144,X152,X160) -> 0 | Y163: =SUM(Y136,Y144,Y152,Y160) -> 0 | Z163: =SUM(Z136,Z144,Z152,Z160) -> 0 | AA163: =SUM(AA136,AA144,AA152,AA160) -> 0
A167: Regulatory depreciation on AMI Capex 2009-15
A168: =$A$4 -> ($000 Real 2008)
A169: RAB AMI Capex 2009-11 | D169: =D$4 -> 2009 | E169: =E$4 -> 2010 | F169: 2011 | G169: 2012 | H169: 2013 | I169: 2014 | J169: 2015 | K169: 2016 | L169: 2017 | M169: 2018 | N169: 2019 | O169: 2020 | P169: 2021 | Q169: 2022 | R169: 2023 | S169: 2024 | T169: 2025 | U169: 2026 | V169: 2027 | W169: 2028 | X169: 2029 | Y169: 2030 | Z169: 2031 | AA169: 2032
A170: Opening asset base | D170: 0 | E170: =D173 -> 65204.93783 | F170: =E173 -> 107424.2766 | G170: 150564.9303 | H170: 179157.6536 | I170: 200226.9471 | J170: 195824.2148 | K170: 172895.3643 | L170: 145670.5835 | M170: 125092.9814 | N170: 108239.3981 | O170: 93473.11834 | P170: 79731.4987 | Q170: 66623.8865 | R170: 54215.26807 | S170: 42195.37375 | T170: 30379.08291 | U170: 19414.05293 | V170: 10395.43415 | W170: 4140.986597 | X170: =W173 -> 962.7393014 | Y170: =X173 -> 89.5035345 | Z170: =Y173 -> -2.069100447e-11 | AA170: =Z173 -> -2.069100447e-11
A171: Net Capex | D171: =D186 -> 70127.63271 | E171: =E186 -> 55532.25292 | F171: 63664.796 | G171: 55652.64631 | H171: 52855.814 | I171: 25170.63603 | J171: 8127.243715 | K171: 0 | L171: 0 | M171: 0 | N171: 0 | O171: 0 | P171: 0 | Q171: 0 | R171: 0 | S171: 0 | T171: 0 | U171: 0 | V171: 0 | W171: 0 | X171: =X186 -> 0 | Y171: =Y186 -> 0 | Z171: =Z186 -> 0 | AA171: =AA186 -> 0
A172: Regulatory depreciation | D172: =D261 -> 4922.694887 | E172: =E261 -> 13312.91412 | F172: 20524.14233 | G172: 27059.92303 | H172: 31786.52048 | I172: 29573.36829 | J172: 31056.09429 | K172: 27224.78076 | L172: 20577.6021 | M172: 16853.58332 | N172: 14766.27973 | O172: 13741.61964 | P172: 13107.6122 | Q172: 12408.61843 | R172: 12019.89431 | S172: 11816.29084 | T172: 10965.02998 | U172: 9018.618781 | V172: 6254.447555 | W172: 3178.247296 | X172: =X261 -> 873.2357669 | Y172: =Y261 -> 89.5035345 | Z172: =Z261 -> 0 | AA172: =AA261 -> 0
A173: Closing asset base | D173: =D170+D171-D172 -> 65204.93783 | E173: =E170+E171-E172 -> 107424.2766 | F173: 150564.9303 | G173: 179157.6536 | H173: 200226.9471 | I173: 195824.2148 | J173: 172895.3643 | K173: 145670.5835 | L173: 125092.9814 | M173: 108239.3981 | N173: 93473.11834 | O173: 79731.4987 | P173: 66623.8865 | Q173: 54215.26807 | R173: 42195.37375 | S173: 30379.08291 | T173: 19414.05293 | U173: 10395.43415 | V173: 4140.986597 | W173: 962.7393014 | X173: =X170+X171-X172 -> 89.5035345 | Y173: =Y170+Y171-Y172 -> -2.069100447e-11 | Z173: =Z170+Z171-Z172 -> -2.069100447e-11 | AA173: =AA170+AA171-AA172 -> -2.069100447e-11
A174: Check | C174: =SUM(D174:K174) -> 0 | D174: =IF(ABS(SUM(D171:AA171)-SUM(D172:AA172))<0.001,0,ABS(SUM(D171:AA171)-SUM(D172:AA172))) -> 0 | E174: =IF(ABS(D171-D186)<0.001,0,ABS(D171-D186)) -> 0 | F174: 0 | G174: 0 | H174: 0 | I174: 0 | J174: 0 | K174: 0
A179: Net Capex | D179: =D$4 -> 2009 | E179: =E$4 -> 2010 | F179: 2011 | G179: 2012 | H179: 2013 | I179: 2014 | J179: 2015 | K179: 2016 | L179: 2017 | M179: 2018 | N179: 2019 | O179: 2020 | P179: 2021 | Q179: 2022 | R179: 2023 | S179: 2024 | T179: 2025 | U179: 2026 | V179: 2027 | W179: 2028 | X179: 2029 | Y179: 2030 | Z179: 2031 | AA179: 2032
A180: Accumulation Meters | D180: =('Data 2009-15 (Real $2008)'!D10-'Data 2009-15 (Real $2008)'!D34-'Data 2009-15 (Real $2008)'!D43)/10^3 -> 3685.95214 | E180: =('Data 2009-15 (Real $2008)'!E10-'Data 2009-15 (Real $2008)'!E34-'Data 2009-15 (Real $2008)'!E43)/10^3 -> 3375.606278 | F180: =('Data 2009-15 (Real $2008)'!F10-'Data 2009-15 (Real $2008)'!F34-'Data 2009-15 (Real $2008)'!F43)/10^3 -> 3675.20263 | G180: =('Data 2009-15 (Real $2008)'!G10-'Data 2009-15 (Real $2008)'!G34-'Data 2009-15 (Real $2008)'!G43)/10^3 -> 733.6797013 | H180: =('Data 2009-15 (Real $2008)'!H10-'Data 2009-15 (Real $2008)'!H34-'Data 2009-15 (Real $2008)'!H43)/10^3 -> 0 | I180: =('Data 2009-15 (Real $2008)'!I10-'Data 2009-15 (Real $2008)'!I34-'Data 2009-15 (Real $2008)'!I43)/10^3 -> 0 | J180: =('Data 2009-15 (Real $2008)'!J10-'Data 2009-15 (Real $2008)'!J34-'Data 2009-15 (Real $2008)'!J43)/10^3 -> 0
A181: Manually read interval meters | D181: =('Data 2009-15 (Real $2008)'!D11-'Data 2009-15 (Real $2008)'!D35-'Data 2009-15 (Real $2008)'!D44)/10^3 -> 0 | E181: =('Data 2009-15 (Real $2008)'!E11-'Data 2009-15 (Real $2008)'!E35-'Data 2009-15 (Real $2008)'!E44)/10^3 -> 0 | F181: =('Data 2009-15 (Real $2008)'!F11-'Data 2009-15 (Real $2008)'!F35-'Data 2009-15 (Real $2008)'!F44)/10^3 -> 1617.641203 | G181: =('Data 2009-15 (Real $2008)'!G11-'Data 2009-15 (Real $2008)'!G35-'Data 2009-15 (Real $2008)'!G44)/10^3 -> 1143.531629 | H181: =('Data 2009-15 (Real $2008)'!H11-'Data 2009-15 (Real $2008)'!H35-'Data 2009-15 (Real $2008)'!H44)/10^3 -> 0 | I181: =('Data 2009-15 (Real $2008)'!I11-'Data 2009-15 (Real $2008)'!I35-'Data 2009-15 (Real $2008)'!I44)/10^3 -> 0 | J181: =('Data 2009-15 (Real $2008)'!J11-'Data 2009-15 (Real $2008)'!J35-'Data 2009-15 (Real $2008)'!J44)/10^3 -> 0
A182: ='Data 2009-15 (Real $2008)'!A$154 -> Remotely read interval meters & transformers | D182: =('Data 2009-15 (Real $2008)'!D12-'Data 2009-15 (Real $2008)'!D36-'Data 2009-15 (Real $2008)'!D45)/10^3 -> 6108.104037 | E182: =('Data 2009-15 (Real $2008)'!E12-'Data 2009-15 (Real $2008)'!E36-'Data 2009-15 (Real $2008)'!E45)/10^3 -> 19429.72195 | F182: =('Data 2009-15 (Real $2008)'!F12-'Data 2009-15 (Real $2008)'!F36-'Data 2009-15 (Real $2008)'!F45)/10^3 -> 38962.61394 | G182: =('Data 2009-15 (Real $2008)'!G12-'Data 2009-15 (Real $2008)'!G36-'Data 2009-15 (Real $2008)'!G45)/10^3 -> 43962.52285 | H182: =('Data 2009-15 (Real $2008)'!H12-'Data 2009-15 (Real $2008)'!H36-'Data 2009-15 (Real $2008)'!H45)/10^3 -> 48323.48493 | I182: =('Data 2009-15 (Real $2008)'!I12-'Data 2009-15 (Real $2008)'!I36-'Data 2009-15 (Real $2008)'!I45)/10^3 -> 20826.86094 | J182: =('Data 2009-15 (Real $2008)'!J12-'Data 2009-15 (Real $2008)'!J36-'Data 2009-15 (Real $2008)'!J45)/10^3 -> 2685.106035
A183: IT | D183: =('Data 2009-15 (Real $2008)'!D13-'Data 2009-15 (Real $2008)'!D37-'Data 2009-15 (Real $2008)'!D46)/10^3 -> 60237.4079 | E183: =('Data 2009-15 (Real $2008)'!E13-'Data 2009-15 (Real $2008)'!E37-'Data 2009-15 (Real $2008)'!E46)/10^3 -> 32381.53509 | F183: =('Data 2009-15 (Real $2008)'!F13-'Data 2009-15 (Real $2008)'!F37-'Data 2009-15 (Real $2008)'!F46)/10^3 -> 7671.037883 | G183: =('Data 2009-15 (Real $2008)'!G13-'Data 2009-15 (Real $2008)'!G37-'Data 2009-15 (Real $2008)'!G46)/10^3 -> 7049.544521 | H183: =('Data 2009-15 (Real $2008)'!H13-'Data 2009-15 (Real $2008)'!H37-'Data 2009-15 (Real $2008)'!H46)/10^3 -> 1515.468264 | I183: =('Data 2009-15 (Real $2008)'!I13-'Data 2009-15 (Real $2008)'!I37-'Data 2009-15 (Real $2008)'!I46)/10^3 -> 3428.982194 | J183: =('Data 2009-15 (Real $2008)'!J13-'Data 2009-15 (Real $2008)'!J37-'Data 2009-15 (Real $2008)'!J46)/10^3 -> 5044.987224
A184: Communications | D184: =('Data 2009-15 (Real $2008)'!D14-'Data 2009-15 (Real $2008)'!D38-'Data 2009-15 (Real $2008)'!D47)/10^3 -> 0 | E184: =('Data 2009-15 (Real $2008)'!E14-'Data 2009-15 (Real $2008)'!E38-'Data 2009-15 (Real $2008)'!E47)/10^3 -> 0 | F184: =('Data 2009-15 (Real $2008)'!F14-'Data 2009-15 (Real $2008)'!F38-'Data 2009-15 (Real $2008)'!F47)/10^3 -> 2082.98238 | G184: =('Data 2009-15 (Real $2008)'!G14-'Data 2009-15 (Real $2008)'!G38-'Data 2009-15 (Real $2008)'!G47)/10^3 -> 370.2776736 | H184: =('Data 2009-15 (Real $2008)'!H14-'Data 2009-15 (Real $2008)'!H38-'Data 2009-15 (Real $2008)'!H47)/10^3 -> 914.6799464 | I184: =('Data 2009-15 (Real $2008)'!I14-'Data 2009-15 (Real $2008)'!I38-'Data 2009-15 (Real $2008)'!I47)/10^3 -> 914.7929043 | J184: =('Data 2009-15 (Real $2008)'!J14-'Data 2009-15 (Real $2008)'!J38-'Data 2009-15 (Real $2008)'!J47)/10^3 -> 397.1504561
A185: Other | D185: =('Data 2009-15 (Real $2008)'!D15-'Data 2009-15 (Real $2008)'!D39-'Data 2009-15 (Real $2008)'!D48)/10^3 -> 96.16863885 | E185: =('Data 2009-15 (Real $2008)'!E15-'Data 2009-15 (Real $2008)'!E39-'Data 2009-15 (Real $2008)'!E48)/10^3 -> 345.3895979 | F185: =('Data 2009-15 (Real $2008)'!F15-'Data 2009-15 (Real $2008)'!F39-'Data 2009-15 (Real $2008)'!F48)/10^3 -> 9655.317965 | G185: =('Data 2009-15 (Real $2008)'!G15-'Data 2009-15 (Real $2008)'!G39-'Data 2009-15 (Real $2008)'!G48)/10^3 -> 2393.08993 | H185: =('Data 2009-15 (Real $2008)'!H15-'Data 2009-15 (Real $2008)'!H39-'Data 2009-15 (Real $2008)'!H48)/10^3 -> 2102.18086 | I185: =('Data 2009-15 (Real $2008)'!I15-'Data 2009-15 (Real $2008)'!I39-'Data 2009-15 (Real $2008)'!I48)/10^3 -> 0 | J185: =('Data 2009-15 (Real $2008)'!J15-'Data 2009-15 (Real $2008)'!J39-'Data 2009-15 (Real $2008)'!J48)/10^3 -> 0
D186: =SUM(D180:D185) -> 70127.63271 | E186: 55532.25292 | F186: 63664.796 | G186: 55652.64631 | H186: 52855.814 | I186: 25170.63603 | J186: 8127.243715
A189: Accumulation Meters | B189: Net | C189: Regulatory | D189: =D$4 -> 2009 | E189: =E$4 -> 2010 | F189: 2011 | G189: 2012 | H189: 2013 | I189: 2014 | J189: 2015 | K189: 2016 | L189: 2017 | M189: 2018 | N189: 2019 | O189: 2020 | P189: 2021 | Q189: 2022 | R189: 2023 | S189: 2024 | T189: 2025 | U189: 2026 | V189: 2027 | W189: 2028 | X189: 2029 | Y189: 2030 | Z189: 2031 | AA189: 2032
A190: =$A$4 -> ($000 Real 2008) | B190: Capex | C190: Life (years)
A191: 2009 | B191: =D$180 -> 3685.95214 | C191: =IF('Data 2006-08'!C$34<=A191,1,'Data 2006-08'!C$34-A191+0.5) -> 4.5 | D191: =IF($C191=1,$B191,$B191/2/$C191) -> 409.5502377 | E191: =IF((SUM($D191:D191)+$B191/$C191)>$B191,$B191-SUM($D191:D191),$B191/$C191) -> 819.1004755 | F191: =IF((SUM($D191:E191)+$B191/$C191)>$B191,$B191-SUM($D191:E191),$B191/$C191) -> 819.1004755 | G191: =IF((SUM($D191:F191)+$B191/$C191)>$B191,$B191-SUM($D191:F191),$B191/$C191) -> 819.1004755 | H191: =IF((SUM($D191:G191)+$B191/$C191)>$B191,$B191-SUM($D191:G191),$B191/$C191) -> 819.1004755 | I191: =IF((SUM($D191:H191)+$B191/$C191)>$B191,$B191-SUM($D191:H191),$B191/$C191) -> 4.547473509e-13 | J191: =IF((SUM($D191:I191)+$B191/$C191)>$B191,$B191-SUM($D191:I191),$B191/$C191) -> 0 | K191: =IF((SUM($D191:J191)+$B191/$C191)>$B191,$B191-SUM($D191:J191),$B191/$C191) -> 0 | L191: =IF((SUM($D191:K191)+$B191/$C191)>$B191,$B191-SUM($D191:K191),$B191/$C191) -> 0 | M191: =IF((SUM($D191:L191)+$B191/$C191)>$B191,$B191-SUM($D191:L191),$B191/$C191) -> 0 | N191: =IF((SUM($D191:M191)+$B191/$C191)>$B191,$B191-SUM($D191:M191),$B191/$C191) -> 0 | O191: =IF((SUM($D191:N191)+$B191/$C191)>$B191,$B191-SUM($D191:N191),$B191/$C191) -> 0 | P191: =IF((SUM($D191:O191)+$B191/$C191)>$B191,$B191-SUM($D191:O191),$B191/$C191) -> 0 | Q191: =IF((SUM($D191:P191)+$B191/$C191)>$B191,$B191-SUM($D191:P191),$B191/$C191) -> 0 | R191: =IF((SUM($D191:Q191)+$B191/$C191)>$B191,$B191-SUM($D191:Q191),$B191/$C191) -> 0 | S191: =IF((SUM($D191:R191)+$B191/$C191)>$B191,$B191-SUM($D191:R191),$B191/$C191) -> 0 | T191: =IF((SUM($D191:S191)+$B191/$C191)>$B191,$B191-SUM($D191:S191),$B191/$C191) -> 0 | U191: =IF((SUM($D191:T191)+$B191/$C191)>$B191,$B191-SUM($D191:T191),$B191/$C191) -> 0 | V191: =IF((SUM($D191:U191)+$B191/$C191)>$B191,$B191-SUM($D191:U191),$B191/$C191) -> 0 | W191: =IF((SUM($D191:V191)+$B191/$C191)>$B191,$B191-SUM($D191:V191),$B191/$C191) -> 0 | X191: =IF((SUM($D191:W191)+$B191/$C191)>$B191,$B191-SUM($D191:W191),$B191/$C191) -> 0 | Y191: =IF((SUM($D191:X191)+$B191/$C191)>$B191,$B191-SUM($D191:X191),$B191/$C191) -> 0 | Z191: =IF((SUM($D191:Y191)+$B191/$C191)>$B191,$B191-SUM($D191:Y191),$B191/$C191) -> 0 | AA191: =IF((SUM($D191:Z191)+$B191/$C191)>$B191,$B191-SUM($D191:Z191),$B191/$C191) -> 0
A192: 2010 | B192: =E$180 -> 3375.606278 | C192: =IF('Data 2006-08'!C$34<=A192,1,'Data 2006-08'!C$34-A192+0.5) -> 3.5 | E192: =IF($C192=1,$B192,$B192/2/$C192) -> 482.2294682 | F192: =IF((SUM($D192:E192)+$B192/$C192)>$B192,$B192-SUM($D192:E192),$B192/$C192) -> 964.4589365 | G192: =IF((SUM($D192:F192)+$B192/$C192)>$B192,$B192-SUM($D192:F192),$B192/$C192) -> 964.4589365 | H192: =IF((SUM($D192:G192)+$B192/$C192)>$B192,$B192-SUM($D192:G192),$B192/$C192) -> 964.4589365 | I192: =IF((SUM($D192:H192)+$B192/$C192)>$B192,$B192-SUM($D192:H192),$B192/$C192) -> 0 | J192: =IF((SUM($D192:I192)+$B192/$C192)>$B192,$B192-SUM($D192:I192),$B192/$C192) -> 0 | K192: =IF((SUM($D192:J192)+$B192/$C192)>$B192,$B192-SUM($D192:J192),$B192/$C192) -> 0 | L192: =IF((SUM($D192:K192)+$B192/$C192)>$B192,$B192-SUM($D192:K192),$B192/$C192) -> 0 | M192: =IF((SUM($D192:L192)+$B192/$C192)>$B192,$B192-SUM($D192:L192),$B192/$C192) -> 0 | N192: =IF((SUM($D192:M192)+$B192/$C192)>$B192,$B192-SUM($D192:M192),$B192/$C192) -> 0 | O192: =IF((SUM($D192:N192)+$B192/$C192)>$B192,$B192-SUM($D192:N192),$B192/$C192) -> 0 | P192: =IF((SUM($D192:O192)+$B192/$C192)>$B192,$B192-SUM($D192:O192),$B192/$C192) -> 0 | Q192: =IF((SUM($D192:P192)+$B192/$C192)>$B192,$B192-SUM($D192:P192),$B192/$C192) -> 0 | R192: =IF((SUM($D192:Q192)+$B192/$C192)>$B192,$B192-SUM($D192:Q192),$B192/$C192) -> 0 | S192: =IF((SUM($D192:R192)+$B192/$C192)>$B192,$B192-SUM($D192:R192),$B192/$C192) -> 0 | T192: =IF((SUM($D192:S192)+$B192/$C192)>$B192,$B192-SUM($D192:S192),$B192/$C192) -> 0 | U192: =IF((SUM($D192:T192)+$B192/$C192)>$B192,$B192-SUM($D192:T192),$B192/$C192) -> 0 | V192: =IF((SUM($D192:U192)+$B192/$C192)>$B192,$B192-SUM($D192:U192),$B192/$C192) -> 0 | W192: =IF((SUM($D192:V192)+$B192/$C192)>$B192,$B192-SUM($D192:V192),$B192/$C192) -> 0 | X192: =IF((SUM($D192:W192)+$B192/$C192)>$B192,$B192-SUM($D192:W192),$B192/$C192) -> 0 | Y192: =IF((SUM($D192:X192)+$B192/$C192)>$B192,$B192-SUM($D192:X192),$B192/$C192) -> 0 | Z192: =IF((SUM($D192:Y192)+$B192/$C192)>$B192,$B192-SUM($D192:Y192),$B192/$C192) -> 0 | AA192: =IF((SUM($D192:Z192)+$B192/$C192)>$B192,$B192-SUM($D192:Z192),$B192/$C192) -> 0
A193: 2011 | B193: =F$180 -> 3675.20263 | C193: =IF('Data 2006-08'!C$34<=A193,1,'Data 2006-08'!C$34-A193+0.5) -> 2.5 | F193: =IF($C193=1,$B193,$B193/2/$C193) -> 735.040526 | G193: =IF((SUM($D193:F193)+$B193/$C193)>$B193,$B193-SUM($D193:F193),$B193/$C193) -> 1470.081052 | H193: =IF((SUM($D193:G193)+$B193/$C193)>$B193,$B193-SUM($D193:G193),$B193/$C193) -> 1470.081052 | I193: =IF((SUM($D193:H193)+$B193/$C193)>$B193,$B193-SUM($D193:H193),$B193/$C193) -> 0 | J193: =IF((SUM($D193:I193)+$B193/$C193)>$B193,$B193-SUM($D193:I193),$B193/$C193) -> 0 | K193: =IF((SUM($D193:J193)+$B193/$C193)>$B193,$B193-SUM($D193:J193),$B193/$C193) -> 0 | L193: =IF((SUM($D193:K193)+$B193/$C193)>$B193,$B193-SUM($D193:K193),$B193/$C193) -> 0 | M193: =IF((SUM($D193:L193)+$B193/$C193)>$B193,$B193-SUM($D193:L193),$B193/$C193) -> 0 | N193: =IF((SUM($D193:M193)+$B193/$C193)>$B193,$B193-SUM($D193:M193),$B193/$C193) -> 0 | O193: =IF((SUM($D193:N193)+$B193/$C193)>$B193,$B193-SUM($D193:N193),$B193/$C193) -> 0 | P193: =IF((SUM($D193:O193)+$B193/$C193)>$B193,$B193-SUM($D193:O193),$B193/$C193) -> 0 | Q193: =IF((SUM($D193:P193)+$B193/$C193)>$B193,$B193-SUM($D193:P193),$B193/$C193) -> 0 | R193: =IF((SUM($D193:Q193)+$B193/$C193)>$B193,$B193-SUM($D193:Q193),$B193/$C193) -> 0 | S193: =IF((SUM($D193:R193)+$B193/$C193)>$B193,$B193-SUM($D193:R193),$B193/$C193) -> 0 | T193: =IF((SUM($D193:S193)+$B193/$C193)>$B193,$B193-SUM($D193:S193),$B193/$C193) -> 0 | U193: =IF((SUM($D193:T193)+$B193/$C193)>$B193,$B193-SUM($D193:T193),$B193/$C193) -> 0 | V193: =IF((SUM($D193:U193)+$B193/$C193)>$B193,$B193-SUM($D193:U193),$B193/$C193) -> 0 | W193: =IF((SUM($D193:V193)+$B193/$C193)>$B193,$B193-SUM($D193:V193),$B193/$C193) -> 0 | X193: =IF((SUM($D193:W193)+$B193/$C193)>$B193,$B193-SUM($D193:W193),$B193/$C193) -> 0 | Y193: =IF((SUM($D193:X193)+$B193/$C193)>$B193,$B193-SUM($D193:X193),$B193/$C193) -> 0 | Z193: =IF((SUM($D193:Y193)+$B193/$C193)>$B193,$B193-SUM($D193:Y193),$B193/$C193) -> 0 | AA193: =IF((SUM($D193:Z193)+$B193/$C193)>$B193,$B193-SUM($D193:Z193),$B193/$C193) -> 0
A194: 2012 | B194: =G$180 -> 733.6797013 | C194: =IF('Data 2006-08'!C$34<=A194,1,'Data 2006-08'!C$34-A194+0.5) -> 1.5 | G194: =IF($C194=1,$B194,$B194/2/$C194) -> 244.5599004 | H194: =IF((SUM($D194:G194)+$B194/$C194)>$B194,$B194-SUM($D194:G194),$B194/$C194) -> 489.1198009 | I194: =IF((SUM($D194:H194)+$B194/$C194)>$B194,$B194-SUM($D194:H194),$B194/$C194) -> 0 | J194: =IF((SUM($D194:I194)+$B194/$C194)>$B194,$B194-SUM($D194:I194),$B194/$C194) -> 0 | K194: =IF((SUM($D194:J194)+$B194/$C194)>$B194,$B194-SUM($D194:J194),$B194/$C194) -> 0 | L194: =IF((SUM($D194:K194)+$B194/$C194)>$B194,$B194-SUM($D194:K194),$B194/$C194) -> 0 | M194: =IF((SUM($D194:L194)+$B194/$C194)>$B194,$B194-SUM($D194:L194),$B194/$C194) -> 0 | N194: =IF((SUM($D194:M194)+$B194/$C194)>$B194,$B194-SUM($D194:M194),$B194/$C194) -> 0 | O194: =IF((SUM($D194:N194)+$B194/$C194)>$B194,$B194-SUM($D194:N194),$B194/$C194) -> 0 | P194: =IF((SUM($D194:O194)+$B194/$C194)>$B194,$B194-SUM($D194:O194),$B194/$C194) -> 0 | Q194: =IF((SUM($D194:P194)+$B194/$C194)>$B194,$B194-SUM($D194:P194),$B194/$C194) -> 0 | R194: =IF((SUM($D194:Q194)+$B194/$C194)>$B194,$B194-SUM($D194:Q194),$B194/$C194) -> 0 | S194: =IF((SUM($D194:R194)+$B194/$C194)>$B194,$B194-SUM($D194:R194),$B194/$C194) -> 0 | T194: =IF((SUM($D194:S194)+$B194/$C194)>$B194,$B194-SUM($D194:S194),$B194/$C194) -> 0 | U194: =IF((SUM($D194:T194)+$B194/$C194)>$B194,$B194-SUM($D194:T194),$B194/$C194) -> 0 | V194: =IF((SUM($D194:U194)+$B194/$C194)>$B194,$B194-SUM($D194:U194),$B194/$C194) -> 0 | W194: =IF((SUM($D194:V194)+$B194/$C194)>$B194,$B194-SUM($D194:V194),$B194/$C194) -> 0 | X194: =IF((SUM($D194:W194)+$B194/$C194)>$B194,$B194-SUM($D194:W194),$B194/$C194) -> 0 | Y194: =IF((SUM($D194:X194)+$B194/$C194)>$B194,$B194-SUM($D194:X194),$B194/$C194) -> 0 | Z194: =IF((SUM($D194:Y194)+$B194/$C194)>$B194,$B194-SUM($D194:Y194),$B194/$C194) -> 0 | AA194: =IF((SUM($D194:Z194)+$B194/$C194)>$B194,$B194-SUM($D194:Z194),$B194/$C194) -> 0
A195: 2013 | B195: =H$180 -> 0 | C195: =IF('Data 2006-08'!C$34<=A195,1,'Data 2006-08'!C$34-A195+0.5) -> 1 | H195: =IF($C195=1,$B195,$B195/2/$C195) -> 0 | I195: =IF((SUM($D195:H195)+$B195/$C195)>$B195,$B195-SUM($D195:H195),$B195/$C195) -> 0 | J195: =IF((SUM($D195:I195)+$B195/$C195)>$B195,$B195-SUM($D195:I195),$B195/$C195) -> 0 | K195: =IF((SUM($D195:J195)+$B195/$C195)>$B195,$B195-SUM($D195:J195),$B195/$C195) -> 0 | L195: =IF((SUM($D195:K195)+$B195/$C195)>$B195,$B195-SUM($D195:K195),$B195/$C195) -> 0 | M195: =IF((SUM($D195:L195)+$B195/$C195)>$B195,$B195-SUM($D195:L195),$B195/$C195) -> 0 | N195: =IF((SUM($D195:M195)+$B195/$C195)>$B195,$B195-SUM($D195:M195),$B195/$C195) -> 0 | O195: =IF((SUM($D195:N195)+$B195/$C195)>$B195,$B195-SUM($D195:N195),$B195/$C195) -> 0 | P195: =IF((SUM($D195:O195)+$B195/$C195)>$B195,$B195-SUM($D195:O195),$B195/$C195) -> 0 | Q195: =IF((SUM($D195:P195)+$B195/$C195)>$B195,$B195-SUM($D195:P195),$B195/$C195) -> 0 | R195: =IF((SUM($D195:Q195)+$B195/$C195)>$B195,$B195-SUM($D195:Q195),$B195/$C195) -> 0 | S195: =IF((SUM($D195:R195)+$B195/$C195)>$B195,$B195-SUM($D195:R195),$B195/$C195) -> 0 | T195: =IF((SUM($D195:S195)+$B195/$C195)>$B195,$B195-SUM($D195:S195),$B195/$C195) -> 0 | U195: =IF((SUM($D195:T195)+$B195/$C195)>$B195,$B195-SUM($D195:T195),$B195/$C195) -> 0 | V195: =IF((SUM($D195:U195)+$B195/$C195)>$B195,$B195-SUM($D195:U195),$B195/$C195) -> 0 | W195: =IF((SUM($D195:V195)+$B195/$C195)>$B195,$B195-SUM($D195:V195),$B195/$C195) -> 0 | X195: =IF((SUM($D195:W195)+$B195/$C195)>$B195,$B195-SUM($D195:W195),$B195/$C195) -> 0 | Y195: =IF((SUM($D195:X195)+$B195/$C195)>$B195,$B195-SUM($D195:X195),$B195/$C195) -> 0 | Z195: =IF((SUM($D195:Y195)+$B195/$C195)>$B195,$B195-SUM($D195:Y195),$B195/$C195) -> 0 | AA195: =IF((SUM($D195:Z195)+$B195/$C195)>$B195,$B195-SUM($D195:Z195),$B195/$C195) -> 0
A196: 2014 | B196: =I$180 -> 0 | C196: =IF('Data 2006-08'!C$34<=A196,1,'Data 2006-08'!C$34-A196+0.5) -> 1 | I196: =IF($C196=1,$B196,$B196/2/$C196) -> 0 | J196: =IF((SUM($D196:I196)+$B196/$C196)>$B196,$B196-SUM($D196:I196),$B196/$C196) -> 0 | K196: =IF((SUM($D196:J196)+$B196/$C196)>$B196,$B196-SUM($D196:J196),$B196/$C196) -> 0 | L196: =IF((SUM($D196:K196)+$B196/$C196)>$B196,$B196-SUM($D196:K196),$B196/$C196) -> 0 | M196: =IF((SUM($D196:L196)+$B196/$C196)>$B196,$B196-SUM($D196:L196),$B196/$C196) -> 0 | N196: =IF((SUM($D196:M196)+$B196/$C196)>$B196,$B196-SUM($D196:M196),$B196/$C196) -> 0 | O196: =IF((SUM($D196:N196)+$B196/$C196)>$B196,$B196-SUM($D196:N196),$B196/$C196) -> 0 | P196: =IF((SUM($D196:O196)+$B196/$C196)>$B196,$B196-SUM($D196:O196),$B196/$C196) -> 0 | Q196: =IF((SUM($D196:P196)+$B196/$C196)>$B196,$B196-SUM($D196:P196),$B196/$C196) -> 0 | R196: =IF((SUM($D196:Q196)+$B196/$C196)>$B196,$B196-SUM($D196:Q196),$B196/$C196) -> 0 | S196: =IF((SUM($D196:R196)+$B196/$C196)>$B196,$B196-SUM($D196:R196),$B196/$C196) -> 0 | T196: =IF((SUM($D196:S196)+$B196/$C196)>$B196,$B196-SUM($D196:S196),$B196/$C196) -> 0 | U196: =IF((SUM($D196:T196)+$B196/$C196)>$B196,$B196-SUM($D196:T196),$B196/$C196) -> 0 | V196: =IF((SUM($D196:U196)+$B196/$C196)>$B196,$B196-SUM($D196:U196),$B196/$C196) -> 0 | W196: =IF((SUM($D196:V196)+$B196/$C196)>$B196,$B196-SUM($D196:V196),$B196/$C196) -> 0 | X196: =IF((SUM($D196:W196)+$B196/$C196)>$B196,$B196-SUM($D196:W196),$B196/$C196) -> 0 | Y196: =IF((SUM($D196:X196)+$B196/$C196)>$B196,$B196-SUM($D196:X196),$B196/$C196) -> 0 | Z196: =IF((SUM($D196:Y196)+$B196/$C196)>$B196,$B196-SUM($D196:Y196),$B196/$C196) -> 0 | AA196: =IF((SUM($D196:Z196)+$B196/$C196)>$B196,$B196-SUM($D196:Z196),$B196/$C196) -> 0
A197: 2015 | B197: =J$180 -> 0 | C197: =IF('Data 2006-08'!C$34<=A197,1,'Data 2006-08'!C$34-A197+0.5) -> 1 | J197: =IF($C197=1,$B197,$B197/2/$C197) -> 0 | K197: =IF((SUM($D197:J197)+$B197/$C197)>$B197,$B197-SUM($D197:J197),$B197/$C197) -> 0 | L197: =IF((SUM($D197:K197)+$B197/$C197)>$B197,$B197-SUM($D197:K197),$B197/$C197) -> 0 | M197: =IF((SUM($D197:L197)+$B197/$C197)>$B197,$B197-SUM($D197:L197),$B197/$C197) -> 0 | N197: =IF((SUM($D197:M197)+$B197/$C197)>$B197,$B197-SUM($D197:M197),$B197/$C197) -> 0 | O197: =IF((SUM($D197:N197)+$B197/$C197)>$B197,$B197-SUM($D197:N197),$B197/$C197) -> 0 | P197: =IF((SUM($D197:O197)+$B197/$C197)>$B197,$B197-SUM($D197:O197),$B197/$C197) -> 0 | Q197: =IF((SUM($D197:P197)+$B197/$C197)>$B197,$B197-SUM($D197:P197),$B197/$C197) -> 0 | R197: =IF((SUM($D197:Q197)+$B197/$C197)>$B197,$B197-SUM($D197:Q197),$B197/$C197) -> 0 | S197: =IF((SUM($D197:R197)+$B197/$C197)>$B197,$B197-SUM($D197:R197),$B197/$C197) -> 0 | T197: =IF((SUM($D197:S197)+$B197/$C197)>$B197,$B197-SUM($D197:S197),$B197/$C197) -> 0 | U197: =IF((SUM($D197:T197)+$B197/$C197)>$B197,$B197-SUM($D197:T197),$B197/$C197) -> 0 | V197: =IF((SUM($D197:U197)+$B197/$C197)>$B197,$B197-SUM($D197:U197),$B197/$C197) -> 0 | W197: =IF((SUM($D197:V197)+$B197/$C197)>$B197,$B197-SUM($D197:V197),$B197/$C197) -> 0 | X197: =IF((SUM($D197:W197)+$B197/$C197)>$B197,$B197-SUM($D197:W197),$B197/$C197) -> 0 | Y197: =IF((SUM($D197:X197)+$B197/$C197)>$B197,$B197-SUM($D197:X197),$B197/$C197) -> 0 | Z197: =IF((SUM($D197:Y197)+$B197/$C197)>$B197,$B197-SUM($D197:Y197),$B197/$C197) -> 0 | AA197: =IF((SUM($D197:Z197)+$B197/$C197)>$B197,$B197-SUM($D197:Z197),$B197/$C197) -> 0
B198: =SUM(B191:B197) -> 11470.44075 | D198: =SUM(D191:D197) -> 409.5502377 | E198: 1301.329944 | F198: 2518.599938 | G198: 3498.200364 | H198: 3742.760265 | I198: 4.547473509e-13 | J198: 0 | K198: 0 | L198: 0 | M198: 0 | N198: 0 | O198: 0 | P198: 0 | Q198: 0 | R198: 0 | S198: 0 | T198: 0 | U198: 0 | V198: 0 | W198: 0 | X198: 0 | Y198: 0 | Z198: 0 | AA198: 0
A201: Manually read interval meters | B201: Net | C201: Regulatory | D201: =D$4 -> 2009 | E201: =E$4 -> 2010 | F201: 2011 | G201: 2012 | H201: 2013 | I201: 2014 | J201: 2015 | K201: 2016 | L201: 2017 | M201: 2018 | N201: 2019 | O201: 2020 | P201: 2021 | Q201: 2022 | R201: 2023 | S201: 2024 | T201: 2025 | U201: 2026 | V201: 2027 | W201: 2028 | X201: 2029 | Y201: 2030 | Z201: 2031 | AA201: 2032
A202: =$A$4 -> ($000 Real 2008) | B202: Capex | C202: Life (years)
A203: 2009 | B203: =D$181 -> 0 | C203: =IF('Data 2006-08'!C$34<=A203,1,'Data 2006-08'!C$34-A203+0.5) -> 4.5 | D203: =IF($C203=1,$B203,$B203/2/$C203) -> 0 | E203: =IF((SUM($D203:D203)+$B203/$C203)>$B203,$B203-SUM($D203:D203),$B203/$C203) -> 0 | F203: =IF((SUM($D203:E203)+$B203/$C203)>$B203,$B203-SUM($D203:E203),$B203/$C203) -> 0 | G203: =IF((SUM($D203:F203)+$B203/$C203)>$B203,$B203-SUM($D203:F203),$B203/$C203) -> 0 | H203: =IF((SUM($D203:G203)+$B203/$C203)>$B203,$B203-SUM($D203:G203),$B203/$C203) -> 0 | I203: =IF((SUM($D203:H203)+$B203/$C203)>$B203,$B203-SUM($D203:H203),$B203/$C203) -> 0 | J203: =IF((SUM($D203:I203)+$B203/$C203)>$B203,$B203-SUM($D203:I203),$B203/$C203) -> 0 | K203: =IF((SUM($D203:J203)+$B203/$C203)>$B203,$B203-SUM($D203:J203),$B203/$C203) -> 0 | L203: =IF((SUM($D203:K203)+$B203/$C203)>$B203,$B203-SUM($D203:K203),$B203/$C203) -> 0 | M203: =IF((SUM($D203:L203)+$B203/$C203)>$B203,$B203-SUM($D203:L203),$B203/$C203) -> 0 | N203: =IF((SUM($D203:M203)+$B203/$C203)>$B203,$B203-SUM($D203:M203),$B203/$C203) -> 0 | O203: =IF((SUM($D203:N203)+$B203/$C203)>$B203,$B203-SUM($D203:N203),$B203/$C203) -> 0 | P203: =IF((SUM($D203:O203)+$B203/$C203)>$B203,$B203-SUM($D203:O203),$B203/$C203) -> 0 | Q203: =IF((SUM($D203:P203)+$B203/$C203)>$B203,$B203-SUM($D203:P203),$B203/$C203) -> 0 | R203: =IF((SUM($D203:Q203)+$B203/$C203)>$B203,$B203-SUM($D203:Q203),$B203/$C203) -> 0 | S203: =IF((SUM($D203:R203)+$B203/$C203)>$B203,$B203-SUM($D203:R203),$B203/$C203) -> 0 | T203: =IF((SUM($D203:S203)+$B203/$C203)>$B203,$B203-SUM($D203:S203),$B203/$C203) -> 0 | U203: =IF((SUM($D203:T203)+$B203/$C203)>$B203,$B203-SUM($D203:T203),$B203/$C203) -> 0 | V203: =IF((SUM($D203:U203)+$B203/$C203)>$B203,$B203-SUM($D203:U203),$B203/$C203) -> 0 | W203: =IF((SUM($D203:V203)+$B203/$C203)>$B203,$B203-SUM($D203:V203),$B203/$C203) -> 0 | X203: =IF((SUM($D203:W203)+$B203/$C203)>$B203,$B203-SUM($D203:W203),$B203/$C203) -> 0 | Y203: =IF((SUM($D203:X203)+$B203/$C203)>$B203,$B203-SUM($D203:X203),$B203/$C203) -> 0 | Z203: =IF((SUM($D203:Y203)+$B203/$C203)>$B203,$B203-SUM($D203:Y203),$B203/$C203) -> 0 | AA203: =IF((SUM($D203:Z203)+$B203/$C203)>$B203,$B203-SUM($D203:Z203),$B203/$C203) -> 0
A204: 2010 | B204: =E$181 -> 0 | C204: =IF('Data 2006-08'!C$34<=A204,1,'Data 2006-08'!C$34-A204+0.5) -> 3.5 | E204: =IF($C204=1,$B204,$B204/2/$C204) -> 0 | F204: =IF((SUM($D204:E204)+$B204/$C204)>$B204,$B204-SUM($D204:E204),$B204/$C204) -> 0 | G204: =IF((SUM($D204:F204)+$B204/$C204)>$B204,$B204-SUM($D204:F204),$B204/$C204) -> 0 | H204: =IF((SUM($D204:G204)+$B204/$C204)>$B204,$B204-SUM($D204:G204),$B204/$C204) -> 0 | I204: =IF((SUM($D204:H204)+$B204/$C204)>$B204,$B204-SUM($D204:H204),$B204/$C204) -> 0 | J204: =IF((SUM($D204:I204)+$B204/$C204)>$B204,$B204-SUM($D204:I204),$B204/$C204) -> 0 | K204: =IF((SUM($D204:J204)+$B204/$C204)>$B204,$B204-SUM($D204:J204),$B204/$C204) -> 0 | L204: =IF((SUM($D204:K204)+$B204/$C204)>$B204,$B204-SUM($D204:K204),$B204/$C204) -> 0 | M204: =IF((SUM($D204:L204)+$B204/$C204)>$B204,$B204-SUM($D204:L204),$B204/$C204) -> 0 | N204: =IF((SUM($D204:M204)+$B204/$C204)>$B204,$B204-SUM($D204:M204),$B204/$C204) -> 0 | O204: =IF((SUM($D204:N204)+$B204/$C204)>$B204,$B204-SUM($D204:N204),$B204/$C204) -> 0 | P204: =IF((SUM($D204:O204)+$B204/$C204)>$B204,$B204-SUM($D204:O204),$B204/$C204) -> 0 | Q204: =IF((SUM($D204:P204)+$B204/$C204)>$B204,$B204-SUM($D204:P204),$B204/$C204) -> 0 | R204: =IF((SUM($D204:Q204)+$B204/$C204)>$B204,$B204-SUM($D204:Q204),$B204/$C204) -> 0 | S204: =IF((SUM($D204:R204)+$B204/$C204)>$B204,$B204-SUM($D204:R204),$B204/$C204) -> 0 | T204: =IF((SUM($D204:S204)+$B204/$C204)>$B204,$B204-SUM($D204:S204),$B204/$C204) -> 0 | U204: =IF((SUM($D204:T204)+$B204/$C204)>$B204,$B204-SUM($D204:T204),$B204/$C204) -> 0 | V204: =IF((SUM($D204:U204)+$B204/$C204)>$B204,$B204-SUM($D204:U204),$B204/$C204) -> 0 | W204: =IF((SUM($D204:V204)+$B204/$C204)>$B204,$B204-SUM($D204:V204),$B204/$C204) -> 0 | X204: =IF((SUM($D204:W204)+$B204/$C204)>$B204,$B204-SUM($D204:W204),$B204/$C204) -> 0 | Y204: =IF((SUM($D204:X204)+$B204/$C204)>$B204,$B204-SUM($D204:X204),$B204/$C204) -> 0 | Z204: =IF((SUM($D204:Y204)+$B204/$C204)>$B204,$B204-SUM($D204:Y204),$B204/$C204) -> 0 | AA204: =IF((SUM($D204:Z204)+$B204/$C204)>$B204,$B204-SUM($D204:Z204),$B204/$C204) -> 0
A205: 2011 | B205: =F$181 -> 1617.641203 | C205: =IF('Data 2006-08'!C$34<=A205,1,'Data 2006-08'!C$34-A205+0.5) -> 2.5 | F205: =IF($C205=1,$B205,$B205/2/$C205) -> 323.5282407 | G205: =IF((SUM($D205:F205)+$B205/$C205)>$B205,$B205-SUM($D205:F205),$B205/$C205) -> 647.0564813 | H205: =IF((SUM($D205:G205)+$B205/$C205)>$B205,$B205-SUM($D205:G205),$B205/$C205) -> 647.0564813 | I205: =IF((SUM($D205:H205)+$B205/$C205)>$B205,$B205-SUM($D205:H205),$B205/$C205) -> 0 | J205: =IF((SUM($D205:I205)+$B205/$C205)>$B205,$B205-SUM($D205:I205),$B205/$C205) -> 0 | K205: =IF((SUM($D205:J205)+$B205/$C205)>$B205,$B205-SUM($D205:J205),$B205/$C205) -> 0 | L205: =IF((SUM($D205:K205)+$B205/$C205)>$B205,$B205-SUM($D205:K205),$B205/$C205) -> 0 | M205: =IF((SUM($D205:L205)+$B205/$C205)>$B205,$B205-SUM($D205:L205),$B205/$C205) -> 0 | N205: =IF((SUM($D205:M205)+$B205/$C205)>$B205,$B205-SUM($D205:M205),$B205/$C205) -> 0 | O205: =IF((SUM($D205:N205)+$B205/$C205)>$B205,$B205-SUM($D205:N205),$B205/$C205) -> 0 | P205: =IF((SUM($D205:O205)+$B205/$C205)>$B205,$B205-SUM($D205:O205),$B205/$C205) -> 0 | Q205: =IF((SUM($D205:P205)+$B205/$C205)>$B205,$B205-SUM($D205:P205),$B205/$C205) -> 0 | R205: =IF((SUM($D205:Q205)+$B205/$C205)>$B205,$B205-SUM($D205:Q205),$B205/$C205) -> 0 | S205: =IF((SUM($D205:R205)+$B205/$C205)>$B205,$B205-SUM($D205:R205),$B205/$C205) -> 0 | T205: =IF((SUM($D205:S205)+$B205/$C205)>$B205,$B205-SUM($D205:S205),$B205/$C205) -> 0 | U205: =IF((SUM($D205:T205)+$B205/$C205)>$B205,$B205-SUM($D205:T205),$B205/$C205) -> 0 | V205: =IF((SUM($D205:U205)+$B205/$C205)>$B205,$B205-SUM($D205:U205),$B205/$C205) -> 0 | W205: =IF((SUM($D205:V205)+$B205/$C205)>$B205,$B205-SUM($D205:V205),$B205/$C205) -> 0 | X205: =IF((SUM($D205:W205)+$B205/$C205)>$B205,$B205-SUM($D205:W205),$B205/$C205) -> 0 | Y205: =IF((SUM($D205:X205)+$B205/$C205)>$B205,$B205-SUM($D205:X205),$B205/$C205) -> 0 | Z205: =IF((SUM($D205:Y205)+$B205/$C205)>$B205,$B205-SUM($D205:Y205),$B205/$C205) -> 0 | AA205: =IF((SUM($D205:Z205)+$B205/$C205)>$B205,$B205-SUM($D205:Z205),$B205/$C205) -> 0
A206: 2012 | B206: =G$181 -> 1143.531629 | C206: =IF('Data 2006-08'!C$34<=A206,1,'Data 2006-08'!C$34-A206+0.5) -> 1.5 | G206: =IF($C206=1,$B206,$B206/2/$C206) -> 381.1772096 | H206: =IF((SUM($D206:G206)+$B206/$C206)>$B206,$B206-SUM($D206:G206),$B206/$C206) -> 762.3544192 | I206: =IF((SUM($D206:H206)+$B206/$C206)>$B206,$B206-SUM($D206:H206),$B206/$C206) -> 0 | J206: =IF((SUM($D206:I206)+$B206/$C206)>$B206,$B206-SUM($D206:I206),$B206/$C206) -> 0 | K206: =IF((SUM($D206:J206)+$B206/$C206)>$B206,$B206-SUM($D206:J206),$B206/$C206) -> 0 | L206: =IF((SUM($D206:K206)+$B206/$C206)>$B206,$B206-SUM($D206:K206),$B206/$C206) -> 0 | M206: =IF((SUM($D206:L206)+$B206/$C206)>$B206,$B206-SUM($D206:L206),$B206/$C206) -> 0 | N206: =IF((SUM($D206:M206)+$B206/$C206)>$B206,$B206-SUM($D206:M206),$B206/$C206) -> 0 | O206: =IF((SUM($D206:N206)+$B206/$C206)>$B206,$B206-SUM($D206:N206),$B206/$C206) -> 0 | P206: =IF((SUM($D206:O206)+$B206/$C206)>$B206,$B206-SUM($D206:O206),$B206/$C206) -> 0 | Q206: =IF((SUM($D206:P206)+$B206/$C206)>$B206,$B206-SUM($D206:P206),$B206/$C206) -> 0 | R206: =IF((SUM($D206:Q206)+$B206/$C206)>$B206,$B206-SUM($D206:Q206),$B206/$C206) -> 0 | S206: =IF((SUM($D206:R206)+$B206/$C206)>$B206,$B206-SUM($D206:R206),$B206/$C206) -> 0 | T206: =IF((SUM($D206:S206)+$B206/$C206)>$B206,$B206-SUM($D206:S206),$B206/$C206) -> 0 | U206: =IF((SUM($D206:T206)+$B206/$C206)>$B206,$B206-SUM($D206:T206),$B206/$C206) -> 0 | V206: =IF((SUM($D206:U206)+$B206/$C206)>$B206,$B206-SUM($D206:U206),$B206/$C206) -> 0 | W206: =IF((SUM($D206:V206)+$B206/$C206)>$B206,$B206-SUM($D206:V206),$B206/$C206) -> 0 | X206: =IF((SUM($D206:W206)+$B206/$C206)>$B206,$B206-SUM($D206:W206),$B206/$C206) -> 0 | Y206: =IF((SUM($D206:X206)+$B206/$C206)>$B206,$B206-SUM($D206:X206),$B206/$C206) -> 0 | Z206: =IF((SUM($D206:Y206)+$B206/$C206)>$B206,$B206-SUM($D206:Y206),$B206/$C206) -> 0 | AA206: =IF((SUM($D206:Z206)+$B206/$C206)>$B206,$B206-SUM($D206:Z206),$B206/$C206) -> 0
A207: 2013 | B207: =H$181 -> 0 | C207: =IF('Data 2006-08'!C$34<=A207,1,'Data 2006-08'!C$34-A207+0.5) -> 1 | H207: =IF($C207=1,$B207,$B207/2/$C207) -> 0 | I207: =IF((SUM($D207:H207)+$B207/$C207)>$B207,$B207-SUM($D207:H207),$B207/$C207) -> 0 | J207: =IF((SUM($D207:I207)+$B207/$C207)>$B207,$B207-SUM($D207:I207),$B207/$C207) -> 0 | K207: =IF((SUM($D207:J207)+$B207/$C207)>$B207,$B207-SUM($D207:J207),$B207/$C207) -> 0 | L207: =IF((SUM($D207:K207)+$B207/$C207)>$B207,$B207-SUM($D207:K207),$B207/$C207) -> 0 | M207: =IF((SUM($D207:L207)+$B207/$C207)>$B207,$B207-SUM($D207:L207),$B207/$C207) -> 0 | N207: =IF((SUM($D207:M207)+$B207/$C207)>$B207,$B207-SUM($D207:M207),$B207/$C207) -> 0 | O207: =IF((SUM($D207:N207)+$B207/$C207)>$B207,$B207-SUM($D207:N207),$B207/$C207) -> 0 | P207: =IF((SUM($D207:O207)+$B207/$C207)>$B207,$B207-SUM($D207:O207),$B207/$C207) -> 0 | Q207: =IF((SUM($D207:P207)+$B207/$C207)>$B207,$B207-SUM($D207:P207),$B207/$C207) -> 0 | R207: =IF((SUM($D207:Q207)+$B207/$C207)>$B207,$B207-SUM($D207:Q207),$B207/$C207) -> 0 | S207: =IF((SUM($D207:R207)+$B207/$C207)>$B207,$B207-SUM($D207:R207),$B207/$C207) -> 0 | T207: =IF((SUM($D207:S207)+$B207/$C207)>$B207,$B207-SUM($D207:S207),$B207/$C207) -> 0 | U207: =IF((SUM($D207:T207)+$B207/$C207)>$B207,$B207-SUM($D207:T207),$B207/$C207) -> 0 | V207: =IF((SUM($D207:U207)+$B207/$C207)>$B207,$B207-SUM($D207:U207),$B207/$C207) -> 0 | W207: =IF((SUM($D207:V207)+$B207/$C207)>$B207,$B207-SUM($D207:V207),$B207/$C207) -> 0 | X207: =IF((SUM($D207:W207)+$B207/$C207)>$B207,$B207-SUM($D207:W207),$B207/$C207) -> 0 | Y207: =IF((SUM($D207:X207)+$B207/$C207)>$B207,$B207-SUM($D207:X207),$B207/$C207) -> 0 | Z207: =IF((SUM($D207:Y207)+$B207/$C207)>$B207,$B207-SUM($D207:Y207),$B207/$C207) -> 0 | AA207: =IF((SUM($D207:Z207)+$B207/$C207)>$B207,$B207-SUM($D207:Z207),$B207/$C207) -> 0
A208: 2014 | B208: =I$181 -> 0 | C208: =IF('Data 2006-08'!C$34<=A208,1,'Data 2006-08'!C$34-A208+0.5) -> 1 | I208: =IF($C208=1,$B208,$B208/2/$C208) -> 0 | J208: =IF((SUM($D208:I208)+$B208/$C208)>$B208,$B208-SUM($D208:I208),$B208/$C208) -> 0 | K208: =IF((SUM($D208:J208)+$B208/$C208)>$B208,$B208-SUM($D208:J208),$B208/$C208) -> 0 | L208: =IF((SUM($D208:K208)+$B208/$C208)>$B208,$B208-SUM($D208:K208),$B208/$C208) -> 0 | M208: =IF((SUM($D208:L208)+$B208/$C208)>$B208,$B208-SUM($D208:L208),$B208/$C208) -> 0 | N208: =IF((SUM($D208:M208)+$B208/$C208)>$B208,$B208-SUM($D208:M208),$B208/$C208) -> 0 | O208: =IF((SUM($D208:N208)+$B208/$C208)>$B208,$B208-SUM($D208:N208),$B208/$C208) -> 0 | P208: =IF((SUM($D208:O208)+$B208/$C208)>$B208,$B208-SUM($D208:O208),$B208/$C208) -> 0 | Q208: =IF((SUM($D208:P208)+$B208/$C208)>$B208,$B208-SUM($D208:P208),$B208/$C208) -> 0 | R208: =IF((SUM($D208:Q208)+$B208/$C208)>$B208,$B208-SUM($D208:Q208),$B208/$C208) -> 0 | S208: =IF((SUM($D208:R208)+$B208/$C208)>$B208,$B208-SUM($D208:R208),$B208/$C208) -> 0 | T208: =IF((SUM($D208:S208)+$B208/$C208)>$B208,$B208-SUM($D208:S208),$B208/$C208) -> 0 | U208: =IF((SUM($D208:T208)+$B208/$C208)>$B208,$B208-SUM($D208:T208),$B208/$C208) -> 0 | V208: =IF((SUM($D208:U208)+$B208/$C208)>$B208,$B208-SUM($D208:U208),$B208/$C208) -> 0 | W208: =IF((SUM($D208:V208)+$B208/$C208)>$B208,$B208-SUM($D208:V208),$B208/$C208) -> 0 | X208: =IF((SUM($D208:W208)+$B208/$C208)>$B208,$B208-SUM($D208:W208),$B208/$C208) -> 0 | Y208: =IF((SUM($D208:X208)+$B208/$C208)>$B208,$B208-SUM($D208:X208),$B208/$C208) -> 0 | Z208: =IF((SUM($D208:Y208)+$B208/$C208)>$B208,$B208-SUM($D208:Y208),$B208/$C208) -> 0 | AA208: =IF((SUM($D208:Z208)+$B208/$C208)>$B208,$B208-SUM($D208:Z208),$B208/$C208) -> 0
A209: 2015 | B209: =J$181 -> 0 | C209: =IF('Data 2006-08'!C$34<=A209,1,'Data 2006-08'!C$34-A209+0.5) -> 1 | J209: =IF($C209=1,$B209,$B209/2/$C209) -> 0 | K209: =IF((SUM($D209:J209)+$B209/$C209)>$B209,$B209-SUM($D209:J209),$B209/$C209) -> 0 | L209: =IF((SUM($D209:K209)+$B209/$C209)>$B209,$B209-SUM($D209:K209),$B209/$C209) -> 0 | M209: =IF((SUM($D209:L209)+$B209/$C209)>$B209,$B209-SUM($D209:L209),$B209/$C209) -> 0 | N209: =IF((SUM($D209:M209)+$B209/$C209)>$B209,$B209-SUM($D209:M209),$B209/$C209) -> 0 | O209: =IF((SUM($D209:N209)+$B209/$C209)>$B209,$B209-SUM($D209:N209),$B209/$C209) -> 0 | P209: =IF((SUM($D209:O209)+$B209/$C209)>$B209,$B209-SUM($D209:O209),$B209/$C209) -> 0 | Q209: =IF((SUM($D209:P209)+$B209/$C209)>$B209,$B209-SUM($D209:P209),$B209/$C209) -> 0 | R209: =IF((SUM($D209:Q209)+$B209/$C209)>$B209,$B209-SUM($D209:Q209),$B209/$C209) -> 0 | S209: =IF((SUM($D209:R209)+$B209/$C209)>$B209,$B209-SUM($D209:R209),$B209/$C209) -> 0 | T209: =IF((SUM($D209:S209)+$B209/$C209)>$B209,$B209-SUM($D209:S209),$B209/$C209) -> 0 | U209: =IF((SUM($D209:T209)+$B209/$C209)>$B209,$B209-SUM($D209:T209),$B209/$C209) -> 0 | V209: =IF((SUM($D209:U209)+$B209/$C209)>$B209,$B209-SUM($D209:U209),$B209/$C209) -> 0 | W209: =IF((SUM($D209:V209)+$B209/$C209)>$B209,$B209-SUM($D209:V209),$B209/$C209) -> 0 | X209: =IF((SUM($D209:W209)+$B209/$C209)>$B209,$B209-SUM($D209:W209),$B209/$C209) -> 0 | Y209: =IF((SUM($D209:X209)+$B209/$C209)>$B209,$B209-SUM($D209:X209),$B209/$C209) -> 0 | Z209: =IF((SUM($D209:Y209)+$B209/$C209)>$B209,$B209-SUM($D209:Y209),$B209/$C209) -> 0 | AA209: =IF((SUM($D209:Z209)+$B209/$C209)>$B209,$B209-SUM($D209:Z209),$B209/$C209) -> 0
B210: =SUM(B203:B209) -> 2761.172832 | D210: =SUM(D203:D209) -> 0 | E210: 0 | F210: 323.5282407 | G210: 1028.233691 | H210: 1409.410901 | I210: 0 | J210: 0 | K210: 0 | L210: 0 | M210: 0 | N210: 0 | O210: 0 | P210: 0 | Q210: 0 | R210: 0 | S210: 0 | T210: 0 | U210: 0 | V210: 0 | W210: 0 | X210: 0 | Y210: 0 | Z210: 0 | AA210: 0
A213: ='Data 2009-15 (Real $2008)'!A$154 -> Remotely read interval meters & transformers | B213: Net | C213: Regulatory | D213: =D$4 -> 2009 | E213: =E$4 -> 2010 | F213: 2011 | G213: 2012 | H213: 2013 | I213: 2014 | J213: 2015 | K213: 2016 | L213: 2017 | M213: 2018 | N213: 2019 | O213: 2020 | P213: 2021 | Q213: 2022 | R213: 2023 | S213: 2024 | T213: 2025 | U213: 2026 | V213: 2027 | W213: 2028 | X213: 2029 | Y213: 2030 | Z213: 2031 | AA213: 2032
A214: =$A$4 -> ($000 Real 2008) | B214: Capex | C214: Life (years)
A215: 2009 | B215: =D$182 -> 6108.104037 | C215: ='Data 2009-15 (Real $2008)'!C$154 -> 15 | D215: =IF(C215<1,B215,B215/2/C215) -> 203.6034679 | E215: =IF((SUM($D215:D215)+$B215/$C215)>$B215,$B215-SUM($D215:D215),$B215/$C215) -> 407.2069358 | F215: =IF((SUM($D215:E215)+$B215/$C215)>$B215,$B215-SUM($D215:E215),$B215/$C215) -> 407.2069358 | G215: =IF((SUM($D215:F215)+$B215/$C215)>$B215,$B215-SUM($D215:F215),$B215/$C215) -> 407.2069358 | H215: =IF((SUM($D215:G215)+$B215/$C215)>$B215,$B215-SUM($D215:G215),$B215/$C215) -> 407.2069358 | I215: =IF((SUM($D215:H215)+$B215/$C215)>$B215,$B215-SUM($D215:H215),$B215/$C215) -> 407.2069358 | J215: =IF((SUM($D215:I215)+$B215/$C215)>$B215,$B215-SUM($D215:I215),$B215/$C215) -> 407.2069358 | K215: =IF((SUM($D215:J215)+$B215/$C215)>$B215,$B215-SUM($D215:J215),$B215/$C215) -> 407.2069358 | L215: =IF((SUM($D215:K215)+$B215/$C215)>$B215,$B215-SUM($D215:K215),$B215/$C215) -> 407.2069358 | M215: =IF((SUM($D215:L215)+$B215/$C215)>$B215,$B215-SUM($D215:L215),$B215/$C215) -> 407.2069358 | N215: =IF((SUM($D215:M215)+$B215/$C215)>$B215,$B215-SUM($D215:M215),$B215/$C215) -> 407.2069358 | O215: =IF((SUM($D215:N215)+$B215/$C215)>$B215,$B215-SUM($D215:N215),$B215/$C215) -> 407.2069358 | P215: =IF((SUM($D215:O215)+$B215/$C215)>$B215,$B215-SUM($D215:O215),$B215/$C215) -> 407.2069358 | Q215: =IF((SUM($D215:P215)+$B215/$C215)>$B215,$B215-SUM($D215:P215),$B215/$C215) -> 407.2069358 | R215: =IF((SUM($D215:Q215)+$B215/$C215)>$B215,$B215-SUM($D215:Q215),$B215/$C215) -> 407.2069358 | S215: =IF((SUM($D215:R215)+$B215/$C215)>$B215,$B215-SUM($D215:R215),$B215/$C215) -> 203.6034679 | T215: =IF((SUM($D215:S215)+$B215/$C215)>$B215,$B215-SUM($D215:S215),$B215/$C215) -> 0 | U215: =IF((SUM($D215:T215)+$B215/$C215)>$B215,$B215-SUM($D215:T215),$B215/$C215) -> 0 | V215: =IF((SUM($D215:U215)+$B215/$C215)>$B215,$B215-SUM($D215:U215),$B215/$C215) -> 0 | W215: =IF((SUM($D215:V215)+$B215/$C215)>$B215,$B215-SUM($D215:V215),$B215/$C215) -> 0 | X215: =IF((SUM($D215:W215)+$B215/$C215)>$B215,$B215-SUM($D215:W215),$B215/$C215) -> 0 | Y215: =IF((SUM($D215:X215)+$B215/$C215)>$B215,$B215-SUM($D215:X215),$B215/$C215) -> 0 | Z215: =IF((SUM($D215:Y215)+$B215/$C215)>$B215,$B215-SUM($D215:Y215),$B215/$C215) -> 0 | AA215: =IF((SUM($D215:Z215)+$B215/$C215)>$B215,$B215-SUM($D215:Z215),$B215/$C215) -> 0
A216: 2010 | B216: =E$182 -> 19429.72195 | C216: ='Data 2009-15 (Real $2008)'!C$154 -> 15 | E216: =IF(C216<1,B216,B216/2/C216) -> 647.6573985 | F216: =IF((SUM($D216:E216)+$B216/$C216)>$B216,$B216-SUM($D216:E216),$B216/$C216) -> 1295.314797 | G216: =IF((SUM($D216:F216)+$B216/$C216)>$B216,$B216-SUM($D216:F216),$B216/$C216) -> 1295.314797 | H216: =IF((SUM($D216:G216)+$B216/$C216)>$B216,$B216-SUM($D216:G216),$B216/$C216) -> 1295.314797 | I216: =IF((SUM($D216:H216)+$B216/$C216)>$B216,$B216-SUM($D216:H216),$B216/$C216) -> 1295.314797 | J216: =IF((SUM($D216:I216)+$B216/$C216)>$B216,$B216-SUM($D216:I216),$B216/$C216) -> 1295.314797 | K216: =IF((SUM($D216:J216)+$B216/$C216)>$B216,$B216-SUM($D216:J216),$B216/$C216) -> 1295.314797 | L216: =IF((SUM($D216:K216)+$B216/$C216)>$B216,$B216-SUM($D216:K216),$B216/$C216) -> 1295.314797 | M216: =IF((SUM($D216:L216)+$B216/$C216)>$B216,$B216-SUM($D216:L216),$B216/$C216) -> 1295.314797 | N216: =IF((SUM($D216:M216)+$B216/$C216)>$B216,$B216-SUM($D216:M216),$B216/$C216) -> 1295.314797 | O216: =IF((SUM($D216:N216)+$B216/$C216)>$B216,$B216-SUM($D216:N216),$B216/$C216) -> 1295.314797 | P216: =IF((SUM($D216:O216)+$B216/$C216)>$B216,$B216-SUM($D216:O216),$B216/$C216) -> 1295.314797 | Q216: =IF((SUM($D216:P216)+$B216/$C216)>$B216,$B216-SUM($D216:P216),$B216/$C216) -> 1295.314797 | R216: =IF((SUM($D216:Q216)+$B216/$C216)>$B216,$B216-SUM($D216:Q216),$B216/$C216) -> 1295.314797 | S216: =IF((SUM($D216:R216)+$B216/$C216)>$B216,$B216-SUM($D216:R216),$B216/$C216) -> 1295.314797 | T216: =IF((SUM($D216:S216)+$B216/$C216)>$B216,$B216-SUM($D216:S216),$B216/$C216) -> 647.6573985 | U216: =IF((SUM($D216:T216)+$B216/$C216)>$B216,$B216-SUM($D216:T216),$B216/$C216) -> 0 | V216: =IF((SUM($D216:U216)+$B216/$C216)>$B216,$B216-SUM($D216:U216),$B216/$C216) -> 0 | W216: =IF((SUM($D216:V216)+$B216/$C216)>$B216,$B216-SUM($D216:V216),$B216/$C216) -> 0 | X216: =IF((SUM($D216:W216)+$B216/$C216)>$B216,$B216-SUM($D216:W216),$B216/$C216) -> 0 | Y216: =IF((SUM($D216:X216)+$B216/$C216)>$B216,$B216-SUM($D216:X216),$B216/$C216) -> 0 | Z216: =IF((SUM($D216:Y216)+$B216/$C216)>$B216,$B216-SUM($D216:Y216),$B216/$C216) -> 0 | AA216: =IF((SUM($D216:Z216)+$B216/$C216)>$B216,$B216-SUM($D216:Z216),$B216/$C216) -> 0
A217: 2011 | B217: =F$182 -> 38962.61394 | C217: ='Data 2009-15 (Real $2008)'!C$154 -> 15 | F217: =IF(C217<1,B217,B217/2/C217) -> 1298.753798 | G217: =IF((SUM($D217:F217)+$B217/$C217)>$B217,$B217-SUM($D217:F217),$B217/$C217) -> 2597.507596 | H217: =IF((SUM($D217:G217)+$B217/$C217)>$B217,$B217-SUM($D217:G217),$B217/$C217) -> 2597.507596 | I217: =IF((SUM($D217:H217)+$B217/$C217)>$B217,$B217-SUM($D217:H217),$B217/$C217) -> 2597.507596 | J217: =IF((SUM($D217:I217)+$B217/$C217)>$B217,$B217-SUM($D217:I217),$B217/$C217) -> 2597.507596 | K217: =IF((SUM($D217:J217)+$B217/$C217)>$B217,$B217-SUM($D217:J217),$B217/$C217) -> 2597.507596 | L217: =IF((SUM($D217:K217)+$B217/$C217)>$B217,$B217-SUM($D217:K217),$B217/$C217) -> 2597.507596 | M217: =IF((SUM($D217:L217)+$B217/$C217)>$B217,$B217-SUM($D217:L217),$B217/$C217) -> 2597.507596 | N217: =IF((SUM($D217:M217)+$B217/$C217)>$B217,$B217-SUM($D217:M217),$B217/$C217) -> 2597.507596 | O217: =IF((SUM($D217:N217)+$B217/$C217)>$B217,$B217-SUM($D217:N217),$B217/$C217) -> 2597.507596 | P217: =IF((SUM($D217:O217)+$B217/$C217)>$B217,$B217-SUM($D217:O217),$B217/$C217) -> 2597.507596 | Q217: =IF((SUM($D217:P217)+$B217/$C217)>$B217,$B217-SUM($D217:P217),$B217/$C217) -> 2597.507596 | R217: =IF((SUM($D217:Q217)+$B217/$C217)>$B217,$B217-SUM($D217:Q217),$B217/$C217) -> 2597.507596 | S217: =IF((SUM($D217:R217)+$B217/$C217)>$B217,$B217-SUM($D217:R217),$B217/$C217) -> 2597.507596 | T217: =IF((SUM($D217:S217)+$B217/$C217)>$B217,$B217-SUM($D217:S217),$B217/$C217) -> 2597.507596 | U217: =IF((SUM($D217:T217)+$B217/$C217)>$B217,$B217-SUM($D217:T217),$B217/$C217) -> 1298.753798 | V217: =IF((SUM($D217:U217)+$B217/$C217)>$B217,$B217-SUM($D217:U217),$B217/$C217) -> 0 | W217: =IF((SUM($D217:V217)+$B217/$C217)>$B217,$B217-SUM($D217:V217),$B217/$C217) -> 0 | X217: =IF((SUM($D217:W217)+$B217/$C217)>$B217,$B217-SUM($D217:W217),$B217/$C217) -> 0 | Y217: =IF((SUM($D217:X217)+$B217/$C217)>$B217,$B217-SUM($D217:X217),$B217/$C217) -> 0 | Z217: =IF((SUM($D217:Y217)+$B217/$C217)>$B217,$B217-SUM($D217:Y217),$B217/$C217) -> 0 | AA217: =IF((SUM($D217:Z217)+$B217/$C217)>$B217,$B217-SUM($D217:Z217),$B217/$C217) -> 0
A218: 2012 | B218: =G$182 -> 43962.52285 | C218: ='Data 2009-15 (Real $2008)'!C$154 -> 15 | G218: =IF($C218=1,$B218,$B218/2/$C218) -> 1465.417428 | H218: =IF((SUM($D218:G218)+$B218/$C218)>$B218,$B218-SUM($D218:G218),$B218/$C218) -> 2930.834857 | I218: =IF((SUM($D218:H218)+$B218/$C218)>$B218,$B218-SUM($D218:H218),$B218/$C218) -> 2930.834857 | J218: =IF((SUM($D218:I218)+$B218/$C218)>$B218,$B218-SUM($D218:I218),$B218/$C218) -> 2930.834857 | K218: =IF((SUM($D218:J218)+$B218/$C218)>$B218,$B218-SUM($D218:J218),$B218/$C218) -> 2930.834857 | L218: =IF((SUM($D218:K218)+$B218/$C218)>$B218,$B218-SUM($D218:K218),$B218/$C218) -> 2930.834857 | M218: =IF((SUM($D218:L218)+$B218/$C218)>$B218,$B218-SUM($D218:L218),$B218/$C218) -> 2930.834857 | N218: =IF((SUM($D218:M218)+$B218/$C218)>$B218,$B218-SUM($D218:M218),$B218/$C218) -> 2930.834857 | O218: =IF((SUM($D218:N218)+$B218/$C218)>$B218,$B218-SUM($D218:N218),$B218/$C218) -> 2930.834857 | P218: =IF((SUM($D218:O218)+$B218/$C218)>$B218,$B218-SUM($D218:O218),$B218/$C218) -> 2930.834857 | Q218: =IF((SUM($D218:P218)+$B218/$C218)>$B218,$B218-SUM($D218:P218),$B218/$C218) -> 2930.834857 | R218: =IF((SUM($D218:Q218)+$B218/$C218)>$B218,$B218-SUM($D218:Q218),$B218/$C218) -> 2930.834857 | S218: =IF((SUM($D218:R218)+$B218/$C218)>$B218,$B218-SUM($D218:R218),$B218/$C218) -> 2930.834857 | T218: =IF((SUM($D218:S218)+$B218/$C218)>$B218,$B218-SUM($D218:S218),$B218/$C218) -> 2930.834857 | U218: =IF((SUM($D218:T218)+$B218/$C218)>$B218,$B218-SUM($D218:T218),$B218/$C218) -> 2930.834857 | V218: =IF((SUM($D218:U218)+$B218/$C218)>$B218,$B218-SUM($D218:U218),$B218/$C218) -> 1465.417428 | W218: =IF((SUM($D218:V218)+$B218/$C218)>$B218,$B218-SUM($D218:V218),$B218/$C218) -> 0 | X218: =IF((SUM($D218:W218)+$B218/$C218)>$B218,$B218-SUM($D218:W218),$B218/$C218) -> 0 | Y218: =IF((SUM($D218:X218)+$B218/$C218)>$B218,$B218-SUM($D218:X218),$B218/$C218) -> 0 | Z218: =IF((SUM($D218:Y218)+$B218/$C218)>$B218,$B218-SUM($D218:Y218),$B218/$C218) -> 0 | AA218: =IF((SUM($D218:Z218)+$B218/$C218)>$B218,$B218-SUM($D218:Z218),$B218/$C218) -> 0
A219: 2013 | B219: =H$182 -> 48323.48493 | C219: ='Data 2009-15 (Real $2008)'!C$154 -> 15 | H219: =IF($C219=1,$B219,$B219/2/$C219) -> 1610.782831 | I219: =IF((SUM($D219:H219)+$B219/$C219)>$B219,$B219-SUM($D219:H219),$B219/$C219) -> 3221.565662 | J219: =IF((SUM($D219:I219)+$B219/$C219)>$B219,$B219-SUM($D219:I219),$B219/$C219) -> 3221.565662 | K219: =IF((SUM($D219:J219)+$B219/$C219)>$B219,$B219-SUM($D219:J219),$B219/$C219) -> 3221.565662 | L219: =IF((SUM($D219:K219)+$B219/$C219)>$B219,$B219-SUM($D219:K219),$B219/$C219) -> 3221.565662 | M219: =IF((SUM($D219:L219)+$B219/$C219)>$B219,$B219-SUM($D219:L219),$B219/$C219) -> 3221.565662 | N219: =IF((SUM($D219:M219)+$B219/$C219)>$B219,$B219-SUM($D219:M219),$B219/$C219) -> 3221.565662 | O219: =IF((SUM($D219:N219)+$B219/$C219)>$B219,$B219-SUM($D219:N219),$B219/$C219) -> 3221.565662 | P219: =IF((SUM($D219:O219)+$B219/$C219)>$B219,$B219-SUM($D219:O219),$B219/$C219) -> 3221.565662 | Q219: =IF((SUM($D219:P219)+$B219/$C219)>$B219,$B219-SUM($D219:P219),$B219/$C219) -> 3221.565662 | R219: =IF((SUM($D219:Q219)+$B219/$C219)>$B219,$B219-SUM($D219:Q219),$B219/$C219) -> 3221.565662 | S219: =IF((SUM($D219:R219)+$B219/$C219)>$B219,$B219-SUM($D219:R219),$B219/$C219) -> 3221.565662 | T219: =IF((SUM($D219:S219)+$B219/$C219)>$B219,$B219-SUM($D219:S219),$B219/$C219) -> 3221.565662 | U219: =IF((SUM($D219:T219)+$B219/$C219)>$B219,$B219-SUM($D219:T219),$B219/$C219) -> 3221.565662 | V219: =IF((SUM($D219:U219)+$B219/$C219)>$B219,$B219-SUM($D219:U219),$B219/$C219) -> 3221.565662 | W219: =IF((SUM($D219:V219)+$B219/$C219)>$B219,$B219-SUM($D219:V219),$B219/$C219) -> 1610.782831 | X219: =IF((SUM($D219:W219)+$B219/$C219)>$B219,$B219-SUM($D219:W219),$B219/$C219) -> 0 | Y219: =IF((SUM($D219:X219)+$B219/$C219)>$B219,$B219-SUM($D219:X219),$B219/$C219) -> 0 | Z219: =IF((SUM($D219:Y219)+$B219/$C219)>$B219,$B219-SUM($D219:Y219),$B219/$C219) -> 0 | AA219: =IF((SUM($D219:Z219)+$B219/$C219)>$B219,$B219-SUM($D219:Z219),$B219/$C219) -> 0
A220: 2014 | B220: =I$182 -> 20826.86094 | C220: ='Data 2009-15 (Real $2008)'!C$154 -> 15 | I220: =IF($C220=1,$B220,$B220/2/$C220) -> 694.2286979 | J220: =IF((SUM($D220:I220)+$B220/$C220)>$B220,$B220-SUM($D220:I220),$B220/$C220) -> 1388.457396 | K220: =IF((SUM($D220:J220)+$B220/$C220)>$B220,$B220-SUM($D220:J220),$B220/$C220) -> 1388.457396 | L220: =IF((SUM($D220:K220)+$B220/$C220)>$B220,$B220-SUM($D220:K220),$B220/$C220) -> 1388.457396 | M220: =IF((SUM($D220:L220)+$B220/$C220)>$B220,$B220-SUM($D220:L220),$B220/$C220) -> 1388.457396 | N220: =IF((SUM($D220:M220)+$B220/$C220)>$B220,$B220-SUM($D220:M220),$B220/$C220) -> 1388.457396 | O220: =IF((SUM($D220:N220)+$B220/$C220)>$B220,$B220-SUM($D220:N220),$B220/$C220) -> 1388.457396 | P220: =IF((SUM($D220:O220)+$B220/$C220)>$B220,$B220-SUM($D220:O220),$B220/$C220) -> 1388.457396 | Q220: =IF((SUM($D220:P220)+$B220/$C220)>$B220,$B220-SUM($D220:P220),$B220/$C220) -> 1388.457396 | R220: =IF((SUM($D220:Q220)+$B220/$C220)>$B220,$B220-SUM($D220:Q220),$B220/$C220) -> 1388.457396 | S220: =IF((SUM($D220:R220)+$B220/$C220)>$B220,$B220-SUM($D220:R220),$B220/$C220) -> 1388.457396 | T220: =IF((SUM($D220:S220)+$B220/$C220)>$B220,$B220-SUM($D220:S220),$B220/$C220) -> 1388.457396 | U220: =IF((SUM($D220:T220)+$B220/$C220)>$B220,$B220-SUM($D220:T220),$B220/$C220) -> 1388.457396 | V220: =IF((SUM($D220:U220)+$B220/$C220)>$B220,$B220-SUM($D220:U220),$B220/$C220) -> 1388.457396 | W220: =IF((SUM($D220:V220)+$B220/$C220)>$B220,$B220-SUM($D220:V220),$B220/$C220) -> 1388.457396 | X220: =IF((SUM($D220:W220)+$B220/$C220)>$B220,$B220-SUM($D220:W220),$B220/$C220) -> 694.2286979 | Y220: =IF((SUM($D220:X220)+$B220/$C220)>$B220,$B220-SUM($D220:X220),$B220/$C220) -> 0 | Z220: =IF((SUM($D220:Y220)+$B220/$C220)>$B220,$B220-SUM($D220:Y220),$B220/$C220) -> 0 | AA220: =IF((SUM($D220:Z220)+$B220/$C220)>$B220,$B220-SUM($D220:Z220),$B220/$C220) -> 0
A221: 2015 | B221: =J$182 -> 2685.106035 | C221: ='Data 2009-15 (Real $2008)'!C$154 -> 15 | J221: =IF($C221=1,$B221,$B221/2/$C221) -> 89.5035345 | K221: =IF((SUM($D221:J221)+$B221/$C221)>$B221,$B221-SUM($D221:J221),$B221/$C221) -> 179.007069 | L221: =IF((SUM($D221:K221)+$B221/$C221)>$B221,$B221-SUM($D221:K221),$B221/$C221) -> 179.007069 | M221: =IF((SUM($D221:L221)+$B221/$C221)>$B221,$B221-SUM($D221:L221),$B221/$C221) -> 179.007069 | N221: =IF((SUM($D221:M221)+$B221/$C221)>$B221,$B221-SUM($D221:M221),$B221/$C221) -> 179.007069 | O221: =IF((SUM($D221:N221)+$B221/$C221)>$B221,$B221-SUM($D221:N221),$B221/$C221) -> 179.007069 | P221: =IF((SUM($D221:O221)+$B221/$C221)>$B221,$B221-SUM($D221:O221),$B221/$C221) -> 179.007069 | Q221: =IF((SUM($D221:P221)+$B221/$C221)>$B221,$B221-SUM($D221:P221),$B221/$C221) -> 179.007069 | R221: =IF((SUM($D221:Q221)+$B221/$C221)>$B221,$B221-SUM($D221:Q221),$B221/$C221) -> 179.007069 | S221: =IF((SUM($D221:R221)+$B221/$C221)>$B221,$B221-SUM($D221:R221),$B221/$C221) -> 179.007069 | T221: =IF((SUM($D221:S221)+$B221/$C221)>$B221,$B221-SUM($D221:S221),$B221/$C221) -> 179.007069 | U221: =IF((SUM($D221:T221)+$B221/$C221)>$B221,$B221-SUM($D221:T221),$B221/$C221) -> 179.007069 | V221: =IF((SUM($D221:U221)+$B221/$C221)>$B221,$B221-SUM($D221:U221),$B221/$C221) -> 179.007069 | W221: =IF((SUM($D221:V221)+$B221/$C221)>$B221,$B221-SUM($D221:V221),$B221/$C221) -> 179.007069 | X221: =IF((SUM($D221:W221)+$B221/$C221)>$B221,$B221-SUM($D221:W221),$B221/$C221) -> 179.007069 | Y221: =IF((SUM($D221:X221)+$B221/$C221)>$B221,$B221-SUM($D221:X221),$B221/$C221) -> 89.5035345 | Z221: =IF((SUM($D221:Y221)+$B221/$C221)>$B221,$B221-SUM($D221:Y221),$B221/$C221) -> 0 | AA221: =IF((SUM($D221:Z221)+$B221/$C221)>$B221,$B221-SUM($D221:Z221),$B221/$C221) -> 0
B222: =SUM(B215:B221) -> 180298.4147 | D222: =SUM(D215:D221) -> 203.6034679 | E222: 1054.864334 | F222: 3001.275531 | G222: 5765.446757 | H222: 8841.647016 | I222: 11146.65854 | J222: 11930.39078 | K222: 12019.89431 | L222: 12019.89431 | M222: 12019.89431 | N222: 12019.89431 | O222: 12019.89431 | P222: 12019.89431 | Q222: 12019.89431 | R222: 12019.89431 | S222: 11816.29084 | T222: 10965.02998 | U222: 9018.618781 | V222: 6254.447555 | W222: 3178.247296 | X222: 873.2357669 | Y222: 89.5035345 | Z222: 0 | AA222: 0
A225: IT | B225: Net | C225: Regulatory | D225: =D$4 -> 2009 | E225: =E$4 -> 2010 | F225: 2011 | G225: 2012 | H225: 2013 | I225: 2014 | J225: 2015 | K225: 2016 | L225: 2017 | M225: 2018 | N225: 2019 | O225: 2020 | P225: 2021 | Q225: 2022 | R225: 2023 | S225: 2024 | T225: 2025 | U225: 2026 | V225: 2027 | W225: 2028 | X225: 2029 | Y225: 2030 | Z225: 2031 | AA225: 2032
A226: =$A$4 -> ($000 Real 2008) | B226: Capex | C226: Life (years)
A227: 2009 | B227: =D$183 -> 60237.4079 | C227: ='Data 2009-15 (Real $2008)'!C$155 -> 7 | D227: =IF(C227<1,B227,B227/2/C227) -> 4302.671993 | E227: =IF((SUM($D227:D227)+$B227/$C227)>$B227,$B227-SUM($D227:D227),$B227/$C227) -> 8605.343985 | F227: =IF((SUM($D227:E227)+$B227/$C227)>$B227,$B227-SUM($D227:E227),$B227/$C227) -> 8605.343985 | G227: =IF((SUM($D227:F227)+$B227/$C227)>$B227,$B227-SUM($D227:F227),$B227/$C227) -> 8605.343985 | H227: =IF((SUM($D227:G227)+$B227/$C227)>$B227,$B227-SUM($D227:G227),$B227/$C227) -> 8605.343985 | I227: =IF((SUM($D227:H227)+$B227/$C227)>$B227,$B227-SUM($D227:H227),$B227/$C227) -> 8605.343985 | J227: =IF((SUM($D227:I227)+$B227/$C227)>$B227,$B227-SUM($D227:I227),$B227/$C227) -> 8605.343985 | K227: =IF((SUM($D227:J227)+$B227/$C227)>$B227,$B227-SUM($D227:J227),$B227/$C227) -> 4302.671993 | L227: =IF((SUM($D227:K227)+$B227/$C227)>$B227,$B227-SUM($D227:K227),$B227/$C227) -> 0 | M227: =IF((SUM($D227:L227)+$B227/$C227)>$B227,$B227-SUM($D227:L227),$B227/$C227) -> 0 | N227: =IF((SUM($D227:M227)+$B227/$C227)>$B227,$B227-SUM($D227:M227),$B227/$C227) -> 0 | O227: =IF((SUM($D227:N227)+$B227/$C227)>$B227,$B227-SUM($D227:N227),$B227/$C227) -> 0 | P227: =IF((SUM($D227:O227)+$B227/$C227)>$B227,$B227-SUM($D227:O227),$B227/$C227) -> 0 | Q227: =IF((SUM($D227:P227)+$B227/$C227)>$B227,$B227-SUM($D227:P227),$B227/$C227) -> 0 | R227: =IF((SUM($D227:Q227)+$B227/$C227)>$B227,$B227-SUM($D227:Q227),$B227/$C227) -> 0 | S227: =IF((SUM($D227:R227)+$B227/$C227)>$B227,$B227-SUM($D227:R227),$B227/$C227) -> 0 | T227: =IF((SUM($D227:S227)+$B227/$C227)>$B227,$B227-SUM($D227:S227),$B227/$C227) -> 0 | U227: =IF((SUM($D227:T227)+$B227/$C227)>$B227,$B227-SUM($D227:T227),$B227/$C227) -> 0 | V227: =IF((SUM($D227:U227)+$B227/$C227)>$B227,$B227-SUM($D227:U227),$B227/$C227) -> 0 | W227: =IF((SUM($D227:V227)+$B227/$C227)>$B227,$B227-SUM($D227:V227),$B227/$C227) -> 0 | X227: =IF((SUM($D227:W227)+$B227/$C227)>$B227,$B227-SUM($D227:W227),$B227/$C227) -> 0 | Y227: =IF((SUM($D227:X227)+$B227/$C227)>$B227,$B227-SUM($D227:X227),$B227/$C227) -> 0 | Z227: =IF((SUM($D227:Y227)+$B227/$C227)>$B227,$B227-SUM($D227:Y227),$B227/$C227) -> 0 | AA227: =IF((SUM($D227:Z227)+$B227/$C227)>$B227,$B227-SUM($D227:Z227),$B227/$C227) -> 0
A228: 2010 | B228: =E$183 -> 32381.53509 | C228: ='Data 2009-15 (Real $2008)'!C$155 -> 7 | E228: =IF(C228<1,B228,B228/2/C228) -> 2312.966792 | F228: =IF((SUM($D228:E228)+$B228/$C228)>$B228,$B228-SUM($D228:E228),$B228/$C228) -> 4625.933584 | G228: =IF((SUM($D228:F228)+$B228/$C228)>$B228,$B228-SUM($D228:F228),$B228/$C228) -> 4625.933584 | H228: =IF((SUM($D228:G228)+$B228/$C228)>$B228,$B228-SUM($D228:G228),$B228/$C228) -> 4625.933584 | I228: =IF((SUM($D228:H228)+$B228/$C228)>$B228,$B228-SUM($D228:H228),$B228/$C228) -> 4625.933584 | J228: =IF((SUM($D228:I228)+$B228/$C228)>$B228,$B228-SUM($D228:I228),$B228/$C228) -> 4625.933584 | K228: =IF((SUM($D228:J228)+$B228/$C228)>$B228,$B228-SUM($D228:J228),$B228/$C228) -> 4625.933584 | L228: =IF((SUM($D228:K228)+$B228/$C228)>$B228,$B228-SUM($D228:K228),$B228/$C228) -> 2312.966792 | M228: =IF((SUM($D228:L228)+$B228/$C228)>$B228,$B228-SUM($D228:L228),$B228/$C228) -> 0 | N228: =IF((SUM($D228:M228)+$B228/$C228)>$B228,$B228-SUM($D228:M228),$B228/$C228) -> 0 | O228: =IF((SUM($D228:N228)+$B228/$C228)>$B228,$B228-SUM($D228:N228),$B228/$C228) -> 0 | P228: =IF((SUM($D228:O228)+$B228/$C228)>$B228,$B228-SUM($D228:O228),$B228/$C228) -> 0 | Q228: =IF((SUM($D228:P228)+$B228/$C228)>$B228,$B228-SUM($D228:P228),$B228/$C228) -> 0 | R228: =IF((SUM($D228:Q228)+$B228/$C228)>$B228,$B228-SUM($D228:Q228),$B228/$C228) -> 0 | S228: =IF((SUM($D228:R228)+$B228/$C228)>$B228,$B228-SUM($D228:R228),$B228/$C228) -> 0 | T228: =IF((SUM($D228:S228)+$B228/$C228)>$B228,$B228-SUM($D228:S228),$B228/$C228) -> 0 | U228: =IF((SUM($D228:T228)+$B228/$C228)>$B228,$B228-SUM($D228:T228),$B228/$C228) -> 0 | V228: =IF((SUM($D228:U228)+$B228/$C228)>$B228,$B228-SUM($D228:U228),$B228/$C228) -> 0 | W228: =IF((SUM($D228:V228)+$B228/$C228)>$B228,$B228-SUM($D228:V228),$B228/$C228) -> 0 | X228: =IF((SUM($D228:W228)+$B228/$C228)>$B228,$B228-SUM($D228:W228),$B228/$C228) -> 0 | Y228: =IF((SUM($D228:X228)+$B228/$C228)>$B228,$B228-SUM($D228:X228),$B228/$C228) -> 0 | Z228: =IF((SUM($D228:Y228)+$B228/$C228)>$B228,$B228-SUM($D228:Y228),$B228/$C228) -> 0 | AA228: =IF((SUM($D228:Z228)+$B228/$C228)>$B228,$B228-SUM($D228:Z228),$B228/$C228) -> 0
A229: 2011 | B229: =F$183 -> 7671.037883 | C229: ='Data 2009-15 (Real $2008)'!C$155 -> 7 | F229: =IF(C229<1,B229,B229/2/C229) -> 547.9312774 | G229: =IF((SUM($D229:F229)+$B229/$C229)>$B229,$B229-SUM($D229:F229),$B229/$C229) -> 1095.862555 | H229: =IF((SUM($D229:G229)+$B229/$C229)>$B229,$B229-SUM($D229:G229),$B229/$C229) -> 1095.862555 | I229: =IF((SUM($D229:H229)+$B229/$C229)>$B229,$B229-SUM($D229:H229),$B229/$C229) -> 1095.862555 | J229: =IF((SUM($D229:I229)+$B229/$C229)>$B229,$B229-SUM($D229:I229),$B229/$C229) -> 1095.862555 | K229: =IF((SUM($D229:J229)+$B229/$C229)>$B229,$B229-SUM($D229:J229),$B229/$C229) -> 1095.862555 | L229: =IF((SUM($D229:K229)+$B229/$C229)>$B229,$B229-SUM($D229:K229),$B229/$C229) -> 1095.862555 | M229: =IF((SUM($D229:L229)+$B229/$C229)>$B229,$B229-SUM($D229:L229),$B229/$C229) -> 547.9312774 | N229: =IF((SUM($D229:M229)+$B229/$C229)>$B229,$B229-SUM($D229:M229),$B229/$C229) -> 0 | O229: =IF((SUM($D229:N229)+$B229/$C229)>$B229,$B229-SUM($D229:N229),$B229/$C229) -> 0 | P229: =IF((SUM($D229:O229)+$B229/$C229)>$B229,$B229-SUM($D229:O229),$B229/$C229) -> 0 | Q229: =IF((SUM($D229:P229)+$B229/$C229)>$B229,$B229-SUM($D229:P229),$B229/$C229) -> 0 | R229: =IF((SUM($D229:Q229)+$B229/$C229)>$B229,$B229-SUM($D229:Q229),$B229/$C229) -> 0 | S229: =IF((SUM($D229:R229)+$B229/$C229)>$B229,$B229-SUM($D229:R229),$B229/$C229) -> 0 | T229: =IF((SUM($D229:S229)+$B229/$C229)>$B229,$B229-SUM($D229:S229),$B229/$C229) -> 0 | U229: =IF((SUM($D229:T229)+$B229/$C229)>$B229,$B229-SUM($D229:T229),$B229/$C229) -> 0 | V229: =IF((SUM($D229:U229)+$B229/$C229)>$B229,$B229-SUM($D229:U229),$B229/$C229) -> 0 | W229: =IF((SUM($D229:V229)+$B229/$C229)>$B229,$B229-SUM($D229:V229),$B229/$C229) -> 0 | X229: =IF((SUM($D229:W229)+$B229/$C229)>$B229,$B229-SUM($D229:W229),$B229/$C229) -> 0 | Y229: =IF((SUM($D229:X229)+$B229/$C229)>$B229,$B229-SUM($D229:X229),$B229/$C229) -> 0 | Z229: =IF((SUM($D229:Y229)+$B229/$C229)>$B229,$B229-SUM($D229:Y229),$B229/$C229) -> 0 | AA229: =IF((SUM($D229:Z229)+$B229/$C229)>$B229,$B229-SUM($D229:Z229),$B229/$C229) -> 0
A230: 2012 | B230: =G$183 -> 7049.544521 | C230: ='Data 2009-15 (Real $2008)'!C$155 -> 7 | G230: =IF($C230=1,$B230,$B230/2/$C230) -> 503.5388944 | H230: =IF((SUM($D230:G230)+$B230/$C230)>$B230,$B230-SUM($D230:G230),$B230/$C230) -> 1007.077789 | I230: =IF((SUM($D230:H230)+$B230/$C230)>$B230,$B230-SUM($D230:H230),$B230/$C230) -> 1007.077789 | J230: =IF((SUM($D230:I230)+$B230/$C230)>$B230,$B230-SUM($D230:I230),$B230/$C230) -> 1007.077789 | K230: =IF((SUM($D230:J230)+$B230/$C230)>$B230,$B230-SUM($D230:J230),$B230/$C230) -> 1007.077789 | L230: =IF((SUM($D230:K230)+$B230/$C230)>$B230,$B230-SUM($D230:K230),$B230/$C230) -> 1007.077789 | M230: =IF((SUM($D230:L230)+$B230/$C230)>$B230,$B230-SUM($D230:L230),$B230/$C230) -> 1007.077789 | N230: =IF((SUM($D230:M230)+$B230/$C230)>$B230,$B230-SUM($D230:M230),$B230/$C230) -> 503.5388944 | O230: =IF((SUM($D230:N230)+$B230/$C230)>$B230,$B230-SUM($D230:N230),$B230/$C230) -> 0 | P230: =IF((SUM($D230:O230)+$B230/$C230)>$B230,$B230-SUM($D230:O230),$B230/$C230) -> 0 | Q230: =IF((SUM($D230:P230)+$B230/$C230)>$B230,$B230-SUM($D230:P230),$B230/$C230) -> 0 | R230: =IF((SUM($D230:Q230)+$B230/$C230)>$B230,$B230-SUM($D230:Q230),$B230/$C230) -> 0 | S230: =IF((SUM($D230:R230)+$B230/$C230)>$B230,$B230-SUM($D230:R230),$B230/$C230) -> 0 | T230: =IF((SUM($D230:S230)+$B230/$C230)>$B230,$B230-SUM($D230:S230),$B230/$C230) -> 0 | U230: =IF((SUM($D230:T230)+$B230/$C230)>$B230,$B230-SUM($D230:T230),$B230/$C230) -> 0 | V230: =IF((SUM($D230:U230)+$B230/$C230)>$B230,$B230-SUM($D230:U230),$B230/$C230) -> 0 | W230: =IF((SUM($D230:V230)+$B230/$C230)>$B230,$B230-SUM($D230:V230),$B230/$C230) -> 0 | X230: =IF((SUM($D230:W230)+$B230/$C230)>$B230,$B230-SUM($D230:W230),$B230/$C230) -> 0 | Y230: =IF((SUM($D230:X230)+$B230/$C230)>$B230,$B230-SUM($D230:X230),$B230/$C230) -> 0 | Z230: =IF((SUM($D230:Y230)+$B230/$C230)>$B230,$B230-SUM($D230:Y230),$B230/$C230) -> 0 | AA230: =IF((SUM($D230:Z230)+$B230/$C230)>$B230,$B230-SUM($D230:Z230),$B230/$C230) -> 0
A231: 2013 | B231: =H$183 -> 1515.468264 | C231: ='Data 2009-15 (Real $2008)'!C$155 -> 7 | H231: =IF($C231=1,$B231,$B231/2/$C231) -> 108.2477331 | I231: =IF((SUM($D231:H231)+$B231/$C231)>$B231,$B231-SUM($D231:H231),$B231/$C231) -> 216.4954662 | J231: =IF((SUM($D231:I231)+$B231/$C231)>$B231,$B231-SUM($D231:I231),$B231/$C231) -> 216.4954662 | K231: =IF((SUM($D231:J231)+$B231/$C231)>$B231,$B231-SUM($D231:J231),$B231/$C231) -> 216.4954662 | L231: =IF((SUM($D231:K231)+$B231/$C231)>$B231,$B231-SUM($D231:K231),$B231/$C231) -> 216.4954662 | M231: =IF((SUM($D231:L231)+$B231/$C231)>$B231,$B231-SUM($D231:L231),$B231/$C231) -> 216.4954662 | N231: =IF((SUM($D231:M231)+$B231/$C231)>$B231,$B231-SUM($D231:M231),$B231/$C231) -> 216.4954662 | O231: =IF((SUM($D231:N231)+$B231/$C231)>$B231,$B231-SUM($D231:N231),$B231/$C231) -> 108.2477331 | P231: =IF((SUM($D231:O231)+$B231/$C231)>$B231,$B231-SUM($D231:O231),$B231/$C231) -> 0 | Q231: =IF((SUM($D231:P231)+$B231/$C231)>$B231,$B231-SUM($D231:P231),$B231/$C231) -> 0 | R231: =IF((SUM($D231:Q231)+$B231/$C231)>$B231,$B231-SUM($D231:Q231),$B231/$C231) -> 0 | S231: =IF((SUM($D231:R231)+$B231/$C231)>$B231,$B231-SUM($D231:R231),$B231/$C231) -> 0 | T231: =IF((SUM($D231:S231)+$B231/$C231)>$B231,$B231-SUM($D231:S231),$B231/$C231) -> 0 | U231: =IF((SUM($D231:T231)+$B231/$C231)>$B231,$B231-SUM($D231:T231),$B231/$C231) -> 0 | V231: =IF((SUM($D231:U231)+$B231/$C231)>$B231,$B231-SUM($D231:U231),$B231/$C231) -> 0 | W231: =IF((SUM($D231:V231)+$B231/$C231)>$B231,$B231-SUM($D231:V231),$B231/$C231) -> 0 | X231: =IF((SUM($D231:W231)+$B231/$C231)>$B231,$B231-SUM($D231:W231),$B231/$C231) -> 0 | Y231: =IF((SUM($D231:X231)+$B231/$C231)>$B231,$B231-SUM($D231:X231),$B231/$C231) -> 0 | Z231: =IF((SUM($D231:Y231)+$B231/$C231)>$B231,$B231-SUM($D231:Y231),$B231/$C231) -> 0 | AA231: =IF((SUM($D231:Z231)+$B231/$C231)>$B231,$B231-SUM($D231:Z231),$B231/$C231) -> 0
A232: 2014 | B232: =I$183 -> 3428.982194 | C232: ='Data 2009-15 (Real $2008)'!C$155 -> 7 | I232: =IF($C232=1,$B232,$B232/2/$C232) -> 244.9272996 | J232: =IF((SUM($D232:I232)+$B232/$C232)>$B232,$B232-SUM($D232:I232),$B232/$C232) -> 489.8545992 | K232: =IF((SUM($D232:J232)+$B232/$C232)>$B232,$B232-SUM($D232:J232),$B232/$C232) -> 489.8545992 | L232: =IF((SUM($D232:K232)+$B232/$C232)>$B232,$B232-SUM($D232:K232),$B232/$C232) -> 489.8545992 | M232: =IF((SUM($D232:L232)+$B232/$C232)>$B232,$B232-SUM($D232:L232),$B232/$C232) -> 489.8545992 | N232: =IF((SUM($D232:M232)+$B232/$C232)>$B232,$B232-SUM($D232:M232),$B232/$C232) -> 489.8545992 | O232: =IF((SUM($D232:N232)+$B232/$C232)>$B232,$B232-SUM($D232:N232),$B232/$C232) -> 489.8545992 | P232: =IF((SUM($D232:O232)+$B232/$C232)>$B232,$B232-SUM($D232:O232),$B232/$C232) -> 244.9272996 | Q232: =IF((SUM($D232:P232)+$B232/$C232)>$B232,$B232-SUM($D232:P232),$B232/$C232) -> 0 | R232: =IF((SUM($D232:Q232)+$B232/$C232)>$B232,$B232-SUM($D232:Q232),$B232/$C232) -> 0 | S232: =IF((SUM($D232:R232)+$B232/$C232)>$B232,$B232-SUM($D232:R232),$B232/$C232) -> 0 | T232: =IF((SUM($D232:S232)+$B232/$C232)>$B232,$B232-SUM($D232:S232),$B232/$C232) -> 0 | U232: =IF((SUM($D232:T232)+$B232/$C232)>$B232,$B232-SUM($D232:T232),$B232/$C232) -> 0 | V232: =IF((SUM($D232:U232)+$B232/$C232)>$B232,$B232-SUM($D232:U232),$B232/$C232) -> 0 | W232: =IF((SUM($D232:V232)+$B232/$C232)>$B232,$B232-SUM($D232:V232),$B232/$C232) -> 0 | X232: =IF((SUM($D232:W232)+$B232/$C232)>$B232,$B232-SUM($D232:W232),$B232/$C232) -> 0 | Y232: =IF((SUM($D232:X232)+$B232/$C232)>$B232,$B232-SUM($D232:X232),$B232/$C232) -> 0 | Z232: =IF((SUM($D232:Y232)+$B232/$C232)>$B232,$B232-SUM($D232:Y232),$B232/$C232) -> 0 | AA232: =IF((SUM($D232:Z232)+$B232/$C232)>$B232,$B232-SUM($D232:Z232),$B232/$C232) -> 0
A233: 2015 | B233: =J$183 -> 5044.987224 | C233: ='Data 2009-15 (Real $2008)'!C$155 -> 7 | J233: =IF($C233=1,$B233,$B233/2/$C233) -> 360.3562303 | K233: =IF((SUM($D233:J233)+$B233/$C233)>$B233,$B233-SUM($D233:J233),$B233/$C233) -> 720.7124606 | L233: =IF((SUM($D233:K233)+$B233/$C233)>$B233,$B233-SUM($D233:K233),$B233/$C233) -> 720.7124606 | M233: =IF((SUM($D233:L233)+$B233/$C233)>$B233,$B233-SUM($D233:L233),$B233/$C233) -> 720.7124606 | N233: =IF((SUM($D233:M233)+$B233/$C233)>$B233,$B233-SUM($D233:M233),$B233/$C233) -> 720.7124606 | O233: =IF((SUM($D233:N233)+$B233/$C233)>$B233,$B233-SUM($D233:N233),$B233/$C233) -> 720.7124606 | P233: =IF((SUM($D233:O233)+$B233/$C233)>$B233,$B233-SUM($D233:O233),$B233/$C233) -> 720.7124606 | Q233: =IF((SUM($D233:P233)+$B233/$C233)>$B233,$B233-SUM($D233:P233),$B233/$C233) -> 360.3562303 | R233: =IF((SUM($D233:Q233)+$B233/$C233)>$B233,$B233-SUM($D233:Q233),$B233/$C233) -> 0 | S233: =IF((SUM($D233:R233)+$B233/$C233)>$B233,$B233-SUM($D233:R233),$B233/$C233) -> 0 | T233: =IF((SUM($D233:S233)+$B233/$C233)>$B233,$B233-SUM($D233:S233),$B233/$C233) -> 0 | U233: =IF((SUM($D233:T233)+$B233/$C233)>$B233,$B233-SUM($D233:T233),$B233/$C233) -> 0 | V233: =IF((SUM($D233:U233)+$B233/$C233)>$B233,$B233-SUM($D233:U233),$B233/$C233) -> 0 | W233: =IF((SUM($D233:V233)+$B233/$C233)>$B233,$B233-SUM($D233:V233),$B233/$C233) -> 0 | X233: =IF((SUM($D233:W233)+$B233/$C233)>$B233,$B233-SUM($D233:W233),$B233/$C233) -> 0 | Y233: =IF((SUM($D233:X233)+$B233/$C233)>$B233,$B233-SUM($D233:X233),$B233/$C233) -> 0 | Z233: =IF((SUM($D233:Y233)+$B233/$C233)>$B233,$B233-SUM($D233:Y233),$B233/$C233) -> 0 | AA233: =IF((SUM($D233:Z233)+$B233/$C233)>$B233,$B233-SUM($D233:Z233),$B233/$C233) -> 0
B234: =SUM(B227:B233) -> 117328.9631 | D234: =SUM(D227:D233) -> 4302.671993 | E234: 10918.31078 | F234: 13779.20885 | G234: 14830.67902 | H234: 15442.46565 | I234: 15795.64068 | J234: 16400.92421 | K234: 12458.60845 | L234: 5842.969661 | M234: 2982.071592 | N234: 1930.60142 | O234: 1318.814793 | P234: 965.6397602 | Q234: 360.3562303 | R234: 0 | S234: 0 | T234: 0 | U234: 0 | V234: 0 | W234: 0 | X234: 0 | Y234: 0 | Z234: 0 | AA234: 0
A237: Communications | B237: Net | C237: Regulatory | D237: =D$4 -> 2009 | E237: =E$4 -> 2010 | F237: 2011 | G237: 2012 | H237: 2013 | I237: 2014 | J237: 2015 | K237: 2016 | L237: 2017 | M237: 2018 | N237: 2019 | O237: 2020 | P237: 2021 | Q237: 2022 | R237: 2023 | S237: 2024 | T237: 2025 | U237: 2026 | V237: 2027 | W237: 2028 | X237: 2029 | Y237: 2030 | Z237: 2031 | AA237: 2032
A238: =$A$4 -> ($000 Real 2008) | B238: Capex | C238: Life (years)
A239: 2009 | B239: =D$184 -> 0 | C239: ='Data 2009-15 (Real $2008)'!C$156 -> 7 | D239: =IF(C239<1,B239,B239/2/C239) -> 0 | E239: =IF((SUM($D239:D239)+$B239/$C239)>$B239,$B239-SUM($D239:D239),$B239/$C239) -> 0 | F239: =IF((SUM($D239:E239)+$B239/$C239)>$B239,$B239-SUM($D239:E239),$B239/$C239) -> 0 | G239: =IF((SUM($D239:F239)+$B239/$C239)>$B239,$B239-SUM($D239:F239),$B239/$C239) -> 0 | H239: =IF((SUM($D239:G239)+$B239/$C239)>$B239,$B239-SUM($D239:G239),$B239/$C239) -> 0 | I239: =IF((SUM($D239:H239)+$B239/$C239)>$B239,$B239-SUM($D239:H239),$B239/$C239) -> 0 | J239: =IF((SUM($D239:I239)+$B239/$C239)>$B239,$B239-SUM($D239:I239),$B239/$C239) -> 0 | K239: =IF((SUM($D239:J239)+$B239/$C239)>$B239,$B239-SUM($D239:J239),$B239/$C239) -> 0 | L239: =IF((SUM($D239:K239)+$B239/$C239)>$B239,$B239-SUM($D239:K239),$B239/$C239) -> 0 | M239: =IF((SUM($D239:L239)+$B239/$C239)>$B239,$B239-SUM($D239:L239),$B239/$C239) -> 0 | N239: =IF((SUM($D239:M239)+$B239/$C239)>$B239,$B239-SUM($D239:M239),$B239/$C239) -> 0 | O239: =IF((SUM($D239:N239)+$B239/$C239)>$B239,$B239-SUM($D239:N239),$B239/$C239) -> 0 | P239: =IF((SUM($D239:O239)+$B239/$C239)>$B239,$B239-SUM($D239:O239),$B239/$C239) -> 0 | Q239: =IF((SUM($D239:P239)+$B239/$C239)>$B239,$B239-SUM($D239:P239),$B239/$C239) -> 0 | R239: =IF((SUM($D239:Q239)+$B239/$C239)>$B239,$B239-SUM($D239:Q239),$B239/$C239) -> 0 | S239: =IF((SUM($D239:R239)+$B239/$C239)>$B239,$B239-SUM($D239:R239),$B239/$C239) -> 0 | T239: =IF((SUM($D239:S239)+$B239/$C239)>$B239,$B239-SUM($D239:S239),$B239/$C239) -> 0 | U239: =IF((SUM($D239:T239)+$B239/$C239)>$B239,$B239-SUM($D239:T239),$B239/$C239) -> 0 | V239: =IF((SUM($D239:U239)+$B239/$C239)>$B239,$B239-SUM($D239:U239),$B239/$C239) -> 0 | W239: =IF((SUM($D239:V239)+$B239/$C239)>$B239,$B239-SUM($D239:V239),$B239/$C239) -> 0 | X239: =IF((SUM($D239:W239)+$B239/$C239)>$B239,$B239-SUM($D239:W239),$B239/$C239) -> 0 | Y239: =IF((SUM($D239:X239)+$B239/$C239)>$B239,$B239-SUM($D239:X239),$B239/$C239) -> 0 | Z239: =IF((SUM($D239:Y239)+$B239/$C239)>$B239,$B239-SUM($D239:Y239),$B239/$C239) -> 0 | AA239: =IF((SUM($D239:Z239)+$B239/$C239)>$B239,$B239-SUM($D239:Z239),$B239/$C239) -> 0
A240: 2010 | B240: =E$184 -> 0 | C240: ='Data 2009-15 (Real $2008)'!C$156 -> 7 | E240: =IF(C240<1,B240,B240/2/C240) -> 0 | F240: =IF((SUM($D240:E240)+$B240/$C240)>$B240,$B240-SUM($D240:E240),$B240/$C240) -> 0 | G240: =IF((SUM($D240:F240)+$B240/$C240)>$B240,$B240-SUM($D240:F240),$B240/$C240) -> 0 | H240: =IF((SUM($D240:G240)+$B240/$C240)>$B240,$B240-SUM($D240:G240),$B240/$C240) -> 0 | I240: =IF((SUM($D240:H240)+$B240/$C240)>$B240,$B240-SUM($D240:H240),$B240/$C240) -> 0 | J240: =IF((SUM($D240:I240)+$B240/$C240)>$B240,$B240-SUM($D240:I240),$B240/$C240) -> 0 | K240: =IF((SUM($D240:J240)+$B240/$C240)>$B240,$B240-SUM($D240:J240),$B240/$C240) -> 0 | L240: =IF((SUM($D240:K240)+$B240/$C240)>$B240,$B240-SUM($D240:K240),$B240/$C240) -> 0 | M240: =IF((SUM($D240:L240)+$B240/$C240)>$B240,$B240-SUM($D240:L240),$B240/$C240) -> 0 | N240: =IF((SUM($D240:M240)+$B240/$C240)>$B240,$B240-SUM($D240:M240),$B240/$C240) -> 0 | O240: =IF((SUM($D240:N240)+$B240/$C240)>$B240,$B240-SUM($D240:N240),$B240/$C240) -> 0 | P240: =IF((SUM($D240:O240)+$B240/$C240)>$B240,$B240-SUM($D240:O240),$B240/$C240) -> 0 | Q240: =IF((SUM($D240:P240)+$B240/$C240)>$B240,$B240-SUM($D240:P240),$B240/$C240) -> 0 | R240: =IF((SUM($D240:Q240)+$B240/$C240)>$B240,$B240-SUM($D240:Q240),$B240/$C240) -> 0 | S240: =IF((SUM($D240:R240)+$B240/$C240)>$B240,$B240-SUM($D240:R240),$B240/$C240) -> 0 | T240: =IF((SUM($D240:S240)+$B240/$C240)>$B240,$B240-SUM($D240:S240),$B240/$C240) -> 0 | U240: =IF((SUM($D240:T240)+$B240/$C240)>$B240,$B240-SUM($D240:T240),$B240/$C240) -> 0 | V240: =IF((SUM($D240:U240)+$B240/$C240)>$B240,$B240-SUM($D240:U240),$B240/$C240) -> 0 | W240: =IF((SUM($D240:V240)+$B240/$C240)>$B240,$B240-SUM($D240:V240),$B240/$C240) -> 0 | X240: =IF((SUM($D240:W240)+$B240/$C240)>$B240,$B240-SUM($D240:W240),$B240/$C240) -> 0 | Y240: =IF((SUM($D240:X240)+$B240/$C240)>$B240,$B240-SUM($D240:X240),$B240/$C240) -> 0 | Z240: =IF((SUM($D240:Y240)+$B240/$C240)>$B240,$B240-SUM($D240:Y240),$B240/$C240) -> 0 | AA240: =IF((SUM($D240:Z240)+$B240/$C240)>$B240,$B240-SUM($D240:Z240),$B240/$C240) -> 0
A241: 2011 | B241: =F$184 -> 2082.98238 | C241: ='Data 2009-15 (Real $2008)'!C$156 -> 7 | F241: =IF(C241<1,B241,B241/2/C241) -> 148.7844557 | G241: =IF((SUM($D241:F241)+$B241/$C241)>$B241,$B241-SUM($D241:F241),$B241/$C241) -> 297.5689114 | H241: =IF((SUM($D241:G241)+$B241/$C241)>$B241,$B241-SUM($D241:G241),$B241/$C241) -> 297.5689114 | I241: =IF((SUM($D241:H241)+$B241/$C241)>$B241,$B241-SUM($D241:H241),$B241/$C241) -> 297.5689114 | J241: =IF((SUM($D241:I241)+$B241/$C241)>$B241,$B241-SUM($D241:I241),$B241/$C241) -> 297.5689114 | K241: =IF((SUM($D241:J241)+$B241/$C241)>$B241,$B241-SUM($D241:J241),$B241/$C241) -> 297.5689114 | L241: =IF((SUM($D241:K241)+$B241/$C241)>$B241,$B241-SUM($D241:K241),$B241/$C241) -> 297.5689114 | M241: =IF((SUM($D241:L241)+$B241/$C241)>$B241,$B241-SUM($D241:L241),$B241/$C241) -> 148.7844557 | N241: =IF((SUM($D241:M241)+$B241/$C241)>$B241,$B241-SUM($D241:M241),$B241/$C241) -> 0 | O241: =IF((SUM($D241:N241)+$B241/$C241)>$B241,$B241-SUM($D241:N241),$B241/$C241) -> 0 | P241: =IF((SUM($D241:O241)+$B241/$C241)>$B241,$B241-SUM($D241:O241),$B241/$C241) -> 0 | Q241: =IF((SUM($D241:P241)+$B241/$C241)>$B241,$B241-SUM($D241:P241),$B241/$C241) -> 0 | R241: =IF((SUM($D241:Q241)+$B241/$C241)>$B241,$B241-SUM($D241:Q241),$B241/$C241) -> 0 | S241: =IF((SUM($D241:R241)+$B241/$C241)>$B241,$B241-SUM($D241:R241),$B241/$C241) -> 0 | T241: =IF((SUM($D241:S241)+$B241/$C241)>$B241,$B241-SUM($D241:S241),$B241/$C241) -> 0 | U241: =IF((SUM($D241:T241)+$B241/$C241)>$B241,$B241-SUM($D241:T241),$B241/$C241) -> 0 | V241: =IF((SUM($D241:U241)+$B241/$C241)>$B241,$B241-SUM($D241:U241),$B241/$C241) -> 0 | W241: =IF((SUM($D241:V241)+$B241/$C241)>$B241,$B241-SUM($D241:V241),$B241/$C241) -> 0 | X241: =IF((SUM($D241:W241)+$B241/$C241)>$B241,$B241-SUM($D241:W241),$B241/$C241) -> 0 | Y241: =IF((SUM($D241:X241)+$B241/$C241)>$B241,$B241-SUM($D241:X241),$B241/$C241) -> 0 | Z241: =IF((SUM($D241:Y241)+$B241/$C241)>$B241,$B241-SUM($D241:Y241),$B241/$C241) -> 0 | AA241: =IF((SUM($D241:Z241)+$B241/$C241)>$B241,$B241-SUM($D241:Z241),$B241/$C241) -> 0
A242: 2012 | B242: =G$184 -> 370.2776736 | C242: ='Data 2009-15 (Real $2008)'!C$156 -> 7 | G242: =IF($C242=1,$B242,$B242/2/$C242) -> 26.44840526 | H242: =IF((SUM($D242:G242)+$B242/$C242)>$B242,$B242-SUM($D242:G242),$B242/$C242) -> 52.89681052 | I242: =IF((SUM($D242:H242)+$B242/$C242)>$B242,$B242-SUM($D242:H242),$B242/$C242) -> 52.89681052 | J242: =IF((SUM($D242:I242)+$B242/$C242)>$B242,$B242-SUM($D242:I242),$B242/$C242) -> 52.89681052 | K242: =IF((SUM($D242:J242)+$B242/$C242)>$B242,$B242-SUM($D242:J242),$B242/$C242) -> 52.89681052 | L242: =IF((SUM($D242:K242)+$B242/$C242)>$B242,$B242-SUM($D242:K242),$B242/$C242) -> 52.89681052 | M242: =IF((SUM($D242:L242)+$B242/$C242)>$B242,$B242-SUM($D242:L242),$B242/$C242) -> 52.89681052 | N242: =IF((SUM($D242:M242)+$B242/$C242)>$B242,$B242-SUM($D242:M242),$B242/$C242) -> 26.44840526 | O242: =IF((SUM($D242:N242)+$B242/$C242)>$B242,$B242-SUM($D242:N242),$B242/$C242) -> 0 | P242: =IF((SUM($D242:O242)+$B242/$C242)>$B242,$B242-SUM($D242:O242),$B242/$C242) -> 0 | Q242: =IF((SUM($D242:P242)+$B242/$C242)>$B242,$B242-SUM($D242:P242),$B242/$C242) -> 0 | R242: =IF((SUM($D242:Q242)+$B242/$C242)>$B242,$B242-SUM($D242:Q242),$B242/$C242) -> 0 | S242: =IF((SUM($D242:R242)+$B242/$C242)>$B242,$B242-SUM($D242:R242),$B242/$C242) -> 0 | T242: =IF((SUM($D242:S242)+$B242/$C242)>$B242,$B242-SUM($D242:S242),$B242/$C242) -> 0 | U242: =IF((SUM($D242:T242)+$B242/$C242)>$B242,$B242-SUM($D242:T242),$B242/$C242) -> 0 | V242: =IF((SUM($D242:U242)+$B242/$C242)>$B242,$B242-SUM($D242:U242),$B242/$C242) -> 0 | W242: =IF((SUM($D242:V242)+$B242/$C242)>$B242,$B242-SUM($D242:V242),$B242/$C242) -> 0 | X242: =IF((SUM($D242:W242)+$B242/$C242)>$B242,$B242-SUM($D242:W242),$B242/$C242) -> 0 | Y242: =IF((SUM($D242:X242)+$B242/$C242)>$B242,$B242-SUM($D242:X242),$B242/$C242) -> 0 | Z242: =IF((SUM($D242:Y242)+$B242/$C242)>$B242,$B242-SUM($D242:Y242),$B242/$C242) -> 0 | AA242: =IF((SUM($D242:Z242)+$B242/$C242)>$B242,$B242-SUM($D242:Z242),$B242/$C242) -> 0
A243: 2013 | B243: =H$184 -> 914.6799464 | C243: ='Data 2009-15 (Real $2008)'!C$156 -> 7 | H243: =IF($C243=1,$B243,$B243/2/$C243) -> 65.33428188 | I243: =IF((SUM($D243:H243)+$B243/$C243)>$B243,$B243-SUM($D243:H243),$B243/$C243) -> 130.6685638 | J243: =IF((SUM($D243:I243)+$B243/$C243)>$B243,$B243-SUM($D243:I243),$B243/$C243) -> 130.6685638 | K243: =IF((SUM($D243:J243)+$B243/$C243)>$B243,$B243-SUM($D243:J243),$B243/$C243) -> 130.6685638 | L243: =IF((SUM($D243:K243)+$B243/$C243)>$B243,$B243-SUM($D243:K243),$B243/$C243) -> 130.6685638 | M243: =IF((SUM($D243:L243)+$B243/$C243)>$B243,$B243-SUM($D243:L243),$B243/$C243) -> 130.6685638 | N243: =IF((SUM($D243:M243)+$B243/$C243)>$B243,$B243-SUM($D243:M243),$B243/$C243) -> 130.6685638 | O243: =IF((SUM($D243:N243)+$B243/$C243)>$B243,$B243-SUM($D243:N243),$B243/$C243) -> 65.33428188 | P243: =IF((SUM($D243:O243)+$B243/$C243)>$B243,$B243-SUM($D243:O243),$B243/$C243) -> 0 | Q243: =IF((SUM($D243:P243)+$B243/$C243)>$B243,$B243-SUM($D243:P243),$B243/$C243) -> 0 | R243: =IF((SUM($D243:Q243)+$B243/$C243)>$B243,$B243-SUM($D243:Q243),$B243/$C243) -> 0 | S243: =IF((SUM($D243:R243)+$B243/$C243)>$B243,$B243-SUM($D243:R243),$B243/$C243) -> 0 | T243: =IF((SUM($D243:S243)+$B243/$C243)>$B243,$B243-SUM($D243:S243),$B243/$C243) -> 0 | U243: =IF((SUM($D243:T243)+$B243/$C243)>$B243,$B243-SUM($D243:T243),$B243/$C243) -> 0 | V243: =IF((SUM($D243:U243)+$B243/$C243)>$B243,$B243-SUM($D243:U243),$B243/$C243) -> 0 | W243: =IF((SUM($D243:V243)+$B243/$C243)>$B243,$B243-SUM($D243:V243),$B243/$C243) -> 0 | X243: =IF((SUM($D243:W243)+$B243/$C243)>$B243,$B243-SUM($D243:W243),$B243/$C243) -> 0 | Y243: =IF((SUM($D243:X243)+$B243/$C243)>$B243,$B243-SUM($D243:X243),$B243/$C243) -> 0 | Z243: =IF((SUM($D243:Y243)+$B243/$C243)>$B243,$B243-SUM($D243:Y243),$B243/$C243) -> 0 | AA243: =IF((SUM($D243:Z243)+$B243/$C243)>$B243,$B243-SUM($D243:Z243),$B243/$C243) -> 0
A244: 2014 | B244: =I$184 -> 914.7929043 | C244: ='Data 2009-15 (Real $2008)'!C$156 -> 7 | I244: =IF($C244=1,$B244,$B244/2/$C244) -> 65.34235031 | J244: =IF((SUM($D244:I244)+$B244/$C244)>$B244,$B244-SUM($D244:I244),$B244/$C244) -> 130.6847006 | K244: =IF((SUM($D244:J244)+$B244/$C244)>$B244,$B244-SUM($D244:J244),$B244/$C244) -> 130.6847006 | L244: =IF((SUM($D244:K244)+$B244/$C244)>$B244,$B244-SUM($D244:K244),$B244/$C244) -> 130.6847006 | M244: =IF((SUM($D244:L244)+$B244/$C244)>$B244,$B244-SUM($D244:L244),$B244/$C244) -> 130.6847006 | N244: =IF((SUM($D244:M244)+$B244/$C244)>$B244,$B244-SUM($D244:M244),$B244/$C244) -> 130.6847006 | O244: =IF((SUM($D244:N244)+$B244/$C244)>$B244,$B244-SUM($D244:N244),$B244/$C244) -> 130.6847006 | P244: =IF((SUM($D244:O244)+$B244/$C244)>$B244,$B244-SUM($D244:O244),$B244/$C244) -> 65.34235031 | Q244: =IF((SUM($D244:P244)+$B244/$C244)>$B244,$B244-SUM($D244:P244),$B244/$C244) -> 0 | R244: =IF((SUM($D244:Q244)+$B244/$C244)>$B244,$B244-SUM($D244:Q244),$B244/$C244) -> 0 | S244: =IF((SUM($D244:R244)+$B244/$C244)>$B244,$B244-SUM($D244:R244),$B244/$C244) -> 0 | T244: =IF((SUM($D244:S244)+$B244/$C244)>$B244,$B244-SUM($D244:S244),$B244/$C244) -> 0 | U244: =IF((SUM($D244:T244)+$B244/$C244)>$B244,$B244-SUM($D244:T244),$B244/$C244) -> 0 | V244: =IF((SUM($D244:U244)+$B244/$C244)>$B244,$B244-SUM($D244:U244),$B244/$C244) -> 0 | W244: =IF((SUM($D244:V244)+$B244/$C244)>$B244,$B244-SUM($D244:V244),$B244/$C244) -> 0 | X244: =IF((SUM($D244:W244)+$B244/$C244)>$B244,$B244-SUM($D244:W244),$B244/$C244) -> 0 | Y244: =IF((SUM($D244:X244)+$B244/$C244)>$B244,$B244-SUM($D244:X244),$B244/$C244) -> 0 | Z244: =IF((SUM($D244:Y244)+$B244/$C244)>$B244,$B244-SUM($D244:Y244),$B244/$C244) -> 0 | AA244: =IF((SUM($D244:Z244)+$B244/$C244)>$B244,$B244-SUM($D244:Z244),$B244/$C244) -> 0
A245: 2015 | B245: =J$184 -> 397.1504561 | C245: ='Data 2009-15 (Real $2008)'!C$156 -> 7 | J245: =IF($C245=1,$B245,$B245/2/$C245) -> 28.36788972 | K245: =IF((SUM($D245:J245)+$B245/$C245)>$B245,$B245-SUM($D245:J245),$B245/$C245) -> 56.73577944 | L245: =IF((SUM($D245:K245)+$B245/$C245)>$B245,$B245-SUM($D245:K245),$B245/$C245) -> 56.73577944 | M245: =IF((SUM($D245:L245)+$B245/$C245)>$B245,$B245-SUM($D245:L245),$B245/$C245) -> 56.73577944 | N245: =IF((SUM($D245:M245)+$B245/$C245)>$B245,$B245-SUM($D245:M245),$B245/$C245) -> 56.73577944 | O245: =IF((SUM($D245:N245)+$B245/$C245)>$B245,$B245-SUM($D245:N245),$B245/$C245) -> 56.73577944 | P245: =IF((SUM($D245:O245)+$B245/$C245)>$B245,$B245-SUM($D245:O245),$B245/$C245) -> 56.73577944 | Q245: =IF((SUM($D245:P245)+$B245/$C245)>$B245,$B245-SUM($D245:P245),$B245/$C245) -> 28.36788972 | R245: =IF((SUM($D245:Q245)+$B245/$C245)>$B245,$B245-SUM($D245:Q245),$B245/$C245) -> 0 | S245: =IF((SUM($D245:R245)+$B245/$C245)>$B245,$B245-SUM($D245:R245),$B245/$C245) -> 0 | T245: =IF((SUM($D245:S245)+$B245/$C245)>$B245,$B245-SUM($D245:S245),$B245/$C245) -> 0 | U245: =IF((SUM($D245:T245)+$B245/$C245)>$B245,$B245-SUM($D245:T245),$B245/$C245) -> 0 | V245: =IF((SUM($D245:U245)+$B245/$C245)>$B245,$B245-SUM($D245:U245),$B245/$C245) -> 0 | W245: =IF((SUM($D245:V245)+$B245/$C245)>$B245,$B245-SUM($D245:V245),$B245/$C245) -> 0 | X245: =IF((SUM($D245:W245)+$B245/$C245)>$B245,$B245-SUM($D245:W245),$B245/$C245) -> 0 | Y245: =IF((SUM($D245:X245)+$B245/$C245)>$B245,$B245-SUM($D245:X245),$B245/$C245) -> 0 | Z245: =IF((SUM($D245:Y245)+$B245/$C245)>$B245,$B245-SUM($D245:Y245),$B245/$C245) -> 0 | AA245: =IF((SUM($D245:Z245)+$B245/$C245)>$B245,$B245-SUM($D245:Z245),$B245/$C245) -> 0
B246: =SUM(B239:B245) -> 4679.88336 | D246: =SUM(D239:D245) -> 0 | E246: 0 | F246: 148.7844557 | G246: 324.0173167 | H246: 415.8000038 | I246: 546.476636 | J246: 640.186876 | K246: 668.5547657 | L246: 668.5547657 | M246: 519.77031 | N246: 344.5374491 | O246: 252.7547619 | P246: 122.0781297 | Q246: 28.36788972 | R246: 0 | S246: 0 | T246: 0 | U246: 0 | V246: 0 | W246: 0 | X246: 0 | Y246: 0 | Z246: 0 | AA246: 0
A249: Other | B249: Net | C249: Regulatory | D249: =D$4 -> 2009 | E249: =E$4 -> 2010 | F249: 2011 | G249: 2012 | H249: 2013 | I249: 2014 | J249: 2015 | K249: 2016 | L249: 2017 | M249: 2018 | N249: 2019 | O249: 2020 | P249: 2021 | Q249: 2022 | R249: 2023 | S249: 2024 | T249: 2025 | U249: 2026 | V249: 2027 | W249: 2028 | X249: 2029 | Y249: 2030 | Z249: 2031 | AA249: 2032
A250: =$A$4 -> ($000 Real 2008) | B250: Capex | C250: Life (years)
A251: 2009 | B251: =D$185 -> 96.16863885 | C251: ='Data 2009-15 (Real $2008)'!C$157 -> 7 | D251: =IF(C251<1,B251,B251/2/C251) -> 6.869188489 | E251: =IF((SUM($D251:D251)+$B251/$C251)>$B251,$B251-SUM($D251:D251),$B251/$C251) -> 13.73837698 | F251: =IF((SUM($D251:E251)+$B251/$C251)>$B251,$B251-SUM($D251:E251),$B251/$C251) -> 13.73837698 | G251: =IF((SUM($D251:F251)+$B251/$C251)>$B251,$B251-SUM($D251:F251),$B251/$C251) -> 13.73837698 | H251: =IF((SUM($D251:G251)+$B251/$C251)>$B251,$B251-SUM($D251:G251),$B251/$C251) -> 13.73837698 | I251: =IF((SUM($D251:H251)+$B251/$C251)>$B251,$B251-SUM($D251:H251),$B251/$C251) -> 13.73837698 | J251: =IF((SUM($D251:I251)+$B251/$C251)>$B251,$B251-SUM($D251:I251),$B251/$C251) -> 13.73837698 | K251: =IF((SUM($D251:J251)+$B251/$C251)>$B251,$B251-SUM($D251:J251),$B251/$C251) -> 6.869188489 | L251: =IF((SUM($D251:K251)+$B251/$C251)>$B251,$B251-SUM($D251:K251),$B251/$C251) -> 0 | M251: =IF((SUM($D251:L251)+$B251/$C251)>$B251,$B251-SUM($D251:L251),$B251/$C251) -> 0 | N251: =IF((SUM($D251:M251)+$B251/$C251)>$B251,$B251-SUM($D251:M251),$B251/$C251) -> 0 | O251: =IF((SUM($D251:N251)+$B251/$C251)>$B251,$B251-SUM($D251:N251),$B251/$C251) -> 0 | P251: =IF((SUM($D251:O251)+$B251/$C251)>$B251,$B251-SUM($D251:O251),$B251/$C251) -> 0 | Q251: =IF((SUM($D251:P251)+$B251/$C251)>$B251,$B251-SUM($D251:P251),$B251/$C251) -> 0 | R251: =IF((SUM($D251:Q251)+$B251/$C251)>$B251,$B251-SUM($D251:Q251),$B251/$C251) -> 0 | S251: =IF((SUM($D251:R251)+$B251/$C251)>$B251,$B251-SUM($D251:R251),$B251/$C251) -> 0 | T251: =IF((SUM($D251:S251)+$B251/$C251)>$B251,$B251-SUM($D251:S251),$B251/$C251) -> 0 | U251: =IF((SUM($D251:T251)+$B251/$C251)>$B251,$B251-SUM($D251:T251),$B251/$C251) -> 0 | V251: =IF((SUM($D251:U251)+$B251/$C251)>$B251,$B251-SUM($D251:U251),$B251/$C251) -> 0 | W251: =IF((SUM($D251:V251)+$B251/$C251)>$B251,$B251-SUM($D251:V251),$B251/$C251) -> 0 | X251: =IF((SUM($D251:W251)+$B251/$C251)>$B251,$B251-SUM($D251:W251),$B251/$C251) -> 0 | Y251: =IF((SUM($D251:X251)+$B251/$C251)>$B251,$B251-SUM($D251:X251),$B251/$C251) -> 0 | Z251: =IF((SUM($D251:Y251)+$B251/$C251)>$B251,$B251-SUM($D251:Y251),$B251/$C251) -> 0 | AA251: =IF((SUM($D251:Z251)+$B251/$C251)>$B251,$B251-SUM($D251:Z251),$B251/$C251) -> 0
A252: 2010 | B252: =E$185 -> 345.3895979 | C252: ='Data 2009-15 (Real $2008)'!C$157 -> 7 | E252: =IF(C252<1,B252,B252/2/C252) -> 24.67068556 | F252: =IF((SUM($D252:E252)+$B252/$C252)>$B252,$B252-SUM($D252:E252),$B252/$C252) -> 49.34137112 | G252: =IF((SUM($D252:F252)+$B252/$C252)>$B252,$B252-SUM($D252:F252),$B252/$C252) -> 49.34137112 | H252: =IF((SUM($D252:G252)+$B252/$C252)>$B252,$B252-SUM($D252:G252),$B252/$C252) -> 49.34137112 | I252: =IF((SUM($D252:H252)+$B252/$C252)>$B252,$B252-SUM($D252:H252),$B252/$C252) -> 49.34137112 | J252: =IF((SUM($D252:I252)+$B252/$C252)>$B252,$B252-SUM($D252:I252),$B252/$C252) -> 49.34137112 | K252: =IF((SUM($D252:J252)+$B252/$C252)>$B252,$B252-SUM($D252:J252),$B252/$C252) -> 49.34137112 | L252: =IF((SUM($D252:K252)+$B252/$C252)>$B252,$B252-SUM($D252:K252),$B252/$C252) -> 24.67068556 | M252: =IF((SUM($D252:L252)+$B252/$C252)>$B252,$B252-SUM($D252:L252),$B252/$C252) -> 0 | N252: =IF((SUM($D252:M252)+$B252/$C252)>$B252,$B252-SUM($D252:M252),$B252/$C252) -> 0 | O252: =IF((SUM($D252:N252)+$B252/$C252)>$B252,$B252-SUM($D252:N252),$B252/$C252) -> 0 | P252: =IF((SUM($D252:O252)+$B252/$C252)>$B252,$B252-SUM($D252:O252),$B252/$C252) -> 0 | Q252: =IF((SUM($D252:P252)+$B252/$C252)>$B252,$B252-SUM($D252:P252),$B252/$C252) -> 0 | R252: =IF((SUM($D252:Q252)+$B252/$C252)>$B252,$B252-SUM($D252:Q252),$B252/$C252) -> 0 | S252: =IF((SUM($D252:R252)+$B252/$C252)>$B252,$B252-SUM($D252:R252),$B252/$C252) -> 0 | T252: =IF((SUM($D252:S252)+$B252/$C252)>$B252,$B252-SUM($D252:S252),$B252/$C252) -> 0 | U252: =IF((SUM($D252:T252)+$B252/$C252)>$B252,$B252-SUM($D252:T252),$B252/$C252) -> 0 | V252: =IF((SUM($D252:U252)+$B252/$C252)>$B252,$B252-SUM($D252:U252),$B252/$C252) -> 0 | W252: =IF((SUM($D252:V252)+$B252/$C252)>$B252,$B252-SUM($D252:V252),$B252/$C252) -> 0 | X252: =IF((SUM($D252:W252)+$B252/$C252)>$B252,$B252-SUM($D252:W252),$B252/$C252) -> 0 | Y252: =IF((SUM($D252:X252)+$B252/$C252)>$B252,$B252-SUM($D252:X252),$B252/$C252) -> 0 | Z252: =IF((SUM($D252:Y252)+$B252/$C252)>$B252,$B252-SUM($D252:Y252),$B252/$C252) -> 0 | AA252: =IF((SUM($D252:Z252)+$B252/$C252)>$B252,$B252-SUM($D252:Z252),$B252/$C252) -> 0
A253: 2011 | B253: =F$185 -> 9655.317965 | C253: ='Data 2009-15 (Real $2008)'!C$157 -> 7 | F253: =IF(C253<1,B253,B253/2/C253) -> 689.6655689 | G253: =IF((SUM($D253:F253)+$B253/$C253)>$B253,$B253-SUM($D253:F253),$B253/$C253) -> 1379.331138 | H253: =IF((SUM($D253:G253)+$B253/$C253)>$B253,$B253-SUM($D253:G253),$B253/$C253) -> 1379.331138 | I253: =IF((SUM($D253:H253)+$B253/$C253)>$B253,$B253-SUM($D253:H253),$B253/$C253) -> 1379.331138 | J253: =IF((SUM($D253:I253)+$B253/$C253)>$B253,$B253-SUM($D253:I253),$B253/$C253) -> 1379.331138 | K253: =IF((SUM($D253:J253)+$B253/$C253)>$B253,$B253-SUM($D253:J253),$B253/$C253) -> 1379.331138 | L253: =IF((SUM($D253:K253)+$B253/$C253)>$B253,$B253-SUM($D253:K253),$B253/$C253) -> 1379.331138 | M253: =IF((SUM($D253:L253)+$B253/$C253)>$B253,$B253-SUM($D253:L253),$B253/$C253) -> 689.6655689 | N253: =IF((SUM($D253:M253)+$B253/$C253)>$B253,$B253-SUM($D253:M253),$B253/$C253) -> 0 | O253: =IF((SUM($D253:N253)+$B253/$C253)>$B253,$B253-SUM($D253:N253),$B253/$C253) -> 0 | P253: =IF((SUM($D253:O253)+$B253/$C253)>$B253,$B253-SUM($D253:O253),$B253/$C253) -> 0 | Q253: =IF((SUM($D253:P253)+$B253/$C253)>$B253,$B253-SUM($D253:P253),$B253/$C253) -> 0 | R253: =IF((SUM($D253:Q253)+$B253/$C253)>$B253,$B253-SUM($D253:Q253),$B253/$C253) -> 0 | S253: =IF((SUM($D253:R253)+$B253/$C253)>$B253,$B253-SUM($D253:R253),$B253/$C253) -> 0 | T253: =IF((SUM($D253:S253)+$B253/$C253)>$B253,$B253-SUM($D253:S253),$B253/$C253) -> 0 | U253: =IF((SUM($D253:T253)+$B253/$C253)>$B253,$B253-SUM($D253:T253),$B253/$C253) -> 0 | V253: =IF((SUM($D253:U253)+$B253/$C253)>$B253,$B253-SUM($D253:U253),$B253/$C253) -> 0 | W253: =IF((SUM($D253:V253)+$B253/$C253)>$B253,$B253-SUM($D253:V253),$B253/$C253) -> 0 | X253: =IF((SUM($D253:W253)+$B253/$C253)>$B253,$B253-SUM($D253:W253),$B253/$C253) -> 0 | Y253: =IF((SUM($D253:X253)+$B253/$C253)>$B253,$B253-SUM($D253:X253),$B253/$C253) -> 0 | Z253: =IF((SUM($D253:Y253)+$B253/$C253)>$B253,$B253-SUM($D253:Y253),$B253/$C253) -> 0 | AA253: =IF((SUM($D253:Z253)+$B253/$C253)>$B253,$B253-SUM($D253:Z253),$B253/$C253) -> 0
A254: 2012 | B254: =G$185 -> 2393.08993 | C254: ='Data 2009-15 (Real $2008)'!C$157 -> 7 | G254: =IF($C254=1,$B254,$B254/2/$C254) -> 170.934995 | H254: =IF((SUM($D254:G254)+$B254/$C254)>$B254,$B254-SUM($D254:G254),$B254/$C254) -> 341.86999 | I254: =IF((SUM($D254:H254)+$B254/$C254)>$B254,$B254-SUM($D254:H254),$B254/$C254) -> 341.86999 | J254: =IF((SUM($D254:I254)+$B254/$C254)>$B254,$B254-SUM($D254:I254),$B254/$C254) -> 341.86999 | K254: =IF((SUM($D254:J254)+$B254/$C254)>$B254,$B254-SUM($D254:J254),$B254/$C254) -> 341.86999 | L254: =IF((SUM($D254:K254)+$B254/$C254)>$B254,$B254-SUM($D254:K254),$B254/$C254) -> 341.86999 | M254: =IF((SUM($D254:L254)+$B254/$C254)>$B254,$B254-SUM($D254:L254),$B254/$C254) -> 341.86999 | N254: =IF((SUM($D254:M254)+$B254/$C254)>$B254,$B254-SUM($D254:M254),$B254/$C254) -> 170.934995 | O254: =IF((SUM($D254:N254)+$B254/$C254)>$B254,$B254-SUM($D254:N254),$B254/$C254) -> 0 | P254: =IF((SUM($D254:O254)+$B254/$C254)>$B254,$B254-SUM($D254:O254),$B254/$C254) -> 0 | Q254: =IF((SUM($D254:P254)+$B254/$C254)>$B254,$B254-SUM($D254:P254),$B254/$C254) -> 0 | R254: =IF((SUM($D254:Q254)+$B254/$C254)>$B254,$B254-SUM($D254:Q254),$B254/$C254) -> 0 | S254: =IF((SUM($D254:R254)+$B254/$C254)>$B254,$B254-SUM($D254:R254),$B254/$C254) -> 0 | T254: =IF((SUM($D254:S254)+$B254/$C254)>$B254,$B254-SUM($D254:S254),$B254/$C254) -> 0 | U254: =IF((SUM($D254:T254)+$B254/$C254)>$B254,$B254-SUM($D254:T254),$B254/$C254) -> 0 | V254: =IF((SUM($D254:U254)+$B254/$C254)>$B254,$B254-SUM($D254:U254),$B254/$C254) -> 0 | W254: =IF((SUM($D254:V254)+$B254/$C254)>$B254,$B254-SUM($D254:V254),$B254/$C254) -> 0 | X254: =IF((SUM($D254:W254)+$B254/$C254)>$B254,$B254-SUM($D254:W254),$B254/$C254) -> 0 | Y254: =IF((SUM($D254:X254)+$B254/$C254)>$B254,$B254-SUM($D254:X254),$B254/$C254) -> 0 | Z254: =IF((SUM($D254:Y254)+$B254/$C254)>$B254,$B254-SUM($D254:Y254),$B254/$C254) -> 0 | AA254: =IF((SUM($D254:Z254)+$B254/$C254)>$B254,$B254-SUM($D254:Z254),$B254/$C254) -> 0
A255: 2013 | B255: =H$185 -> 2102.18086 | C255: ='Data 2009-15 (Real $2008)'!C$157 -> 7 | H255: =IF($C255=1,$B255,$B255/2/$C255) -> 150.1557757 | I255: =IF((SUM($D255:H255)+$B255/$C255)>$B255,$B255-SUM($D255:H255),$B255/$C255) -> 300.3115514 | J255: =IF((SUM($D255:I255)+$B255/$C255)>$B255,$B255-SUM($D255:I255),$B255/$C255) -> 300.3115514 | K255: =IF((SUM($D255:J255)+$B255/$C255)>$B255,$B255-SUM($D255:J255),$B255/$C255) -> 300.3115514 | L255: =IF((SUM($D255:K255)+$B255/$C255)>$B255,$B255-SUM($D255:K255),$B255/$C255) -> 300.3115514 | M255: =IF((SUM($D255:L255)+$B255/$C255)>$B255,$B255-SUM($D255:L255),$B255/$C255) -> 300.3115514 | N255: =IF((SUM($D255:M255)+$B255/$C255)>$B255,$B255-SUM($D255:M255),$B255/$C255) -> 300.3115514 | O255: =IF((SUM($D255:N255)+$B255/$C255)>$B255,$B255-SUM($D255:N255),$B255/$C255) -> 150.1557757 | P255: =IF((SUM($D255:O255)+$B255/$C255)>$B255,$B255-SUM($D255:O255),$B255/$C255) -> 0 | Q255: =IF((SUM($D255:P255)+$B255/$C255)>$B255,$B255-SUM($D255:P255),$B255/$C255) -> 0 | R255: =IF((SUM($D255:Q255)+$B255/$C255)>$B255,$B255-SUM($D255:Q255),$B255/$C255) -> 0 | S255: =IF((SUM($D255:R255)+$B255/$C255)>$B255,$B255-SUM($D255:R255),$B255/$C255) -> 0 | T255: =IF((SUM($D255:S255)+$B255/$C255)>$B255,$B255-SUM($D255:S255),$B255/$C255) -> 0 | U255: =IF((SUM($D255:T255)+$B255/$C255)>$B255,$B255-SUM($D255:T255),$B255/$C255) -> 0 | V255: =IF((SUM($D255:U255)+$B255/$C255)>$B255,$B255-SUM($D255:U255),$B255/$C255) -> 0 | W255: =IF((SUM($D255:V255)+$B255/$C255)>$B255,$B255-SUM($D255:V255),$B255/$C255) -> 0 | X255: =IF((SUM($D255:W255)+$B255/$C255)>$B255,$B255-SUM($D255:W255),$B255/$C255) -> 0 | Y255: =IF((SUM($D255:X255)+$B255/$C255)>$B255,$B255-SUM($D255:X255),$B255/$C255) -> 0 | Z255: =IF((SUM($D255:Y255)+$B255/$C255)>$B255,$B255-SUM($D255:Y255),$B255/$C255) -> 0 | AA255: =IF((SUM($D255:Z255)+$B255/$C255)>$B255,$B255-SUM($D255:Z255),$B255/$C255) -> 0
A256: 2014 | B256: =I$185 -> 0 | C256: ='Data 2009-15 (Real $2008)'!C$157 -> 7 | I256: =IF($C256=1,$B256,$B256/2/$C256) -> 0 | J256: =IF((SUM($D256:I256)+$B256/$C256)>$B256,$B256-SUM($D256:I256),$B256/$C256) -> 0 | K256: =IF((SUM($D256:J256)+$B256/$C256)>$B256,$B256-SUM($D256:J256),$B256/$C256) -> 0 | L256: =IF((SUM($D256:K256)+$B256/$C256)>$B256,$B256-SUM($D256:K256),$B256/$C256) -> 0 | M256: =IF((SUM($D256:L256)+$B256/$C256)>$B256,$B256-SUM($D256:L256),$B256/$C256) -> 0 | N256: =IF((SUM($D256:M256)+$B256/$C256)>$B256,$B256-SUM($D256:M256),$B256/$C256) -> 0 | O256: =IF((SUM($D256:N256)+$B256/$C256)>$B256,$B256-SUM($D256:N256),$B256/$C256) -> 0 | P256: =IF((SUM($D256:O256)+$B256/$C256)>$B256,$B256-SUM($D256:O256),$B256/$C256) -> 0 | Q256: =IF((SUM($D256:P256)+$B256/$C256)>$B256,$B256-SUM($D256:P256),$B256/$C256) -> 0 | R256: =IF((SUM($D256:Q256)+$B256/$C256)>$B256,$B256-SUM($D256:Q256),$B256/$C256) -> 0 | S256: =IF((SUM($D256:R256)+$B256/$C256)>$B256,$B256-SUM($D256:R256),$B256/$C256) -> 0 | T256: =IF((SUM($D256:S256)+$B256/$C256)>$B256,$B256-SUM($D256:S256),$B256/$C256) -> 0 | U256: =IF((SUM($D256:T256)+$B256/$C256)>$B256,$B256-SUM($D256:T256),$B256/$C256) -> 0 | V256: =IF((SUM($D256:U256)+$B256/$C256)>$B256,$B256-SUM($D256:U256),$B256/$C256) -> 0 | W256: =IF((SUM($D256:V256)+$B256/$C256)>$B256,$B256-SUM($D256:V256),$B256/$C256) -> 0 | X256: =IF((SUM($D256:W256)+$B256/$C256)>$B256,$B256-SUM($D256:W256),$B256/$C256) -> 0 | Y256: =IF((SUM($D256:X256)+$B256/$C256)>$B256,$B256-SUM($D256:X256),$B256/$C256) -> 0 | Z256: =IF((SUM($D256:Y256)+$B256/$C256)>$B256,$B256-SUM($D256:Y256),$B256/$C256) -> 0 | AA256: =IF((SUM($D256:Z256)+$B256/$C256)>$B256,$B256-SUM($D256:Z256),$B256/$C256) -> 0
A257: 2015 | B257: =J$185 -> 0 | C257: ='Data 2009-15 (Real $2008)'!C$157 -> 7 | J257: =IF($C257=1,$B257,$B257/2/$C257) -> 0 | K257: =IF((SUM($D257:J257)+$B257/$C257)>$B257,$B257-SUM($D257:J257),$B257/$C257) -> 0 | L257: =IF((SUM($D257:K257)+$B257/$C257)>$B257,$B257-SUM($D257:K257),$B257/$C257) -> 0 | M257: =IF((SUM($D257:L257)+$B257/$C257)>$B257,$B257-SUM($D257:L257),$B257/$C257) -> 0 | N257: =IF((SUM($D257:M257)+$B257/$C257)>$B257,$B257-SUM($D257:M257),$B257/$C257) -> 0 | O257: =IF((SUM($D257:N257)+$B257/$C257)>$B257,$B257-SUM($D257:N257),$B257/$C257) -> 0 | P257: =IF((SUM($D257:O257)+$B257/$C257)>$B257,$B257-SUM($D257:O257),$B257/$C257) -> 0 | Q257: =IF((SUM($D257:P257)+$B257/$C257)>$B257,$B257-SUM($D257:P257),$B257/$C257) -> 0 | R257: =IF((SUM($D257:Q257)+$B257/$C257)>$B257,$B257-SUM($D257:Q257),$B257/$C257) -> 0 | S257: =IF((SUM($D257:R257)+$B257/$C257)>$B257,$B257-SUM($D257:R257),$B257/$C257) -> 0 | T257: =IF((SUM($D257:S257)+$B257/$C257)>$B257,$B257-SUM($D257:S257),$B257/$C257) -> 0 | U257: =IF((SUM($D257:T257)+$B257/$C257)>$B257,$B257-SUM($D257:T257),$B257/$C257) -> 0 | V257: =IF((SUM($D257:U257)+$B257/$C257)>$B257,$B257-SUM($D257:U257),$B257/$C257) -> 0 | W257: =IF((SUM($D257:V257)+$B257/$C257)>$B257,$B257-SUM($D257:V257),$B257/$C257) -> 0 | X257: =IF((SUM($D257:W257)+$B257/$C257)>$B257,$B257-SUM($D257:W257),$B257/$C257) -> 0 | Y257: =IF((SUM($D257:X257)+$B257/$C257)>$B257,$B257-SUM($D257:X257),$B257/$C257) -> 0 | Z257: =IF((SUM($D257:Y257)+$B257/$C257)>$B257,$B257-SUM($D257:Y257),$B257/$C257) -> 0 | AA257: =IF((SUM($D257:Z257)+$B257/$C257)>$B257,$B257-SUM($D257:Z257),$B257/$C257) -> 0
... 2 more rows

Sheet Offset of Costs and Rev 2006-08
A1: ='Data 2006-08'!$A$1 -> United Energy | D1: 2006 | E1: 2007 | F1: 2008 | G1: 2009 | H1: 2010 | I1: 2011 | J1: 2012 | K1: 2013
D3: 2006 | E3: 2007 | F3: 2008 | G3: 2009 | H3: 2010 | I3: 2011 | J3: 2012 | K3: 2013
A4: Inflation | D4: ='Data 2006-08'!D155 -> 0.03026134801 | E4: ='Data 2006-08'!E155 -> 0.0393858478 | F4: ='Data 2006-08'!F155 -> 0.01862556198 | G4: ='Data 2009-15 (Real $2008)'!D144 -> 0.04981084489 | H4: ='Data 2009-15 (Real $2008)'!E144 -> 0.01261261261 | I4: ='Data 2009-15 (Real $2008)'!F144 -> 0.02787663108 | J4: ='Data 2009-15 (Real $2008)'!G144 -> 0.03519907675 | K4: ='Data 2009-15 (Real $2008)'!H144 -> 0.02004008016
A5: ='Data 2006-08'!A141 -> 'Vanilla' after tax WACC (real) | D5: ='Data 2006-08'!$C$141 -> 0.059 | E5: ='Data 2006-08'!$C$141 -> 0.059 | F5: ='Data 2006-08'!$C$141 -> 0.059 | G5: ='AMI Building Blocks 2009-15'!$C$18 -> 0.06771645866 | H5: ='AMI Building Blocks 2009-15'!$C$18 -> 0.06771645866 | I5: ='AMI Building Blocks 2009-15'!$C$18 -> 0.06771645866 | J5: ='AMI Building Blocks 2009-15'!$C$18 -> 0.06771645866 | K5: ='AMI Building Blocks 2009-15'!$C$18 -> 0.06771645866
A6: Vanilla' after tax WACC (Nominal) | D6: =(1+D4)*(1+D5)-1 -> 0.09104676754 | E6: 0.1007096128 | F6: 0.07872447013 | G6: 0.1209003176 | H6: 0.08118315273 | I6: 0.09748079647 | J6: 0.1052990922 | K6: 0.08911358208
A10: Offset of costs and revenue 2006-08 | D10: 2006 | E10: 2007 | F10: 2008 | G10: 2009 | H10: 2010 | I10: 2011 | J10: 2012 | K10: 2013
A11: ($000 Nominal)
A12: Prescribed Metering offset | D12: =D73 -> -2571.810013 | E12: =E73 -> -3166.350826 | F12: =F73 -> -4243.258427
A13: Duos Tax Offset | D13: =D36 -> 0 | E13: =E36 -> 268.4986297 | F13: =F36 -> 985.7969153 | G13: =G36 -> 1527.081837 | H13: =H36 -> 1414.92683
A14: Efficiency Carry-over | D14: =D65 -> -318.2684552 | E14: =E65 -> 107.1015482 | F14: -56.14246974 | G14: -58.93897359 | H14: -59.68234803 | I14: -61.34609083 | J14: 317.6518656 | K14: -190.6551941
A15: AMI O & M costs | D15: ='Data 2006-08'!D115/10^3 -> 0 | E15: ='Data 2006-08'!E115/10^3 -> 990 | F15: ='Data 2006-08'!F115/10^3 -> 1010
A16: Total | D16: =SUM(D12:D15) -> -2890.078468 | E16: -1800.750648 | F16: -2303.603981 | G16: 1468.142863 | H16: 1355.244482 | I16: -61.34609083 | J16: 317.6518656 | K16: -190.6551941
A18: WACC adjustment factor (time value of money) | D18: =E18*(1+E6) -> 1.330914884 | E18: =F18*(1+F6) -> 1.209142601 | F18: =G18*(1+G6) -> 1.120900318 | G18: 1 | H18: =G18/(1+H6) -> 0.9249126732 | I18: =H18/(1+I6) -> 0.8427597787 | J18: =I18/(1+J6) -> 0.7624721531 | K18: =J18/(1+K6) -> 0.7000850652
A20: Total Offset of costs and revenue 2006-08 (WACC adjusted) | G20: =SUMPRODUCT(D16:K16,D18:K18) -> -5827.271717
A24: Duos Tax Offset : EDPR 2006-10 | D24: 2006 | E24: 2007 | F24: 2008 | G24: 2009 | H24: 2010
A25: ($000 Real 2004)
A26: Metering Taxable loss | D26: =-IF('Data 2006-08'!D184>0,0,'Data 2006-08'!D184/'Data 2006-08'!D185/10^3) -> 0 | E26: =-IF('Data 2006-08'!E184>0,0,'Data 2006-08'!E184/'Data 2006-08'!E185/10^3) -> 1388.593748 | F26: =-IF('Data 2006-08'!F184>0,0,'Data 2006-08'!F184/'Data 2006-08'!F185/10^3) -> 5005.022296 | G26: =-IF('Data 2006-08'!G184>0,0,'Data 2006-08'!G184/'Data 2006-08'!G185/10^3) -> 7385.328514 | H26: =-IF('Data 2006-08'!H184>0,0,'Data 2006-08'!H184/'Data 2006-08'!H185/10^3) -> 6757.6883
A27: Cost of Tax | D27: =D26*'Data 2006-08'!$C$169/(1-'Data 2006-08'!$C$169*(1-'Data 2006-08'!$C$170)) -> 0 | E27: =E26*'Data 2006-08'!$C$169/(1-'Data 2006-08'!$C$169*(1-'Data 2006-08'!$C$170)) -> 490.0919111 | F27: =F26*'Data 2006-08'!$C$169/(1-'Data 2006-08'!$C$169*(1-'Data 2006-08'!$C$170)) -> 1766.478457 | G27: =G26*'Data 2006-08'!$C$169/(1-'Data 2006-08'!$C$169*(1-'Data 2006-08'!$C$170)) -> 2606.586534 | H27: =H26*'Data 2006-08'!$C$169/(1-'Data 2006-08'!$C$169*(1-'Data 2006-08'!$C$170)) -> 2385.066459
A28: Franking benefit | D28: =D27*'Data 2006-08'!$C$170 -> 0 | E28: =E27*'Data 2006-08'!$C$170 -> 245.0459556 | F28: =F27*'Data 2006-08'!$C$170 -> 883.2392287 | G28: =G27*'Data 2006-08'!$C$170 -> 1303.293267 | H28: =H27*'Data 2006-08'!$C$170 -> 1192.533229
A29: Duos tax offset | D29: =D27-D28 -> 0 | E29: =E27-E28 -> 245.0459556 | F29: =F27-F28 -> 883.2392287 | G29: =G27-G28 -> 1303.293267 | H29: =H27-H28 -> 1192.533229
A31: Duos tax offset
A32: ($000 Real 2008) | D32: =D29*'Data 2006-08'!$B$156 -> 0 | E32: =E29*'Data 2006-08'!$B$156 -> 273.4995676 | F32: =F29*'Data 2006-08'!$B$156 -> 985.7969153 | G32: =G29*'Data 2006-08'!$B$156 -> 1454.625701 | H32: =H29*'Data 2006-08'!$B$156 -> 1331.004716
A35: Duos tax offset | D35: 2006 | E35: 2007 | F35: 2008 | G35: 2009 | H35: 2010
A36: ($000 Nominal) | D36: =D32/'Data 2006-08'!D156 -> 0 | E36: =E32/'Data 2006-08'!E156 -> 268.4986297 | F36: =F32/'Data 2006-08'!F156 -> 985.7969153 | G36: =G32*'Data 2009-15 (Real $2008)'!D145 -> 1527.081837 | H36: =H32*'Data 2009-15 (Real $2008)'!E145 -> 1414.92683
A40: Efficiency Carry-over | D40: 2006 | E40: 2007 | F40: 2008 | G40: 2009 | H40: 2010 | I40: 2011 | J40: 2012 | K40: 2013
A41: ($000 Real 2008)
A42: Benchmark costs (adjusted for actual quantities)
A43: Meter maintenance | D43: ='Data 2006-08'!D205*'Data 2006-08'!D59*'Data 2006-08'!$B$156/10^3 -> 569.3824355 | E43: ='Data 2006-08'!E205*'Data 2006-08'!E59*'Data 2006-08'!$B$156/10^3 -> 625.9474487 | F43: ='Data 2006-08'!F205*'Data 2006-08'!F59*'Data 2006-08'!$B$156/10^3 -> 682.0117259
A44: Metering data services | D44: =((('Data 2006-08'!D208*12+'Data 2006-08'!D210)*'Data 2006-08'!D63+('Data 2006-08'!D208*4+'Data 2006-08'!D210)*'Data 2006-08'!D64)+(('Data 2006-08'!D209*12+'Data 2006-08'!D211)*'Data 2006-08'!D65+('Data 2006-08'!D209*4+'Data 2006-08'!D211)*'Data 2006-08'!D66))*'Data 2006-08'!$B$156/10^3 -> 6187.928894 | E44: =((('Data 2006-08'!E208*12+'Data 2006-08'!E210)*'Data 2006-08'!E63+('Data 2006-08'!E208*4+'Data 2006-08'!E210)*'Data 2006-08'!E64)+(('Data 2006-08'!E209*12+'Data 2006-08'!E211)*'Data 2006-08'!E65+('Data 2006-08'!E209*4+'Data 2006-08'!E211)*'Data 2006-08'!E66))*'Data 2006-08'!$B$156/10^3 -> 6255.7886 | F44: =((('Data 2006-08'!F208*12+'Data 2006-08'!F210)*'Data 2006-08'!F63+('Data 2006-08'!F208*4+'Data 2006-08'!F210)*'Data 2006-08'!F64)+(('Data 2006-08'!F209*12+'Data 2006-08'!F211)*'Data 2006-08'!F65+('Data 2006-08'!F209*4+'Data 2006-08'!F211)*'Data 2006-08'!F66))*'Data 2006-08'!$B$156/10^3 -> 6217.227482
A45: Customer services (meter replacements) | D45: ='Data 2006-08'!D213*'Data 2006-08'!D69*'Data 2006-08'!$B$156/10^3 -> 11.41674455 | E45: ='Data 2006-08'!E213*'Data 2006-08'!E69*'Data 2006-08'!$B$156/10^3 -> 19.24874961 | F45: ='Data 2006-08'!F213*'Data 2006-08'!F69*'Data 2006-08'!$B$156/10^3 -> 7.417926249
D46: =SUM(D43:D45) -> 6768.728074 | E46: =SUM(E43:E45) -> 6900.984798 | F46: =SUM(F43:F45) -> 6906.657134
A48: Actual costs
A49: Meter maintenance | D49: ='Data 2006-08'!D40*'Data 2006-08'!D156/10^3 -> 488.0814419 | E49: ='Data 2006-08'!E40*'Data 2006-08'!E156/10^3 -> 411.524727 | F49: ='Data 2006-08'!F40*'Data 2006-08'!F156/10^3 -> 418
A50: Metering data services | D50: ='Data 2006-08'!D45*'Data 2006-08'!D156/10^3 -> 6606.195021 | E50: ='Data 2006-08'!E45*'Data 2006-08'!E156/10^3 -> 6361.114947 | F50: ='Data 2006-08'!F45*'Data 2006-08'!F156/10^3 -> 6537.381678
A51: Customer services (meter replacements) | D51: ='Data 2006-08'!D46*'Data 2006-08'!D156/10^3 -> 11.41674455 | E51: ='Data 2006-08'!E46*'Data 2006-08'!E156/10^3 -> 19.24874961 | F51: ='Data 2006-08'!F46*'Data 2006-08'!F156/10^3 -> 7.417926249
D52: =SUM(D49:D51) -> 7105.693208 | E52: =SUM(E49:E51) -> 6791.888423 | F52: =SUM(F49:F51) -> 6962.799604
A54: Underspend\(Overspend) | D54: =D46-D52 -> -336.9651335 | E54: =E46-E52 -> 109.0963747 | F54: =F46-F52 -> -56.14246974
A55: Incremental gain | D55: =D54 -> -336.9651335 | E55: =E54-D54 -> 446.0615082 | F55: =F54-E54 -> -165.2388444
A57: Efficiency
A58: 2006 | D58: =$D55 -> -336.9651335 | E58: -336.9651335 | F58: -336.9651335 | G58: -336.9651335 | H58: -336.9651335 | I58: -336.9651335
A59: 2007 | E59: =$E55 -> 446.0615082 | F59: 446.0615082 | G59: 446.0615082 | H59: 446.0615082 | I59: 446.0615082 | J59: 446.0615082
A60: 2008 | F60: =$F55 -> -165.2388444 | G60: -165.2388444 | H60: -165.2388444 | I60: -165.2388444 | J60: -165.2388444 | K60: -165.2388444
D61: =SUM(D58:D60) -> -336.9651335 | E61: =SUM(E58:E60) -> 109.0963747 | F61: -56.14246974 | G61: -56.14246974 | H61: -56.14246974 | I61: -56.14246974 | J61: 280.8226637 | K61: -165.2388444
A64: Efficiency Carry-over | D64: 2006 | E64: 2007 | F64: 2008 | G64: 2009 | H64: 2010 | I64: 2011 | J64: 2012 | K64: 2013
A65: ($000 Nominal) | D65: =D61/'Data 2006-08'!D156 -> -318.2684552 | E65: =E61/'Data 2006-08'!E156 -> 107.1015482 | F65: =F61/'Data 2006-08'!F156 -> -56.14246974 | G65: =G61*'Data 2009-15 (Real $2008)'!D145 -> -58.93897359 | H65: =H61*'Data 2009-15 (Real $2008)'!E145 -> -59.68234803 | I65: =I61*'Data 2009-15 (Real $2008)'!F145 -> -61.34609083 | J65: =J61*'Data 2009-15 (Real $2008)'!F145*(1+J4) -> 317.6518656 | K65: =K61*'Data 2009-15 (Real $2008)'!F145*(1+J4)*(1+K4) -> -190.6551941
A69: Prescribed Metering offset | D69: 2006 | E69: 2007 | F69: 2008
A70: ($000 Nominal)
A71: Tariff Revenue | D71: =-'Data 2006-08'!D75/10^3 -> -10609 | E71: =-'Data 2006-08'!E75/10^3 -> -12008.88889 | F71: =-'Data 2006-08'!F75/10^3 -> -14357.79571
A72: Prescribed Metering costs | D72: =D84/'Data 2006-08'!D156 -> 8037.189987 | E72: =E84/'Data 2006-08'!E156 -> 8842.538063 | F72: =F84/'Data 2006-08'!F156 -> 10114.53728
A73: Net offset | D73: =SUM(D71:D72) -> -2571.810013 | E73: =SUM(E71:E72) -> -3166.350826 | F73: =SUM(F71:F72) -> -4243.258427
A78: Prescribed Metering costs
A79: ($000 Real 2008) | D79: 2006 | E79: 2007 | F79: 2008
A80: Return on assets | D80: =D185*'Data 2006-08'!$C$141 -> 187.819509 | E80: =E185*'Data 2006-08'!$C$141 -> 519.115677 | F80: =F185*'Data 2006-08'!$C$141 -> 753.4880258
A81: Regulatory depreciation | D81: =D182 -> 365.7963952 | E81: =E182 -> 1026.07744 | F81: =F182 -> 1552.234296
A82: O&M expenditure | D82: ='Data 2006-08'!D50*'Data 2006-08'!D$156/10^3 -> 7555.204272 | E82: ='Data 2006-08'!E50*'Data 2006-08'!E$156/10^3 -> 7193.533719 | F82: ='Data 2006-08'!F50*'Data 2006-08'!F$156/10^3 -> 7327.380678
A83: Tax liability | D83: =D114 -> 400.5144828 | E83: =E114 -> 268.5084677 | F83: =F114 -> 481.4342834
D84: =SUM(D80:D83) -> 8509.334659 | E84: =SUM(E80:E83) -> 9007.235304 | F84: =SUM(F80:F83) -> 10114.53728
A88: TAXATION CALCULATION
D89: 2006 | E89: 2007 | F89: 2008
A90: Cost of debt (nominal) | D90: =('Data 2006-08'!$C$138+1)*('Data 2006-08'!D155+1)-1 -> 0.0721414718 | E90: =('Data 2006-08'!$C$138+1)*('Data 2006-08'!E155+1)-1 -> 0.08163688251 | F90: =('Data 2006-08'!$C$138+1)*('Data 2006-08'!F155+1)-1 -> 0.06003269107
A91: ="Average RAB "&A79&"" -> Average RAB ($000 Real 2008) | D91: =D185 -> 3183.381509 | E91: =E185 -> 8798.570797 | F91: =F185 -> 12770.98349
A92: ="Debt ("&D96*100&"% of RAB)" -> Debt (60% of RAB) | D92: =$D$96*D91 -> 1910.028905 | E92: =$D$96*E91 -> 5279.142478 | F92: =$D$96*F91 -> 7662.590093
A93: Inflation factor | D93: =1/'Data 2006-08'!D156 -> 0.9445145019 | E93: =1/'Data 2006-08'!E156 -> 0.9817150063 | F93: =1/'Data 2006-08'!F156 -> 1
A95: Tax rate | D95: ='Data 2006-08'!C169 -> 0.3
A96: Gearing | D96: ='Data 2006-08'!C171 -> 0.6
A97: Franking credit value | D97: ='Data 2006-08'!C170 -> 0.5
A99: ($000 MOD) | D99: 2006 | E99: 2007 | F99: 2008
A100: Tariff Revenue | D100: ='Data 2006-08'!D75/10^3 -> 10609 | E100: ='Data 2006-08'!E75/10^3 -> 12008.88889 | F100: ='Data 2006-08'!F75/10^3 -> 14357.79571
A101: Customer contributions | D101: ='Data 2006-08'!D28/10^3 -> 0 | E101: ='Data 2006-08'!E28/10^3 -> 0 | F101: ='Data 2006-08'!F28/10^3 -> 0
A102: Operating & maintenance expenditure | D102: ='Data 2006-08'!D50/10^3 -> 7136 | E102: ='Data 2006-08'!E50/10^3 -> 7062 | F102: ='Data 2006-08'!F50/10^3 -> 7327.380678
A103: Tax depreciation | D103: =D278 -> 1199.2 | E103: =E278 -> 3030.07 | F103: =F278 -> 3842.281523
A104: Interest | D104: =D92*D93*D90 -> 130.1468222 | E104: =E92*E93*E90 -> 423.0924005 | F104: =F92*F93*F90 -> 460.0059039
A105: Tax losses brought forward | D105: 0 | E105: =IF(D106<0,-D106,0) -> 0 | F105: =IF(E106<0,-E106,0) -> 0
A106: After tax net income | D106: =SUM(D100:D101)-SUM(D102:D105) -> 2143.653178 | E106: =SUM(E100:E101)-SUM(E102:E105) -> 1493.726488 | F106: =SUM(F100:F101)-SUM(F102:F105) -> 2728.127606
A107: Cost of tax | D107: =IF(D106<0,0,D106*$D$95/(1-$D$95*(1-$D$97))) -> 756.5834745 | E107: =IF(E106<0,0,E106*$D$95/(1-$D$95*(1-$D$97))) -> 527.1975841 | F107: =IF(F106<0,0,F106*$D$95/(1-$D$95*(1-$D$97))) -> 962.8685668
A108: Franking benefit | D108: =D107*$D$97 -> 378.2917373 | E108: =E107*$D$97 -> 263.5987921 | F108: =F107*$D$97 -> 481.4342834
A109: Tax liability ($000 MOD) | D109: =D107-D108 -> 378.2917373 | E109: =E107-E108 -> 263.5987921 | F109: =F107-F108 -> 481.4342834
A111: =$A$79 -> ($000 Real 2008) | D111: 2006 | E111: 2007 | F111: 2008
A112: Cost of tax | D112: =D107/D$93 -> 801.0289657 | E112: 537.0169354 | F112: 962.8685668
A113: Franking benefit | D113: 400.5144828 | E113: 268.5084677 | F113: 481.4342834
A114: ="Tax liability "&A79&"" -> Tax liability ($000 Real 2008) | D114: =D112-D113 -> 400.5144828 | E114: =E112-E113 -> 268.5084677 | F114: =F112-F113 -> 481.4342834
A119: CAPITAL EXPENDITURE - METERING SERVICES
A120: =$A$79 -> ($000 Real 2008) | D120: 2006 | E120: 2007 | F120: 2008
A122: Accumulation meters | D122: ='Data 2006-08'!D10*'Data 2006-08'!D$156/10^3 -> 3828.421896 | E122: ='Data 2006-08'!E10*'Data 2006-08'!E$156/10^3 -> 5087.016057 | F122: ='Data 2006-08'!F10*'Data 2006-08'!F$156/10^3 -> 4165.444121
A123: Manually read interval meters | D123: ='Data 2006-08'!D11*'Data 2006-08'!D$156/10^3 -> 2320.769025 | E123: ='Data 2006-08'!E11*'Data 2006-08'!E$156/10^3 -> 802.6769428 | F123: ='Data 2006-08'!F11*'Data 2006-08'!F$156/10^3 -> 468
A124: Customer contributions | D124: ='Data 2006-08'!D28*'Data 2006-08'!D$156/10^3 -> 0 | E124: ='Data 2006-08'!E28*'Data 2006-08'!E$156/10^3 -> 0 | F124: ='Data 2006-08'!F28*'Data 2006-08'!F$156/10^3 -> 0
A125: Total metering (net of customer contributions) | D125: =D122+D123-D124 -> 6149.190921 | E125: =E122+E123-E124 -> 5889.692999 | F125: =F122+F123-F124 -> 4633.444121
A127: Metering Data Services (IT) | D127: ='Data 2006-08'!D12*'Data 2006-08'!D$156/10^3 -> 583.3684913 | E127: ='Data 2006-08'!E12*'Data 2006-08'!E$156/10^3 -> 0 | F127: ='Data 2006-08'!F12*'Data 2006-08'!F$156/10^3 -> 0
A128: Metering Data Services (Other) | D128: ='Data 2006-08'!D13*'Data 2006-08'!D$156/10^3 -> 0 | E128: ='Data 2006-08'!E13*'Data 2006-08'!E$156/10^3 -> 0 | F128: ='Data 2006-08'!F13*'Data 2006-08'!F$156/10^3 -> 0
A130: TOTAL CAPEX | D130: =SUM(D125:D128) -> 6732.559413 | E130: =SUM(E125:E128) -> 5889.692999 | F130: =SUM(F125:F128) -> 4633.444121
A135: REGULATED ASSET BASE - METERING SERVICES
A136: =$A$79 -> ($000 Real 2008) | D136: 2006 | E136: 2007 | F136: 2008
A138: Accumulation meters
A139: Opening asset base | D139: 0 | E139: =D143 -> 3637.000801 | F139: =E143 -> 8086.823865
A140: Capital expenditure (net of customer contributions) | D140: =D122 -> 3828.421896 | E140: =E122 -> 5087.016057 | F140: =F122 -> 4165.444121
A141: Disposals - proceeds from sale of assets | D141: 0 | E141: 0 | F141: 0
A142: Regulatory depreciation | D142: =D211 -> 191.4210948 | E142: =E211 -> 637.1929924 | F142: =F211 -> 1099.816001
A143: Closing asset base | D143: =D139+D140-D141-D142 -> 3637.000801 | E143: =E139+E140-E141-E142 -> 8086.823865 | F143: =F139+F140-F141-F142 -> 11152.45198
A145: Average asset base | D145: =(D143+D139)/2 -> 1818.500401 | E145: =(E143+E139)/2 -> 5861.912333 | F145: =(F143+F139)/2 -> 9619.637925
A148: Manually read interval meters
A149: Opening asset base | D149: 0 | E149: =D153 -> 2204.730574 | F149: =E153 -> 2735.196767
A150: Capital expenditure (net of customer contributions) | D150: =D123-D124 -> 2320.769025 | E150: =E123-E124 -> 802.6769428 | F150: =F123-F124 -> 468
A151: Disposals - proceeds from sale of assets | D151: ='Data 2006-08'!D29*'Data 2006-08'!D$156/10^3 -> 0 | E151: ='Data 2006-08'!E29*'Data 2006-08'!E$156/10^3 -> 0 | F151: ='Data 2006-08'!F29*'Data 2006-08'!F$156/10^3 -> 0
A152: Regulatory depreciation | D152: =D219 -> 116.0384513 | E152: =E219 -> 272.2107497 | F152: =F219 -> 335.7445968
A153: Closing asset base | D153: =D149+D150-D151-D152 -> 2204.730574 | E153: =E149+E150-E151-E152 -> 2735.196767 | F153: =F149+F150-F151-F152 -> 2867.45217
